Workbook

Sheet Full Sensitivity Analysis (hidden)
A1: Full Sensitivity Analysis Parameter Ranges
A3: Selected_Asset
A4: Wind_PTC_or_ITC | B4: ITC | C4: PTC
A5: USDA_Grant_Frac | B5: 1 | C5: 0.7 | D5: 0.4
A6: Spread | B6: 0.02 | C6: 0.03 | D6: 0.04
A7: Clean_Asset_Life | B7: 20 | C7: 30 | D7: 35
A8: Wind_Energy_Communities | B8: 0 | C8: 1
A9: Wind_Domestic_Content | B9: 0 | C9: 1
A11: Selected_Asset | B11: Wind_PTC_or_ITC | C11: USDA_Grant_Frac | D11: Spread | E11: Clean_Asset_Life | F11: Wind_Energy_Communities | G11: Wind_Domestic_Content | H11: Owned_LCOE | I11: PPA_LCOE_Calc | J11: PPA_LCOE_Manual

Sheet Instructions and Notes
C2: RMI Co-op Federal Funding Calculator Key Steps
C3: 1) Enter Resource Portfolio Assumptions in the "Resource Portfolio Inputs and Assumptions" Section
C4: 2) Select USDA New ERA program and other utility financial metrics and options in "Financial Inputs and Assumptions" Section
C5: 3) Hit "Calculate Portfolio Results" macro button, located at the top of the "Resource Portfolio Outputs and Summary" Section***
C6: 4) See the LCOE and NPV results for ownership vs. PPA in the "Resource Portfolio Cost Outputs" Section
C7: 5) To record the inputs and outputs and results for a particular portfolio, fill in the "Record Counter" near the top of the "Inputs and Outputs" tab corresponding to an empty column in the "Scenario and Portfolio Record" section of the "Inputs and Outputs" sheet, and hit the "Save Record" button
C8: 6) Record multiple portfolios corresponding to a single scenario by selecting a common "Scenario Number" and recording multiple portfolios for that scenario by selecting successive "Record Number" and "Portfolio Numbers" for portfolios to be built in different years
C9: 7) Generate aggregate results for all portfolios in the "Scenario Results and Summary" section for a given scenario by inputing the desired scenario into the "Scenario Number" and then hitting the "Calculate Scenario Results" button,
C11: ***The "Calculate Portfolio Results" Macro iteratively seeks the mix of ITC and PTC solar and wind assets that allows the utility to meet its equity ratio constraints while minimizing ratepayer costs, given interest rate choice and tax credit choices and assigning balance of credit subsidy not needed for loan to grant.
B14: Sheet: "Inputs and Outputs"
B15: Section/Subsection | C15: Description
B16: Scenario Outputs and Summary | C16: This section shows the aggregate outputs (LCOE, NPV) of all portfolios in a scenario.
B17: Resource Portfolio Outputs and Summary | C17: This section shows the outputs (LCOE, NPV) of the single portfolio being modeled.
B18: Resource Portfolio Inputs and Assumptions | C18: All resource inputs for the portfolio being analyzed exist in this section.
B19: Portfolio Options | C19: Initial metrics for the portfolio being analyzed - build/start year, asset/PPA lifetime, and NREL assumptions.
B20: Old Plant Refinancing | C20: Inputs and metrics for the refinancing of older fossil assets, if any.
B21: Solar Metrics | C21: All metrics related to the solar asset in the portfolio being modeled.
B22: Wind Metrics | C22: All metrics related to the wind asset in the portfolio being modeled.
B23: Battery Metrics | C23: All metrics related to the battery or storage asset in the portfolio being modeled.
B24: Transmission or Other Asset Metrics | C24: All metrics related to any transmission buildout required for the portfolio.
B25: Quote PPA | C25: This section holds all the information and metrics for the Quote PPA to compare against the calculated PPA and owned outputs.
B26: Additional Portfolio Revenues | C26: One can manually add in any additional revenues that an entity could model for up to 40 years into the lifetime of the asset.
B27: Financial Inputs and Assumptions | C27: All financial inputs for the portfolio being analyzed exist in this section.
B28: Utility Financial Metrics | C28: Initial financial metrics (ROE, equity, debt, etc.) can be manually input or pulled from our repository (sheet: 'coop_structure_HC').
B29: Clean Portfolio Financial Constraints | C29: Set a target for key financial metrics (equity ratio, margin for interest, etc.).
B30: Macro Metrics | C30: This section holds the inputs for key macro metrics related to inflation.
B31: Financing Required | C31: This section shows the total financing required for the PPA and ownership of an asset.
B32: Grants, Forgivable Loans, and ITC | C32: The percentage of New ERA and GRIP grants can be input, and the total grants and ITC for ownership is calculated here.
B33: New Asset Debt Assumptions | C33: Metrics for different types of new asset debt assumptions.
B34: Final Capital Structure | C34: This section shows the final capital structure metrics of the portfolio, including the additional equity required.
B35: Tax Incentives | C35: Set assumptions related to tax incentives, including direct pay vs transferability, haircut, and tax rate.
B36: Other Assumptions | C36: Rarely changed - miscellaneous assumptions related to USDA grants and loans.
B37: Scenario and Portfolio Record | C37: A new portfolio will be recorded here for a scenario buildout, and all portfolios can be seen in the sections below.

Sheet Inputs and Outputs
G1: Input Flag
B2: RMI Co-op Federal Funding Calculator v. 1.29 | C2: Key | I2: Scenario and Portfolio Record
C3: Input
C4: Calculated (DO NOT EDIT)
C5: Output
B7: Next Available Record | C7: =COUNT(J10:BG10)+1 -> 2
B8: Record Counter | C8: 1 | G8: TRUE | I8: =IF(B8="","",B8) -> Record Counter | J8: =COLUMN()-COLUMN($I$8) -> 1 | K8: =COLUMN()-COLUMN($I$8) -> 2 | L8: 3 | M8: 4 | N8: 5 | O8: 6 | P8: 7 | Q8: 8 | R8: 9 | S8: 10 | T8: 11 | U8: 12 | V8: 13 | W8: 14 | X8: 15 | Y8: 16 | Z8: 17 | AA8: 18 | AB8: 19 | AC8: 20 | AD8: 21 | AE8: 22 | AF8: 23 | AG8: 24 | AH8: 25 | AI8: 26 | AJ8: 27 | AK8: 28 | AL8: 29 | AM8: 30 | AN8: 31 | AO8: 32 | AP8: 33 | AQ8: 34 | AR8: 35 | AS8: 36 | AT8: 37 | AU8: 38 | AV8: 39 | AW8: 40 | AX8: 41 | AY8: 42 | AZ8: 43 | BA8: 44 | BB8: 45 | BC8: 46 | BD8: 47 | BE8: 48 | BF8: 49 | BG8: 50
B9: Scenario Number | C9: 1 | G9: TRUE | I9: =IF(B9="","",B9) -> Scenario Number | J9: 1
B10: Portfolio Number | C10: 1 | G10: TRUE | I10: Portfolio Number | J10: 1
G11: FALSE | I11: =IF(B11="","",B11) -> 
B12: Scenario Outputs and Summary | G12: FALSE | I12: =IF(B12="","",B12) -> Scenario Outputs and Summary
G13: FALSE | I13: =IF(B13="","",B13) -> 
B14: Ownership LCOE ($/MWh) | C14: =IFERROR(NPV(Discount_Rate,'Scenario Cost Calculations'!$D$96:$AQ$96)/(NPV(Discount_Rate,'Scenario Cost Calculations'!$D$58:$AQ$58)+NPV(Discount_Rate,'Scenario Cost Calculations'!$D$84:$AQ$84)),"") ->  | G14: FALSE | I14: =IF(B14="","",B14) -> Ownership LCOE ($/MWh) | J14: 56.78
B15: Calculated PPA LCOE ($/MWh) | C15: =IFERROR(NPV(Discount_Rate,'Scenario Cost Calculations'!$D$108:$AQ$108)/NPV(Discount_Rate,'Scenario Cost Calculations'!$D$105:$AQ$105),"") ->  | G15: FALSE | I15: Calculated PPA LCOE ($/MWh) | J15: 64.1
B16: Quote PPA LCOE ($/MWh) | C16: =IFERROR(NPV(Discount_Rate,'Scenario Cost Calculations'!$D$114:$AQ$114)/NPV(Discount_Rate,'Scenario Cost Calculations'!$D$111:$AQ$111),"") ->  | G16: FALSE | I16: Quote PPA LCOE ($/MWh) | J16: 59.97
G17: FALSE
B18: Ownership NPV of Member Costs ($) | C18: =NPV(Discount_Rate,'Scenario Cost Calculations'!$D$96:$AQ$96) -> 0 | G18: FALSE | I18: Ownership NPV of Member Costs ($) | J18: 2224780942
B19: Calculated PPA NPV of Member Costs ($) | C19: =NPV(Discount_Rate,'Scenario Cost Calculations'!$D$108:$AQ$108) -> 0 | G19: FALSE | I19: Calculated PPA NPV of Member Costs ($) | J19: 2511749425
B20: Quote PPA NPV of Member Costs ($) | C20: =NPV(Discount_Rate,'Scenario Cost Calculations'!$D$114:$AQ$114) -> 0 | G20: FALSE | I20: Quote PPA NPV of Member Costs ($) | J20: 2349759454
B22: Range of Build Years for All Portfolios in Scenario | C22: =_xlfn.MINIFS($J$72:$BG$72,$J$9:$BG$9,Scenario_Num) & " - " & _xlfn.MAXIFS($J$72:$BG$72,$J$9:$BG$9,Scenario_Num) -> 2026 - 2026 | G22: FALSE | I22: =IF(B22="","",B22) -> Range of Build Years for All Portfolios in Scenario | J22: 2026 - 2026
B23: Fraction of Maximum NewERA USDA Award ($970m) Used for Financing All Portfolios in Scenario (%) | C23: =SUMIFS($J$294:$BG$294,$J$9:$BG$9,Scenario_Num) -> 0.15 | G23: FALSE | I23: Fraction of Maximum NewERA USDA Award ($970m) Used for Financing All Portfolios in Scenario (%) | J23: 0.15
B24: Total Grip Grant Amount for All Portfolios in Scenario | C24: =SUMIFS($J$297:$BG$297,$J$9:$BG$9,Scenario_Num) -> 0 | G24: FALSE | I24: Total Grip Grant Amount for All Portfolios in Scenario | J24: 0
B25: Total PACE Forgivable Loans for All Portfolios in Scenario | C25: =SUMIFS($J$298:$BG$298,$J$9:$BG$9,Scenario_Num) -> 0 | G25: FALSE | I25: =IF(B25="","",B25) -> Total PACE Forgivable Loans for All Portfolios in Scenario | J25: 0
G26: FALSE
B27: Total Scenario Solar Capacity (MW) | C27: =SUMIFS($J$117:$BG$117,$J$9:$BG$9,Scenario_Num) -> 800 | G27: FALSE | I27: Total Scenario Solar Capacity (MW) | J27: 800
B28: Solar Domestic Content Percentage (%) | C28: =SUMPRODUCT(IF($J$9:$BG$9=Scenario_Num,$J$119:$BG$119,0),$J$117:$BG$117)/$C$27 -> 0.5 | G28: FALSE | I28: Solar Domestic Content Percentage (%) | J28: 0.5
B29: Solar Energy Communities Percentage (%) | C29: =SUMPRODUCT(IF($J$9:$BG$9=Scenario_Num,$J$120:$BG$120,0),$J$117:$BG$117)/$C$27 -> 0.5 | G29: FALSE | I29: Solar Energy Communities Percentage (%) | J29: 0.5
G30: FALSE
B31: Total Scenario Wind Capacity (MW) | C31: =SUMIFS($J$146:$BG$146,$J$9:$BG$9,Scenario_Num) -> 200 | G31: FALSE | I31: Total Scenario Wind Capacity (MW) | J31: 200
B32: Wind Domestic Content Percentage (%) | C32: =SUMPRODUCT(IF($J$9:$BG$9=Scenario_Num,$J$148:$BG$148,0),$J$146:$BG$146)/$C$31 -> 0 | G32: FALSE | I32: Wind Domestic Content Percentage (%) | J32: 0
B33: Wind Energy Communities Percentage (%) | C33: =SUMPRODUCT(IF($J$9:$BG$9=Scenario_Num,$J$149:$BG$149,0),$J$146:$BG$146)/$C$31 -> 1 | G33: FALSE | I33: Wind Energy Communities Percentage (%) | J33: 1
G34: FALSE
B35: Total Scenario Storage Capacity (MW) | C35: =SUMIFS($J$172:$BG$172,$J$9:$BG$9,Scenario_Num) -> 700 | G35: FALSE | I35: Total Scenario Storage Capacity (MW) | J35: 700
B36: Storage Domestic Content Percentage (%) | C36: =SUMPRODUCT(IF($J$9:$BG$9=Scenario_Num,$J$173:$BG$173,0),$J$172:$BG$172)/$C$35 -> 0 | G36: FALSE | I36: Storage Domestic Content Percentage (%) | J36: 0
B37: Storage Energy Communities Percentage (%) | C37: =SUMPRODUCT(IF($J$9:$BG$9=Scenario_Num,$J$174:$BG$174,0),$J$172:$BG$172)/$C$35 -> 1 | G37: FALSE | I37: Storage Energy Communities Percentage (%) | J37: 1
G38: FALSE | I38: =IF(B38="","",B38) -> 
B39: Scenario Minimum Achieved Equity Ratio for New Clean Assets | C39: =MIN('Scenario Cost Calculations'!D116:AQ116) -> 0 | G39: FALSE | I39: Scenario Minimum Achieved Equity Ratio for New Clean Assets | J39: 0.2614167165
B40: Scenario Minimum Achieved Modified Debt Service Coverage for New Clean Assets | C40: =MIN('Scenario Cost Calculations'!D117:AQ117) -> 0 | G40: FALSE | I40: Scenario Minimum Achieved Modified Debt Service Coverage for New Clean Assets | J40: 1.05
B41: Scenario Minimum Achieved Margin for Interest for New Clean Assets | C41: =MIN('Scenario Cost Calculations'!D118:AQ118) -> 0 | G41: FALSE | I41: =IF(B41="","",B41) -> Scenario Minimum Achieved Margin for Interest for New Clean Assets | J41: 1.114673697
G42: FALSE | I42: =IF(B42="","",B42) -> 
B43: Resource Portfolio Outputs and Summary | G43: FALSE | I43: Resource Portfolio Outputs and Summary
G44: FALSE
B45: Ownership: LCOE with ownership of all assets + refinancing ($/MWh) | C45: =IFERROR(NPV(Discount_Rate,'Cost Calculations'!$D$96:$AQ$96)/(NPV(Discount_Rate,'Cost Calculations'!$D$58:$AQ$58)+NPV(Discount_Rate,'Cost Calculations'!$D$84:$AQ$84)),"") -> 56.7764436 | G45: FALSE | I45: =IF(B45="","",B45) -> Ownership: LCOE with ownership of all assets + refinancing ($/MWh) | J45: 56.78
B46: PPA (Calc): LCOE with calculated clean PPAs, owned transmission, and refinancing ($/MWh) | C46: =IFERROR(NPV(Discount_Rate,'Cost Calculations'!$D$108:$AQ$108)/NPV(Discount_Rate,'Cost Calculations'!$D$105:$AQ$105),"") -> 64.09988366 | G46: FALSE | I46: =IF(B46="","",B46) -> PPA (Calc): LCOE with calculated clean PPAs, owned transmission, and refinancing ($/MWh) | J46: 64.1
B47: PPA (Quote): LCOE with an input clean PPA, transmission, and refinancing ($/MWh) | C47: =IFERROR(NPV(Discount_Rate,'Cost Calculations'!$D$114:$AQ$114)/NPV(Discount_Rate,'Cost Calculations'!$D$111:$AQ$111),"") -> 59.96589712 | G47: FALSE | I47: =IF(B47="","",B47) -> PPA (Quote): LCOE with an input clean PPA, transmission, and refinancing ($/MWh) | J47: 59.97
G48: FALSE | I48: =IF(B48="","",B48) -> 
B49: Ownership: NPV electricity cost with ownership of all assets + refinancing ($) | C49: =NPV(Discount_Rate,'Cost Calculations'!$D$96:$AQ$96) -> 2224780942 | G49: FALSE | I49: =IF(B49="","",B49) -> Ownership: NPV electricity cost with ownership of all assets + refinancing ($) | J49: 2224780942
B50: PPA (Calc): NPV electricity cost with calculated clean PPAs, owned transmission, and refinancing ($) | C50: =NPV(Discount_Rate,'Cost Calculations'!$D$108:$AQ$108) -> 2511749425 | G50: FALSE | I50: =IF(B50="","",B50) -> PPA (Calc): NPV electricity cost with calculated clean PPAs, owned transmission, and refinancing ($) | J50: 2511749425
B51: PPA (Quote): NPV electricity cost with an input clean PPA, transmission, and refinancing ($) | C51: =NPV(Discount_Rate,'Cost Calculations'!$D$114:$AQ$114) -> 2349759454 | G51: FALSE | I51: =IF(B51="","",B51) -> PPA (Quote): NPV electricity cost with an input clean PPA, transmission, and refinancing ($) | J51: 2349759454
B53: Range of Build Years for All Portfolios in Scenario | C53: =Build_Year -> 2026 | G53: FALSE | I53: Range of Build Years for All Portfolios in Scenario | J53: 2026
B54: Fraction of Maximum NewERA USDA Award ($970m) Used for Financing Portfolio (%) | C54: =USDA_Award_Frac -> 0.15 | G54: FALSE | I54: Fraction of Maximum NewERA USDA Award ($970m) Used for Financing Portfolio (%) | J54: 0.15
B55: GRIP Fraction of Post-ITC Costs (%) | C55: =GRIP_Fraction -> 0 | G55: FALSE | I55: GRIP Fraction of Post-ITC Costs (%) | J55: 0
G56: FALSE
B57: Solar Capacity (MW) | C57: =C117 -> 800 | G57: FALSE | I57: Solar Capacity (MW) | J57: 800
B58: Solar Domestic Content Percentage (%) | C58: =C119 -> 0.5 | G58: FALSE | I58: Solar Domestic Content Percentage (%) | J58: 0.5
B59: Solar Energy Communities Percentage (%) | C59: =C120 -> 0.5 | G59: FALSE | I59: Solar Energy Communities Percentage (%) | J59: 0.5
G60: FALSE
B61: Wind Capacity (MW) | C61: =C146 -> 200 | G61: FALSE | I61: Wind Capacity (MW) | J61: 200
B62: Wind Domestic Content Percentage (%) | C62: =C148 -> 0 | G62: FALSE | I62: Wind Domestic Content Percentage (%) | J62: 0
B63: Wind Energy Communities Percentage (%) | C63: =C149 -> 1 | G63: FALSE | I63: Wind Energy Communities Percentage (%) | J63: 1
G64: FALSE
B65: Storage Capacity (MW) | C65: =C172 -> 700 | G65: FALSE | I65: Storage Capacity (MW) | J65: 700
B66: Storage Domestic Content Percentage (%) | C66: =C173 -> 0 | G66: FALSE | I66: Storage Domestic Content Percentage (%) | J66: 0
B67: Storage Energy Communities Percentage (%) | C67: =C174 -> 1 | G67: FALSE | I67: Storage Energy Communities Percentage (%) | J67: 1
G68: FALSE
B69: Resource Portfolio Inputs and Assumptions | G69: FALSE | I69: Resource Portfolio Inputs and Assumptions
G70: FALSE
B71: Portfolio Options | G71: FALSE | I71: Portfolio Options
B72: Build Year | C72: 2026 | G72: TRUE | I72: Build Year | J72: 2026
B73: Years Until New Asset Operation | C73: =(Build_Year+1)-(Base_Year) -> 3 | G73: FALSE | I73: Years Until New Asset Operation | J73: 3
B74: Set PTC vs. ITC fraction to Minimize NPV of Costs? | C74: Yes | G74: TRUE | I74: Set PTC vs. ITC fraction to Minimize NPV of Costs? | J74: Yes
B75: Enforce Portfolio Target Equity Ratio as a Hard Constraint? | C75: Yes | G75: TRUE | I75: Enforce Portfolio Target Equity Ratio as a Hard Constraint? | J75: Yes
B76: Percentage of of margins in excess of historical returns / required to maintain target equity ratio distributed back to members | C76: 0.8 | G76: TRUE | I76: Percentage of of margins in excess of historical returns / required to maintain target equity ratio distributed back to members | J76: 0.8
B77: NREL Cost Scenario | C77: Moderate | G77: TRUE | I77: NREL Cost Scenario | J77: Moderate
B78: NREL Financial Assumption | C78: Market | G78: FALSE | I78: NREL Financial Assumption | J78: Market
B79: PPA Start Year | C79: =Build_Year+1 -> 2027 | G79: FALSE | I79: PPA Start Year | J79: 2027
B80: Quote PPA Term | C80: 30 | G80: TRUE | I80: Quote PPA Term | J80: 30
B81: Calculated PPA Term | C81: 30 | G81: TRUE | I81: Calculated PPA Term | J81: 30
B82: Clean Asset Life | C82: 30 | G82: TRUE | I82: Clean Asset Life | J82: 30
G83: FALSE
B84: Old Plant Refinancing | G84: FALSE | I84: Old Plant Refinancing
B85: Base Year Unrecovered Old Plant Balance | C85: 0 | G85: TRUE | I85: Base Year Unrecovered Old Plant Balance | J85: 0
B86: Fossil Remaining Life | C86: 20 | G86: TRUE | I86: Fossil Remaining Life | J86: 20
B87: Old Plant Equity Ratio | C87: 0.244495704 | G87: TRUE | I87: Old Plant Equity Ratio | J87: 0.244495704
B88: Old Plant Debt Rate | C88: 0.0580682586 | G88: TRUE | I88: Old Plant Debt Rate | J88: 0.0580682586
B89: Desired Facility to Use for Refinancing | C89: USDA Zero | G89: TRUE | I89: Desired Facility to Use for Refinancing | J89: USDA Zero
B90: Desired Refinancing Debt Credit Subsidy Cost | C90: =_xlfn.SWITCH(Refinancing_Facility_Input,"USDA Zero",Zero_CSC,"USDA Two",Two_CSC,"USDA Treas",Treas_CSC,0) -> 0.4223 | G90: FALSE | I90: Desired Refinancing Debt Credit Subsidy Cost | J90: 0.4223
B91: Facility Used for Refinancing | C91: =IF(USDA_Award_Available>=Refinancing_Required * Refinancing_CSC_Input,Refinancing_Facility_Input,"Other Debt") -> USDA Zero | G91: FALSE | I91: Facility Used for Refinancing | J91: USDA Zero
B92: Refinancing Loan Rate | C92: =_xlfn.SWITCH(Refinancing_Facility_Used,"USDA Zero",0,"USDA Two",2%,"USDA Treas",USDA_T_Loan_Rate,Other_Loan_Rate) -> 0 | D92: =IF(USDA_Award_Available>=Refinancing_Required * Refinancing_CSC_Input,"","NOTE: Insufficient NewERA Award Available, Other Loan Used") ->  | G92: FALSE | I92: Refinancing Loan Rate | J92: 0
B93: Refinancing Loan Tenor | C93: =_xlfn.SWITCH(Refinancing_Facility_Used,"USDA Zero",USDA_0_Loan_Tenor,"USDA Two",USDA_2_Loan_Tenor,"USDA Treas",USDA_T_Loan_Tenor,Other_Loan_Tenor) -> 30 | G93: FALSE | I93: Refinancing Loan Tenor | J93: 30
B94: Refinancing Debt Credit Subsidy Cost | C94: =_xlfn.SWITCH(Refinancing_Facility_Used,"USDA Zero",Zero_CSC,"USDA Two",Two_CSC,"USDA Treas",Treas_CSC,0) -> 0.4223 | G94: FALSE | I94: Refinancing Debt Credit Subsidy Cost | J94: 0.4223
B95: Use of Proceeds from Refinancing | C95: Recycled into New Assets | G95: TRUE | I95: Use of Proceeds from Refinancing | J95: Recycled into New Assets
B96: Debt Prepayment Penalty if Proceeds Used to Refinance Debt | C96: 0 | G96: TRUE | I96: Debt Prepayment Penalty if Proceeds Used to Refinance Debt | J96: 0
G97: FALSE
B98: Solar Metrics | G98: FALSE | I98: Solar Metrics
B99: Use NREL Solar Data? | C99: Yes | G99: TRUE | I99: Use NREL Solar Data? | J99: Yes
B100: User Input Solar CAPEX/kW (Build Year $/kW) | C100: 1600 | G100: TRUE | I100: User Input Solar CAPEX/kW (Build Year $/kW) | J100: 1600
B101: User Input Solar Fixed O&M/kW-yr (Real Build Year $/kW-yr) | C101: 22 | G101: TRUE | I101: User Input Solar Fixed O&M/kW-yr (Real Build Year $/kW-yr) | J101: 22
B102: User Input Solar Variable O&M (Real Build Year $/MWh) | C102: 0 | G102: TRUE | I102: =IF(B102="","",B102) -> User Input Solar Variable O&M (Real Build Year $/MWh) | J102: 0
B103: Use Input Solar CF | C103: 0.35 | G103: TRUE | I103: Use Input Solar CF | J103: 0.35
B104: NREL Solar Class | C104: Class2 | D104: UtilityPV | G104: TRUE | I104: NREL Solar Class | J104: Class2
B105: NREL Solar CAPEX/kW (Build Year $/kW) | C105: =IFERROR(_xlfn.XLOOKUP(Build_Year&NREL_Scenario&NREL_Financials&Clean_Asset_Life&NREL_Solar_Class&$D$104&$D105,ATBe!$Q:$Q&ATBe!$P:$P&ATBe!$E:$E&ATBe!$F:$F&ATBe!$I:$I&ATBe!$G:$G&ATBe!$D:$D,ATBe!$S:$S)*_xlfn.XLOOKUP(Build_Year,'BLS Data Series'!$A$120:$A$165,'BLS Data Series'!$Q$120:$Q$165),0) -> 1461.452723 | D105: CAPEX | G105: FALSE | I105: NREL Solar CAPEX/kW (Build Year $/kW) | J105: 1461.45
B106: NREL Solar Fixed O&M/kW-yr (Real Build Year $/kW-yr) | C106: =IFERROR(_xlfn.XLOOKUP(Build_Year&NREL_Scenario&NREL_Financials&Clean_Asset_Life&NREL_Solar_Class&$D$104&$D106,ATBe!$Q:$Q&ATBe!$P:$P&ATBe!$E:$E&ATBe!$F:$F&ATBe!$I:$I&ATBe!$G:$G&ATBe!$D:$D,ATBe!$S:$S)*_xlfn.XLOOKUP(Build_Year,'BLS Data Series'!$A$120:$A$165,'BLS Data Series'!$Q$120:$Q$165),0) -> 24.2152468 | D106: Fixed O&M | G106: FALSE | I106: NREL Solar Fixed O&M/kW-yr (Real Build Year $/kW-yr) | J106: 24.22
B107: NREL Solar Variable O&M (Real Build Year $/MWh) | C107: =IFERROR(_xlfn.XLOOKUP(Build_Year&NREL_Scenario&NREL_Financials&Clean_Asset_Life&NREL_Solar_Class&$D$104&$D107,ATBe!$Q:$Q&ATBe!$P:$P&ATBe!$E:$E&ATBe!$F:$F&ATBe!$I:$I&ATBe!$G:$G&ATBe!$D:$D,ATBe!$S:$S)*_xlfn.XLOOKUP(Build_Year,'BLS Data Series'!$A$120:$A$165,'BLS Data Series'!$Q$120:$Q$165),0) -> 0 | D107: Variable O&M | G107: FALSE | I107: NREL Solar Variable O&M (Real Build Year $/MWh) | J107: 0
B108: NREL Solar CF | C108: =IFERROR(_xlfn.XLOOKUP(Build_Year&NREL_Scenario&NREL_Financials&Clean_Asset_Life&NREL_Solar_Class&$D$104&$D108,ATBe!$Q:$Q&ATBe!$P:$P&ATBe!$E:$E&ATBe!$F:$F&ATBe!$I:$I&ATBe!$G:$G&ATBe!$D:$D,ATBe!$S:$S),0) -> 0.3352010476 | D108: CF | G108: FALSE | I108: NREL Solar CF | J108: 0.3352010476
B109: Solar CAPEX/kW (Build Year $/kW) | C109: =IF(Solar_Use_NREL="Yes",Solar_CAPEX_NREL,Solar_CAPEX_Input) -> 1461.452723 | G109: FALSE | I109: Solar CAPEX/kW (Build Year $/kW) | J109: 1461.45
B110: Solar Fixed O&M/kW-yr (Real Build Year $/kW-yr) | C110: =IF(Solar_Use_NREL="Yes",Solar_Fixed_OM_NREL,Solar_Fixed_OM_Input) -> 24.2152468 | G110: FALSE | I110: Solar Fixed O&M/kW-yr (Real Build Year $/kW-yr) | J110: 24.22
B111: Solar Variable O&M (Real Build Year $/MWh) | C111: =IF(Solar_Use_NREL="Yes",Solar_Variable_O_M_NREL,Solar_Variable_O_M_Input) -> 0 | G111: FALSE | I111: Solar Variable O&M (Real Build Year $/MWh) | J111: 0
B112: Solar CF | C112: =IF(Solar_Use_NREL="Yes",Solar_Capacity_Factor_NREL,Solar_Capacity_Factor_Input) -> 0.3352010476 | G112: FALSE | I112: Solar CF | J112: 0.3352010476
B113: Use User Input Escalation of Solar O&M? | C113: No | G113: TRUE | I113: Use User Input Escalation of Solar O&M? | J113: No
B114: User Input Solar O&M Annual Escalation | C114: 0 | G114: TRUE | I114: User Input Solar O&M Annual Escalation | J114: 0
B115: Solar CAPEX Discount for Ownership | C115: 0 | G115: TRUE | I115: Solar CAPEX Discount for Ownership | J115: 0
B116: Solar O&M Discount for PPA | C116: 0.1 | G116: TRUE | I116: Solar O&M Discount for PPA | J116: 0.1
B117: Solar Capacity (MW) | C117: 800 | G117: TRUE | I117: Solar Capacity (MW) | J117: 800
B118: Solar Degradation | C118: 0.005 | G118: TRUE | I118: Solar Degradation | J118: 0.005
B119: Percent of Solar Projects with Domestic Content | C119: 0.5 | G119: TRUE | I119: Percent of Solar Projects with Domestic Content | J119: 0.5
B120: Percent of Solar Projects in Energy Communities | C120: 0.5 | G120: TRUE | I120: Percent of Solar Projects in Energy Communities | J120: 0.5
B121: Solar Plant Balance | C121: =Solar_CAPEX*Solar_Capacity*1000*(1-Solar_CAPEX_Ownership_Discount) -> 1169162178 | G121: FALSE | I121: Solar Plant Balance | J121: 1169162178
B122: Final Solar PTC (including discount) | C122: =(ROUND((Base_PTC/1000*0.1),3)*1000*Solar_Domestic_Content+(Base_PTC+ROUND((Base_PTC/1000*0.1),3)*1000*Solar_Energy_Communities)*IF(Direct_Pay_Haircut="No",1,Solar_Domestic_Content+(1-Solar_Domestic_Content)*IF(Build_Year<2024+4,1,IF(Build_Year<2025+4,0.9,IF(Build_Year<2026+4,0.85,0)))))*IF(Monetization="Transferable",Transferability_Discount,1) -> 32.5 | G122: FALSE | I122: Final Solar PTC (including discount) | J122: 32.5
B123: Final Solar ITC (including discount) | C123: =0.1*Solar_Domestic_Content+(Base_ITC+0.1*Solar_Energy_Communities) * IF(Direct_Pay_Haircut="No",1,Solar_Domestic_Content + (1-Solar_Domestic_Content) * IF(Build_Year<2024+4,1,IF(Build_Year<2025+4,0.9,IF(Build_Year<2026+4,0.85,0))))*IF(Monetization="Transferable",Transferability_Discount,1) -> 0.4 | G123: FALSE | I123: Final Solar ITC (including discount) | J123: 0.4
B124: Optimum Fraction of Solar Assets Taking PTC | C124: 0.43685 | G124: FALSE | I124: Optimum Fraction of Solar Assets Taking PTC | J124: 0.43685
B125: Fraction of Solar Assets Taking PTC | C125: 0.43685 | G125: TRUE | I125: Fraction of Solar Assets Taking PTC | J125: 0.43685
G126: FALSE
B127: Wind Metrics | G127: FALSE | I127: Wind Metrics
B128: Use NREL Wind Data? | C128: Yes | G128: TRUE | I128: Use NREL Wind Data? | J128: Yes
B129: User Input Wind CAPEX/kW (Build Year $/kW) | C129: 2000 | G129: TRUE | I129: User Input Wind CAPEX/kW (Build Year $/kW) | J129: 2000
B130: User Input Wind Fixed O&M/kW-yr (Real Build Year $/kW-yr) | C130: 40 | G130: TRUE | I130: User Input Wind Fixed O&M/kW-yr (Real Build Year $/kW-yr) | J130: 40
B131: User Input Wind Variable O&M (Real Build Year $/MWh) | C131: 0 | G131: TRUE | I131: User Input Wind Variable O&M (Real Build Year $/MWh) | J131: 0
B132: User Input Wind CF | C132: 0.45 | G132: TRUE | I132: User Input Wind CF | J132: 0.45
B133: NREL Wind Class | C133: Class4 | D133: LandbasedWind | G133: TRUE | I133: NREL Wind Class | J133: Class4
B134: NREL Wind CAPEX/kW (Build Year $/kW) | C134: =IFERROR(_xlfn.XLOOKUP(Build_Year&NREL_Scenario&NREL_Financials&Clean_Asset_Life&NREL_Wind_Class&$D$133&$D134,ATBe!$Q:$Q&ATBe!$P:$P&ATBe!$E:$E&ATBe!$F:$F&ATBe!$I:$I&ATBe!$G:$G&ATBe!$D:$D,ATBe!$S:$S)*_xlfn.XLOOKUP(Build_Year,'BLS Data Series'!$A$120:$A$165,'BLS Data Series'!$Q$120:$Q$165),0) -> 1508.539005 | D134: CAPEX | G134: FALSE | I134: NREL Wind CAPEX/kW (Build Year $/kW) | J134: 1508.54
B135: NREL Wind Fixed O&M/kW-yr (Real Build Year $/kW-yr) | C135: =IFERROR(_xlfn.XLOOKUP(Build_Year&NREL_Scenario&NREL_Financials&Clean_Asset_Life&NREL_Wind_Class&$D$133&$D135,ATBe!$Q:$Q&ATBe!$P:$P&ATBe!$E:$E&ATBe!$F:$F&ATBe!$I:$I&ATBe!$G:$G&ATBe!$D:$D,ATBe!$S:$S)*_xlfn.XLOOKUP(Build_Year,'BLS Data Series'!$A$120:$A$165,'BLS Data Series'!$Q$120:$Q$165),0) -> 34.50166874 | D135: Fixed O&M | G135: FALSE | I135: NREL Wind Fixed O&M/kW-yr (Real Build Year $/kW-yr) | J135: 34.5
B136: NREL Wind Variable O&M (Real Build Year $/MWh) | C136: =IFERROR(_xlfn.XLOOKUP(Build_Year&NREL_Scenario&NREL_Financials&Clean_Asset_Life&NREL_Wind_Class&$D$133&$D136,ATBe!$Q:$Q&ATBe!$P:$P&ATBe!$E:$E&ATBe!$F:$F&ATBe!$I:$I&ATBe!$G:$G&ATBe!$D:$D,ATBe!$S:$S)*_xlfn.XLOOKUP(Build_Year,'BLS Data Series'!$A$120:$A$165,'BLS Data Series'!$Q$120:$Q$165),0) -> 0 | D136: Variable O&M | G136: FALSE | I136: NREL Wind Variable O&M (Real Build Year $/MWh) | J136: 0
B137: NREL Wind CF | C137: =IFERROR(_xlfn.XLOOKUP(Build_Year&NREL_Scenario&NREL_Financials&Clean_Asset_Life&NREL_Wind_Class&$D$133&$D137,ATBe!$Q:$Q&ATBe!$P:$P&ATBe!$E:$E&ATBe!$F:$F&ATBe!$I:$I&ATBe!$G:$G&ATBe!$D:$D,ATBe!$S:$S),0) -> 0.46177 | D137: CF | G137: FALSE | I137: NREL Wind CF | J137: 0.46177
B138: Wind CAPEX/kW (Build Year $/kW) | C138: =IF(Wind_Use_NREL="Yes",Wind_CAPEX_NREL,Wind_CAPEX_Input) -> 1508.539005 | G138: FALSE | I138: Wind CAPEX/kW (Build Year $/kW) | J138: 1508.54
B139: Wind Fixed O&M/kW-yr (Real Build Year $/kW-yr) | C139: =IF(Wind_Use_NREL="Yes",Wind_Fixed_OM_NREL,Wind_Fixed_OM_Input) -> 34.50166874 | G139: FALSE | I139: Wind Fixed O&M/kW-yr (Real Build Year $/kW-yr) | J139: 34.5
B140: Wind Variable O&M (Real Build Year $/MWh) | C140: =IF(Wind_Use_NREL="Yes",Wind_Variable_O_M_NREL,Wind_Variable_O_M_Input) -> 0 | G140: FALSE | I140: Wind Variable O&M (Real Build Year $/MWh) | J140: 0
B141: Wind CF | C141: =IF(Wind_Use_NREL="Yes",Wind_Capacity_Factor_NREL,Wind_Capacity_Factor_Input) -> 0.46177 | G141: FALSE | I141: Wind CF | J141: 0.46177
B142: Use User Input Escalation of Wind O&M? | C142: No | G142: TRUE | I142: Use User Input Escalation of Wind O&M? | J142: No
B143: User Input Wind O&M Annual Escalation | C143: 0 | G143: TRUE | I143: User Input Wind O&M Annual Escalation | J143: 0
B144: Wind CAPEX Discount for Ownership | C144: 0 | G144: TRUE | I144: Wind CAPEX Discount for Ownership | J144: 0
B145: Wind O&M Discount for PPA | C145: 0 | G145: TRUE | I145: Wind O&M Discount for PPA | J145: 0
B146: Wind Capacity (MW) | C146: 200 | G146: TRUE | I146: Wind Capacity (MW) | J146: 200
B147: Wind Degradation | C147: 0 | G147: TRUE | I147: Wind Degradation | J147: 0
B148: Percent of Wind Projects with Domestic Content | C148: 0 | G148: TRUE | I148: Percent of Wind Projects with Domestic Content | J148: 0
B149: Percent of Wind Projects in Energy Communities | C149: 1 | G149: TRUE | I149: Percent of Wind Projects in Energy Communities | J149: 1
B150: Wind Plant Balance | C150: =Wind_CAPEX*Wind_Capacity*1000*(1-Wind_CAPEX_Ownership_Discount) -> 301707801.1 | G150: FALSE | I150: Wind Plant Balance | J150: 301707801.1
B151: Final Wind PTC (including discount) | C151: =(ROUND((Base_PTC/1000*0.1),3)*1000*Wind_Domestic_Content+(Base_PTC+ROUND((Base_PTC/1000*0.1),3)*1000*Wind_Energy_Communities)*IF(Direct_Pay_Haircut="No",1,Wind_Domestic_Content+(1-Wind_Domestic_Content)*IF(Build_Year<2024+4,1,IF(Build_Year<2025+4,0.9,IF(Build_Year<2026+4,0.85,0)))))*IF(Monetization="Transferable",Transferability_Discount,1) -> 32.5 | G151: FALSE | I151: Final Wind PTC (including discount) | J151: 32.5
B152: Final Wind ITC (including discount) | C152: =0.1*Wind_Domestic_Content+(Base_ITC+0.1*Wind_Energy_Communities) * IF(Direct_Pay_Haircut="No",1,Wind_Domestic_Content + (1-Wind_Domestic_Content) * IF(Build_Year<2024+4,1,IF(Build_Year<2025+4,0.9,IF(Build_Year<2026+4,0.85,0))))*IF(Monetization="Transferable",Transferability_Discount,1) -> 0.4 | G152: FALSE | I152: Final Wind ITC (including discount) | J152: 0.4
B153: Optimum Fraction of Wind Assets Taking PTC | C153: 1 | G153: FALSE | I153: Optimum Fraction of Wind Assets Taking PTC | J153: 1
B154: Fraction of Wind Assets Taking PTC | C154: 1 | G154: TRUE | I154: Fraction of Wind Assets Taking PTC | J154: 1
G155: FALSE
B156: Battery Metrics | G156: FALSE | I156: Battery Metrics
B157: Use NREL Battery Data? | C157: Yes | G157: TRUE | I157: Use NREL Battery Data? | J157: Yes
B158: User Input Battery CAPEX/kW (Build Year $/kW) | C158: 2000 | G158: TRUE | I158: User Input Battery CAPEX/kW (Build Year $/kW) | J158: 2000
B159: User Input Battery Fixed O&M/kW-yr (Real Build Year $/kW-yr) | C159: 50 | G159: TRUE | I159: User Input Battery Fixed O&M/kW-yr (Real Build Year $/kW-yr) | J159: 50
B160: User Input Battery Variable O&M (Real Build Year $/MWh) | C160: 0 | G160: TRUE | I160: User Input Battery Variable O&M (Real Build Year $/MWh) | J160: 0
B161: NREL Battery Class | C161: 4Hr Battery Storage | D161: Utility-Scale Battery Storage | G161: TRUE | I161: NREL Battery Class | J161: 4Hr Battery Storage
B162: NREL Battery CAPEX/kW (Build Year $/kW) | C162: =IFERROR(_xlfn.XLOOKUP(Build_Year&NREL_Scenario&NREL_Financials&Clean_Asset_Life&NREL_Battery_Class&$D$161&$D162,ATBe!$Q:$Q&ATBe!$P:$P&ATBe!$E:$E&ATBe!$F:$F&ATBe!$I:$I&ATBe!$G:$G&ATBe!$D:$D,ATBe!$S:$S)*_xlfn.XLOOKUP(Build_Year,'BLS Data Series'!$A$120:$A$165,'BLS Data Series'!$Q$120:$Q$165),0) -> 1684.342105 | D162: OCC | G162: FALSE | I162: NREL Battery CAPEX/kW (Build Year $/kW) | J162: 1684.34
B163: NREL Battery Fixed O&M/kW-yr (Real Build Year $/kW-yr) | C163: =IFERROR(_xlfn.XLOOKUP(Build_Year&NREL_Scenario&NREL_Financials&Clean_Asset_Life&NREL_Battery_Class&$D$161&$D163,ATBe!$Q:$Q&ATBe!$P:$P&ATBe!$E:$E&ATBe!$F:$F&ATBe!$I:$I&ATBe!$G:$G&ATBe!$D:$D,ATBe!$S:$S)*_xlfn.XLOOKUP(Build_Year,'BLS Data Series'!$A$120:$A$165,'BLS Data Series'!$Q$120:$Q$165),0) -> 42.10855263 | D163: Fixed O&M | G163: FALSE | I163: NREL Battery Fixed O&M/kW-yr (Real Build Year $/kW-yr) | J163: 42.11
B164: NREL Battery Variable O&M (Real Build Year $/MWh) | C164: =IFERROR(_xlfn.XLOOKUP(Build_Year&NREL_Scenario&NREL_Financials&Clean_Asset_Life&NREL_Battery_Class&$D$161&$D164,ATBe!$Q:$Q&ATBe!$P:$P&ATBe!$E:$E&ATBe!$F:$F&ATBe!$I:$I&ATBe!$G:$G&ATBe!$D:$D,ATBe!$S:$S)*_xlfn.XLOOKUP(Build_Year,'BLS Data Series'!$A$120:$A$165,'BLS Data Series'!$Q$120:$Q$165),0) -> 0 | D164: Variable O&M | G164: FALSE | I164: NREL Battery Variable O&M (Real Build Year $/MWh) | J164: 0
B165: Battery CAPEX/kW (Build Year $/kW) | C165: =IF(Battery_Use_NREL="Yes",Battery_CAPEX_NREL,Battery_CAPEX_Input) -> 1684.342105 | G165: FALSE | I165: Battery CAPEX/kW (Build Year $/kW) | J165: 1684.34
B166: Battery Fixed O&M/kW-yr (Real Build Year $/kW-yr) | C166: =IF(Battery_Use_NREL="Yes",Battery_Fixed_OM_NREL,Battery_Fixed_OM_Input) -> 42.10855263 | G166: FALSE | I166: =IF(B166="","",B166) -> Battery Fixed O&M/kW-yr (Real Build Year $/kW-yr) | J166: 42.11
B167: Battery Variable O&M (Real Build Year $/MWh) | C167: =IF(Battery_Use_NREL="Yes",Battery_Variable_O_M_NREL,Battery_Variable_O_M_Input) -> 0 | G167: FALSE | I167: Battery Variable O&M (Real Build Year $/MWh) | J167: 0
B168: Use User Input Escalation of Battery O&M? | C168: No | G168: TRUE | I168: Use User Input Escalation of Battery O&M? | J168: No
B169: User Input Battery O&M Annual Escalation | C169: 0 | G169: TRUE | I169: User Input Battery O&M Annual Escalation | J169: 0
B170: Battery CAPEX Discount for Ownership | C170: 0 | G170: TRUE | I170: Battery CAPEX Discount for Ownership | J170: 0
B171: Battery O&M Discount for PPA | C171: 0.1 | G171: TRUE | I171: Battery O&M Discount for PPA | J171: 0.1
B172: Battery Capacity (MW) | C172: 700 | G172: TRUE | I172: Battery Capacity (MW) | J172: 700
B173: Percent of Battery Projects with Domestic Content | C173: 0 | G173: TRUE | I173: Percent of Battery Projects with Domestic Content | J173: 0
B174: Percent of Battery Projects in Energy Communities | C174: 1 | G174: TRUE | I174: Percent of Battery Projects in Energy Communities | J174: 1
B175: Final Battery ITC (including discount) | C175: =0.1*Battery_Domestic_Content+(Base_ITC+0.1*Battery_Energy_Communities) * IF(Direct_Pay_Haircut="No",1,Battery_Domestic_Content + (1-Battery_Domestic_Content) * IF(Build_Year<2024+4,1,IF(Build_Year<2025+4,0.9,IF(Build_Year<2026+4,0.85,0))))*IF(Monetization="Transferable",Transferability_Discount,1) -> 0.4 | G175: FALSE | I175: Final Battery ITC (including discount) | J175: 0.4
B176: Battery Plant Balance | C176: =Battery_CAPEX*Battery_Capacity*1000*(1-Battery_CAPEX_Ownership_Discount) -> 1179039474 | G176: FALSE | I176: Battery Plant Balance | J176: 1179039474
G177: FALSE
B178: Transmission or Other Asset Metrics | G178: FALSE | I178: Transmission or Other Asset Metrics
B179: Transmission CAPEX (Transmission Build Year $) | C179: 150000000 | G179: TRUE | I179: Transmission CAPEX (Transmission Build Year $) | J179: 150000000
B180: Transmission Fixed O&M (Annual Real Transmission Build Year $) | C180: 10000000 | G180: TRUE | I180: Transmission Fixed O&M (Annual Real Transmission Build Year $) | J180: 10000000
B181: Use User Input Escalation of Transmission O&M? | C181: No | G181: TRUE | I181: Use User Input Escalation of Transmission O&M? | J181: No
B182: User Input Transmission O&M Annual Escalation | C182: 0 | G182: TRUE | I182: User Input Transmission O&M Annual Escalation | J182: 0
B183: Transmission Build Year | C183: =Build_Year -> 2026 | G183: FALSE | I183: Transmission Build Year | J183: 2026
B184: Transmission Asset Life | C184: 30 | G184: TRUE | I184: Transmission Asset Life | J184: 30
B185: Transmission Service Charge in Start Year ($/MWh) | C185: 0 | G185: TRUE | I185: Transmission Service Charge in Start Year ($/MWh) | J185: 0
B186: Transmission Service Charge Annual Inflation Adjustment | C186: 0 | G186: TRUE | I186: Transmission Service Charge Annual Inflation Adjustment | J186: 0
G187: FALSE
B188: Quote PPA | G188: FALSE | I188: Quote PPA
B189: PPA Price in Start Year | C189: 55 | G189: TRUE | I189: PPA Price in Start Year | J189: 55
B190: Annual PPA Inflation Adjustment | C190: 0 | G190: TRUE | I190: Annual PPA Inflation Adjustment | J190: 0
B191: Are battery assets included in the PPA price? | C191: Yes | G191: TRUE | I191: Are battery assets included in the PPA price? | J191: Yes
B192: Are transmission assets included in the PPA price? | C192: No | G192: TRUE | I192: Are transmission assets included in the PPA price? | J192: No
B193: Use Owned Solar + Wind Resource Portfolio Volumes and Degradation from Above? | C193: Yes | G193: TRUE | I193: Use Owned Solar + Wind Resource Portfolio Volumes and Degradation from Above? | J193: Yes
B194: User Input Quote PPA Initial Annual Volume (MWh) | C194: 0 | G194: TRUE | I194: User Input Quote PPA Initial Annual Volume (MWh) | J194: 0
B195: User Input Quote PPA Volume Degradation | C195: 0 | G195: TRUE | I195: User Input Quote PPA Volume Degradation | J195: 0
B196: Owned Portfolio Initial Annual Volume (MWh) | C196: =(Solar_Capacity*Solar_Capacity_Factor+Wind_Capacity*Wind_Capacity_Factor)*8760 -> 3158109.981 | G196: FALSE | I196: Owned Portfolio Initial Annual Volume (MWh) | J196: 3158109.981
B197: Owned Portfolio Volume Degradation | C197: =(Solar_Capacity*Solar_Capacity_Factor*Solar_Degradation+Wind_Capacity*Wind_Capacity_Factor*Wind_Degradation)/(Solar_Capacity*Solar_Capacity_Factor+Wind_Capacity*Wind_Capacity_Factor) -> 0.003719137325 | G197: FALSE | I197: Owned Portfolio Volume Degradation | J197: 0.003719137325
B198: PPA Initial Annual Volume (MWh) | C198: =IF(PPA_Uses_Solar_Wind_Resource="Yes",C196,C194) -> 3158109.981 | G198: FALSE | I198: PPA Initial Annual Volume (MWh) | J198: 3158109.981
B199: PPA Volume Degradation | C199: =IF(PPA_Uses_Solar_Wind_Resource="Yes",C197,C195) -> 0.003719137325 | G199: FALSE | I199: PPA Volume Degradation | J199: 0.003719137325
B200: Levelized Cost of PPA | C200: =(NPV(Discount_Rate,OFFSET('Cost Calculations'!D$112,0,Years_Until_New_Asset_Operation,1,MAX(Clean_Asset_Life,PPA_Term_Manual))))/((NPV(Discount_Rate,OFFSET('Cost Calculations'!D$111,0,Years_Until_New_Asset_Operation,1,MAX(Clean_Asset_Life,PPA_Term_Manual))))) -> 55 | G200: FALSE | I200: Levelized Cost of PPA | J200: 55
G201: FALSE
B202: Additional Portfolio Revenues - Project Year | C202: =IF(SUM(C203:C242)>0,"Yes","No") -> No | G202: FALSE | I202: Additional Portfolio Revenues - Project Year | J202: No
B203: 1 | C203: 0 | G203: TRUE | I203: 1 | J203: 0
... 199 more rows

Sheet Results
B2: Steps to Build Out Results Tables
B3: The summary table below show the portfolio attributed to the 'Record' counter value in cell C7 - change the 'Record' number to toggle between porfolios and scenarios.
B4: The metrics highlighted in green under 'Resource Metrics' and 'Financial Metrics' can be tailored to the variables that are being modeled - click the drop down list on the cells to see the list of key resource and financial metrics.
B5: The summary table values, including the variable metrics highlighted in green, can be copied and pasted into the table below to model multiple portfolios.
B6: To graphically depict the scenario sensitivities, the three columns titled "Owned", "PPA (Calc)", and "PPA (Quote)" from each scenario can be copied and pasted into the 'Results' tables to model both LCOE and NPV outputs.
B8: Record | C8: 1 | D8: <-- Change the counter value here to toggle between runs. DO NOT edit the scenario or portfolio values
B9: Scenario | C9: =INDEX('Inputs and Outputs'!$I9:$BG9,MATCH($C$8,'Inputs and Outputs'!$I$8:$BG$8,0)) -> 1
B10: Portfolio | C10: =INDEX('Inputs and Outputs'!$I10:$BG10,MATCH($C$8,'Inputs and Outputs'!$I$8:$BG$8,0)) -> 1
O12: Ownership LCOE ($/MWh) | P12: Calculated PPA LCOE ($/MWh) | Q12: Quote PPA LCOE ($/MWh) | R12: Ownership NPV of Member Costs ($) | S12: Calculated PPA NPV of Member Costs ($) | T12: Quote PPA NPV of Member Costs ($)
C13: ='Inputs and Outputs'!I294 -> Fraction of Maximum NewERA USDA Award ($970m) Used for Financing Portfolio | D13: ='Inputs and Outputs'!I298 -> PACE Forgivable Loan (Treated as a Grant) | E13: ='Inputs and Outputs'!I295 -> GRIP Fraction of Post-ITC Costs | O13: ='Inputs and Outputs'!I45 -> Ownership: LCOE with ownership of all assets + refinancing ($/MWh) | P13: ='Inputs and Outputs'!I46 -> PPA (Calc): LCOE with calculated clean PPAs, owned transmission, and refinancing ($/MWh) | Q13: ='Inputs and Outputs'!I47 -> PPA (Quote): LCOE with an input clean PPA, transmission, and refinancing ($/MWh) | R13: ='Inputs and Outputs'!I49 -> Ownership: NPV electricity cost with ownership of all assets + refinancing ($) | S13: ='Inputs and Outputs'!I50 -> PPA (Calc): NPV electricity cost with calculated clean PPAs, owned transmission, and refinancing ($) | T13: ='Inputs and Outputs'!I51 -> PPA (Quote): NPV electricity cost with an input clean PPA, transmission, and refinancing ($)
B15: Portfolio Results Summary Table | C15: Federal Funding | F15: Resource Metrics | K15: Financial Metrics | O15: Levelized Electricity Cost ($/MWh) | R15: Net Present Value ($)
B16: Case | C16: New ERA Grant/Loan (Y/N) | D16: PACE Loan (Y/N) | E16: GRIP Grant (Y/N) | F16: Build Year | G16: Base Year Unrecovered Old Plant Balance | H16: Battery Capacity (MW) | I16: Final Battery ITC (including discount) | J16: Solar Capacity (MW) | K16: Additional Portfolio Revenues - Project Year | L16: Target Equity Ratio for New Clean Assets | M16: Blended Debt Rate | N16: Additional Equity Required from Members | O16: Owned | P16: PPA (Calc) | Q16: PPA (Quote) | R16: Owned | S16: PPA (Calc) | T16: PPA (Quote)
B17: =B9 & " " & C9 & " " & "+" & " " & B10 & " " & C10 -> Scenario 1 + Portfolio 1 | C17: =IF(INDEX('Inputs and Outputs'!$I$8:$BG$396,MATCH(C$13,'Inputs and Outputs'!$I$8:$I$396,0),MATCH($C$8,'Inputs and Outputs'!$I$8:$BG$8,0))>0,"Yes","No") -> Yes | D17: =IF(INDEX('Inputs and Outputs'!$I$8:$BG$396,MATCH(D$13,'Inputs and Outputs'!$I$8:$I$396,0),MATCH($C$8,'Inputs and Outputs'!$I$8:$BG$8,0))>0,"Yes","No") -> No | E17: =IF(INDEX('Inputs and Outputs'!$I$8:$BG$396,MATCH(E$13,'Inputs and Outputs'!$I$8:$I$396,0),MATCH($C$8,'Inputs and Outputs'!$I$8:$BG$8,0))>0,"Yes","No") -> No | F17: =IFERROR(INDEX('Inputs and Outputs'!$I$8:$BG$396,MATCH(F$16,'Inputs and Outputs'!$I$8:$I$396,0),MATCH($C$8,'Inputs and Outputs'!$I$8:$BG$8,0)),"") -> 2026 | G17: =IFERROR(INDEX('Inputs and Outputs'!$I$8:$BG$396,MATCH(G$16,'Inputs and Outputs'!$I$8:$I$396,0),MATCH($C$8,'Inputs and Outputs'!$I$8:$BG$8,0)),"") -> 0 | H17: =IFERROR(INDEX('Inputs and Outputs'!$I$8:$BG$396,MATCH(H$16,'Inputs and Outputs'!$I$8:$I$396,0),MATCH($C$8,'Inputs and Outputs'!$I$8:$BG$8,0)),"") -> 700 | I17: =IFERROR(INDEX('Inputs and Outputs'!$I$8:$BG$396,MATCH(I$16,'Inputs and Outputs'!$I$8:$I$396,0),MATCH($C$8,'Inputs and Outputs'!$I$8:$BG$8,0)),"") -> 0.4 | J17: =IFERROR(INDEX('Inputs and Outputs'!$I$8:$BG$396,MATCH(J$16,'Inputs and Outputs'!$I$8:$I$396,0),MATCH($C$8,'Inputs and Outputs'!$I$8:$BG$8,0)),"") -> 800 | K17: =IFERROR(INDEX('Inputs and Outputs'!$I$8:$BG$396,MATCH(K$16,'Inputs and Outputs'!$I$8:$I$396,0),MATCH($C$8,'Inputs and Outputs'!$I$8:$BG$8,0)),"") -> No | L17: =IFERROR(INDEX('Inputs and Outputs'!$I$8:$BG$396,MATCH(L$16,'Inputs and Outputs'!$I$8:$I$396,0),MATCH($C$8,'Inputs and Outputs'!$I$8:$BG$8,0)),"") -> 0.25 | M17: =IFERROR(INDEX('Inputs and Outputs'!$I$8:$BG$396,MATCH(M$16,'Inputs and Outputs'!$I$8:$I$396,0),MATCH($C$8,'Inputs and Outputs'!$I$8:$BG$8,0)),"") -> 0.03436060407 | N17: =IFERROR(INDEX('Inputs and Outputs'!$I$8:$BG$396,MATCH(N$16,'Inputs and Outputs'!$I$8:$I$396,0),MATCH($C$8,'Inputs and Outputs'!$I$8:$BG$8,0)),"") -> 0 | O17: =IFERROR(INDEX('Inputs and Outputs'!$I$8:$BG$396,MATCH(O$13,'Inputs and Outputs'!$I$8:$I$396,0),MATCH($C$8,'Inputs and Outputs'!$I$8:$BG$8,0))," ") -> 56.78 | P17: =IFERROR(INDEX('Inputs and Outputs'!$I$8:$BG$396,MATCH(P$13,'Inputs and Outputs'!$I$8:$I$396,0),MATCH($C$8,'Inputs and Outputs'!$I$8:$BG$8,0))," ") -> 64.1 | Q17: =IFERROR(INDEX('Inputs and Outputs'!$I$8:$BG$396,MATCH(Q$13,'Inputs and Outputs'!$I$8:$I$396,0),MATCH($C$8,'Inputs and Outputs'!$I$8:$BG$8,0))," ") -> 59.97 | R17: =IFERROR(INDEX('Inputs and Outputs'!$I$8:$BG$396,MATCH(R$13,'Inputs and Outputs'!$I$8:$I$396,0),MATCH($C$8,'Inputs and Outputs'!$I$8:$BG$8,0))," ") -> 2224780942 | S17: =IFERROR(INDEX('Inputs and Outputs'!$I$8:$BG$396,MATCH(S$13,'Inputs and Outputs'!$I$8:$I$396,0),MATCH($C$8,'Inputs and Outputs'!$I$8:$BG$8,0))," ") -> 2511749425 | T17: =IFERROR(INDEX('Inputs and Outputs'!$I$8:$BG$396,MATCH(T$13,'Inputs and Outputs'!$I$8:$I$396,0),MATCH($C$8,'Inputs and Outputs'!$I$8:$BG$8,0))," ") -> 2349759454
N18: Scenario-Level Outputs | O18: =IFERROR(INDEX('Inputs and Outputs'!$I$8:$BG$396,MATCH(O$12,'Inputs and Outputs'!$I$8:$I$396,0),MATCH($C$9,'Inputs and Outputs'!$I$9:$BG$9,0))," ") -> 56.78 | P18: =IFERROR(INDEX('Inputs and Outputs'!$I$8:$BG$396,MATCH(P$12,'Inputs and Outputs'!$I$8:$I$396,0),MATCH($C$9,'Inputs and Outputs'!$I$9:$BG$9,0))," ") -> 64.1 | Q18: =IFERROR(INDEX('Inputs and Outputs'!$I$8:$BG$396,MATCH(Q$12,'Inputs and Outputs'!$I$8:$I$396,0),MATCH($C$9,'Inputs and Outputs'!$I$9:$BG$9,0))," ") -> 59.97 | R18: =IFERROR(INDEX('Inputs and Outputs'!$I$8:$BG$396,MATCH(R$12,'Inputs and Outputs'!$I$8:$I$396,0),MATCH($C$9,'Inputs and Outputs'!$I$9:$BG$9,0))," ") -> 2224780942 | S18: =IFERROR(INDEX('Inputs and Outputs'!$I$8:$BG$396,MATCH(S$12,'Inputs and Outputs'!$I$8:$I$396,0),MATCH($C$9,'Inputs and Outputs'!$I$9:$BG$9,0))," ") -> 2511749425 | T18: =IFERROR(INDEX('Inputs and Outputs'!$I$8:$BG$396,MATCH(T$12,'Inputs and Outputs'!$I$8:$I$396,0),MATCH($C$9,'Inputs and Outputs'!$I$9:$BG$9,0))," ") -> 2349759454
B20: Scenario 1 | C20: Federal Funding | F20: Resource Metrics | K20: Financial Metrics | O20: Levelized Electricity Cost ($/MWh) | R20: Net Present Value ($)
B21: Case | C21: New ERA Grant/Loan (Y/N) | D21: PACE Loan (Y/N) | E21: GRIP Grant (Y/N) | O21: Owned | P21: PPA (Calc) | Q21: PPA (Quote) | R21: Owned | S21: PPA (Calc) | T21: PPA (Quote)
N31: Scenario-Level Outputs
B33: Scenario 2 | C33: Federal Funding | F33: Resource Metrics | K33: Financial Metrics | O33: Levelized Electricity Cost ($/MWh) | R33: Net Present Value ($)
B34: Case | C34: New ERA Grant/Loan (Y/N) | D34: PACE Loan (Y/N) | E34: GRIP Grant (Y/N) | O34: Owned | P34: PPA (Calc) | Q34: PPA (Quote) | R34: Owned | S34: PPA (Calc) | T34: PPA (Quote)
N44: Scenario-Level Outputs
B46: Scenario 3 | C46: Federal Funding | F46: Resource Metrics | K46: Financial Metrics | O46: Levelized Electricity Cost ($/MWh) | R46: Net Present Value ($)
B47: Case | C47: New ERA Grant/Loan (Y/N) | D47: PACE Loan (Y/N) | E47: GRIP Grant (Y/N) | O47: Owned | P47: PPA (Calc) | Q47: PPA (Quote) | R47: Owned | S47: PPA (Calc) | T47: PPA (Quote)
N57: Scenario-Level Outputs
B59: LCOE - Results | X59: Build Year | Y59: Additional Portfolio Revenues - Project Year
B60: Case/Portfolio | C60: Scenario | D60: Owned | E60: PPA (Calc) | F60: PPA (Quote) | X60: NREL Cost Scenario | Y60: Use Historical Financial Metrics for Co-op or Manual Entries?
C61: Scenario 1 | D61: 62.31577022 | E61: 60.63 | F61: 62.31577022 | X61: Base Year Unrecovered Old Plant Balance | Y61: Target Equity Ratio for New Clean Assets
C62: Scenario 1 | D62: 63 | E62: 61 | F62: 63 | X62: Desired Facility to Use for Refinancing | Y62: Target Modified Debt Service Coverage for New Clean Assets
C63: Scenario 1 | D63: 64 | E63: 60 | F63: 64 | X63: Debt Prepayment Penalty if Proceeds Used to Refinance Debt | Y63: Target Margin for Interest for New Clean Assets
C64: Scenario 1 | D64: 62.31577022 | E64: 59 | F64: 62.31577022 | X64: Use NREL Solar Data? | Y64: Fraction of Maximum NewERA USDA Award ($970m) Used for Financing Portfolio
C65: Scenario 1 | D65: 62.31577022 | E65: 60 | F65: 62.31577022 | X65: Solar CAPEX Discount for Ownership | Y65: GRIP Fraction of Post-ITC Costs
C66: Scenario 1 | D66: 62.31577022 | E66: 58 | F66: 62.31577022 | X66: Solar O&M Discount for PPA | Y66: PACE Forgivable Loan (Treated as a Grant)
C67: Scenario 1 | D67: 62.31577022 | E67: 59 | F67: 62.31577022 | X67: Solar Capacity (MW) | Y67: Other Grants
C68: Scenario 1 | D68: 62.31577022 | E68: 62 | F68: 62.31577022 | X68: Percent of Solar Projects with Domestic Content | Y68: Additional Equity Required from Members
C69: Scenario 1 | D69: 62.31577022 | E69: 63 | F69: 62.31577022 | X69: Percent of Solar Projects in Energy Communities | Y69: Blended Debt Rate
C70: Scenario 2 | D70: 46.62809936 | E70: 60.63 | F70: 62.31577022 | X70: Final Solar PTC (including discount)
C71: Scenario 2 | D71: 50 | E71: 61 | F71: 63 | X71: Final Solar ITC (including discount)
C72: Scenario 2 | D72: 54 | E72: 60 | F72: 64 | X72: Optimum Fraction of Solar Assets Taking PTC
C73: Scenario 2 | D73: 48 | E73: 59 | F73: 62.31577022 | X73: Fraction of Solar Assets Taking PTC
C74: Scenario 2 | D74: 51 | E74: 60 | F74: 62.31577022 | X74: Use NREL Wind Data?
C75: Scenario 2 | D75: 48 | E75: 58 | F75: 62.31577022 | X75: Wind CAPEX Discount for Ownership
C76: Scenario 2 | D76: 44 | E76: 59 | F76: 62.31577022 | X76: Wind O&M Discount for PPA
C77: Scenario 2 | D77: 44 | E77: 62 | F77: 62.31577022 | X77: Wind Capacity (MW)
C78: Scenario 2 | D78: 48 | E78: 63 | F78: 62.31577022 | X78: Percent of Wind Projects with Domestic Content
C79: Scenario 3 | D79: 52 | E79: 60.63 | F79: 62.31577022 | X79: Percent of Wind Projects in Energy Communities
C80: Scenario 3 | D80: 54 | E80: 61 | F80: 63 | X80: Final Wind PTC (including discount)
C81: Scenario 3 | D81: 56 | E81: 60 | F81: 64 | X81: Final Wind ITC (including discount)
C82: Scenario 3 | D82: 53 | E82: 59 | F82: 62.31577022 | X82: Optimum Fraction of Wind Assets Taking PTC
C83: Scenario 3 | D83: 54 | E83: 60 | F83: 62.31577022 | X83: Fraction of Wind Assets Taking PTC
C84: Scenario 3 | D84: 53 | E84: 58 | F84: 62.31577022 | X84: Use NREL Battery Data?
C85: Scenario 3 | D85: 51 | E85: 59 | F85: 62.31577022 | X85: Battery CAPEX Discount for Ownership
C86: Scenario 3 | D86: 48 | E86: 62 | F86: 62.31577022 | X86: Battery O&M Discount for PPA
C87: Scenario 3 | D87: 56 | E87: 63 | F87: 62.31577022 | X87: Battery Capacity (MW)
X88: Percent of Battery Projects with Domestic Content
X89: Percent of Battery Projects in Energy Communities
X90: Final Battery ITC (including discount)
B93: NPV - Results
B94: Case/Portfolio | C94: Scenario | D94: Owned | E94: PPA (Calc) | F94: PPA (Quote)
C95: Scenario 1
C96: Scenario 1
C97: Scenario 1
C98: Scenario 1
C99: Scenario 1
C100: Scenario 1
C101: Scenario 1
C102: Scenario 1
C103: Scenario 1
C104: Scenario 2
C105: Scenario 2
C106: Scenario 2
C107: Scenario 2
C108: Scenario 2
C109: Scenario 2
C110: Scenario 2
C111: Scenario 2
C112: Scenario 2
C113: Scenario 3
C114: Scenario 3
C115: Scenario 3
C116: Scenario 3
C117: Scenario 3
C118: Scenario 3
C119: Scenario 3
C120: Scenario 3
C121: Scenario 3

Sheet Results (PTC.ITC) (hidden)
B2: Steps to Build Out Results Tables
B3: The summary tables below show the portfolio attributed to the 'Record' counter value in cell C7, with LCOE values on the left table and NPV values on the right. Change the 'Record' number to toggle between porfolios.
B4: To model multiple portfolios, the summary table can be copied and pasted into the table below before toggling through to another portfolio.
B5: To graphically depict the portfolios, the three columns titled "Owned","PPA (Calc)", and "PPA (Quote)" can be copied and pasted into the 'Results - Graphs' section across different variables.
B7: Record | C7: 1 | D7: <-- Change the counter value here to toggle between runs. DO NOT edit the scenario or portfolio values
B8: Scenario | C8: =INDEX('Inputs and Outputs'!$I9:$BG9,MATCH($C$7,'Inputs and Outputs'!$I$8:$BG$8,0)) -> 1
B9: Portfolio | C9: =INDEX('Inputs and Outputs'!$I10:$BG10,MATCH($C$7,'Inputs and Outputs'!$I$8:$BG$8,0)) -> 1
C11: ='Inputs and Outputs'!I294 -> Fraction of Maximum NewERA USDA Award ($970m) Used for Financing Portfolio | D11: ='Inputs and Outputs'!I341 -> Other Debt Rate Used | E11: ='Inputs and Outputs'!I322 -> USDA Treasuries NewERA Loan Tenor | G11: ='Inputs and Outputs'!I45 -> Ownership: LCOE with ownership of all assets + refinancing ($/MWh) | H11: ='Inputs and Outputs'!I46 -> PPA (Calc): LCOE with calculated clean PPAs, owned transmission, and refinancing ($/MWh) | I11: ='Inputs and Outputs'!I47 -> PPA (Quote): LCOE with an input clean PPA, transmission, and refinancing ($/MWh) | N11: ='Inputs and Outputs'!I294 -> Fraction of Maximum NewERA USDA Award ($970m) Used for Financing Portfolio | O11: ='Inputs and Outputs'!I341 -> Other Debt Rate Used | P11: ='Inputs and Outputs'!I322 -> USDA Treasuries NewERA Loan Tenor | R11: ='Inputs and Outputs'!I49 -> Ownership: NPV electricity cost with ownership of all assets + refinancing ($) | S11: ='Inputs and Outputs'!I50 -> PPA (Calc): NPV electricity cost with calculated clean PPAs, owned transmission, and refinancing ($) | T11: ='Inputs and Outputs'!I51 -> PPA (Quote): NPV electricity cost with an input clean PPA, transmission, and refinancing ($)
B12: Portfolio Results Summary Table | G12: Levelized Electricity Cost ($/MWh) | J12: Savings | M12: Portfolio Results Summary Table | R12: Net Present Value ($) | U12: Savings
B13: Case | C13: Grant (%) | D13: Loan Rate (%) | E13: Loan Term (years) | F13: Bonus | G13: Owned | H13: PPA (Calc) | I13: PPA (Quote) | J13: Owned vs. PPA Quote | K13: Additional Equity Required from Members | M13: Case | N13: Grant (%) | O13: Loan Rate (%) | P13: Loan Term (years) | Q13: Bonus | R13: Owned | S13: PPA (Calc) | T13: PPA (Quote) | U13: Owned vs. PPA Quote | V13: Additional Equity Required from Members
B14: =B8 & " " & C8 & " " & "+" & " " & B9 & " " & C9 -> Scenario 1 + Portfolio 1 | C14: =25*INDEX('Inputs and Outputs'!$I$8:$BG$402,MATCH(C11,'Inputs and Outputs'!$I$8:$I$402,0),MATCH($C$7,'Inputs and Outputs'!$I$8:$BG$8,0)) -> 3.75 | D14: =100*INDEX('Inputs and Outputs'!$I$8:$BG$402,MATCH(D11,'Inputs and Outputs'!$I$8:$I$402,0),MATCH($C$7,'Inputs and Outputs'!$I$8:$BG$8,0)) -> 4.240364004 | E14: =INDEX('Inputs and Outputs'!$I$8:$BG$402,MATCH(E11,'Inputs and Outputs'!$I$8:$I$402,0),MATCH($C$7,'Inputs and Outputs'!$I$8:$BG$8,0)) -> 30 | F14: =IF(Wind_Domestic_Content>0,IF(Wind_Energy_Communities>0,"Both","One"),IF(Wind_Energy_Communities>0,"One","None")) -> One | G14: =INDEX('Inputs and Outputs'!$I$8:$BG$402,MATCH(G$11,'Inputs and Outputs'!$I$8:$I$402,0),MATCH($C$7,'Inputs and Outputs'!$I$8:$BG$8,0)) -> 56.78 | H14: =INDEX('Inputs and Outputs'!$I$8:$BG$402,MATCH(H$11,'Inputs and Outputs'!$I$8:$I$402,0),MATCH($C$7,'Inputs and Outputs'!$I$8:$BG$8,0)) -> 64.1 | I14: =INDEX('Inputs and Outputs'!$I$8:$BG$402,MATCH(I$11,'Inputs and Outputs'!$I$8:$I$402,0),MATCH($C$7,'Inputs and Outputs'!$I$8:$BG$8,0)) -> 59.97 | J14: =I14-G14 -> 3.19 | K14: =INDEX('Inputs and Outputs'!$I$8:$BG$402,MATCH(K$13,'Inputs and Outputs'!$I$8:$I$402,0),MATCH($C$7,'Inputs and Outputs'!$I$8:$BG$8,0)) -> 0 | M14: =B8 & " " & C8 & " " & "+" & " " & B9 & " " & C9 -> Scenario 1 + Portfolio 1 | N14: =25*INDEX('Inputs and Outputs'!$I$8:$BG$402,MATCH(N11,'Inputs and Outputs'!$I$8:$I$402,0),MATCH($C$7,'Inputs and Outputs'!$I$8:$BG$8,0)) -> 3.75 | O14: =100*INDEX('Inputs and Outputs'!$I$8:$BG$402,MATCH(O11,'Inputs and Outputs'!$I$8:$I$402,0),MATCH($C$7,'Inputs and Outputs'!$I$8:$BG$8,0)) -> 4.240364004 | P14: =INDEX('Inputs and Outputs'!$I$8:$BG$402,MATCH(P11,'Inputs and Outputs'!$I$8:$I$402,0),MATCH($C$7,'Inputs and Outputs'!$I$8:$BG$8,0)) -> 30 | Q14: =IF(Wind_Domestic_Content>0,IF(Wind_Energy_Communities>0,"Both","One"),IF(Wind_Energy_Communities>0,"One","None")) -> One | R14: =INDEX('Inputs and Outputs'!$I$8:$BG$402,MATCH(R$11,'Inputs and Outputs'!$I$8:$I$402,0),MATCH($C$7,'Inputs and Outputs'!$I$8:$BG$8,0)) -> 2224780942 | S14: =INDEX('Inputs and Outputs'!$I$8:$BG$402,MATCH(S$11,'Inputs and Outputs'!$I$8:$I$402,0),MATCH($C$7,'Inputs and Outputs'!$I$8:$BG$8,0)) -> 2511749425 | T14: =INDEX('Inputs and Outputs'!$I$8:$BG$402,MATCH(T$11,'Inputs and Outputs'!$I$8:$I$402,0),MATCH($C$7,'Inputs and Outputs'!$I$8:$BG$8,0)) -> 2349759454 | U14: =T14-R14 -> 124978511.7 | V14: =INDEX('Inputs and Outputs'!$I$8:$BG$402,MATCH(V$13,'Inputs and Outputs'!$I$8:$I$402,0),MATCH($C$7,'Inputs and Outputs'!$I$8:$BG$8,0)) -> 0
B16: PTC | G16: Levelized Electricity Cost ($/MWh) | J16: Savings | M16: PTC | R16: Net Present Value ($) | U16: Savings
B17: Case | C17: Grant (%) | D17: Loan (%) | E17: Loan Term (year) | F17: Bonus | G17: Owned | H17: PPA (Calc) | I17: PPA (Quote) | J17: Owned vs. PPA Quote | K17: Additional Member Equity Required | M17: Case | N17: Grant (%) | O17: Loan (%) | P17: Loan Term (year) | Q17: Bonus | R17: Owned | S17: PPA (Calc) | T17: PPA (Quote) | U17: Owned vs. PPA Quote | V17: Additional Member Equity Required
B18: Base | C18: 25 | D18: 2 | E18: 30 | F18: One | M18: Base | N18: 25 | O18: 2 | P18: 30 | Q18: One
B19: Grant Down 1 | C19: 17.5 | D19: 2 | E19: 30 | F19: One | M19: Grant Down 1 | N19: 17.5 | O19: 2 | P19: 30 | Q19: One
B20: Grant Down 2 | C20: 10 | D20: 2 | E20: 30 | F20: One | M20: Grant Down 2 | N20: 10 | O20: 2 | P20: 30 | Q20: One
B21: Loan higher 1 | C21: 25 | D21: 3 | E21: 30 | F21: One | M21: Loan higher 1 | N21: 25 | O21: 3 | P21: 30 | Q21: One
B22: Loan higher 2 | C22: 25 | D22: 4 | E22: 30 | F22: One | M22: Loan higher 2 | N22: 25 | O22: 4 | P22: 30 | Q22: One
B23: Loan term down | C23: 25 | D23: 2 | E23: 20 | F23: One | M23: Loan term down | N23: 25 | O23: 2 | P23: 20 | Q23: One
B24: Loan term up | C24: 25 | D24: 2 | E24: 35 | F24: One | M24: Loan term up | N24: 25 | O24: 2 | P24: 35 | Q24: One
B25: Bonus up | C25: 25 | D25: 2 | E25: 30 | F25: Both | M25: Bonus up | N25: 25 | O25: 2 | P25: 30 | Q25: Both
B26: Bonus down | C26: 25 | D26: 2 | E26: 30 | F26: None | M26: Bonus down | N26: 25 | O26: 2 | P26: 30 | Q26: None
B28: ITC | G28: Levelized Electricity Cost ($/MWh) | J28: Savings | M28: ITC | R28: Net Present Value ($) | U28: Savings
B29: Case | C29: Grant (%) | D29: Loan (%) | E29: Loan Term (year) | F29: Bonus | G29: Owned | H29: PPA (Calc) | I29: PPA (Quote) | J29: Owned vs. PPA Quote | K29: Additional Member Equity Required | M29: Case | N29: Grant (%) | O29: Loan (%) | P29: Loan Term (year) | Q29: Bonus | R29: Owned | S29: PPA (Calc) | T29: PPA (Quote) | U29: Owned vs. PPA Quote | V29: Additional Member Equity Required
B30: Base | C30: 25 | D30: 2 | E30: 30 | F30: One | M30: Base | N30: 25 | O30: 2 | P30: 30 | Q30: One
B31: Grant Down 1 | C31: 17.5 | D31: 2 | E31: 30 | F31: One | M31: Grant Down 1 | N31: 17.5 | O31: 2 | P31: 30 | Q31: One
B32: Grant Down 2 | C32: 10 | D32: 2 | E32: 30 | F32: One | M32: Grant Down 2 | N32: 10 | O32: 2 | P32: 30 | Q32: One
B33: Loan higher 1 | C33: 25 | D33: 3 | E33: 30 | F33: One | M33: Loan higher 1 | N33: 25 | O33: 3 | P33: 30 | Q33: One
B34: Loan higher 2 | C34: 25 | D34: 4 | E34: 30 | F34: One | M34: Loan higher 2 | N34: 25 | O34: 4 | P34: 30 | Q34: One
B35: Loan term down | C35: 25 | D35: 2 | E35: 20 | F35: One | M35: Loan term down | N35: 25 | O35: 2 | P35: 20 | Q35: One
B36: Loan term up | C36: 25 | D36: 2 | E36: 35 | F36: One | M36: Loan term up | N36: 25 | O36: 2 | P36: 35 | Q36: One
B37: Bonus up | C37: 25 | D37: 2 | E37: 30 | F37: Both | M37: Bonus up | N37: 25 | O37: 2 | P37: 30 | Q37: Both
B38: Bonus down | C38: 25 | D38: 2 | E38: 30 | F38: None | M38: Bonus down | N38: 25 | O38: 2 | P38: 30 | Q38: None
B40: Results
B41: Case | C41: Tax Credit | D41: Owned | E41: PPA (Calc) | F41: PPA (Quote)
B42: PPA (Calc) | C42: PTC | D42: 60.63 | E42: 60.63 | F42: 62.31577022
B43: PPA (Calc) | C43: PTC | D43: 61 | E43: 61 | F43: 63
B44: PPA (Calc) | C44: PTC | D44: 60 | E44: 60 | F44: 64
B45: PPA (Calc) | C45: PTC | D45: 59 | E45: 59 | F45: 62.31577022
B46: PPA (Calc) | C46: PTC | D46: 60 | E46: 60 | F46: 62.31577022
B47: PPA (Calc) | C47: PTC | D47: 58 | E47: 58 | F47: 62.31577022
B48: PPA (Calc) | C48: PTC | D48: 59 | E48: 59 | F48: 62.31577022
B49: PPA (Calc) | C49: PTC | D49: 62 | E49: 62 | F49: 62.31577022
B50: PPA (Calc) | C50: PTC | D50: 63 | E50: 63 | F50: 62.31577022
B51: PPA (Quote) | C51: Unknown | D51: 62.31577022 | E51: 60.63 | F51: 62.31577022
B52: PPA (Quote) | C52: Unknown | D52: 63 | E52: 61 | F52: 63
B53: PPA (Quote) | C53: Unknown | D53: 64 | E53: 60 | F53: 64
B54: PPA (Quote) | C54: Unknown | D54: 62.31577022 | E54: 59 | F54: 62.31577022
B55: PPA (Quote) | C55: Unknown | D55: 62.31577022 | E55: 60 | F55: 62.31577022
B56: PPA (Quote) | C56: Unknown | D56: 62.31577022 | E56: 58 | F56: 62.31577022
B57: PPA (Quote) | C57: Unknown | D57: 62.31577022 | E57: 59 | F57: 62.31577022
B58: PPA (Quote) | C58: Unknown | D58: 62.31577022 | E58: 62 | F58: 62.31577022
B59: PPA (Quote) | C59: Unknown | D59: 62.31577022 | E59: 63 | F59: 62.31577022
B60: Owned (PTC) | C60: PTC | D60: 46.62809936 | E60: 60.63 | F60: 62.31577022
B61: Owned (PTC) | C61: PTC | D61: 50 | E61: 61 | F61: 63
B62: Owned (PTC) | C62: PTC | D62: 54 | E62: 60 | F62: 64
B63: Owned (PTC) | C63: PTC | D63: 48 | E63: 59 | F63: 62.31577022
B64: Owned (PTC) | C64: PTC | D64: 51 | E64: 60 | F64: 62.31577022
B65: Owned (PTC) | C65: PTC | D65: 48 | E65: 58 | F65: 62.31577022
B66: Owned (PTC) | C66: PTC | D66: 44 | E66: 59 | F66: 62.31577022
B67: Owned (PTC) | C67: PTC | D67: 44 | E67: 62 | F67: 62.31577022
B68: Owned (PTC) | C68: PTC | D68: 48 | E68: 63 | F68: 62.31577022
B69: Owned (ITC) | C69: ITC | D69: 52 | E69: 60.63 | F69: 62.31577022
B70: Owned (ITC) | C70: ITC | D70: 54 | E70: 61 | F70: 63
B71: Owned (ITC) | C71: ITC | D71: 56 | E71: 60 | F71: 64
B72: Owned (ITC) | C72: ITC | D72: 53 | E72: 59 | F72: 62.31577022
B73: Owned (ITC) | C73: ITC | D73: 54 | E73: 60 | F73: 62.31577022
B74: Owned (ITC) | C74: ITC | D74: 53 | E74: 58 | F74: 62.31577022
B75: Owned (ITC) | C75: ITC | D75: 51 | E75: 59 | F75: 62.31577022
B76: Owned (ITC) | C76: ITC | D76: 48 | E76: 62 | F76: 62.31577022
B77: Owned (ITC) | C77: ITC | D77: 56 | E77: 63 | F77: 62.31577022

Sheet Results (old) (hidden)
B2: Steps to Build Out Results Tables
B3: The summary tables below show the current portfolio being analyzed, with LCOE values on the left and NPV values on the right.
B4: To model multiple portfolios, the summary table can be copied and pasted into the table below before moving on to the next portfolio.
B5: To graphically depict the portfolios, the three columns titled "Owned","PPA (Calc)", and "PPA (Quote)" can be copied and pasted into the 'Results - Graphs' section across different variables.
B7: Scenario | C7: 1
B8: Portfolio | C8: 1
B10: Portfolio Results Summary Table | G10: Levelized Electricity Cost ($/MWh) | J10: Savings | M10: Portfolio Results Summary Table | R10: Net Present Value ($) | U10: Savings
B11: Case | C11: Grant (%) | D11: Loan Rate (%) | E11: Loan Term (years) | F11: Bonus | G11: Owned | H11: PPA (Calc) | I11: PPA (Quote) | J11: Owned vs. PPA Quote | K11: Additional Member Equity Required | M11: Case | N11: Grant (%) | O11: Loan Rate (%) | P11: Loan Term (years) | Q11: Bonus | R11: Owned | S11: PPA (Calc) | T11: PPA (Quote) | U11: Owned vs. PPA Quote | V11: Additional Member Equity Required
B12: Current Case | C12: =USDA_Award_Frac*25 -> 3.75 | D12: =Other_Loan_Rate*100 -> 4.240364004 | E12: =USDA_T_Loan_Tenor -> 30 | F12: =IF(Wind_Domestic_Content>0,IF(Wind_Energy_Communities>0,"Both","One"),IF(Wind_Energy_Communities>0,"One","None")) -> One | G12: ='Inputs and Outputs'!C45 -> 56.7764436 | H12: ='Inputs and Outputs'!C46 -> 64.09988366 | I12: ='Inputs and Outputs'!C47 -> 59.96589712 | J12: =I12-G12 -> 3.189453527 | K12: ='Inputs and Outputs'!C357 -> 0 | M12: Current Case | N12: =USDA_Award_Frac*25 -> 3.75 | O12: =Other_Loan_Rate*100 -> 4.240364004 | P12: =USDA_T_Loan_Tenor -> 30 | Q12: =IF(Wind_Domestic_Content>0,IF(Wind_Energy_Communities>0,"Both","One"),IF(Wind_Energy_Communities>0,"One","None")) -> One | R12: ='Inputs and Outputs'!C49 -> 2224780942 | S12: ='Inputs and Outputs'!C50 -> 2511749425 | T12: ='Inputs and Outputs'!C51 -> 2349759454 | U12: 5172321831 | V12: ='Inputs and Outputs'!C357 -> 0
B14: PTC | G14: Levelized Electricity Cost ($/MWh) | J14: Savings | M14: PTC | R14: Net Present Value ($) | U14: Savings
B15: Case | C15: Grant (%) | D15: Loan (%) | E15: Loan Term (year) | F15: Bonus | G15: Owned | H15: PPA (Calc) | I15: PPA (Quote) | J15: Owned vs. PPA Quote | K15: Additional Member Equity Required | M15: Case | N15: Grant (%) | O15: Loan (%) | P15: Loan Term (year) | Q15: Bonus | R15: Owned | S15: PPA (Calc) | T15: PPA (Quote) | U15: Owned vs. PPA Quote | V15: Additional Member Equity Required
B16: Base | C16: 25 | D16: 2 | E16: 30 | F16: One | M16: Base | N16: 25 | O16: 2 | P16: 30 | Q16: One
B17: Grant Down 1 | C17: 17.5 | D17: 2 | E17: 30 | F17: One | M17: Grant Down 1 | N17: 17.5 | O17: 2 | P17: 30 | Q17: One
B18: Grant Down 2 | C18: 10 | D18: 2 | E18: 30 | F18: One | M18: Grant Down 2 | N18: 10 | O18: 2 | P18: 30 | Q18: One
B19: Loan higher 1 | C19: 25 | D19: 3 | E19: 30 | F19: One | M19: Loan higher 1 | N19: 25 | O19: 3 | P19: 30 | Q19: One
B20: Loan higher 2 | C20: 25 | D20: 4 | E20: 30 | F20: One | M20: Loan higher 2 | N20: 25 | O20: 4 | P20: 30 | Q20: One
B21: Loan term down | C21: 25 | D21: 2 | E21: 20 | F21: One | M21: Loan term down | N21: 25 | O21: 2 | P21: 20 | Q21: One
B22: Loan term up | C22: 25 | D22: 2 | E22: 35 | F22: One | M22: Loan term up | N22: 25 | O22: 2 | P22: 35 | Q22: One
B23: Bonus up | C23: 25 | D23: 2 | E23: 30 | F23: Both | M23: Bonus up | N23: 25 | O23: 2 | P23: 30 | Q23: Both
B24: Bonus down | C24: 25 | D24: 2 | E24: 30 | F24: None | M24: Bonus down | N24: 25 | O24: 2 | P24: 30 | Q24: None
B26: ITC | G26: Levelized Electricity Cost ($/MWh) | J26: Savings | M26: ITC | R26: Net Present Value ($) | U26: Savings
B27: Case | C27: Grant (%) | D27: Loan (%) | E27: Loan Term (year) | F27: Bonus | G27: Owned | H27: PPA (Calc) | I27: PPA (Quote) | J27: Owned vs. PPA Quote | K27: Additional Member Equity Required | M27: Case | N27: Grant (%) | O27: Loan (%) | P27: Loan Term (year) | Q27: Bonus | R27: Owned | S27: PPA (Calc) | T27: PPA (Quote) | U27: Owned vs. PPA Quote | V27: Additional Member Equity Required
B28: Base | C28: 25 | D28: 2 | E28: 30 | F28: One | M28: Base | N28: 25 | O28: 2 | P28: 30 | Q28: One
B29: Grant Down 1 | C29: 17.5 | D29: 2 | E29: 30 | F29: One | M29: Grant Down 1 | N29: 17.5 | O29: 2 | P29: 30 | Q29: One
B30: Grant Down 2 | C30: 10 | D30: 2 | E30: 30 | F30: One | M30: Grant Down 2 | N30: 10 | O30: 2 | P30: 30 | Q30: One
B31: Loan higher 1 | C31: 25 | D31: 3 | E31: 30 | F31: One | M31: Loan higher 1 | N31: 25 | O31: 3 | P31: 30 | Q31: One
B32: Loan higher 2 | C32: 25 | D32: 4 | E32: 30 | F32: One | M32: Loan higher 2 | N32: 25 | O32: 4 | P32: 30 | Q32: One
B33: Loan term down | C33: 25 | D33: 2 | E33: 20 | F33: One | M33: Loan term down | N33: 25 | O33: 2 | P33: 20 | Q33: One
B34: Loan term up | C34: 25 | D34: 2 | E34: 35 | F34: One | M34: Loan term up | N34: 25 | O34: 2 | P34: 35 | Q34: One
B35: Bonus up | C35: 25 | D35: 2 | E35: 30 | F35: Both | M35: Bonus up | N35: 25 | O35: 2 | P35: 30 | Q35: Both
B36: Bonus down | C36: 25 | D36: 2 | E36: 30 | F36: None | M36: Bonus down | N36: 25 | O36: 2 | P36: 30 | Q36: None
B38: Results
B39: Case | C39: Tax Credit | D39: Owned | E39: PPA (Calc) | F39: PPA (Quote)
B40: PPA (Calc) | C40: PTC | D40: 60.63 | E40: 60.63 | F40: 62.31577022
B41: PPA (Calc) | C41: PTC | D41: 61 | E41: 61 | F41: 63
B42: PPA (Calc) | C42: PTC | D42: 60 | E42: 60 | F42: 64
B43: PPA (Calc) | C43: PTC | D43: 59 | E43: 59 | F43: 62.31577022
B44: PPA (Calc) | C44: PTC | D44: 60 | E44: 60 | F44: 62.31577022
B45: PPA (Calc) | C45: PTC | D45: 58 | E45: 58 | F45: 62.31577022
B46: PPA (Calc) | C46: PTC | D46: 59 | E46: 59 | F46: 62.31577022
B47: PPA (Calc) | C47: PTC | D47: 62 | E47: 62 | F47: 62.31577022
B48: PPA (Calc) | C48: PTC | D48: 63 | E48: 63 | F48: 62.31577022
B49: PPA (Quote) | C49: Unknown | D49: 62.31577022 | E49: 60.63 | F49: 62.31577022
B50: PPA (Quote) | C50: Unknown | D50: 63 | E50: 61 | F50: 63
B51: PPA (Quote) | C51: Unknown | D51: 64 | E51: 60 | F51: 64
B52: PPA (Quote) | C52: Unknown | D52: 62.31577022 | E52: 59 | F52: 62.31577022
B53: PPA (Quote) | C53: Unknown | D53: 62.31577022 | E53: 60 | F53: 62.31577022
B54: PPA (Quote) | C54: Unknown | D54: 62.31577022 | E54: 58 | F54: 62.31577022
B55: PPA (Quote) | C55: Unknown | D55: 62.31577022 | E55: 59 | F55: 62.31577022
B56: PPA (Quote) | C56: Unknown | D56: 62.31577022 | E56: 62 | F56: 62.31577022
B57: PPA (Quote) | C57: Unknown | D57: 62.31577022 | E57: 63 | F57: 62.31577022
B58: Owned (PTC) | C58: PTC | D58: 46.62809936 | E58: 60.63 | F58: 62.31577022
B59: Owned (PTC) | C59: PTC | D59: 50 | E59: 61 | F59: 63
B60: Owned (PTC) | C60: PTC | D60: 54 | E60: 60 | F60: 64
B61: Owned (PTC) | C61: PTC | D61: 48 | E61: 59 | F61: 62.31577022
B62: Owned (PTC) | C62: PTC | D62: 51 | E62: 60 | F62: 62.31577022
B63: Owned (PTC) | C63: PTC | D63: 48 | E63: 58 | F63: 62.31577022
B64: Owned (PTC) | C64: PTC | D64: 44 | E64: 59 | F64: 62.31577022
B65: Owned (PTC) | C65: PTC | D65: 44 | E65: 62 | F65: 62.31577022
B66: Owned (PTC) | C66: PTC | D66: 48 | E66: 63 | F66: 62.31577022
B67: Owned (ITC) | C67: ITC | D67: 52 | E67: 60.63 | F67: 62.31577022
B68: Owned (ITC) | C68: ITC | D68: 54 | E68: 61 | F68: 63
B69: Owned (ITC) | C69: ITC | D69: 56 | E69: 60 | F69: 64
B70: Owned (ITC) | C70: ITC | D70: 53 | E70: 59 | F70: 62.31577022
B71: Owned (ITC) | C71: ITC | D71: 54 | E71: 60 | F71: 62.31577022
B72: Owned (ITC) | C72: ITC | D72: 53 | E72: 58 | F72: 62.31577022
B73: Owned (ITC) | C73: ITC | D73: 51 | E73: 59 | F73: 62.31577022
B74: Owned (ITC) | C74: ITC | D74: 48 | E74: 62 | F74: 62.31577022
B75: Owned (ITC) | C75: ITC | D75: 56 | E75: 63 | F75: 62.31577022

Sheet Cost Calculations
C1: Inflation Factor | D1: =_xlfn.XLOOKUP(D$3,'BLS Data Series'!$A$120:$A$175,'BLS Data Series'!$Q$120:$Q$175)/_xlfn.XLOOKUP(Build_Year,'BLS Data Series'!$A$120:$A$175,'BLS Data Series'!$Q$120:$Q$175) -> 0.9546063215 | E1: =_xlfn.XLOOKUP(E$3,'BLS Data Series'!$A$120:$A$175,'BLS Data Series'!$Q$120:$Q$175)/_xlfn.XLOOKUP(Build_Year,'BLS Data Series'!$A$120:$A$175,'BLS Data Series'!$Q$120:$Q$175) -> 0.9770395701 | F1: =_xlfn.XLOOKUP(F$3,'BLS Data Series'!$A$120:$A$175,'BLS Data Series'!$Q$120:$Q$175)/_xlfn.XLOOKUP(Build_Year,'BLS Data Series'!$A$120:$A$175,'BLS Data Series'!$Q$120:$Q$175) -> 1 | G1: =_xlfn.XLOOKUP(G$3,'BLS Data Series'!$A$120:$A$175,'BLS Data Series'!$Q$120:$Q$175)/_xlfn.XLOOKUP(Build_Year,'BLS Data Series'!$A$120:$A$175,'BLS Data Series'!$Q$120:$Q$175) -> 1.0235 | H1: =_xlfn.XLOOKUP(H$3,'BLS Data Series'!$A$120:$A$175,'BLS Data Series'!$Q$120:$Q$175)/_xlfn.XLOOKUP(Build_Year,'BLS Data Series'!$A$120:$A$175,'BLS Data Series'!$Q$120:$Q$175) -> 1.04755943 | I1: =_xlfn.XLOOKUP(I$3,'BLS Data Series'!$A$120:$A$175,'BLS Data Series'!$Q$120:$Q$175)/_xlfn.XLOOKUP(Build_Year,'BLS Data Series'!$A$120:$A$175,'BLS Data Series'!$Q$120:$Q$175) -> 1.072826384 | J1: =_xlfn.XLOOKUP(J$3,'BLS Data Series'!$A$120:$A$175,'BLS Data Series'!$Q$120:$Q$175)/_xlfn.XLOOKUP(Build_Year,'BLS Data Series'!$A$120:$A$175,'BLS Data Series'!$Q$120:$Q$175) -> 1.099110631 | K1: =_xlfn.XLOOKUP(K$3,'BLS Data Series'!$A$120:$A$175,'BLS Data Series'!$Q$120:$Q$175)/_xlfn.XLOOKUP(Build_Year,'BLS Data Series'!$A$120:$A$175,'BLS Data Series'!$Q$120:$Q$175) -> 1.126038841 | L1: =_xlfn.XLOOKUP(L$3,'BLS Data Series'!$A$120:$A$175,'BLS Data Series'!$Q$120:$Q$175)/_xlfn.XLOOKUP(Build_Year,'BLS Data Series'!$A$120:$A$175,'BLS Data Series'!$Q$120:$Q$175) -> 1.153626793 | M1: =_xlfn.XLOOKUP(M$3,'BLS Data Series'!$A$120:$A$175,'BLS Data Series'!$Q$120:$Q$175)/_xlfn.XLOOKUP(Build_Year,'BLS Data Series'!$A$120:$A$175,'BLS Data Series'!$Q$120:$Q$175) -> 1.181854124 | N1: =_xlfn.XLOOKUP(N$3,'BLS Data Series'!$A$120:$A$175,'BLS Data Series'!$Q$120:$Q$175)/_xlfn.XLOOKUP(Build_Year,'BLS Data Series'!$A$120:$A$175,'BLS Data Series'!$Q$120:$Q$175) -> 1.207510481 | O1: =_xlfn.XLOOKUP(O$3,'BLS Data Series'!$A$120:$A$175,'BLS Data Series'!$Q$120:$Q$175)/_xlfn.XLOOKUP(Build_Year,'BLS Data Series'!$A$120:$A$175,'BLS Data Series'!$Q$120:$Q$175) -> 1.23166069 | P1: =_xlfn.XLOOKUP(P$3,'BLS Data Series'!$A$120:$A$175,'BLS Data Series'!$Q$120:$Q$175)/_xlfn.XLOOKUP(Build_Year,'BLS Data Series'!$A$120:$A$175,'BLS Data Series'!$Q$120:$Q$175) -> 1.256293904 | Q1: =_xlfn.XLOOKUP(Q$3,'BLS Data Series'!$A$120:$A$175,'BLS Data Series'!$Q$120:$Q$175)/_xlfn.XLOOKUP(Build_Year,'BLS Data Series'!$A$120:$A$175,'BLS Data Series'!$Q$120:$Q$175) -> 1.281419782 | R1: =_xlfn.XLOOKUP(R$3,'BLS Data Series'!$A$120:$A$175,'BLS Data Series'!$Q$120:$Q$175)/_xlfn.XLOOKUP(Build_Year,'BLS Data Series'!$A$120:$A$175,'BLS Data Series'!$Q$120:$Q$175) -> 1.307048178 | S1: =_xlfn.XLOOKUP(S$3,'BLS Data Series'!$A$120:$A$175,'BLS Data Series'!$Q$120:$Q$175)/_xlfn.XLOOKUP(Build_Year,'BLS Data Series'!$A$120:$A$175,'BLS Data Series'!$Q$120:$Q$175) -> 1.333189141 | T1: =_xlfn.XLOOKUP(T$3,'BLS Data Series'!$A$120:$A$175,'BLS Data Series'!$Q$120:$Q$175)/_xlfn.XLOOKUP(Build_Year,'BLS Data Series'!$A$120:$A$175,'BLS Data Series'!$Q$120:$Q$175) -> 1.359852924 | U1: =_xlfn.XLOOKUP(U$3,'BLS Data Series'!$A$120:$A$175,'BLS Data Series'!$Q$120:$Q$175)/_xlfn.XLOOKUP(Build_Year,'BLS Data Series'!$A$120:$A$175,'BLS Data Series'!$Q$120:$Q$175) -> 1.387049983 | V1: =_xlfn.XLOOKUP(V$3,'BLS Data Series'!$A$120:$A$175,'BLS Data Series'!$Q$120:$Q$175)/_xlfn.XLOOKUP(Build_Year,'BLS Data Series'!$A$120:$A$175,'BLS Data Series'!$Q$120:$Q$175) -> 1.414790982 | W1: =_xlfn.XLOOKUP(W$3,'BLS Data Series'!$A$120:$A$175,'BLS Data Series'!$Q$120:$Q$175)/_xlfn.XLOOKUP(Build_Year,'BLS Data Series'!$A$120:$A$175,'BLS Data Series'!$Q$120:$Q$175) -> 1.443086802 | X1: =_xlfn.XLOOKUP(X$3,'BLS Data Series'!$A$120:$A$175,'BLS Data Series'!$Q$120:$Q$175)/_xlfn.XLOOKUP(Build_Year,'BLS Data Series'!$A$120:$A$175,'BLS Data Series'!$Q$120:$Q$175) -> 1.471948538 | Y1: =_xlfn.XLOOKUP(Y$3,'BLS Data Series'!$A$120:$A$175,'BLS Data Series'!$Q$120:$Q$175)/_xlfn.XLOOKUP(Build_Year,'BLS Data Series'!$A$120:$A$175,'BLS Data Series'!$Q$120:$Q$175) -> 1.501387509 | Z1: =_xlfn.XLOOKUP(Z$3,'BLS Data Series'!$A$120:$A$175,'BLS Data Series'!$Q$120:$Q$175)/_xlfn.XLOOKUP(Build_Year,'BLS Data Series'!$A$120:$A$175,'BLS Data Series'!$Q$120:$Q$175) -> 1.531415259 | AA1: =_xlfn.XLOOKUP(AA$3,'BLS Data Series'!$A$120:$A$175,'BLS Data Series'!$Q$120:$Q$175)/_xlfn.XLOOKUP(Build_Year,'BLS Data Series'!$A$120:$A$175,'BLS Data Series'!$Q$120:$Q$175) -> 1.562043564 | AB1: =_xlfn.XLOOKUP(AB$3,'BLS Data Series'!$A$120:$A$175,'BLS Data Series'!$Q$120:$Q$175)/_xlfn.XLOOKUP(Build_Year,'BLS Data Series'!$A$120:$A$175,'BLS Data Series'!$Q$120:$Q$175) -> 1.593284435 | AC1: =_xlfn.XLOOKUP(AC$3,'BLS Data Series'!$A$120:$A$175,'BLS Data Series'!$Q$120:$Q$175)/_xlfn.XLOOKUP(Build_Year,'BLS Data Series'!$A$120:$A$175,'BLS Data Series'!$Q$120:$Q$175) -> 1.625150124 | AD1: =_xlfn.XLOOKUP(AD$3,'BLS Data Series'!$A$120:$A$175,'BLS Data Series'!$Q$120:$Q$175)/_xlfn.XLOOKUP(Build_Year,'BLS Data Series'!$A$120:$A$175,'BLS Data Series'!$Q$120:$Q$175) -> 1.657653126 | AE1: =_xlfn.XLOOKUP(AE$3,'BLS Data Series'!$A$120:$A$175,'BLS Data Series'!$Q$120:$Q$175)/_xlfn.XLOOKUP(Build_Year,'BLS Data Series'!$A$120:$A$175,'BLS Data Series'!$Q$120:$Q$175) -> 1.690806189 | AF1: =_xlfn.XLOOKUP(AF$3,'BLS Data Series'!$A$120:$A$175,'BLS Data Series'!$Q$120:$Q$175)/_xlfn.XLOOKUP(Build_Year,'BLS Data Series'!$A$120:$A$175,'BLS Data Series'!$Q$120:$Q$175) -> 1.724622313 | AG1: =_xlfn.XLOOKUP(AG$3,'BLS Data Series'!$A$120:$A$175,'BLS Data Series'!$Q$120:$Q$175)/_xlfn.XLOOKUP(Build_Year,'BLS Data Series'!$A$120:$A$175,'BLS Data Series'!$Q$120:$Q$175) -> 1.759114759 | AH1: =_xlfn.XLOOKUP(AH$3,'BLS Data Series'!$A$120:$A$175,'BLS Data Series'!$Q$120:$Q$175)/_xlfn.XLOOKUP(Build_Year,'BLS Data Series'!$A$120:$A$175,'BLS Data Series'!$Q$120:$Q$175) -> 1.794297054 | AI1: =_xlfn.XLOOKUP(AI$3,'BLS Data Series'!$A$120:$A$175,'BLS Data Series'!$Q$120:$Q$175)/_xlfn.XLOOKUP(Build_Year,'BLS Data Series'!$A$120:$A$175,'BLS Data Series'!$Q$120:$Q$175) -> 1.830182995 | AJ1: =_xlfn.XLOOKUP(AJ$3,'BLS Data Series'!$A$120:$A$175,'BLS Data Series'!$Q$120:$Q$175)/_xlfn.XLOOKUP(Build_Year,'BLS Data Series'!$A$120:$A$175,'BLS Data Series'!$Q$120:$Q$175) -> 1.866786655 | AK1: =_xlfn.XLOOKUP(AK$3,'BLS Data Series'!$A$120:$A$175,'BLS Data Series'!$Q$120:$Q$175)/_xlfn.XLOOKUP(Build_Year,'BLS Data Series'!$A$120:$A$175,'BLS Data Series'!$Q$120:$Q$175) -> 1.904122388 | AL1: =_xlfn.XLOOKUP(AL$3,'BLS Data Series'!$A$120:$A$175,'BLS Data Series'!$Q$120:$Q$175)/_xlfn.XLOOKUP(Build_Year,'BLS Data Series'!$A$120:$A$175,'BLS Data Series'!$Q$120:$Q$175) -> 1.942204836 | AM1: =_xlfn.XLOOKUP(AM$3,'BLS Data Series'!$A$120:$A$175,'BLS Data Series'!$Q$120:$Q$175)/_xlfn.XLOOKUP(Build_Year,'BLS Data Series'!$A$120:$A$175,'BLS Data Series'!$Q$120:$Q$175) -> 1.981048933 | AN1: =_xlfn.XLOOKUP(AN$3,'BLS Data Series'!$A$120:$A$175,'BLS Data Series'!$Q$120:$Q$175)/_xlfn.XLOOKUP(Build_Year,'BLS Data Series'!$A$120:$A$175,'BLS Data Series'!$Q$120:$Q$175) -> 2.020669911 | AO1: =_xlfn.XLOOKUP(AO$3,'BLS Data Series'!$A$120:$A$175,'BLS Data Series'!$Q$120:$Q$175)/_xlfn.XLOOKUP(Build_Year,'BLS Data Series'!$A$120:$A$175,'BLS Data Series'!$Q$120:$Q$175) -> 2.06108331 | AP1: =_xlfn.XLOOKUP(AP$3,'BLS Data Series'!$A$120:$A$175,'BLS Data Series'!$Q$120:$Q$175)/_xlfn.XLOOKUP(Build_Year,'BLS Data Series'!$A$120:$A$175,'BLS Data Series'!$Q$120:$Q$175) -> 2.102304976 | AQ1: =_xlfn.XLOOKUP(AQ$3,'BLS Data Series'!$A$120:$A$175,'BLS Data Series'!$Q$120:$Q$175)/_xlfn.XLOOKUP(Build_Year,'BLS Data Series'!$A$120:$A$175,'BLS Data Series'!$Q$120:$Q$175) -> 2.144351075
D2: 1 | E2: 2 | F2: 3 | G2: 4 | H2: 5 | I2: 6 | J2: 7 | K2: 8 | L2: 9 | M2: 10 | N2: 11 | O2: 12 | P2: 13 | Q2: 14 | R2: 15 | S2: 16 | T2: 17 | U2: 18 | V2: 19 | W2: 20 | X2: 21 | Y2: 22 | Z2: 23 | AA2: 24 | AB2: 25 | AC2: 26 | AD2: 27 | AE2: 28 | AF2: 29 | AG2: 30 | AH2: 31 | AI2: 32 | AJ2: 33 | AK2: 34 | AL2: 35 | AM2: 36 | AN2: 37 | AO2: 38 | AP2: 39 | AQ2: 40
C3: Year | D3: =Base_Year -> 2024 | E3: =D3+1 -> 2025 | F3: =E3+1 -> 2026 | G3: 2027 | H3: 2028 | I3: 2029 | J3: 2030 | K3: 2031 | L3: 2032 | M3: 2033 | N3: 2034 | O3: 2035 | P3: 2036 | Q3: 2037 | R3: 2038 | S3: 2039 | T3: 2040 | U3: 2041 | V3: 2042 | W3: 2043 | X3: 2044 | Y3: 2045 | Z3: 2046 | AA3: 2047 | AB3: 2048 | AC3: 2049 | AD3: 2050 | AE3: 2051 | AF3: 2052 | AG3: 2053 | AH3: 2054 | AI3: 2055 | AJ3: 2056 | AK3: 2057 | AL3: 2058 | AM3: 2059 | AN3: 2060 | AO3: 2061 | AP3: 2062 | AQ3: 2063
B4: Old Asset Costs and Financing without Refinancing (BAU) | C4: NPB | D4: =Fossil_Plant_Balance- SUM($C$5:C$5) -> 0 | E4: =Fossil_Plant_Balance- SUM($C$5:D$5) -> 0 | F4: =Fossil_Plant_Balance- SUM($C$5:E$5) -> 0 | G4: =Fossil_Plant_Balance- SUM($C$5:F$5) -> 0 | H4: =Fossil_Plant_Balance- SUM($C$5:G$5) -> 0 | I4: =Fossil_Plant_Balance- SUM($C$5:H$5) -> 0 | J4: =Fossil_Plant_Balance- SUM($C$5:I$5) -> 0 | K4: =Fossil_Plant_Balance- SUM($C$5:J$5) -> 0 | L4: =Fossil_Plant_Balance- SUM($C$5:K$5) -> 0 | M4: =Fossil_Plant_Balance- SUM($C$5:L$5) -> 0 | N4: =Fossil_Plant_Balance- SUM($C$5:M$5) -> 0 | O4: =Fossil_Plant_Balance- SUM($C$5:N$5) -> 0 | P4: =Fossil_Plant_Balance- SUM($C$5:O$5) -> 0 | Q4: =Fossil_Plant_Balance- SUM($C$5:P$5) -> 0 | R4: =Fossil_Plant_Balance- SUM($C$5:Q$5) -> 0 | S4: =Fossil_Plant_Balance- SUM($C$5:R$5) -> 0 | T4: =Fossil_Plant_Balance- SUM($C$5:S$5) -> 0 | U4: =Fossil_Plant_Balance- SUM($C$5:T$5) -> 0 | V4: =Fossil_Plant_Balance- SUM($C$5:U$5) -> 0 | W4: =Fossil_Plant_Balance- SUM($C$5:V$5) -> 0 | X4: =Fossil_Plant_Balance- SUM($C$5:W$5) -> 0 | Y4: =Fossil_Plant_Balance- SUM($C$5:X$5) -> 0 | Z4: =Fossil_Plant_Balance- SUM($C$5:Y$5) -> 0 | AA4: =Fossil_Plant_Balance- SUM($C$5:Z$5) -> 0 | AB4: =Fossil_Plant_Balance- SUM($C$5:AA$5) -> 0 | AC4: =Fossil_Plant_Balance- SUM($C$5:AB$5) -> 0 | AD4: =Fossil_Plant_Balance- SUM($C$5:AC$5) -> 0 | AE4: =Fossil_Plant_Balance- SUM($C$5:AD$5) -> 0 | AF4: =Fossil_Plant_Balance- SUM($C$5:AE$5) -> 0 | AG4: =Fossil_Plant_Balance- SUM($C$5:AF$5) -> 0 | AH4: =Fossil_Plant_Balance- SUM($C$5:AG$5) -> 0 | AI4: =Fossil_Plant_Balance- SUM($C$5:AH$5) -> 0 | AJ4: =Fossil_Plant_Balance- SUM($C$5:AI$5) -> 0 | AK4: =Fossil_Plant_Balance- SUM($C$5:AJ$5) -> 0 | AL4: =Fossil_Plant_Balance- SUM($C$5:AK$5) -> 0 | AM4: =Fossil_Plant_Balance- SUM($C$5:AL$5) -> 0 | AN4: =Fossil_Plant_Balance- SUM($C$5:AM$5) -> 0 | AO4: =Fossil_Plant_Balance- SUM($C$5:AN$5) -> 0 | AP4: =Fossil_Plant_Balance- SUM($C$5:AO$5) -> 0 | AQ4: =Fossil_Plant_Balance- SUM($C$5:AP$5) -> 0
C5: Depreciation | D5: =IF(D$2<=Fossil_Remaining_Life, Fossil_Plant_Balance/Fossil_Remaining_Life, 0) -> 0 | E5: 0 | F5: 0 | G5: 0 | H5: 0 | I5: 0 | J5: 0 | K5: 0 | L5: 0 | M5: 0 | N5: 0 | O5: 0 | P5: 0 | Q5: 0 | R5: 0 | S5: 0 | T5: 0 | U5: 0 | V5: 0 | W5: 0 | X5: 0 | Y5: 0 | Z5: 0 | AA5: 0 | AB5: 0 | AC5: 0 | AD5: 0 | AE5: 0 | AF5: 0 | AG5: 0 | AH5: 0 | AI5: 0 | AJ5: 0 | AK5: 0 | AL5: 0 | AM5: 0 | AN5: 0 | AO5: 0 | AP5: 0 | AQ5: 0
C6: Return | D6: =D4*Cur_ROR/(1-Tax_Rate) -> 0 | E6: 0 | F6: 0 | G6: 0 | H6: 0 | I6: 0 | J6: 0 | K6: 0 | L6: 0 | M6: 0 | N6: 0 | O6: 0 | P6: 0 | Q6: 0 | R6: 0 | S6: 0 | T6: 0 | U6: 0 | V6: 0 | W6: 0 | X6: 0 | Y6: 0 | Z6: 0 | AA6: 0 | AB6: 0 | AC6: 0 | AD6: 0 | AE6: 0 | AF6: 0 | AG6: 0 | AH6: 0 | AI6: 0 | AJ6: 0 | AK6: 0 | AL6: 0 | AM6: 0 | AN6: 0 | AO6: 0 | AP6: 0 | AQ6: 0
C7: Ratepayer Costs | D7: =D5+D6 -> 0 | E7: =E5+E6 -> 0 | F7: 0 | G7: 0 | H7: 0 | I7: 0 | J7: 0 | K7: 0 | L7: 0 | M7: 0 | N7: 0 | O7: 0 | P7: 0 | Q7: 0 | R7: 0 | S7: 0 | T7: 0 | U7: 0 | V7: 0 | W7: 0 | X7: 0 | Y7: 0 | Z7: 0 | AA7: 0 | AB7: 0 | AC7: 0 | AD7: 0 | AE7: 0 | AF7: 0 | AG7: 0 | AH7: 0 | AI7: 0 | AJ7: 0 | AK7: 0 | AL7: 0 | AM7: 0 | AN7: 0 | AO7: 0 | AP7: 0 | AQ7: 0
C8: Old Asset Debt Balance | D8: =D$4*(1-Old_Plant_Equity_Ratio) -> 0 | E8: 0 | F8: 0 | G8: 0 | H8: 0 | I8: 0 | J8: 0 | K8: 0 | L8: 0 | M8: 0 | N8: 0 | O8: 0 | P8: 0 | Q8: 0 | R8: 0 | S8: 0 | T8: 0 | U8: 0 | V8: 0 | W8: 0 | X8: 0 | Y8: 0 | Z8: 0 | AA8: 0 | AB8: 0 | AC8: 0 | AD8: 0 | AE8: 0 | AF8: 0 | AG8: 0 | AH8: 0 | AI8: 0 | AJ8: 0 | AK8: 0 | AL8: 0 | AM8: 0 | AN8: 0 | AO8: 0 | AP8: 0 | AQ8: 0
C9: Old Asset Debt Principal | D9: =D$5*(1-Old_Plant_Equity_Ratio) -> 0 | E9: 0 | F9: 0 | G9: 0 | H9: 0 | I9: 0 | J9: 0 | K9: 0 | L9: 0 | M9: 0 | N9: 0 | O9: 0 | P9: 0 | Q9: 0 | R9: 0 | S9: 0 | T9: 0 | U9: 0 | V9: 0 | W9: 0 | X9: 0 | Y9: 0 | Z9: 0 | AA9: 0 | AB9: 0 | AC9: 0 | AD9: 0 | AE9: 0 | AF9: 0 | AG9: 0 | AH9: 0 | AI9: 0 | AJ9: 0 | AK9: 0 | AL9: 0 | AM9: 0 | AN9: 0 | AO9: 0 | AP9: 0 | AQ9: 0
C10: Old Asset Debt Interest | D10: =D8*Old_Plant_Rate -> 0 | E10: 0 | F10: 0 | G10: 0 | H10: 0 | I10: 0 | J10: 0 | K10: 0 | L10: 0 | M10: 0 | N10: 0 | O10: 0 | P10: 0 | Q10: 0 | R10: 0 | S10: 0 | T10: 0 | U10: 0 | V10: 0 | W10: 0 | X10: 0 | Y10: 0 | Z10: 0 | AA10: 0 | AB10: 0 | AC10: 0 | AD10: 0 | AE10: 0 | AF10: 0 | AG10: 0 | AH10: 0 | AI10: 0 | AJ10: 0 | AK10: 0 | AL10: 0 | AM10: 0 | AN10: 0 | AO10: 0 | AP10: 0 | AQ10: 0
C11: Old Asset Equity Balance | D11: =D$4-D8 -> 0 | E11: =E$4-E8 -> 0 | F11: 0 | G11: 0 | H11: 0 | I11: 0 | J11: 0 | K11: 0 | L11: 0 | M11: 0 | N11: 0 | O11: 0 | P11: 0 | Q11: 0 | R11: 0 | S11: 0 | T11: 0 | U11: 0 | V11: 0 | W11: 0 | X11: 0 | Y11: 0 | Z11: 0 | AA11: 0 | AB11: 0 | AC11: 0 | AD11: 0 | AE11: 0 | AF11: 0 | AG11: 0 | AH11: 0 | AI11: 0 | AJ11: 0 | AK11: 0 | AL11: 0 | AM11: 0 | AN11: 0 | AO11: 0 | AP11: 0 | AQ11: 0
C12: Old Asset Equity Margin | D12: =D$6-D10 -> 0 | E12: =E$6-E10 -> 0 | F12: 0 | G12: 0 | H12: 0 | I12: 0 | J12: 0 | K12: 0 | L12: 0 | M12: 0 | N12: 0 | O12: 0 | P12: 0 | Q12: 0 | R12: 0 | S12: 0 | T12: 0 | U12: 0 | V12: 0 | W12: 0 | X12: 0 | Y12: 0 | Z12: 0 | AA12: 0 | AB12: 0 | AC12: 0 | AD12: 0 | AE12: 0 | AF12: 0 | AG12: 0 | AH12: 0 | AI12: 0 | AJ12: 0 | AK12: 0 | AL12: 0 | AM12: 0 | AN12: 0 | AO12: 0 | AP12: 0 | AQ12: 0
B13: Old Asset Costs and Financing with Refinancing | C13: NPB | D13: =IF(D$2<=Years_Until_New_Asset_Operation,Fossil_Plant_Balance- SUM($C$14:C$14),IF(D$2=Years_Until_New_Asset_Operation+1,(Fossil_Plant_Balance- SUM($C$14:C$14))*0,C13-C14)) -> 0 | E13: =IF(E$2<=Years_Until_New_Asset_Operation,Fossil_Plant_Balance- SUM($C$14:D$14),IF(E$2=Years_Until_New_Asset_Operation+1,(Fossil_Plant_Balance- SUM($C$14:D$14))*0,D13-D14)) -> 0 | F13: =IF(F$2<=Years_Until_New_Asset_Operation,Fossil_Plant_Balance- SUM($C$14:E$14),IF(F$2=Years_Until_New_Asset_Operation+1,(Fossil_Plant_Balance- SUM($C$14:E$14))*0,E13-E14)) -> 0 | G13: =IF(G$2<=Years_Until_New_Asset_Operation,Fossil_Plant_Balance- SUM($C$14:F$14),IF(G$2=Years_Until_New_Asset_Operation+1,(Fossil_Plant_Balance- SUM($C$14:F$14))*0,F13-F14)) -> 0 | H13: =IF(H$2<=Years_Until_New_Asset_Operation,Fossil_Plant_Balance- SUM($C$14:G$14),IF(H$2=Years_Until_New_Asset_Operation+1,(Fossil_Plant_Balance- SUM($C$14:G$14))*0,G13-G14)) -> 0 | I13: =IF(I$2<=Years_Until_New_Asset_Operation,Fossil_Plant_Balance- SUM($C$14:H$14),IF(I$2=Years_Until_New_Asset_Operation+1,(Fossil_Plant_Balance- SUM($C$14:H$14))*0,H13-H14)) -> 0 | J13: =IF(J$2<=Years_Until_New_Asset_Operation,Fossil_Plant_Balance- SUM($C$14:I$14),IF(J$2=Years_Until_New_Asset_Operation+1,(Fossil_Plant_Balance- SUM($C$14:I$14))*0,I13-I14)) -> 0 | K13: =IF(K$2<=Years_Until_New_Asset_Operation,Fossil_Plant_Balance- SUM($C$14:J$14),IF(K$2=Years_Until_New_Asset_Operation+1,(Fossil_Plant_Balance- SUM($C$14:J$14))*0,J13-J14)) -> 0 | L13: =IF(L$2<=Years_Until_New_Asset_Operation,Fossil_Plant_Balance- SUM($C$14:K$14),IF(L$2=Years_Until_New_Asset_Operation+1,(Fossil_Plant_Balance- SUM($C$14:K$14))*0,K13-K14)) -> 0 | M13: =IF(M$2<=Years_Until_New_Asset_Operation,Fossil_Plant_Balance- SUM($C$14:L$14),IF(M$2=Years_Until_New_Asset_Operation+1,(Fossil_Plant_Balance- SUM($C$14:L$14))*0,L13-L14)) -> 0 | N13: =IF(N$2<=Years_Until_New_Asset_Operation,Fossil_Plant_Balance- SUM($C$14:M$14),IF(N$2=Years_Until_New_Asset_Operation+1,(Fossil_Plant_Balance- SUM($C$14:M$14))*0,M13-M14)) -> 0 | O13: =IF(O$2<=Years_Until_New_Asset_Operation,Fossil_Plant_Balance- SUM($C$14:N$14),IF(O$2=Years_Until_New_Asset_Operation+1,(Fossil_Plant_Balance- SUM($C$14:N$14))*0,N13-N14)) -> 0 | P13: =IF(P$2<=Years_Until_New_Asset_Operation,Fossil_Plant_Balance- SUM($C$14:O$14),IF(P$2=Years_Until_New_Asset_Operation+1,(Fossil_Plant_Balance- SUM($C$14:O$14))*0,O13-O14)) -> 0 | Q13: =IF(Q$2<=Years_Until_New_Asset_Operation,Fossil_Plant_Balance- SUM($C$14:P$14),IF(Q$2=Years_Until_New_Asset_Operation+1,(Fossil_Plant_Balance- SUM($C$14:P$14))*0,P13-P14)) -> 0 | R13: =IF(R$2<=Years_Until_New_Asset_Operation,Fossil_Plant_Balance- SUM($C$14:Q$14),IF(R$2=Years_Until_New_Asset_Operation+1,(Fossil_Plant_Balance- SUM($C$14:Q$14))*0,Q13-Q14)) -> 0 | S13: =IF(S$2<=Years_Until_New_Asset_Operation,Fossil_Plant_Balance- SUM($C$14:R$14),IF(S$2=Years_Until_New_Asset_Operation+1,(Fossil_Plant_Balance- SUM($C$14:R$14))*0,R13-R14)) -> 0 | T13: =IF(T$2<=Years_Until_New_Asset_Operation,Fossil_Plant_Balance- SUM($C$14:S$14),IF(T$2=Years_Until_New_Asset_Operation+1,(Fossil_Plant_Balance- SUM($C$14:S$14))*0,S13-S14)) -> 0 | U13: =IF(U$2<=Years_Until_New_Asset_Operation,Fossil_Plant_Balance- SUM($C$14:T$14),IF(U$2=Years_Until_New_Asset_Operation+1,(Fossil_Plant_Balance- SUM($C$14:T$14))*0,T13-T14)) -> 0 | V13: =IF(V$2<=Years_Until_New_Asset_Operation,Fossil_Plant_Balance- SUM($C$14:U$14),IF(V$2=Years_Until_New_Asset_Operation+1,(Fossil_Plant_Balance- SUM($C$14:U$14))*0,U13-U14)) -> 0 | W13: =IF(W$2<=Years_Until_New_Asset_Operation,Fossil_Plant_Balance- SUM($C$14:V$14),IF(W$2=Years_Until_New_Asset_Operation+1,(Fossil_Plant_Balance- SUM($C$14:V$14))*0,V13-V14)) -> 0 | X13: =IF(X$2<=Years_Until_New_Asset_Operation,Fossil_Plant_Balance- SUM($C$14:W$14),IF(X$2=Years_Until_New_Asset_Operation+1,(Fossil_Plant_Balance- SUM($C$14:W$14))*0,W13-W14)) -> 0 | Y13: =IF(Y$2<=Years_Until_New_Asset_Operation,Fossil_Plant_Balance- SUM($C$14:X$14),IF(Y$2=Years_Until_New_Asset_Operation+1,(Fossil_Plant_Balance- SUM($C$14:X$14))*0,X13-X14)) -> 0 | Z13: =IF(Z$2<=Years_Until_New_Asset_Operation,Fossil_Plant_Balance- SUM($C$14:Y$14),IF(Z$2=Years_Until_New_Asset_Operation+1,(Fossil_Plant_Balance- SUM($C$14:Y$14))*0,Y13-Y14)) -> 0 | AA13: =IF(AA$2<=Years_Until_New_Asset_Operation,Fossil_Plant_Balance- SUM($C$14:Z$14),IF(AA$2=Years_Until_New_Asset_Operation+1,(Fossil_Plant_Balance- SUM($C$14:Z$14))*0,Z13-Z14)) -> 0 | AB13: =IF(AB$2<=Years_Until_New_Asset_Operation,Fossil_Plant_Balance- SUM($C$14:AA$14),IF(AB$2=Years_Until_New_Asset_Operation+1,(Fossil_Plant_Balance- SUM($C$14:AA$14))*0,AA13-AA14)) -> 0 | AC13: =IF(AC$2<=Years_Until_New_Asset_Operation,Fossil_Plant_Balance- SUM($C$14:AB$14),IF(AC$2=Years_Until_New_Asset_Operation+1,(Fossil_Plant_Balance- SUM($C$14:AB$14))*0,AB13-AB14)) -> 0 | AD13: =IF(AD$2<=Years_Until_New_Asset_Operation,Fossil_Plant_Balance- SUM($C$14:AC$14),IF(AD$2=Years_Until_New_Asset_Operation+1,(Fossil_Plant_Balance- SUM($C$14:AC$14))*0,AC13-AC14)) -> 0 | AE13: =IF(AE$2<=Years_Until_New_Asset_Operation,Fossil_Plant_Balance- SUM($C$14:AD$14),IF(AE$2=Years_Until_New_Asset_Operation+1,(Fossil_Plant_Balance- SUM($C$14:AD$14))*0,AD13-AD14)) -> 0 | AF13: =IF(AF$2<=Years_Until_New_Asset_Operation,Fossil_Plant_Balance- SUM($C$14:AE$14),IF(AF$2=Years_Until_New_Asset_Operation+1,(Fossil_Plant_Balance- SUM($C$14:AE$14))*0,AE13-AE14)) -> 0 | AG13: =IF(AG$2<=Years_Until_New_Asset_Operation,Fossil_Plant_Balance- SUM($C$14:AF$14),IF(AG$2=Years_Until_New_Asset_Operation+1,(Fossil_Plant_Balance- SUM($C$14:AF$14))*0,AF13-AF14)) -> 0 | AH13: =IF(AH$2<=Years_Until_New_Asset_Operation,Fossil_Plant_Balance- SUM($C$14:AG$14),IF(AH$2=Years_Until_New_Asset_Operation+1,(Fossil_Plant_Balance- SUM($C$14:AG$14))*0,AG13-AG14)) -> 0 | AI13: =IF(AI$2<=Years_Until_New_Asset_Operation,Fossil_Plant_Balance- SUM($C$14:AH$14),IF(AI$2=Years_Until_New_Asset_Operation+1,(Fossil_Plant_Balance- SUM($C$14:AH$14))*0,AH13-AH14)) -> 0 | AJ13: =IF(AJ$2<=Years_Until_New_Asset_Operation,Fossil_Plant_Balance- SUM($C$14:AI$14),IF(AJ$2=Years_Until_New_Asset_Operation+1,(Fossil_Plant_Balance- SUM($C$14:AI$14))*0,AI13-AI14)) -> 0 | AK13: =IF(AK$2<=Years_Until_New_Asset_Operation,Fossil_Plant_Balance- SUM($C$14:AJ$14),IF(AK$2=Years_Until_New_Asset_Operation+1,(Fossil_Plant_Balance- SUM($C$14:AJ$14))*0,AJ13-AJ14)) -> 0 | AL13: =IF(AL$2<=Years_Until_New_Asset_Operation,Fossil_Plant_Balance- SUM($C$14:AK$14),IF(AL$2=Years_Until_New_Asset_Operation+1,(Fossil_Plant_Balance- SUM($C$14:AK$14))*0,AK13-AK14)) -> 0 | AM13: =IF(AM$2<=Years_Until_New_Asset_Operation,Fossil_Plant_Balance- SUM($C$14:AL$14),IF(AM$2=Years_Until_New_Asset_Operation+1,(Fossil_Plant_Balance- SUM($C$14:AL$14))*0,AL13-AL14)) -> 0 | AN13: =IF(AN$2<=Years_Until_New_Asset_Operation,Fossil_Plant_Balance- SUM($C$14:AM$14),IF(AN$2=Years_Until_New_Asset_Operation+1,(Fossil_Plant_Balance- SUM($C$14:AM$14))*0,AM13-AM14)) -> 0 | AO13: =IF(AO$2<=Years_Until_New_Asset_Operation,Fossil_Plant_Balance- SUM($C$14:AN$14),IF(AO$2=Years_Until_New_Asset_Operation+1,(Fossil_Plant_Balance- SUM($C$14:AN$14))*0,AN13-AN14)) -> 0 | AP13: =IF(AP$2<=Years_Until_New_Asset_Operation,Fossil_Plant_Balance- SUM($C$14:AO$14),IF(AP$2=Years_Until_New_Asset_Operation+1,(Fossil_Plant_Balance- SUM($C$14:AO$14))*0,AO13-AO14)) -> 0 | AQ13: =IF(AQ$2<=Years_Until_New_Asset_Operation,Fossil_Plant_Balance- SUM($C$14:AP$14),IF(AQ$2=Years_Until_New_Asset_Operation+1,(Fossil_Plant_Balance- SUM($C$14:AP$14))*0,AP13-AP14)) -> 0
C14: Depreciation | D14: =IF(D$2<=Years_Until_New_Asset_Operation,Fossil_Plant_Balance/Fossil_Remaining_Life,IF(D$2<=Fossil_Remaining_Life,INDEX($C$13:D$13,Years_Until_New_Asset_Operation+2)/(Fossil_Remaining_Life-Years_Until_New_Asset_Operation),0)) -> 0 | E14: =IF(E$2<=Years_Until_New_Asset_Operation,Fossil_Plant_Balance/Fossil_Remaining_Life,IF(E$2<=Fossil_Remaining_Life,INDEX($C$13:E$13,Years_Until_New_Asset_Operation+2)/(Fossil_Remaining_Life-Years_Until_New_Asset_Operation),0)) -> 0 | F14: =IF(F$2<=Years_Until_New_Asset_Operation,Fossil_Plant_Balance/Fossil_Remaining_Life,IF(F$2<=Fossil_Remaining_Life,INDEX($C$13:F$13,Years_Until_New_Asset_Operation+2)/(Fossil_Remaining_Life-Years_Until_New_Asset_Operation),0)) -> 0 | G14: =IF(G$2<=Years_Until_New_Asset_Operation,Fossil_Plant_Balance/Fossil_Remaining_Life,IF(G$2<=Fossil_Remaining_Life,INDEX($C$13:G$13,Years_Until_New_Asset_Operation+2)/(Fossil_Remaining_Life-Years_Until_New_Asset_Operation),0)) -> 0 | H14: =IF(H$2<=Years_Until_New_Asset_Operation,Fossil_Plant_Balance/Fossil_Remaining_Life,IF(H$2<=Fossil_Remaining_Life,INDEX($C$13:H$13,Years_Until_New_Asset_Operation+2)/(Fossil_Remaining_Life-Years_Until_New_Asset_Operation),0)) -> 0 | I14: =IF(I$2<=Years_Until_New_Asset_Operation,Fossil_Plant_Balance/Fossil_Remaining_Life,IF(I$2<=Fossil_Remaining_Life,INDEX($C$13:I$13,Years_Until_New_Asset_Operation+2)/(Fossil_Remaining_Life-Years_Until_New_Asset_Operation),0)) -> 0 | J14: =IF(J$2<=Years_Until_New_Asset_Operation,Fossil_Plant_Balance/Fossil_Remaining_Life,IF(J$2<=Fossil_Remaining_Life,INDEX($C$13:J$13,Years_Until_New_Asset_Operation+2)/(Fossil_Remaining_Life-Years_Until_New_Asset_Operation),0)) -> 0 | K14: =IF(K$2<=Years_Until_New_Asset_Operation,Fossil_Plant_Balance/Fossil_Remaining_Life,IF(K$2<=Fossil_Remaining_Life,INDEX($C$13:K$13,Years_Until_New_Asset_Operation+2)/(Fossil_Remaining_Life-Years_Until_New_Asset_Operation),0)) -> 0 | L14: =IF(L$2<=Years_Until_New_Asset_Operation,Fossil_Plant_Balance/Fossil_Remaining_Life,IF(L$2<=Fossil_Remaining_Life,INDEX($C$13:L$13,Years_Until_New_Asset_Operation+2)/(Fossil_Remaining_Life-Years_Until_New_Asset_Operation),0)) -> 0 | M14: =IF(M$2<=Years_Until_New_Asset_Operation,Fossil_Plant_Balance/Fossil_Remaining_Life,IF(M$2<=Fossil_Remaining_Life,INDEX($C$13:M$13,Years_Until_New_Asset_Operation+2)/(Fossil_Remaining_Life-Years_Until_New_Asset_Operation),0)) -> 0 | N14: =IF(N$2<=Years_Until_New_Asset_Operation,Fossil_Plant_Balance/Fossil_Remaining_Life,IF(N$2<=Fossil_Remaining_Life,INDEX($C$13:N$13,Years_Until_New_Asset_Operation+2)/(Fossil_Remaining_Life-Years_Until_New_Asset_Operation),0)) -> 0 | O14: =IF(O$2<=Years_Until_New_Asset_Operation,Fossil_Plant_Balance/Fossil_Remaining_Life,IF(O$2<=Fossil_Remaining_Life,INDEX($C$13:O$13,Years_Until_New_Asset_Operation+2)/(Fossil_Remaining_Life-Years_Until_New_Asset_Operation),0)) -> 0 | P14: =IF(P$2<=Years_Until_New_Asset_Operation,Fossil_Plant_Balance/Fossil_Remaining_Life,IF(P$2<=Fossil_Remaining_Life,INDEX($C$13:P$13,Years_Until_New_Asset_Operation+2)/(Fossil_Remaining_Life-Years_Until_New_Asset_Operation),0)) -> 0 | Q14: =IF(Q$2<=Years_Until_New_Asset_Operation,Fossil_Plant_Balance/Fossil_Remaining_Life,IF(Q$2<=Fossil_Remaining_Life,INDEX($C$13:Q$13,Years_Until_New_Asset_Operation+2)/(Fossil_Remaining_Life-Years_Until_New_Asset_Operation),0)) -> 0 | R14: =IF(R$2<=Years_Until_New_Asset_Operation,Fossil_Plant_Balance/Fossil_Remaining_Life,IF(R$2<=Fossil_Remaining_Life,INDEX($C$13:R$13,Years_Until_New_Asset_Operation+2)/(Fossil_Remaining_Life-Years_Until_New_Asset_Operation),0)) -> 0 | S14: =IF(S$2<=Years_Until_New_Asset_Operation,Fossil_Plant_Balance/Fossil_Remaining_Life,IF(S$2<=Fossil_Remaining_Life,INDEX($C$13:S$13,Years_Until_New_Asset_Operation+2)/(Fossil_Remaining_Life-Years_Until_New_Asset_Operation),0)) -> 0 | T14: =IF(T$2<=Years_Until_New_Asset_Operation,Fossil_Plant_Balance/Fossil_Remaining_Life,IF(T$2<=Fossil_Remaining_Life,INDEX($C$13:T$13,Years_Until_New_Asset_Operation+2)/(Fossil_Remaining_Life-Years_Until_New_Asset_Operation),0)) -> 0 | U14: =IF(U$2<=Years_Until_New_Asset_Operation,Fossil_Plant_Balance/Fossil_Remaining_Life,IF(U$2<=Fossil_Remaining_Life,INDEX($C$13:U$13,Years_Until_New_Asset_Operation+2)/(Fossil_Remaining_Life-Years_Until_New_Asset_Operation),0)) -> 0 | V14: =IF(V$2<=Years_Until_New_Asset_Operation,Fossil_Plant_Balance/Fossil_Remaining_Life,IF(V$2<=Fossil_Remaining_Life,INDEX($C$13:V$13,Years_Until_New_Asset_Operation+2)/(Fossil_Remaining_Life-Years_Until_New_Asset_Operation),0)) -> 0 | W14: =IF(W$2<=Years_Until_New_Asset_Operation,Fossil_Plant_Balance/Fossil_Remaining_Life,IF(W$2<=Fossil_Remaining_Life,INDEX($C$13:W$13,Years_Until_New_Asset_Operation+2)/(Fossil_Remaining_Life-Years_Until_New_Asset_Operation),0)) -> 0 | X14: =IF(X$2<=Years_Until_New_Asset_Operation,Fossil_Plant_Balance/Fossil_Remaining_Life,IF(X$2<=Fossil_Remaining_Life,INDEX($C$13:X$13,Years_Until_New_Asset_Operation+2)/(Fossil_Remaining_Life-Years_Until_New_Asset_Operation),0)) -> 0 | Y14: =IF(Y$2<=Years_Until_New_Asset_Operation,Fossil_Plant_Balance/Fossil_Remaining_Life,IF(Y$2<=Fossil_Remaining_Life,INDEX($C$13:Y$13,Years_Until_New_Asset_Operation+2)/(Fossil_Remaining_Life-Years_Until_New_Asset_Operation),0)) -> 0 | Z14: =IF(Z$2<=Years_Until_New_Asset_Operation,Fossil_Plant_Balance/Fossil_Remaining_Life,IF(Z$2<=Fossil_Remaining_Life,INDEX($C$13:Z$13,Years_Until_New_Asset_Operation+2)/(Fossil_Remaining_Life-Years_Until_New_Asset_Operation),0)) -> 0 | AA14: =IF(AA$2<=Years_Until_New_Asset_Operation,Fossil_Plant_Balance/Fossil_Remaining_Life,IF(AA$2<=Fossil_Remaining_Life,INDEX($C$13:AA$13,Years_Until_New_Asset_Operation+2)/(Fossil_Remaining_Life-Years_Until_New_Asset_Operation),0)) -> 0 | AB14: =IF(AB$2<=Years_Until_New_Asset_Operation,Fossil_Plant_Balance/Fossil_Remaining_Life,IF(AB$2<=Fossil_Remaining_Life,INDEX($C$13:AB$13,Years_Until_New_Asset_Operation+2)/(Fossil_Remaining_Life-Years_Until_New_Asset_Operation),0)) -> 0 | AC14: =IF(AC$2<=Years_Until_New_Asset_Operation,Fossil_Plant_Balance/Fossil_Remaining_Life,IF(AC$2<=Fossil_Remaining_Life,INDEX($C$13:AC$13,Years_Until_New_Asset_Operation+2)/(Fossil_Remaining_Life-Years_Until_New_Asset_Operation),0)) -> 0 | AD14: =IF(AD$2<=Years_Until_New_Asset_Operation,Fossil_Plant_Balance/Fossil_Remaining_Life,IF(AD$2<=Fossil_Remaining_Life,INDEX($C$13:AD$13,Years_Until_New_Asset_Operation+2)/(Fossil_Remaining_Life-Years_Until_New_Asset_Operation),0)) -> 0 | AE14: =IF(AE$2<=Years_Until_New_Asset_Operation,Fossil_Plant_Balance/Fossil_Remaining_Life,IF(AE$2<=Fossil_Remaining_Life,INDEX($C$13:AE$13,Years_Until_New_Asset_Operation+2)/(Fossil_Remaining_Life-Years_Until_New_Asset_Operation),0)) -> 0 | AF14: =IF(AF$2<=Years_Until_New_Asset_Operation,Fossil_Plant_Balance/Fossil_Remaining_Life,IF(AF$2<=Fossil_Remaining_Life,INDEX($C$13:AF$13,Years_Until_New_Asset_Operation+2)/(Fossil_Remaining_Life-Years_Until_New_Asset_Operation),0)) -> 0 | AG14: =IF(AG$2<=Years_Until_New_Asset_Operation,Fossil_Plant_Balance/Fossil_Remaining_Life,IF(AG$2<=Fossil_Remaining_Life,INDEX($C$13:AG$13,Years_Until_New_Asset_Operation+2)/(Fossil_Remaining_Life-Years_Until_New_Asset_Operation),0)) -> 0 | AH14: =IF(AH$2<=Years_Until_New_Asset_Operation,Fossil_Plant_Balance/Fossil_Remaining_Life,IF(AH$2<=Fossil_Remaining_Life,INDEX($C$13:AH$13,Years_Until_New_Asset_Operation+2)/(Fossil_Remaining_Life-Years_Until_New_Asset_Operation),0)) -> 0 | AI14: =IF(AI$2<=Years_Until_New_Asset_Operation,Fossil_Plant_Balance/Fossil_Remaining_Life,IF(AI$2<=Fossil_Remaining_Life,INDEX($C$13:AI$13,Years_Until_New_Asset_Operation+2)/(Fossil_Remaining_Life-Years_Until_New_Asset_Operation),0)) -> 0 | AJ14: =IF(AJ$2<=Years_Until_New_Asset_Operation,Fossil_Plant_Balance/Fossil_Remaining_Life,IF(AJ$2<=Fossil_Remaining_Life,INDEX($C$13:AJ$13,Years_Until_New_Asset_Operation+2)/(Fossil_Remaining_Life-Years_Until_New_Asset_Operation),0)) -> 0 | AK14: =IF(AK$2<=Years_Until_New_Asset_Operation,Fossil_Plant_Balance/Fossil_Remaining_Life,IF(AK$2<=Fossil_Remaining_Life,INDEX($C$13:AK$13,Years_Until_New_Asset_Operation+2)/(Fossil_Remaining_Life-Years_Until_New_Asset_Operation),0)) -> 0 | AL14: =IF(AL$2<=Years_Until_New_Asset_Operation,Fossil_Plant_Balance/Fossil_Remaining_Life,IF(AL$2<=Fossil_Remaining_Life,INDEX($C$13:AL$13,Years_Until_New_Asset_Operation+2)/(Fossil_Remaining_Life-Years_Until_New_Asset_Operation),0)) -> 0 | AM14: =IF(AM$2<=Years_Until_New_Asset_Operation,Fossil_Plant_Balance/Fossil_Remaining_Life,IF(AM$2<=Fossil_Remaining_Life,INDEX($C$13:AM$13,Years_Until_New_Asset_Operation+2)/(Fossil_Remaining_Life-Years_Until_New_Asset_Operation),0)) -> 0 | AN14: =IF(AN$2<=Years_Until_New_Asset_Operation,Fossil_Plant_Balance/Fossil_Remaining_Life,IF(AN$2<=Fossil_Remaining_Life,INDEX($C$13:AN$13,Years_Until_New_Asset_Operation+2)/(Fossil_Remaining_Life-Years_Until_New_Asset_Operation),0)) -> 0 | AO14: =IF(AO$2<=Years_Until_New_Asset_Operation,Fossil_Plant_Balance/Fossil_Remaining_Life,IF(AO$2<=Fossil_Remaining_Life,INDEX($C$13:AO$13,Years_Until_New_Asset_Operation+2)/(Fossil_Remaining_Life-Years_Until_New_Asset_Operation),0)) -> 0 | AP14: =IF(AP$2<=Years_Until_New_Asset_Operation,Fossil_Plant_Balance/Fossil_Remaining_Life,IF(AP$2<=Fossil_Remaining_Life,INDEX($C$13:AP$13,Years_Until_New_Asset_Operation+2)/(Fossil_Remaining_Life-Years_Until_New_Asset_Operation),0)) -> 0 | AQ14: =IF(AQ$2<=Years_Until_New_Asset_Operation,Fossil_Plant_Balance/Fossil_Remaining_Life,IF(AQ$2<=Fossil_Remaining_Life,INDEX($C$13:AQ$13,Years_Until_New_Asset_Operation+2)/(Fossil_Remaining_Life-Years_Until_New_Asset_Operation),0)) -> 0
C15: Return | D15: =D13*Cur_ROR/(1-Tax_Rate) -> 0 | E15: 0 | F15: 0 | G15: 0 | H15: 0 | I15: 0 | J15: 0 | K15: 0 | L15: 0 | M15: 0 | N15: 0 | O15: 0 | P15: 0 | Q15: 0 | R15: 0 | S15: 0 | T15: 0 | U15: 0 | V15: 0 | W15: 0 | X15: 0 | Y15: 0 | Z15: 0 | AA15: 0 | AB15: 0 | AC15: 0 | AD15: 0 | AE15: 0 | AF15: 0 | AG15: 0 | AH15: 0 | AI15: 0 | AJ15: 0 | AK15: 0 | AL15: 0 | AM15: 0 | AN15: 0 | AO15: 0 | AP15: 0 | AQ15: 0
C16: Refinancing Loan Balance | D16: =IF(D$3=Build_Year+1,Refinancing_Required,IF(D$3>Build_Year+1,IF(IFERROR(ABS(C16-C17),0)<0.1,0,C16-C17),0)) -> 0 | E16: 0 | F16: 0 | G16: 0 | H16: 0 | I16: 0 | J16: 0 | K16: 0 | L16: 0 | M16: 0 | N16: 0 | O16: 0 | P16: 0 | Q16: 0 | R16: 0 | S16: 0 | T16: 0 | U16: 0 | V16: 0 | W16: 0 | X16: 0 | Y16: 0 | Z16: 0 | AA16: 0 | AB16: 0 | AC16: 0 | AD16: 0 | AE16: 0 | AF16: 0 | AG16: 0 | AH16: 0 | AI16: 0 | AJ16: 0 | AK16: 0 | AL16: 0 | AM16: 0 | AN16: 0 | AO16: 0 | AP16: 0 | AQ16: 0
C17: Refinancing Principal | D17: =IF(D$2>Years_Until_New_Asset_Operation,IF(D$2<=Refinancing_Tenor+Years_Until_New_Asset_Operation,-PPMT(Refinancing_Rate,D$2-Years_Until_New_Asset_Operation,Refinancing_Tenor,(Prepayment_Penalty+INDEX($D$13:D$13,Years_Until_New_Asset_Operation)-INDEX($D$14:D$14,Years_Until_New_Asset_Operation))),0),0) -> 0 | E17: =IF(E$2>Years_Until_New_Asset_Operation,IF(E$2<=Refinancing_Tenor+Years_Until_New_Asset_Operation,-PPMT(Refinancing_Rate,E$2-Years_Until_New_Asset_Operation,Refinancing_Tenor,(Prepayment_Penalty+INDEX($D$13:E$13,Years_Until_New_Asset_Operation)-INDEX($D$14:E$14,Years_Until_New_Asset_Operation))),0),0) -> 0 | F17: =IF(F$2>Years_Until_New_Asset_Operation,IF(F$2<=Refinancing_Tenor+Years_Until_New_Asset_Operation,-PPMT(Refinancing_Rate,F$2-Years_Until_New_Asset_Operation,Refinancing_Tenor,(Prepayment_Penalty+INDEX($D$13:F$13,Years_Until_New_Asset_Operation)-INDEX($D$14:F$14,Years_Until_New_Asset_Operation))),0),0) -> 0 | G17: =IF(G$2>Years_Until_New_Asset_Operation,IF(G$2<=Refinancing_Tenor+Years_Until_New_Asset_Operation,-PPMT(Refinancing_Rate,G$2-Years_Until_New_Asset_Operation,Refinancing_Tenor,(Prepayment_Penalty+INDEX($D$13:G$13,Years_Until_New_Asset_Operation)-INDEX($D$14:G$14,Years_Until_New_Asset_Operation))),0),0) -> 0 | H17: =IF(H$2>Years_Until_New_Asset_Operation,IF(H$2<=Refinancing_Tenor+Years_Until_New_Asset_Operation,-PPMT(Refinancing_Rate,H$2-Years_Until_New_Asset_Operation,Refinancing_Tenor,(Prepayment_Penalty+INDEX($D$13:H$13,Years_Until_New_Asset_Operation)-INDEX($D$14:H$14,Years_Until_New_Asset_Operation))),0),0) -> 0 | I17: =IF(I$2>Years_Until_New_Asset_Operation,IF(I$2<=Refinancing_Tenor+Years_Until_New_Asset_Operation,-PPMT(Refinancing_Rate,I$2-Years_Until_New_Asset_Operation,Refinancing_Tenor,(Prepayment_Penalty+INDEX($D$13:I$13,Years_Until_New_Asset_Operation)-INDEX($D$14:I$14,Years_Until_New_Asset_Operation))),0),0) -> 0 | J17: =IF(J$2>Years_Until_New_Asset_Operation,IF(J$2<=Refinancing_Tenor+Years_Until_New_Asset_Operation,-PPMT(Refinancing_Rate,J$2-Years_Until_New_Asset_Operation,Refinancing_Tenor,(Prepayment_Penalty+INDEX($D$13:J$13,Years_Until_New_Asset_Operation)-INDEX($D$14:J$14,Years_Until_New_Asset_Operation))),0),0) -> 0 | K17: =IF(K$2>Years_Until_New_Asset_Operation,IF(K$2<=Refinancing_Tenor+Years_Until_New_Asset_Operation,-PPMT(Refinancing_Rate,K$2-Years_Until_New_Asset_Operation,Refinancing_Tenor,(Prepayment_Penalty+INDEX($D$13:K$13,Years_Until_New_Asset_Operation)-INDEX($D$14:K$14,Years_Until_New_Asset_Operation))),0),0) -> 0 | L17: =IF(L$2>Years_Until_New_Asset_Operation,IF(L$2<=Refinancing_Tenor+Years_Until_New_Asset_Operation,-PPMT(Refinancing_Rate,L$2-Years_Until_New_Asset_Operation,Refinancing_Tenor,(Prepayment_Penalty+INDEX($D$13:L$13,Years_Until_New_Asset_Operation)-INDEX($D$14:L$14,Years_Until_New_Asset_Operation))),0),0) -> 0 | M17: =IF(M$2>Years_Until_New_Asset_Operation,IF(M$2<=Refinancing_Tenor+Years_Until_New_Asset_Operation,-PPMT(Refinancing_Rate,M$2-Years_Until_New_Asset_Operation,Refinancing_Tenor,(Prepayment_Penalty+INDEX($D$13:M$13,Years_Until_New_Asset_Operation)-INDEX($D$14:M$14,Years_Until_New_Asset_Operation))),0),0) -> 0 | N17: =IF(N$2>Years_Until_New_Asset_Operation,IF(N$2<=Refinancing_Tenor+Years_Until_New_Asset_Operation,-PPMT(Refinancing_Rate,N$2-Years_Until_New_Asset_Operation,Refinancing_Tenor,(Prepayment_Penalty+INDEX($D$13:N$13,Years_Until_New_Asset_Operation)-INDEX($D$14:N$14,Years_Until_New_Asset_Operation))),0),0) -> 0 | O17: =IF(O$2>Years_Until_New_Asset_Operation,IF(O$2<=Refinancing_Tenor+Years_Until_New_Asset_Operation,-PPMT(Refinancing_Rate,O$2-Years_Until_New_Asset_Operation,Refinancing_Tenor,(Prepayment_Penalty+INDEX($D$13:O$13,Years_Until_New_Asset_Operation)-INDEX($D$14:O$14,Years_Until_New_Asset_Operation))),0),0) -> 0 | P17: =IF(P$2>Years_Until_New_Asset_Operation,IF(P$2<=Refinancing_Tenor+Years_Until_New_Asset_Operation,-PPMT(Refinancing_Rate,P$2-Years_Until_New_Asset_Operation,Refinancing_Tenor,(Prepayment_Penalty+INDEX($D$13:P$13,Years_Until_New_Asset_Operation)-INDEX($D$14:P$14,Years_Until_New_Asset_Operation))),0),0) -> 0 | Q17: =IF(Q$2>Years_Until_New_Asset_Operation,IF(Q$2<=Refinancing_Tenor+Years_Until_New_Asset_Operation,-PPMT(Refinancing_Rate,Q$2-Years_Until_New_Asset_Operation,Refinancing_Tenor,(Prepayment_Penalty+INDEX($D$13:Q$13,Years_Until_New_Asset_Operation)-INDEX($D$14:Q$14,Years_Until_New_Asset_Operation))),0),0) -> 0 | R17: =IF(R$2>Years_Until_New_Asset_Operation,IF(R$2<=Refinancing_Tenor+Years_Until_New_Asset_Operation,-PPMT(Refinancing_Rate,R$2-Years_Until_New_Asset_Operation,Refinancing_Tenor,(Prepayment_Penalty+INDEX($D$13:R$13,Years_Until_New_Asset_Operation)-INDEX($D$14:R$14,Years_Until_New_Asset_Operation))),0),0) -> 0 | S17: =IF(S$2>Years_Until_New_Asset_Operation,IF(S$2<=Refinancing_Tenor+Years_Until_New_Asset_Operation,-PPMT(Refinancing_Rate,S$2-Years_Until_New_Asset_Operation,Refinancing_Tenor,(Prepayment_Penalty+INDEX($D$13:S$13,Years_Until_New_Asset_Operation)-INDEX($D$14:S$14,Years_Until_New_Asset_Operation))),0),0) -> 0 | T17: =IF(T$2>Years_Until_New_Asset_Operation,IF(T$2<=Refinancing_Tenor+Years_Until_New_Asset_Operation,-PPMT(Refinancing_Rate,T$2-Years_Until_New_Asset_Operation,Refinancing_Tenor,(Prepayment_Penalty+INDEX($D$13:T$13,Years_Until_New_Asset_Operation)-INDEX($D$14:T$14,Years_Until_New_Asset_Operation))),0),0) -> 0 | U17: =IF(U$2>Years_Until_New_Asset_Operation,IF(U$2<=Refinancing_Tenor+Years_Until_New_Asset_Operation,-PPMT(Refinancing_Rate,U$2-Years_Until_New_Asset_Operation,Refinancing_Tenor,(Prepayment_Penalty+INDEX($D$13:U$13,Years_Until_New_Asset_Operation)-INDEX($D$14:U$14,Years_Until_New_Asset_Operation))),0),0) -> 0 | V17: =IF(V$2>Years_Until_New_Asset_Operation,IF(V$2<=Refinancing_Tenor+Years_Until_New_Asset_Operation,-PPMT(Refinancing_Rate,V$2-Years_Until_New_Asset_Operation,Refinancing_Tenor,(Prepayment_Penalty+INDEX($D$13:V$13,Years_Until_New_Asset_Operation)-INDEX($D$14:V$14,Years_Until_New_Asset_Operation))),0),0) -> 0 | W17: =IF(W$2>Years_Until_New_Asset_Operation,IF(W$2<=Refinancing_Tenor+Years_Until_New_Asset_Operation,-PPMT(Refinancing_Rate,W$2-Years_Until_New_Asset_Operation,Refinancing_Tenor,(Prepayment_Penalty+INDEX($D$13:W$13,Years_Until_New_Asset_Operation)-INDEX($D$14:W$14,Years_Until_New_Asset_Operation))),0),0) -> 0 | X17: =IF(X$2>Years_Until_New_Asset_Operation,IF(X$2<=Refinancing_Tenor+Years_Until_New_Asset_Operation,-PPMT(Refinancing_Rate,X$2-Years_Until_New_Asset_Operation,Refinancing_Tenor,(Prepayment_Penalty+INDEX($D$13:X$13,Years_Until_New_Asset_Operation)-INDEX($D$14:X$14,Years_Until_New_Asset_Operation))),0),0) -> 0 | Y17: =IF(Y$2>Years_Until_New_Asset_Operation,IF(Y$2<=Refinancing_Tenor+Years_Until_New_Asset_Operation,-PPMT(Refinancing_Rate,Y$2-Years_Until_New_Asset_Operation,Refinancing_Tenor,(Prepayment_Penalty+INDEX($D$13:Y$13,Years_Until_New_Asset_Operation)-INDEX($D$14:Y$14,Years_Until_New_Asset_Operation))),0),0) -> 0 | Z17: =IF(Z$2>Years_Until_New_Asset_Operation,IF(Z$2<=Refinancing_Tenor+Years_Until_New_Asset_Operation,-PPMT(Refinancing_Rate,Z$2-Years_Until_New_Asset_Operation,Refinancing_Tenor,(Prepayment_Penalty+INDEX($D$13:Z$13,Years_Until_New_Asset_Operation)-INDEX($D$14:Z$14,Years_Until_New_Asset_Operation))),0),0) -> 0 | AA17: =IF(AA$2>Years_Until_New_Asset_Operation,IF(AA$2<=Refinancing_Tenor+Years_Until_New_Asset_Operation,-PPMT(Refinancing_Rate,AA$2-Years_Until_New_Asset_Operation,Refinancing_Tenor,(Prepayment_Penalty+INDEX($D$13:AA$13,Years_Until_New_Asset_Operation)-INDEX($D$14:AA$14,Years_Until_New_Asset_Operation))),0),0) -> 0 | AB17: =IF(AB$2>Years_Until_New_Asset_Operation,IF(AB$2<=Refinancing_Tenor+Years_Until_New_Asset_Operation,-PPMT(Refinancing_Rate,AB$2-Years_Until_New_Asset_Operation,Refinancing_Tenor,(Prepayment_Penalty+INDEX($D$13:AB$13,Years_Until_New_Asset_Operation)-INDEX($D$14:AB$14,Years_Until_New_Asset_Operation))),0),0) -> 0 | AC17: =IF(AC$2>Years_Until_New_Asset_Operation,IF(AC$2<=Refinancing_Tenor+Years_Until_New_Asset_Operation,-PPMT(Refinancing_Rate,AC$2-Years_Until_New_Asset_Operation,Refinancing_Tenor,(Prepayment_Penalty+INDEX($D$13:AC$13,Years_Until_New_Asset_Operation)-INDEX($D$14:AC$14,Years_Until_New_Asset_Operation))),0),0) -> 0 | AD17: =IF(AD$2>Years_Until_New_Asset_Operation,IF(AD$2<=Refinancing_Tenor+Years_Until_New_Asset_Operation,-PPMT(Refinancing_Rate,AD$2-Years_Until_New_Asset_Operation,Refinancing_Tenor,(Prepayment_Penalty+INDEX($D$13:AD$13,Years_Until_New_Asset_Operation)-INDEX($D$14:AD$14,Years_Until_New_Asset_Operation))),0),0) -> 0 | AE17: =IF(AE$2>Years_Until_New_Asset_Operation,IF(AE$2<=Refinancing_Tenor+Years_Until_New_Asset_Operation,-PPMT(Refinancing_Rate,AE$2-Years_Until_New_Asset_Operation,Refinancing_Tenor,(Prepayment_Penalty+INDEX($D$13:AE$13,Years_Until_New_Asset_Operation)-INDEX($D$14:AE$14,Years_Until_New_Asset_Operation))),0),0) -> 0 | AF17: =IF(AF$2>Years_Until_New_Asset_Operation,IF(AF$2<=Refinancing_Tenor+Years_Until_New_Asset_Operation,-PPMT(Refinancing_Rate,AF$2-Years_Until_New_Asset_Operation,Refinancing_Tenor,(Prepayment_Penalty+INDEX($D$13:AF$13,Years_Until_New_Asset_Operation)-INDEX($D$14:AF$14,Years_Until_New_Asset_Operation))),0),0) -> 0 | AG17: =IF(AG$2>Years_Until_New_Asset_Operation,IF(AG$2<=Refinancing_Tenor+Years_Until_New_Asset_Operation,-PPMT(Refinancing_Rate,AG$2-Years_Until_New_Asset_Operation,Refinancing_Tenor,(Prepayment_Penalty+INDEX($D$13:AG$13,Years_Until_New_Asset_Operation)-INDEX($D$14:AG$14,Years_Until_New_Asset_Operation))),0),0) -> 0 | AH17: =IF(AH$2>Years_Until_New_Asset_Operation,IF(AH$2<=Refinancing_Tenor+Years_Until_New_Asset_Operation,-PPMT(Refinancing_Rate,AH$2-Years_Until_New_Asset_Operation,Refinancing_Tenor,(Prepayment_Penalty+INDEX($D$13:AH$13,Years_Until_New_Asset_Operation)-INDEX($D$14:AH$14,Years_Until_New_Asset_Operation))),0),0) -> 0 | AI17: =IF(AI$2>Years_Until_New_Asset_Operation,IF(AI$2<=Refinancing_Tenor+Years_Until_New_Asset_Operation,-PPMT(Refinancing_Rate,AI$2-Years_Until_New_Asset_Operation,Refinancing_Tenor,(Prepayment_Penalty+INDEX($D$13:AI$13,Years_Until_New_Asset_Operation)-INDEX($D$14:AI$14,Years_Until_New_Asset_Operation))),0),0) -> 0 | AJ17: =IF(AJ$2>Years_Until_New_Asset_Operation,IF(AJ$2<=Refinancing_Tenor+Years_Until_New_Asset_Operation,-PPMT(Refinancing_Rate,AJ$2-Years_Until_New_Asset_Operation,Refinancing_Tenor,(Prepayment_Penalty+INDEX($D$13:AJ$13,Years_Until_New_Asset_Operation)-INDEX($D$14:AJ$14,Years_Until_New_Asset_Operation))),0),0) -> 0 | AK17: =IF(AK$2>Years_Until_New_Asset_Operation,IF(AK$2<=Refinancing_Tenor+Years_Until_New_Asset_Operation,-PPMT(Refinancing_Rate,AK$2-Years_Until_New_Asset_Operation,Refinancing_Tenor,(Prepayment_Penalty+INDEX($D$13:AK$13,Years_Until_New_Asset_Operation)-INDEX($D$14:AK$14,Years_Until_New_Asset_Operation))),0),0) -> 0 | AL17: =IF(AL$2>Years_Until_New_Asset_Operation,IF(AL$2<=Refinancing_Tenor+Years_Until_New_Asset_Operation,-PPMT(Refinancing_Rate,AL$2-Years_Until_New_Asset_Operation,Refinancing_Tenor,(Prepayment_Penalty+INDEX($D$13:AL$13,Years_Until_New_Asset_Operation)-INDEX($D$14:AL$14,Years_Until_New_Asset_Operation))),0),0) -> 0 | AM17: =IF(AM$2>Years_Until_New_Asset_Operation,IF(AM$2<=Refinancing_Tenor+Years_Until_New_Asset_Operation,-PPMT(Refinancing_Rate,AM$2-Years_Until_New_Asset_Operation,Refinancing_Tenor,(Prepayment_Penalty+INDEX($D$13:AM$13,Years_Until_New_Asset_Operation)-INDEX($D$14:AM$14,Years_Until_New_Asset_Operation))),0),0) -> 0 | AN17: =IF(AN$2>Years_Until_New_Asset_Operation,IF(AN$2<=Refinancing_Tenor+Years_Until_New_Asset_Operation,-PPMT(Refinancing_Rate,AN$2-Years_Until_New_Asset_Operation,Refinancing_Tenor,(Prepayment_Penalty+INDEX($D$13:AN$13,Years_Until_New_Asset_Operation)-INDEX($D$14:AN$14,Years_Until_New_Asset_Operation))),0),0) -> 0 | AO17: =IF(AO$2>Years_Until_New_Asset_Operation,IF(AO$2<=Refinancing_Tenor+Years_Until_New_Asset_Operation,-PPMT(Refinancing_Rate,AO$2-Years_Until_New_Asset_Operation,Refinancing_Tenor,(Prepayment_Penalty+INDEX($D$13:AO$13,Years_Until_New_Asset_Operation)-INDEX($D$14:AO$14,Years_Until_New_Asset_Operation))),0),0) -> 0 | AP17: =IF(AP$2>Years_Until_New_Asset_Operation,IF(AP$2<=Refinancing_Tenor+Years_Until_New_Asset_Operation,-PPMT(Refinancing_Rate,AP$2-Years_Until_New_Asset_Operation,Refinancing_Tenor,(Prepayment_Penalty+INDEX($D$13:AP$13,Years_Until_New_Asset_Operation)-INDEX($D$14:AP$14,Years_Until_New_Asset_Operation))),0),0) -> 0 | AQ17: =IF(AQ$2>Years_Until_New_Asset_Operation,IF(AQ$2<=Refinancing_Tenor+Years_Until_New_Asset_Operation,-PPMT(Refinancing_Rate,AQ$2-Years_Until_New_Asset_Operation,Refinancing_Tenor,(Prepayment_Penalty+INDEX($D$13:AQ$13,Years_Until_New_Asset_Operation)-INDEX($D$14:AQ$14,Years_Until_New_Asset_Operation))),0),0) -> 0
C18: Refinancing Interest | D18: =IF(D$2>Years_Until_New_Asset_Operation,IF(D$2<=Refinancing_Tenor+Years_Until_New_Asset_Operation,-IPMT(Refinancing_Rate,D$2-Years_Until_New_Asset_Operation,Refinancing_Tenor,(Prepayment_Penalty+INDEX($D$13:D$13,Years_Until_New_Asset_Operation)-INDEX($D$14:D$14,Years_Until_New_Asset_Operation))),0),0) -> 0 | E18: =IF(E$2>Years_Until_New_Asset_Operation,IF(E$2<=Refinancing_Tenor+Years_Until_New_Asset_Operation,-IPMT(Refinancing_Rate,E$2-Years_Until_New_Asset_Operation,Refinancing_Tenor,(Prepayment_Penalty+INDEX($D$13:E$13,Years_Until_New_Asset_Operation)-INDEX($D$14:E$14,Years_Until_New_Asset_Operation))),0),0) -> 0 | F18: =IF(F$2>Years_Until_New_Asset_Operation,IF(F$2<=Refinancing_Tenor+Years_Until_New_Asset_Operation,-IPMT(Refinancing_Rate,F$2-Years_Until_New_Asset_Operation,Refinancing_Tenor,(Prepayment_Penalty+INDEX($D$13:F$13,Years_Until_New_Asset_Operation)-INDEX($D$14:F$14,Years_Until_New_Asset_Operation))),0),0) -> 0 | G18: =IF(G$2>Years_Until_New_Asset_Operation,IF(G$2<=Refinancing_Tenor+Years_Until_New_Asset_Operation,-IPMT(Refinancing_Rate,G$2-Years_Until_New_Asset_Operation,Refinancing_Tenor,(Prepayment_Penalty+INDEX($D$13:G$13,Years_Until_New_Asset_Operation)-INDEX($D$14:G$14,Years_Until_New_Asset_Operation))),0),0) -> 0 | H18: =IF(H$2>Years_Until_New_Asset_Operation,IF(H$2<=Refinancing_Tenor+Years_Until_New_Asset_Operation,-IPMT(Refinancing_Rate,H$2-Years_Until_New_Asset_Operation,Refinancing_Tenor,(Prepayment_Penalty+INDEX($D$13:H$13,Years_Until_New_Asset_Operation)-INDEX($D$14:H$14,Years_Until_New_Asset_Operation))),0),0) -> 0 | I18: =IF(I$2>Years_Until_New_Asset_Operation,IF(I$2<=Refinancing_Tenor+Years_Until_New_Asset_Operation,-IPMT(Refinancing_Rate,I$2-Years_Until_New_Asset_Operation,Refinancing_Tenor,(Prepayment_Penalty+INDEX($D$13:I$13,Years_Until_New_Asset_Operation)-INDEX($D$14:I$14,Years_Until_New_Asset_Operation))),0),0) -> 0 | J18: =IF(J$2>Years_Until_New_Asset_Operation,IF(J$2<=Refinancing_Tenor+Years_Until_New_Asset_Operation,-IPMT(Refinancing_Rate,J$2-Years_Until_New_Asset_Operation,Refinancing_Tenor,(Prepayment_Penalty+INDEX($D$13:J$13,Years_Until_New_Asset_Operation)-INDEX($D$14:J$14,Years_Until_New_Asset_Operation))),0),0) -> 0 | K18: =IF(K$2>Years_Until_New_Asset_Operation,IF(K$2<=Refinancing_Tenor+Years_Until_New_Asset_Operation,-IPMT(Refinancing_Rate,K$2-Years_Until_New_Asset_Operation,Refinancing_Tenor,(Prepayment_Penalty+INDEX($D$13:K$13,Years_Until_New_Asset_Operation)-INDEX($D$14:K$14,Years_Until_New_Asset_Operation))),0),0) -> 0 | L18: =IF(L$2>Years_Until_New_Asset_Operation,IF(L$2<=Refinancing_Tenor+Years_Until_New_Asset_Operation,-IPMT(Refinancing_Rate,L$2-Years_Until_New_Asset_Operation,Refinancing_Tenor,(Prepayment_Penalty+INDEX($D$13:L$13,Years_Until_New_Asset_Operation)-INDEX($D$14:L$14,Years_Until_New_Asset_Operation))),0),0) -> 0 | M18: =IF(M$2>Years_Until_New_Asset_Operation,IF(M$2<=Refinancing_Tenor+Years_Until_New_Asset_Operation,-IPMT(Refinancing_Rate,M$2-Years_Until_New_Asset_Operation,Refinancing_Tenor,(Prepayment_Penalty+INDEX($D$13:M$13,Years_Until_New_Asset_Operation)-INDEX($D$14:M$14,Years_Until_New_Asset_Operation))),0),0) -> 0 | N18: =IF(N$2>Years_Until_New_Asset_Operation,IF(N$2<=Refinancing_Tenor+Years_Until_New_Asset_Operation,-IPMT(Refinancing_Rate,N$2-Years_Until_New_Asset_Operation,Refinancing_Tenor,(Prepayment_Penalty+INDEX($D$13:N$13,Years_Until_New_Asset_Operation)-INDEX($D$14:N$14,Years_Until_New_Asset_Operation))),0),0) -> 0 | O18: =IF(O$2>Years_Until_New_Asset_Operation,IF(O$2<=Refinancing_Tenor+Years_Until_New_Asset_Operation,-IPMT(Refinancing_Rate,O$2-Years_Until_New_Asset_Operation,Refinancing_Tenor,(Prepayment_Penalty+INDEX($D$13:O$13,Years_Until_New_Asset_Operation)-INDEX($D$14:O$14,Years_Until_New_Asset_Operation))),0),0) -> 0 | P18: =IF(P$2>Years_Until_New_Asset_Operation,IF(P$2<=Refinancing_Tenor+Years_Until_New_Asset_Operation,-IPMT(Refinancing_Rate,P$2-Years_Until_New_Asset_Operation,Refinancing_Tenor,(Prepayment_Penalty+INDEX($D$13:P$13,Years_Until_New_Asset_Operation)-INDEX($D$14:P$14,Years_Until_New_Asset_Operation))),0),0) -> 0 | Q18: =IF(Q$2>Years_Until_New_Asset_Operation,IF(Q$2<=Refinancing_Tenor+Years_Until_New_Asset_Operation,-IPMT(Refinancing_Rate,Q$2-Years_Until_New_Asset_Operation,Refinancing_Tenor,(Prepayment_Penalty+INDEX($D$13:Q$13,Years_Until_New_Asset_Operation)-INDEX($D$14:Q$14,Years_Until_New_Asset_Operation))),0),0) -> 0 | R18: =IF(R$2>Years_Until_New_Asset_Operation,IF(R$2<=Refinancing_Tenor+Years_Until_New_Asset_Operation,-IPMT(Refinancing_Rate,R$2-Years_Until_New_Asset_Operation,Refinancing_Tenor,(Prepayment_Penalty+INDEX($D$13:R$13,Years_Until_New_Asset_Operation)-INDEX($D$14:R$14,Years_Until_New_Asset_Operation))),0),0) -> 0 | S18: =IF(S$2>Years_Until_New_Asset_Operation,IF(S$2<=Refinancing_Tenor+Years_Until_New_Asset_Operation,-IPMT(Refinancing_Rate,S$2-Years_Until_New_Asset_Operation,Refinancing_Tenor,(Prepayment_Penalty+INDEX($D$13:S$13,Years_Until_New_Asset_Operation)-INDEX($D$14:S$14,Years_Until_New_Asset_Operation))),0),0) -> 0 | T18: =IF(T$2>Years_Until_New_Asset_Operation,IF(T$2<=Refinancing_Tenor+Years_Until_New_Asset_Operation,-IPMT(Refinancing_Rate,T$2-Years_Until_New_Asset_Operation,Refinancing_Tenor,(Prepayment_Penalty+INDEX($D$13:T$13,Years_Until_New_Asset_Operation)-INDEX($D$14:T$14,Years_Until_New_Asset_Operation))),0),0) -> 0 | U18: =IF(U$2>Years_Until_New_Asset_Operation,IF(U$2<=Refinancing_Tenor+Years_Until_New_Asset_Operation,-IPMT(Refinancing_Rate,U$2-Years_Until_New_Asset_Operation,Refinancing_Tenor,(Prepayment_Penalty+INDEX($D$13:U$13,Years_Until_New_Asset_Operation)-INDEX($D$14:U$14,Years_Until_New_Asset_Operation))),0),0) -> 0 | V18: =IF(V$2>Years_Until_New_Asset_Operation,IF(V$2<=Refinancing_Tenor+Years_Until_New_Asset_Operation,-IPMT(Refinancing_Rate,V$2-Years_Until_New_Asset_Operation,Refinancing_Tenor,(Prepayment_Penalty+INDEX($D$13:V$13,Years_Until_New_Asset_Operation)-INDEX($D$14:V$14,Years_Until_New_Asset_Operation))),0),0) -> 0 | W18: =IF(W$2>Years_Until_New_Asset_Operation,IF(W$2<=Refinancing_Tenor+Years_Until_New_Asset_Operation,-IPMT(Refinancing_Rate,W$2-Years_Until_New_Asset_Operation,Refinancing_Tenor,(Prepayment_Penalty+INDEX($D$13:W$13,Years_Until_New_Asset_Operation)-INDEX($D$14:W$14,Years_Until_New_Asset_Operation))),0),0) -> 0 | X18: =IF(X$2>Years_Until_New_Asset_Operation,IF(X$2<=Refinancing_Tenor+Years_Until_New_Asset_Operation,-IPMT(Refinancing_Rate,X$2-Years_Until_New_Asset_Operation,Refinancing_Tenor,(Prepayment_Penalty+INDEX($D$13:X$13,Years_Until_New_Asset_Operation)-INDEX($D$14:X$14,Years_Until_New_Asset_Operation))),0),0) -> 0 | Y18: =IF(Y$2>Years_Until_New_Asset_Operation,IF(Y$2<=Refinancing_Tenor+Years_Until_New_Asset_Operation,-IPMT(Refinancing_Rate,Y$2-Years_Until_New_Asset_Operation,Refinancing_Tenor,(Prepayment_Penalty+INDEX($D$13:Y$13,Years_Until_New_Asset_Operation)-INDEX($D$14:Y$14,Years_Until_New_Asset_Operation))),0),0) -> 0 | Z18: =IF(Z$2>Years_Until_New_Asset_Operation,IF(Z$2<=Refinancing_Tenor+Years_Until_New_Asset_Operation,-IPMT(Refinancing_Rate,Z$2-Years_Until_New_Asset_Operation,Refinancing_Tenor,(Prepayment_Penalty+INDEX($D$13:Z$13,Years_Until_New_Asset_Operation)-INDEX($D$14:Z$14,Years_Until_New_Asset_Operation))),0),0) -> 0 | AA18: =IF(AA$2>Years_Until_New_Asset_Operation,IF(AA$2<=Refinancing_Tenor+Years_Until_New_Asset_Operation,-IPMT(Refinancing_Rate,AA$2-Years_Until_New_Asset_Operation,Refinancing_Tenor,(Prepayment_Penalty+INDEX($D$13:AA$13,Years_Until_New_Asset_Operation)-INDEX($D$14:AA$14,Years_Until_New_Asset_Operation))),0),0) -> 0 | AB18: =IF(AB$2>Years_Until_New_Asset_Operation,IF(AB$2<=Refinancing_Tenor+Years_Until_New_Asset_Operation,-IPMT(Refinancing_Rate,AB$2-Years_Until_New_Asset_Operation,Refinancing_Tenor,(Prepayment_Penalty+INDEX($D$13:AB$13,Years_Until_New_Asset_Operation)-INDEX($D$14:AB$14,Years_Until_New_Asset_Operation))),0),0) -> 0 | AC18: =IF(AC$2>Years_Until_New_Asset_Operation,IF(AC$2<=Refinancing_Tenor+Years_Until_New_Asset_Operation,-IPMT(Refinancing_Rate,AC$2-Years_Until_New_Asset_Operation,Refinancing_Tenor,(Prepayment_Penalty+INDEX($D$13:AC$13,Years_Until_New_Asset_Operation)-INDEX($D$14:AC$14,Years_Until_New_Asset_Operation))),0),0) -> 0 | AD18: =IF(AD$2>Years_Until_New_Asset_Operation,IF(AD$2<=Refinancing_Tenor+Years_Until_New_Asset_Operation,-IPMT(Refinancing_Rate,AD$2-Years_Until_New_Asset_Operation,Refinancing_Tenor,(Prepayment_Penalty+INDEX($D$13:AD$13,Years_Until_New_Asset_Operation)-INDEX($D$14:AD$14,Years_Until_New_Asset_Operation))),0),0) -> 0 | AE18: =IF(AE$2>Years_Until_New_Asset_Operation,IF(AE$2<=Refinancing_Tenor+Years_Until_New_Asset_Operation,-IPMT(Refinancing_Rate,AE$2-Years_Until_New_Asset_Operation,Refinancing_Tenor,(Prepayment_Penalty+INDEX($D$13:AE$13,Years_Until_New_Asset_Operation)-INDEX($D$14:AE$14,Years_Until_New_Asset_Operation))),0),0) -> 0 | AF18: =IF(AF$2>Years_Until_New_Asset_Operation,IF(AF$2<=Refinancing_Tenor+Years_Until_New_Asset_Operation,-IPMT(Refinancing_Rate,AF$2-Years_Until_New_Asset_Operation,Refinancing_Tenor,(Prepayment_Penalty+INDEX($D$13:AF$13,Years_Until_New_Asset_Operation)-INDEX($D$14:AF$14,Years_Until_New_Asset_Operation))),0),0) -> 0 | AG18: =IF(AG$2>Years_Until_New_Asset_Operation,IF(AG$2<=Refinancing_Tenor+Years_Until_New_Asset_Operation,-IPMT(Refinancing_Rate,AG$2-Years_Until_New_Asset_Operation,Refinancing_Tenor,(Prepayment_Penalty+INDEX($D$13:AG$13,Years_Until_New_Asset_Operation)-INDEX($D$14:AG$14,Years_Until_New_Asset_Operation))),0),0) -> 0 | AH18: =IF(AH$2>Years_Until_New_Asset_Operation,IF(AH$2<=Refinancing_Tenor+Years_Until_New_Asset_Operation,-IPMT(Refinancing_Rate,AH$2-Years_Until_New_Asset_Operation,Refinancing_Tenor,(Prepayment_Penalty+INDEX($D$13:AH$13,Years_Until_New_Asset_Operation)-INDEX($D$14:AH$14,Years_Until_New_Asset_Operation))),0),0) -> 0 | AI18: =IF(AI$2>Years_Until_New_Asset_Operation,IF(AI$2<=Refinancing_Tenor+Years_Until_New_Asset_Operation,-IPMT(Refinancing_Rate,AI$2-Years_Until_New_Asset_Operation,Refinancing_Tenor,(Prepayment_Penalty+INDEX($D$13:AI$13,Years_Until_New_Asset_Operation)-INDEX($D$14:AI$14,Years_Until_New_Asset_Operation))),0),0) -> 0 | AJ18: =IF(AJ$2>Years_Until_New_Asset_Operation,IF(AJ$2<=Refinancing_Tenor+Years_Until_New_Asset_Operation,-IPMT(Refinancing_Rate,AJ$2-Years_Until_New_Asset_Operation,Refinancing_Tenor,(Prepayment_Penalty+INDEX($D$13:AJ$13,Years_Until_New_Asset_Operation)-INDEX($D$14:AJ$14,Years_Until_New_Asset_Operation))),0),0) -> 0 | AK18: =IF(AK$2>Years_Until_New_Asset_Operation,IF(AK$2<=Refinancing_Tenor+Years_Until_New_Asset_Operation,-IPMT(Refinancing_Rate,AK$2-Years_Until_New_Asset_Operation,Refinancing_Tenor,(Prepayment_Penalty+INDEX($D$13:AK$13,Years_Until_New_Asset_Operation)-INDEX($D$14:AK$14,Years_Until_New_Asset_Operation))),0),0) -> 0 | AL18: =IF(AL$2>Years_Until_New_Asset_Operation,IF(AL$2<=Refinancing_Tenor+Years_Until_New_Asset_Operation,-IPMT(Refinancing_Rate,AL$2-Years_Until_New_Asset_Operation,Refinancing_Tenor,(Prepayment_Penalty+INDEX($D$13:AL$13,Years_Until_New_Asset_Operation)-INDEX($D$14:AL$14,Years_Until_New_Asset_Operation))),0),0) -> 0 | AM18: =IF(AM$2>Years_Until_New_Asset_Operation,IF(AM$2<=Refinancing_Tenor+Years_Until_New_Asset_Operation,-IPMT(Refinancing_Rate,AM$2-Years_Until_New_Asset_Operation,Refinancing_Tenor,(Prepayment_Penalty+INDEX($D$13:AM$13,Years_Until_New_Asset_Operation)-INDEX($D$14:AM$14,Years_Until_New_Asset_Operation))),0),0) -> 0 | AN18: =IF(AN$2>Years_Until_New_Asset_Operation,IF(AN$2<=Refinancing_Tenor+Years_Until_New_Asset_Operation,-IPMT(Refinancing_Rate,AN$2-Years_Until_New_Asset_Operation,Refinancing_Tenor,(Prepayment_Penalty+INDEX($D$13:AN$13,Years_Until_New_Asset_Operation)-INDEX($D$14:AN$14,Years_Until_New_Asset_Operation))),0),0) -> 0 | AO18: =IF(AO$2>Years_Until_New_Asset_Operation,IF(AO$2<=Refinancing_Tenor+Years_Until_New_Asset_Operation,-IPMT(Refinancing_Rate,AO$2-Years_Until_New_Asset_Operation,Refinancing_Tenor,(Prepayment_Penalty+INDEX($D$13:AO$13,Years_Until_New_Asset_Operation)-INDEX($D$14:AO$14,Years_Until_New_Asset_Operation))),0),0) -> 0 | AP18: =IF(AP$2>Years_Until_New_Asset_Operation,IF(AP$2<=Refinancing_Tenor+Years_Until_New_Asset_Operation,-IPMT(Refinancing_Rate,AP$2-Years_Until_New_Asset_Operation,Refinancing_Tenor,(Prepayment_Penalty+INDEX($D$13:AP$13,Years_Until_New_Asset_Operation)-INDEX($D$14:AP$14,Years_Until_New_Asset_Operation))),0),0) -> 0 | AQ18: =IF(AQ$2>Years_Until_New_Asset_Operation,IF(AQ$2<=Refinancing_Tenor+Years_Until_New_Asset_Operation,-IPMT(Refinancing_Rate,AQ$2-Years_Until_New_Asset_Operation,Refinancing_Tenor,(Prepayment_Penalty+INDEX($D$13:AQ$13,Years_Until_New_Asset_Operation)-INDEX($D$14:AQ$14,Years_Until_New_Asset_Operation))),0),0) -> 0
C19: Ratepayer Costs | D19: =D14+D15+D17+D18 -> 0 | E19: 0 | F19: 0 | G19: 0 | H19: 0 | I19: 0 | J19: 0 | K19: 0 | L19: 0 | M19: 0 | N19: 0 | O19: 0 | P19: 0 | Q19: 0 | R19: 0 | S19: 0 | T19: 0 | U19: 0 | V19: 0 | W19: 0 | X19: 0 | Y19: 0 | Z19: 0 | AA19: 0 | AB19: 0 | AC19: 0 | AD19: 0 | AE19: 0 | AF19: 0 | AG19: 0 | AH19: 0 | AI19: 0 | AJ19: 0 | AK19: 0 | AL19: 0 | AM19: 0 | AN19: 0 | AO19: 0 | AP19: 0 | AQ19: 0
C20: Old Asset Debt Balance | D20: =D$4*(1-Old_Plant_Equity_Ratio)*IF(D$3>=Build_Year+1,IF(Refi_Use_of_Proceeds="Recycled into New Assets",1,0),1) -> 0 | E20: 0 | F20: 0 | G20: 0 | H20: 0 | I20: 0 | J20: 0 | K20: 0 | L20: 0 | M20: 0 | N20: 0 | O20: 0 | P20: 0 | Q20: 0 | R20: 0 | S20: 0 | T20: 0 | U20: 0 | V20: 0 | W20: 0 | X20: 0 | Y20: 0 | Z20: 0 | AA20: 0 | AB20: 0 | AC20: 0 | AD20: 0 | AE20: 0 | AF20: 0 | AG20: 0 | AH20: 0 | AI20: 0 | AJ20: 0 | AK20: 0 | AL20: 0 | AM20: 0 | AN20: 0 | AO20: 0 | AP20: 0 | AQ20: 0
C21: Old Asset Debt Principal | D21: =D$5*(1-Old_Plant_Equity_Ratio)*IF(D$3>=Build_Year+1,IF(Refi_Use_of_Proceeds="Recycled into New Assets",1,0),1) -> 0 | E21: 0 | F21: 0 | G21: 0 | H21: 0 | I21: 0 | J21: 0 | K21: 0 | L21: 0 | M21: 0 | N21: 0 | O21: 0 | P21: 0 | Q21: 0 | R21: 0 | S21: 0 | T21: 0 | U21: 0 | V21: 0 | W21: 0 | X21: 0 | Y21: 0 | Z21: 0 | AA21: 0 | AB21: 0 | AC21: 0 | AD21: 0 | AE21: 0 | AF21: 0 | AG21: 0 | AH21: 0 | AI21: 0 | AJ21: 0 | AK21: 0 | AL21: 0 | AM21: 0 | AN21: 0 | AO21: 0 | AP21: 0 | AQ21: 0
C22: Old Asset Debt Interest | D22: =D20*Old_Plant_Rate -> 0 | E22: 0 | F22: 0 | G22: 0 | H22: 0 | I22: 0 | J22: 0 | K22: 0 | L22: 0 | M22: 0 | N22: 0 | O22: 0 | P22: 0 | Q22: 0 | R22: 0 | S22: 0 | T22: 0 | U22: 0 | V22: 0 | W22: 0 | X22: 0 | Y22: 0 | Z22: 0 | AA22: 0 | AB22: 0 | AC22: 0 | AD22: 0 | AE22: 0 | AF22: 0 | AG22: 0 | AH22: 0 | AI22: 0 | AJ22: 0 | AK22: 0 | AL22: 0 | AM22: 0 | AN22: 0 | AO22: 0 | AP22: 0 | AQ22: 0
C23: Old Asset Equity Balance | D23: =D$4*Old_Plant_Equity_Ratio*IF(D$3>=Build_Year+1,0,1) -> 0 | E23: 0 | F23: 0 | G23: 0 | H23: 0 | I23: 0 | J23: 0 | K23: 0 | L23: 0 | M23: 0 | N23: 0 | O23: 0 | P23: 0 | Q23: 0 | R23: 0 | S23: 0 | T23: 0 | U23: 0 | V23: 0 | W23: 0 | X23: 0 | Y23: 0 | Z23: 0 | AA23: 0 | AB23: 0 | AC23: 0 | AD23: 0 | AE23: 0 | AF23: 0 | AG23: 0 | AH23: 0 | AI23: 0 | AJ23: 0 | AK23: 0 | AL23: 0 | AM23: 0 | AN23: 0 | AO23: 0 | AP23: 0 | AQ23: 0
C24: Old Asset Equity Margin | D24: =(D$6-D22)*IF(D$3>=Build_Year+1,0,1) -> 0 | E24: 0 | F24: 0 | G24: 0 | H24: 0 | I24: 0 | J24: 0 | K24: 0 | L24: 0 | M24: 0 | N24: 0 | O24: 0 | P24: 0 | Q24: 0 | R24: 0 | S24: 0 | T24: 0 | U24: 0 | V24: 0 | W24: 0 | X24: 0 | Y24: 0 | Z24: 0 | AA24: 0 | AB24: 0 | AC24: 0 | AD24: 0 | AE24: 0 | AF24: 0 | AG24: 0 | AH24: 0 | AI24: 0 | AJ24: 0 | AK24: 0 | AL24: 0 | AM24: 0 | AN24: 0 | AO24: 0 | AP24: 0 | AQ24: 0
B25: Loans and Grants | C25: Loan Balance (USDA 0%) | D25: =IF(D$3=Build_Year+1,New_Asset_Debt*USDA_0_Frac,IF(D$3>Build_Year+1,IF(IFERROR(ABS(C25-C26),0)<0.1,0,C25-C26),0)) -> 0 | E25: 0 | F25: 0 | G25: 0 | H25: 0 | I25: 0 | J25: 0 | K25: 0 | L25: 0 | M25: 0 | N25: 0 | O25: 0 | P25: 0 | Q25: 0 | R25: 0 | S25: 0 | T25: 0 | U25: 0 | V25: 0 | W25: 0 | X25: 0 | Y25: 0 | Z25: 0 | AA25: 0 | AB25: 0 | AC25: 0 | AD25: 0 | AE25: 0 | AF25: 0 | AG25: 0 | AH25: 0 | AI25: 0 | AJ25: 0 | AK25: 0 | AL25: 0 | AM25: 0 | AN25: 0 | AO25: 0 | AP25: 0 | AQ25: 0
C26: Loan Principal (USDA 0%) | D26: =IF(AND(D$3>Build_Year,D$3<=Build_Year+USDA_0_Loan_Tenor),New_Asset_Debt*USDA_0_Frac/USDA_0_Loan_Tenor,0) -> 0 | E26: 0 | F26: 0 | G26: 0 | H26: 0 | I26: 0 | J26: 0 | K26: 0 | L26: 0 | M26: 0 | N26: 0 | O26: 0 | P26: 0 | Q26: 0 | R26: 0 | S26: 0 | T26: 0 | U26: 0 | V26: 0 | W26: 0 | X26: 0 | Y26: 0 | Z26: 0 | AA26: 0 | AB26: 0 | AC26: 0 | AD26: 0 | AE26: 0 | AF26: 0 | AG26: 0 | AH26: 0 | AI26: 0 | AJ26: 0 | AK26: 0 | AL26: 0 | AM26: 0 | AN26: 0 | AO26: 0 | AP26: 0 | AQ26: 0
C27: Loan Interest (USDA 0%) | D27: =0 -> 0 | E27: =0 -> 0 | F27: =0 -> 0 | G27: =0 -> 0 | H27: =0 -> 0 | I27: =0 -> 0 | J27: =0 -> 0 | K27: =0 -> 0 | L27: =0 -> 0 | M27: =0 -> 0 | N27: =0 -> 0 | O27: =0 -> 0 | P27: =0 -> 0 | Q27: =0 -> 0 | R27: =0 -> 0 | S27: =0 -> 0 | T27: =0 -> 0 | U27: =0 -> 0 | V27: =0 -> 0 | W27: =0 -> 0 | X27: =0 -> 0 | Y27: =0 -> 0 | Z27: =0 -> 0 | AA27: =0 -> 0 | AB27: =0 -> 0 | AC27: =0 -> 0 | AD27: =0 -> 0 | AE27: =0 -> 0 | AF27: =0 -> 0 | AG27: =0 -> 0 | AH27: =0 -> 0 | AI27: =0 -> 0 | AJ27: =0 -> 0 | AK27: =0 -> 0 | AL27: =0 -> 0 | AM27: =0 -> 0 | AN27: =0 -> 0 | AO27: =0 -> 0 | AP27: =0 -> 0 | AQ27: =0 -> 0
C28: Loan Balance (USDA 2%) | D28: =IF(D$3=Build_Year+1,New_Asset_Debt*USDA_2_Frac,IF(D$3>Build_Year+1,IF(IFERROR(ABS(C28-C29),0)<0.1,0,C28-C29),0)) -> 0 | E28: 0 | F28: 0 | G28: 753886010.4 | H28: 728756476.7 | I28: 703626943 | J28: 678497409.3 | K28: 653367875.6 | L28: 628238342 | M28: 603108808.3 | N28: 577979274.6 | O28: 552849740.9 | P28: 527720207.3 | Q28: 502590673.6 | R28: 477461139.9 | S28: 452331606.2 | T28: 427202072.5 | U28: 402072538.9 | V28: 376943005.2 | W28: 351813471.5 | X28: 326683937.8 | Y28: 301554404.1 | Z28: 276424870.5 | AA28: 251295336.8 | AB28: 226165803.1 | AC28: 201036269.4 | AD28: 175906735.8 | AE28: 150777202.1 | AF28: 125647668.4 | AG28: 100518134.7 | AH28: 75388601.04 | AI28: 50259067.36 | AJ28: 25129533.68 | AK28: 0 | AL28: 0 | AM28: 0 | AN28: 0 | AO28: 0 | AP28: 0 | AQ28: 0
C29: Loan Principal (USDA 2%) | D29: =IF(AND(D$3>Build_Year,D$3<=Build_Year+USDA_2_Loan_Tenor),IF(USDA_2_Amortization_Type="Mortgage Style",-PPMT(2%,D$3-Build_Year,USDA_2_Loan_Tenor,New_Asset_Debt*USDA_2_Frac),IF(USDA_2_Amortization_Type="Sculpted",MIN((D$132+D$137)/USDA_Target_MDSC-D30,D28/(Build_Year+USDA_2_Loan_Tenor+1-D$3)),(New_Asset_Debt*USDA_2_Frac)/USDA_2_Loan_Tenor)),0) -> 0 | E29: 0 | F29: 0 | G29: 25129533.68 | H29: 25129533.68 | I29: 25129533.68 | J29: 25129533.68 | K29: 25129533.68 | L29: 25129533.68 | M29: 25129533.68 | N29: 25129533.68 | O29: 25129533.68 | P29: 25129533.68 | Q29: 25129533.68 | R29: 25129533.68 | S29: 25129533.68 | T29: 25129533.68 | U29: 25129533.68 | V29: 25129533.68 | W29: 25129533.68 | X29: 25129533.68 | Y29: 25129533.68 | Z29: 25129533.68 | AA29: 25129533.68 | AB29: 25129533.68 | AC29: 25129533.68 | AD29: 25129533.68 | AE29: 25129533.68 | AF29: 25129533.68 | AG29: 25129533.68 | AH29: 25129533.68 | AI29: 25129533.68 | AJ29: 25129533.68 | AK29: 0 | AL29: 0 | AM29: 0 | AN29: 0 | AO29: 0 | AP29: 0 | AQ29: 0
C30: Loan Interest (USDA 2%) | D30: =D28*2% -> 0 | E30: =E28*2% -> 0 | F30: 0 | G30: 15077720.21 | H30: 14575129.53 | I30: 14072538.86 | J30: 13569948.19 | K30: 13067357.51 | L30: 12564766.84 | M30: 12062176.17 | N30: 11559585.49 | O30: 11056994.82 | P30: 10554404.15 | Q30: 10051813.47 | R30: 9549222.798 | S30: 9046632.124 | T30: 8544041.451 | U30: 8041450.777 | V30: 7538860.104 | W30: 7036269.43 | X30: 6533678.756 | Y30: 6031088.083 | Z30: 5528497.409 | AA30: 5025906.736 | AB30: 4523316.062 | AC30: 4020725.389 | AD30: 3518134.715 | AE30: 3015544.041 | AF30: 2512953.368 | AG30: 2010362.694 | AH30: 1507772.021 | AI30: 1005181.347 | AJ30: 502590.6736 | AK30: 0 | AL30: 0 | AM30: 0 | AN30: 0 | AO30: 0 | AP30: 0 | AQ30: 0
C31: Loan Balance (USDA Treas) | D31: =IF(D$3=Build_Year+1,New_Asset_Debt*USDA_T_Frac,IF(D$3>Build_Year+1,IF(IFERROR(ABS(C31-C32),0)<0.1,0,C31-C32),0)) -> 0 | E31: 0 | F31: 0 | G31: 0 | H31: 0 | I31: 0 | J31: 0 | K31: 0 | L31: 0 | M31: 0 | N31: 0 | O31: 0 | P31: 0 | Q31: 0 | R31: 0 | S31: 0 | T31: 0 | U31: 0 | V31: 0 | W31: 0 | X31: 0 | Y31: 0 | Z31: 0 | AA31: 0 | AB31: 0 | AC31: 0 | AD31: 0 | AE31: 0 | AF31: 0 | AG31: 0 | AH31: 0 | AI31: 0 | AJ31: 0 | AK31: 0 | AL31: 0 | AM31: 0 | AN31: 0 | AO31: 0 | AP31: 0 | AQ31: 0
C32: Loan Principal (USDA Treas) | D32: =IF(AND(D$3>Build_Year,D$3<=Build_Year+USDA_T_Loan_Tenor),IF(USDA_2_Amortization_Type="Mortgage Style",-PPMT(USDA_T_Loan_Rate,D$3-Build_Year,USDA_T_Loan_Tenor,New_Asset_Debt*USDA_T_Frac),IF(USDA_T_Amortization_Type="Sculpted",MIN((D$132+D$137)/USDA_Target_MDSC-D33,D31/(Build_Year+USDA_T_Loan_Tenor+1-D$3)),(New_Asset_Debt*USDA_T_Frac)/USDA_T_Loan_Tenor)),0) -> 0 | E32: 0 | F32: 0 | G32: 0 | H32: 0 | I32: 0 | J32: 0 | K32: 0 | L32: 0 | M32: 0 | N32: 0 | O32: 0 | P32: 0 | Q32: 0 | R32: 0 | S32: 0 | T32: 0 | U32: 0 | V32: 0 | W32: 0 | X32: 0 | Y32: 0 | Z32: 0 | AA32: 0 | AB32: 0 | AC32: 0 | AD32: 0 | AE32: 0 | AF32: 0 | AG32: 0 | AH32: 0 | AI32: 0 | AJ32: 0 | AK32: 0 | AL32: 0 | AM32: 0 | AN32: 0 | AO32: 0 | AP32: 0 | AQ32: 0
C33: Loan Interest (USDA Treas) | D33: =D31*USDA_T_Loan_Rate -> 0 | E33: 0 | F33: 0 | G33: 0 | H33: 0 | I33: 0 | J33: 0 | K33: 0 | L33: 0 | M33: 0 | N33: 0 | O33: 0 | P33: 0 | Q33: 0 | R33: 0 | S33: 0 | T33: 0 | U33: 0 | V33: 0 | W33: 0 | X33: 0 | Y33: 0 | Z33: 0 | AA33: 0 | AB33: 0 | AC33: 0 | AD33: 0 | AE33: 0 | AF33: 0 | AG33: 0 | AH33: 0 | AI33: 0 | AJ33: 0 | AK33: 0 | AL33: 0 | AM33: 0 | AN33: 0 | AO33: 0 | AP33: 0 | AQ33: 0
C34: Loan Balance (PACE) | D34: =IF(D$3=Build_Year+1,New_Asset_Debt*PACE_Frac,IF(D$3>Build_Year+1,IF(IFERROR(ABS(C34-C35),0)<0.1,0,C34-C35),0)) -> 0 | E34: 0 | F34: 0 | G34: 0 | H34: 0 | I34: 0 | J34: 0 | K34: 0 | L34: 0 | M34: 0 | N34: 0 | O34: 0 | P34: 0 | Q34: 0 | R34: 0 | S34: 0 | T34: 0 | U34: 0 | V34: 0 | W34: 0 | X34: 0 | Y34: 0 | Z34: 0 | AA34: 0 | AB34: 0 | AC34: 0 | AD34: 0 | AE34: 0 | AF34: 0 | AG34: 0 | AH34: 0 | AI34: 0 | AJ34: 0 | AK34: 0 | AL34: 0 | AM34: 0 | AN34: 0 | AO34: 0 | AP34: 0 | AQ34: 0
C35: Loan Principal (PACE) | D35: =IF(AND(D$3>Build_Year,D$3<=Build_Year+PACE_Loan_Tenor),IF(PACE_Amortization_Type="Mortgage Style",-PPMT(PACE_Loan_Rate,D$3-Build_Year,PACE_Loan_Tenor,New_Asset_Debt*PACE_Frac),IF(PACE_Amortization_Type="Sculpted",MIN((D$132+D$137)/USDA_Target_MDSC-D36,D34/(Build_Year+PACE_Loan_Tenor+1-D$3)),(New_Asset_Debt*PACE_Frac)/PACE_Loan_Tenor)),0) -> 0 | E35: 0 | F35: 0 | G35: 0 | H35: 0 | I35: 0 | J35: 0 | K35: 0 | L35: 0 | M35: 0 | N35: 0 | O35: 0 | P35: 0 | Q35: 0 | R35: 0 | S35: 0 | T35: 0 | U35: 0 | V35: 0 | W35: 0 | X35: 0 | Y35: 0 | Z35: 0 | AA35: 0 | AB35: 0 | AC35: 0 | AD35: 0 | AE35: 0 | AF35: 0 | AG35: 0 | AH35: 0 | AI35: 0 | AJ35: 0 | AK35: 0 | AL35: 0 | AM35: 0 | AN35: 0 | AO35: 0 | AP35: 0 | AQ35: 0
C36: Loan Interest (PACE) | D36: =D34*PACE_Loan_Rate -> 0 | E36: 0 | F36: 0 | G36: 0 | H36: 0 | I36: 0 | J36: 0 | K36: 0 | L36: 0 | M36: 0 | N36: 0 | O36: 0 | P36: 0 | Q36: 0 | R36: 0 | S36: 0 | T36: 0 | U36: 0 | V36: 0 | W36: 0 | X36: 0 | Y36: 0 | Z36: 0 | AA36: 0 | AB36: 0 | AC36: 0 | AD36: 0 | AE36: 0 | AF36: 0 | AG36: 0 | AH36: 0 | AI36: 0 | AJ36: 0 | AK36: 0 | AL36: 0 | AM36: 0 | AN36: 0 | AO36: 0 | AP36: 0 | AQ36: 0
C37: Loan Balance (Other Loan) | D37: =IF(D$3=Build_Year+1,New_Asset_Debt*Other_Frac,IF(D$3>Build_Year+1,IF(IFERROR(ABS(C37-C38),0)<0.1,0,C37-C38),0)) -> 0 | E37: 0 | F37: 0 | G37: 1346041289 | H37: 1301173246 | I37: 1256305203 | J37: 1211437160 | K37: 1166569117 | L37: 1121701074 | M37: 1076833031 | N37: 1031964988 | O37: 987096945 | P37: 942228902 | Q37: 897360859.1 | R37: 852492816.1 | S37: 807624773.2 | T37: 762756730.2 | U37: 717888687.3 | V37: 673020644.3 | W37: 628152601.4 | X37: 583284558.4 | Y37: 538416515.4 | Z37: 493548472.5 | AA37: 448680429.5 | AB37: 403812386.6 | AC37: 358944343.6 | AD37: 314076300.7 | AE37: 269208257.7 | AF37: 224340214.8 | AG37: 179472171.8 | AH37: 134604128.9 | AI37: 89736085.91 | AJ37: 44868042.95 | AK37: 0 | AL37: 0 | AM37: 0 | AN37: 0 | AO37: 0 | AP37: 0 | AQ37: 0
C38: Loan Principal (Other Loan) | D38: =IF(AND(D$3>Build_Year,D$3<=Build_Year+Other_Loan_Tenor),IF(Other_Amortization_Type="Mortgage Style",-PPMT(Other_Loan_Rate,D$3-Build_Year,Other_Loan_Tenor,New_Asset_Debt*Other_Frac),IF(Other_Amortization_Type="Sculpted",MIN((D$132+D$137)/USDA_Target_MDSC-D39,D37/(Build_Year+Other_Loan_Tenor+1-D$3)),(New_Asset_Debt*Other_Frac)/Other_Loan_Tenor)),0) -> 0 | E38: 0 | F38: 0 | G38: 44868042.95 | H38: 44868042.95 | I38: 44868042.95 | J38: 44868042.95 | K38: 44868042.95 | L38: 44868042.95 | M38: 44868042.95 | N38: 44868042.95 | O38: 44868042.95 | P38: 44868042.95 | Q38: 44868042.95 | R38: 44868042.95 | S38: 44868042.95 | T38: 44868042.95 | U38: 44868042.95 | V38: 44868042.95 | W38: 44868042.95 | X38: 44868042.95 | Y38: 44868042.95 | Z38: 44868042.95 | AA38: 44868042.95 | AB38: 44868042.95 | AC38: 44868042.95 | AD38: 44868042.95 | AE38: 44868042.95 | AF38: 44868042.95 | AG38: 44868042.95 | AH38: 44868042.95 | AI38: 44868042.95 | AJ38: 44868042.95 | AK38: 0 | AL38: 0 | AM38: 0 | AN38: 0 | AO38: 0 | AP38: 0 | AQ38: 0
C39: Loan Interest (Other Loan) | D39: =D37*Other_Loan_Rate -> 0 | E39: 0 | F39: 0 | G39: 57077050.29 | H39: 55174481.94 | I39: 53271913.6 | J39: 51369345.26 | K39: 49466776.91 | L39: 47564208.57 | M39: 45661640.23 | N39: 43759071.89 | O39: 41856503.54 | P39: 39953935.2 | Q39: 38051366.86 | R39: 36148798.51 | S39: 34246230.17 | T39: 32343661.83 | U39: 30441093.49 | V39: 28538525.14 | W39: 26635956.8 | X39: 24733388.46 | Y39: 22830820.11 | Z39: 20928251.77 | AA39: 19025683.43 | AB39: 17123115.09 | AC39: 15220546.74 | AD39: 13317978.4 | AE39: 11415410.06 | AF39: 9512841.714 | AG39: 7610273.372 | AH39: 5707705.029 | AI39: 3805136.686 | AJ39: 1902568.343 | AK39: 0 | AL39: 0 | AM39: 0 | AN39: 0 | AO39: 0 | AP39: 0 | AQ39: 0
C40: Loan Balance (Total) | D40: =D37+D34+D31+D28+D25+D16+D20 -> 0 | E40: =E37+E34+E31+E28+E25+E16+E20 -> 0 | F40: 0 | G40: 2099927299 | H40: 2029929722 | I40: 1959932146 | J40: 1889934569 | K40: 1819936992 | L40: 1749939416 | M40: 1679941839 | N40: 1609944263 | O40: 1539946686 | P40: 1469949109 | Q40: 1399951533 | R40: 1329953956 | S40: 1259956379 | T40: 1189958803 | U40: 1119961226 | V40: 1049963649 | W40: 979966072.9 | X40: 909968496.2 | Y40: 839970919.6 | Z40: 769973343 | AA40: 699975766.3 | AB40: 629978189.7 | AC40: 559980613.1 | AD40: 489983036.4 | AE40: 419985459.8 | AF40: 349987883.2 | AG40: 279990306.5 | AH40: 209992729.9 | AI40: 139995153.3 | AJ40: 69997576.63 | AK40: 0 | AL40: 0 | AM40: 0 | AN40: 0 | AO40: 0 | AP40: 0 | AQ40: 0
C41: Loan Principal (Total) | D41: =D38+D35+D32+D29+D26+D17+D21 -> 0 | E41: 0 | F41: 0 | G41: 69997576.63 | H41: 69997576.63 | I41: 69997576.63 | J41: 69997576.63 | K41: 69997576.63 | L41: 69997576.63 | M41: 69997576.63 | N41: 69997576.63 | O41: 69997576.63 | P41: 69997576.63 | Q41: 69997576.63 | R41: 69997576.63 | S41: 69997576.63 | T41: 69997576.63 | U41: 69997576.63 | V41: 69997576.63 | W41: 69997576.63 | X41: 69997576.63 | Y41: 69997576.63 | Z41: 69997576.63 | AA41: 69997576.63 | AB41: 69997576.63 | AC41: 69997576.63 | AD41: 69997576.63 | AE41: 69997576.63 | AF41: 69997576.63 | AG41: 69997576.63 | AH41: 69997576.63 | AI41: 69997576.63 | AJ41: 69997576.63 | AK41: 0 | AL41: 0 | AM41: 0 | AN41: 0 | AO41: 0 | AP41: 0 | AQ41: 0
C42: Loan Interest (Total) | D42: =D39+D36+D33+D30+D27+D18+D22 -> 0 | E42: 0 | F42: 0 | G42: 72154770.49 | H42: 69749611.48 | I42: 67344452.46 | J42: 64939293.44 | K42: 62534134.43 | L42: 60128975.41 | M42: 57723816.39 | N42: 55318657.38 | O42: 52913498.36 | P42: 50508339.35 | Q42: 48103180.33 | R42: 45698021.31 | S42: 43292862.3 | T42: 40887703.28 | U42: 38482544.26 | V42: 36077385.25 | W42: 33672226.23 | X42: 31267067.21 | Y42: 28861908.2 | Z42: 26456749.18 | AA42: 24051590.16 | AB42: 21646431.15 | AC42: 19241272.13 | AD42: 16836113.12 | AE42: 14430954.1 | AF42: 12025795.08 | AG42: 9620636.066 | AH42: 7215477.049 | AI42: 4810318.033 | AJ42: 2405159.016 | AK42: 0 | AL42: 0 | AM42: 0 | AN42: 0 | AO42: 0 | AP42: 0 | AQ42: 0
C43: Accumulated Deferred New ERA Grant (Owned) | D43: =IF(D$2>Years_Until_New_Asset_Operation,SUM(D44:$AQ44),0) -> 0 | E43: =IF(E$2>Years_Until_New_Asset_Operation,SUM(E44:$AQ44),0) -> 0 | F43: =IF(F$2>Years_Until_New_Asset_Operation,SUM(F44:$AQ44),0) -> 0 | G43: =IF(G$2>Years_Until_New_Asset_Operation,SUM(G44:$AQ44),0) -> 0 | H43: =IF(H$2>Years_Until_New_Asset_Operation,SUM(H44:$AQ44),0) -> 0 | I43: =IF(I$2>Years_Until_New_Asset_Operation,SUM(I44:$AQ44),0) -> 0 | J43: =IF(J$2>Years_Until_New_Asset_Operation,SUM(J44:$AQ44),0) -> 0 | K43: =IF(K$2>Years_Until_New_Asset_Operation,SUM(K44:$AQ44),0) -> 0 | L43: =IF(L$2>Years_Until_New_Asset_Operation,SUM(L44:$AQ44),0) -> 0 | M43: =IF(M$2>Years_Until_New_Asset_Operation,SUM(M44:$AQ44),0) -> 0 | N43: =IF(N$2>Years_Until_New_Asset_Operation,SUM(N44:$AQ44),0) -> 0 | O43: =IF(O$2>Years_Until_New_Asset_Operation,SUM(O44:$AQ44),0) -> 0 | P43: =IF(P$2>Years_Until_New_Asset_Operation,SUM(P44:$AQ44),0) -> 0 | Q43: =IF(Q$2>Years_Until_New_Asset_Operation,SUM(Q44:$AQ44),0) -> 0 | R43: =IF(R$2>Years_Until_New_Asset_Operation,SUM(R44:$AQ44),0) -> 0 | S43: =IF(S$2>Years_Until_New_Asset_Operation,SUM(S44:$AQ44),0) -> 0 | T43: =IF(T$2>Years_Until_New_Asset_Operation,SUM(T44:$AQ44),0) -> 0 | U43: =IF(U$2>Years_Until_New_Asset_Operation,SUM(U44:$AQ44),0) -> 0 | V43: =IF(V$2>Years_Until_New_Asset_Operation,SUM(V44:$AQ44),0) -> 0 | W43: =IF(W$2>Years_Until_New_Asset_Operation,SUM(W44:$AQ44),0) -> 0 | X43: =IF(X$2>Years_Until_New_Asset_Operation,SUM(X44:$AQ44),0) -> 0 | Y43: =IF(Y$2>Years_Until_New_Asset_Operation,SUM(Y44:$AQ44),0) -> 0 | Z43: =IF(Z$2>Years_Until_New_Asset_Operation,SUM(Z44:$AQ44),0) -> 0 | AA43: =IF(AA$2>Years_Until_New_Asset_Operation,SUM(AA44:$AQ44),0) -> 0 | AB43: =IF(AB$2>Years_Until_New_Asset_Operation,SUM(AB44:$AQ44),0) -> 0 | AC43: =IF(AC$2>Years_Until_New_Asset_Operation,SUM(AC44:$AQ44),0) -> 0 | AD43: =IF(AD$2>Years_Until_New_Asset_Operation,SUM(AD44:$AQ44),0) -> 0 | AE43: =IF(AE$2>Years_Until_New_Asset_Operation,SUM(AE44:$AQ44),0) -> 0 | AF43: =IF(AF$2>Years_Until_New_Asset_Operation,SUM(AF44:$AQ44),0) -> 0 | AG43: =IF(AG$2>Years_Until_New_Asset_Operation,SUM(AG44:$AQ44),0) -> 0 | AH43: =IF(AH$2>Years_Until_New_Asset_Operation,SUM(AH44:$AQ44),0) -> 0 | AI43: =IF(AI$2>Years_Until_New_Asset_Operation,SUM(AI44:$AQ44),0) -> 0 | AJ43: =IF(AJ$2>Years_Until_New_Asset_Operation,SUM(AJ44:$AQ44),0) -> 0 | AK43: =IF(AK$2>Years_Until_New_Asset_Operation,SUM(AK44:$AQ44),0) -> 0 | AL43: =IF(AL$2>Years_Until_New_Asset_Operation,SUM(AL44:$AQ44),0) -> 0 | AM43: =IF(AM$2>Years_Until_New_Asset_Operation,SUM(AM44:$AQ44),0) -> 0 | AN43: =IF(AN$2>Years_Until_New_Asset_Operation,SUM(AN44:$AQ44),0) -> 0 | AO43: =IF(AO$2>Years_Until_New_Asset_Operation,SUM(AO44:$AQ44),0) -> 0 | AP43: =IF(AP$2>Years_Until_New_Asset_Operation,SUM(AP44:$AQ44),0) -> 0 | AQ43: =IF(AQ$2>Years_Until_New_Asset_Operation,SUM(AQ44:$AQ44),0) -> 0
C44: Normalized Rate Impact of New ERA Grant (Owned) | D44: =IF(AND(D$2>Years_Until_New_Asset_Operation,D$2<=Years_Until_New_Asset_Operation+IF(New_ERA_Normalization_Owned="Yes",New_ERA_Normalization_Period_Owned,Clean_Asset_Life)),-(New_ERA_Grant+GRIP_and_Other_Grant)/IF(New_ERA_Normalization_Owned="Yes",New_ERA_Normalization_Period_Owned,Clean_Asset_Life),0) -> 0 | E44: 0 | F44: 0 | G44: 0 | H44: 0 | I44: 0 | J44: 0 | K44: 0 | L44: 0 | M44: 0 | N44: 0 | O44: 0 | P44: 0 | Q44: 0 | R44: 0 | S44: 0 | T44: 0 | U44: 0 | V44: 0 | W44: 0 | X44: 0 | Y44: 0 | Z44: 0 | AA44: 0 | AB44: 0 | AC44: 0 | AD44: 0 | AE44: 0 | AF44: 0 | AG44: 0 | AH44: 0 | AI44: 0 | AJ44: 0 | AK44: 0 | AL44: 0 | AM44: 0 | AN44: 0 | AO44: 0 | AP44: 0 | AQ44: 0
C45: Normalized Return Impact of Deferred NewERA Grant (Owned) | D45: =D43 * ROR / (1- Tax_Rate) -> 0 | E45: 0 | F45: 0 | G45: 0 | H45: 0 | I45: 0 | J45: 0 | K45: 0 | L45: 0 | M45: 0 | N45: 0 | O45: 0 | P45: 0 | Q45: 0 | R45: 0 | S45: 0 | T45: 0 | U45: 0 | V45: 0 | W45: 0 | X45: 0 | Y45: 0 | Z45: 0 | AA45: 0 | AB45: 0 | AC45: 0 | AD45: 0 | AE45: 0 | AF45: 0 | AG45: 0 | AH45: 0 | AI45: 0 | AJ45: 0 | AK45: 0 | AL45: 0 | AM45: 0 | AN45: 0 | AO45: 0 | AP45: 0 | AQ45: 0
C46: Accumulated Deferred New ERA Grant (PPA) | D46: =IF(D$2>Years_Until_New_Asset_Operation,SUM(D47:$AQ47),0) -> 0 | E46: =IF(E$2>Years_Until_New_Asset_Operation,SUM(E47:$AQ47),0) -> 0 | F46: =IF(F$2>Years_Until_New_Asset_Operation,SUM(F47:$AQ47),0) -> 0 | G46: =IF(G$2>Years_Until_New_Asset_Operation,SUM(G47:$AQ47),0) -> -116550000 | H46: =IF(H$2>Years_Until_New_Asset_Operation,SUM(H47:$AQ47),0) -> -112665000 | I46: =IF(I$2>Years_Until_New_Asset_Operation,SUM(I47:$AQ47),0) -> -108780000 | J46: =IF(J$2>Years_Until_New_Asset_Operation,SUM(J47:$AQ47),0) -> -104895000 | K46: =IF(K$2>Years_Until_New_Asset_Operation,SUM(K47:$AQ47),0) -> -101010000 | L46: =IF(L$2>Years_Until_New_Asset_Operation,SUM(L47:$AQ47),0) -> -97125000 | M46: =IF(M$2>Years_Until_New_Asset_Operation,SUM(M47:$AQ47),0) -> -93240000 | N46: =IF(N$2>Years_Until_New_Asset_Operation,SUM(N47:$AQ47),0) -> -89355000 | O46: =IF(O$2>Years_Until_New_Asset_Operation,SUM(O47:$AQ47),0) -> -85470000 | P46: =IF(P$2>Years_Until_New_Asset_Operation,SUM(P47:$AQ47),0) -> -81585000 | Q46: =IF(Q$2>Years_Until_New_Asset_Operation,SUM(Q47:$AQ47),0) -> -77700000 | R46: =IF(R$2>Years_Until_New_Asset_Operation,SUM(R47:$AQ47),0) -> -73815000 | S46: =IF(S$2>Years_Until_New_Asset_Operation,SUM(S47:$AQ47),0) -> -69930000 | T46: =IF(T$2>Years_Until_New_Asset_Operation,SUM(T47:$AQ47),0) -> -66045000 | U46: =IF(U$2>Years_Until_New_Asset_Operation,SUM(U47:$AQ47),0) -> -62160000 | V46: =IF(V$2>Years_Until_New_Asset_Operation,SUM(V47:$AQ47),0) -> -58275000 | W46: =IF(W$2>Years_Until_New_Asset_Operation,SUM(W47:$AQ47),0) -> -54390000 | X46: =IF(X$2>Years_Until_New_Asset_Operation,SUM(X47:$AQ47),0) -> -50505000 | Y46: =IF(Y$2>Years_Until_New_Asset_Operation,SUM(Y47:$AQ47),0) -> -46620000 | Z46: =IF(Z$2>Years_Until_New_Asset_Operation,SUM(Z47:$AQ47),0) -> -42735000 | AA46: =IF(AA$2>Years_Until_New_Asset_Operation,SUM(AA47:$AQ47),0) -> -38850000 | AB46: =IF(AB$2>Years_Until_New_Asset_Operation,SUM(AB47:$AQ47),0) -> -34965000 | AC46: =IF(AC$2>Years_Until_New_Asset_Operation,SUM(AC47:$AQ47),0) -> -31080000 | AD46: =IF(AD$2>Years_Until_New_Asset_Operation,SUM(AD47:$AQ47),0) -> -27195000 | AE46: =IF(AE$2>Years_Until_New_Asset_Operation,SUM(AE47:$AQ47),0) -> -23310000 | AF46: =IF(AF$2>Years_Until_New_Asset_Operation,SUM(AF47:$AQ47),0) -> -19425000 | AG46: =IF(AG$2>Years_Until_New_Asset_Operation,SUM(AG47:$AQ47),0) -> -15540000 | AH46: =IF(AH$2>Years_Until_New_Asset_Operation,SUM(AH47:$AQ47),0) -> -11655000 | AI46: =IF(AI$2>Years_Until_New_Asset_Operation,SUM(AI47:$AQ47),0) -> -7770000 | AJ46: =IF(AJ$2>Years_Until_New_Asset_Operation,SUM(AJ47:$AQ47),0) -> -3885000 | AK46: =IF(AK$2>Years_Until_New_Asset_Operation,SUM(AK47:$AQ47),0) -> 0 | AL46: =IF(AL$2>Years_Until_New_Asset_Operation,SUM(AL47:$AQ47),0) -> 0 | AM46: =IF(AM$2>Years_Until_New_Asset_Operation,SUM(AM47:$AQ47),0) -> 0 | AN46: =IF(AN$2>Years_Until_New_Asset_Operation,SUM(AN47:$AQ47),0) -> 0 | AO46: =IF(AO$2>Years_Until_New_Asset_Operation,SUM(AO47:$AQ47),0) -> 0 | AP46: =IF(AP$2>Years_Until_New_Asset_Operation,SUM(AP47:$AQ47),0) -> 0 | AQ46: =IF(AQ$2>Years_Until_New_Asset_Operation,SUM(AQ47:$AQ47),0) -> 0
C47: Normalized Rate Impact of New ERA Grant (PPA) | D47: =IF(AND(D$2>Years_Until_New_Asset_Operation,D$2<=Years_Until_New_Asset_Operation+IF(New_ERA_Normalization_Owned="Yes",New_ERA_Normalization_Period_Owned,PPA_Term)),-(PPA_NewERA_Available+GRIP_and_Other_Grant)/IF(New_ERA_Normalization_PPA="Yes",New_ERA_Normalization_Period_PPA,PPA_Term),0) -> 0 | E47: 0 | F47: 0 | G47: -3885000 | H47: -3885000 | I47: -3885000 | J47: -3885000 | K47: -3885000 | L47: -3885000 | M47: -3885000 | N47: -3885000 | O47: -3885000 | P47: -3885000 | Q47: -3885000 | R47: -3885000 | S47: -3885000 | T47: -3885000 | U47: -3885000 | V47: -3885000 | W47: -3885000 | X47: -3885000 | Y47: -3885000 | Z47: -3885000 | AA47: -3885000 | AB47: -3885000 | AC47: -3885000 | AD47: -3885000 | AE47: -3885000 | AF47: -3885000 | AG47: -3885000 | AH47: -3885000 | AI47: -3885000 | AJ47: -3885000 | AK47: 0 | AL47: 0 | AM47: 0 | AN47: 0 | AO47: 0 | AP47: 0 | AQ47: 0
C48: Normalized Return Impact of Deferred NewERA Grant (PPA) | D48: =D46 * ROR / (1- Tax_Rate) -> 0 | E48: 0 | F48: 0 | G48: -4460424.422 | H48: -4311743.608 | I48: -4163062.794 | J48: -4014381.98 | K48: -3865701.166 | L48: -3717020.352 | M48: -3568339.538 | N48: -3419658.724 | O48: -3270977.909 | P48: -3122297.095 | Q48: -2973616.281 | R48: -2824935.467 | S48: -2676254.653 | T48: -2527573.839 | U48: -2378893.025 | V48: -2230212.211 | W48: -2081531.397 | X48: -1932850.583 | Y48: -1784169.769 | Z48: -1635488.955 | AA48: -1486808.141 | AB48: -1338127.327 | AC48: -1189446.513 | AD48: -1040765.698 | AE48: -892084.8844 | AF48: -743404.0703 | AG48: -594723.2563 | AH48: -446042.4422 | AI48: -297361.6281 | AJ48: -148680.8141 | AK48: 0 | AL48: 0 | AM48: 0 | AN48: 0 | AO48: 0 | AP48: 0 | AQ48: 0
C49: Accumulated Deferred New ERA Grant (PPA Quote) | D49: =IF(D$2>Years_Until_New_Asset_Operation,SUM(D50:$AQ50),0) -> 0 | E49: =IF(E$2>Years_Until_New_Asset_Operation,SUM(E50:$AQ50),0) -> 0 | F49: =IF(F$2>Years_Until_New_Asset_Operation,SUM(F50:$AQ50),0) -> 0 | G49: =IF(G$2>Years_Until_New_Asset_Operation,SUM(G50:$AQ50),0) -> -116550000 | H49: =IF(H$2>Years_Until_New_Asset_Operation,SUM(H50:$AQ50),0) -> -112665000 | I49: =IF(I$2>Years_Until_New_Asset_Operation,SUM(I50:$AQ50),0) -> -108780000 | J49: =IF(J$2>Years_Until_New_Asset_Operation,SUM(J50:$AQ50),0) -> -104895000 | K49: =IF(K$2>Years_Until_New_Asset_Operation,SUM(K50:$AQ50),0) -> -101010000 | L49: =IF(L$2>Years_Until_New_Asset_Operation,SUM(L50:$AQ50),0) -> -97125000 | M49: =IF(M$2>Years_Until_New_Asset_Operation,SUM(M50:$AQ50),0) -> -93240000 | N49: =IF(N$2>Years_Until_New_Asset_Operation,SUM(N50:$AQ50),0) -> -89355000 | O49: =IF(O$2>Years_Until_New_Asset_Operation,SUM(O50:$AQ50),0) -> -85470000 | P49: =IF(P$2>Years_Until_New_Asset_Operation,SUM(P50:$AQ50),0) -> -81585000 | Q49: =IF(Q$2>Years_Until_New_Asset_Operation,SUM(Q50:$AQ50),0) -> -77700000 | R49: =IF(R$2>Years_Until_New_Asset_Operation,SUM(R50:$AQ50),0) -> -73815000 | S49: =IF(S$2>Years_Until_New_Asset_Operation,SUM(S50:$AQ50),0) -> -69930000 | T49: =IF(T$2>Years_Until_New_Asset_Operation,SUM(T50:$AQ50),0) -> -66045000 | U49: =IF(U$2>Years_Until_New_Asset_Operation,SUM(U50:$AQ50),0) -> -62160000 | V49: =IF(V$2>Years_Until_New_Asset_Operation,SUM(V50:$AQ50),0) -> -58275000 | W49: =IF(W$2>Years_Until_New_Asset_Operation,SUM(W50:$AQ50),0) -> -54390000 | X49: =IF(X$2>Years_Until_New_Asset_Operation,SUM(X50:$AQ50),0) -> -50505000 | Y49: =IF(Y$2>Years_Until_New_Asset_Operation,SUM(Y50:$AQ50),0) -> -46620000 | Z49: =IF(Z$2>Years_Until_New_Asset_Operation,SUM(Z50:$AQ50),0) -> -42735000 | AA49: =IF(AA$2>Years_Until_New_Asset_Operation,SUM(AA50:$AQ50),0) -> -38850000 | AB49: =IF(AB$2>Years_Until_New_Asset_Operation,SUM(AB50:$AQ50),0) -> -34965000 | AC49: =IF(AC$2>Years_Until_New_Asset_Operation,SUM(AC50:$AQ50),0) -> -31080000 | AD49: =IF(AD$2>Years_Until_New_Asset_Operation,SUM(AD50:$AQ50),0) -> -27195000 | AE49: =IF(AE$2>Years_Until_New_Asset_Operation,SUM(AE50:$AQ50),0) -> -23310000 | AF49: =IF(AF$2>Years_Until_New_Asset_Operation,SUM(AF50:$AQ50),0) -> -19425000 | AG49: =IF(AG$2>Years_Until_New_Asset_Operation,SUM(AG50:$AQ50),0) -> -15540000 | AH49: =IF(AH$2>Years_Until_New_Asset_Operation,SUM(AH50:$AQ50),0) -> -11655000 | AI49: =IF(AI$2>Years_Until_New_Asset_Operation,SUM(AI50:$AQ50),0) -> -7770000 | AJ49: =IF(AJ$2>Years_Until_New_Asset_Operation,SUM(AJ50:$AQ50),0) -> -3885000 | AK49: =IF(AK$2>Years_Until_New_Asset_Operation,SUM(AK50:$AQ50),0) -> 0 | AL49: =IF(AL$2>Years_Until_New_Asset_Operation,SUM(AL50:$AQ50),0) -> 0 | AM49: =IF(AM$2>Years_Until_New_Asset_Operation,SUM(AM50:$AQ50),0) -> 0 | AN49: =IF(AN$2>Years_Until_New_Asset_Operation,SUM(AN50:$AQ50),0) -> 0 | AO49: =IF(AO$2>Years_Until_New_Asset_Operation,SUM(AO50:$AQ50),0) -> 0 | AP49: =IF(AP$2>Years_Until_New_Asset_Operation,SUM(AP50:$AQ50),0) -> 0 | AQ49: =IF(AQ$2>Years_Until_New_Asset_Operation,SUM(AQ50:$AQ50),0) -> 0
C50: Normalized Rate Impact of New ERA Grant (PPA Quote) | D50: =IF(AND(D$2>Years_Until_New_Asset_Operation,D$2<=Years_Until_New_Asset_Operation+IF(New_ERA_Normalization_Owned="Yes",New_ERA_Normalization_Period_Owned,PPA_Term_Manual)),-(PPA_NewERA_Available+GRIP_and_Other_Grant)/IF(New_ERA_Normalization_PPA="Yes",New_ERA_Normalization_Period_PPA,PPA_Term_Manual),0) -> 0 | E50: 0 | F50: 0 | G50: -3885000 | H50: -3885000 | I50: -3885000 | J50: -3885000 | K50: -3885000 | L50: -3885000 | M50: -3885000 | N50: -3885000 | O50: -3885000 | P50: -3885000 | Q50: -3885000 | R50: -3885000 | S50: -3885000 | T50: -3885000 | U50: -3885000 | V50: -3885000 | W50: -3885000 | X50: -3885000 | Y50: -3885000 | Z50: -3885000 | AA50: -3885000 | AB50: -3885000 | AC50: -3885000 | AD50: -3885000 | AE50: -3885000 | AF50: -3885000 | AG50: -3885000 | AH50: -3885000 | AI50: -3885000 | AJ50: -3885000 | AK50: 0 | AL50: 0 | AM50: 0 | AN50: 0 | AO50: 0 | AP50: 0 | AQ50: 0
C51: Normalized Return Impact of Deferred NewERA Grant (PPA Quote) | D51: =D49 * ROR / (1- Tax_Rate) -> 0 | E51: 0 | F51: 0 | G51: -4460424.422 | H51: -4311743.608 | I51: -4163062.794 | J51: -4014381.98 | K51: -3865701.166 | L51: -3717020.352 | M51: -3568339.538 | N51: -3419658.724 | O51: -3270977.909 | P51: -3122297.095 | Q51: -2973616.281 | R51: -2824935.467 | S51: -2676254.653 | T51: -2527573.839 | U51: -2378893.025 | V51: -2230212.211 | W51: -2081531.397 | X51: -1932850.583 | Y51: -1784169.769 | Z51: -1635488.955 | AA51: -1486808.141 | AB51: -1338127.327 | AC51: -1189446.513 | AD51: -1040765.698 | AE51: -892084.8844 | AF51: -743404.0703 | AG51: -594723.2563 | AH51: -446042.4422 | AI51: -297361.6281 | AJ51: -148680.8141 | AK51: 0 | AL51: 0 | AM51: 0 | AN51: 0 | AO51: 0 | AP51: 0 | AQ51: 0
B52: New Solar | C52: Solar NPB | D52: =MAX(0,IF(D$2<=Years_Until_New_Asset_Operation,0,IF(D$2<=Clean_Asset_Life+Years_Until_New_Asset_Operation,IF(D$2>Years_Until_New_Asset_Operation,Solar_Plant_Balance-SUM($C$53:C$53),1),0))) -> 0 | E52: =MAX(0,IF(E$2<=Years_Until_New_Asset_Operation,0,IF(E$2<=Clean_Asset_Life+Years_Until_New_Asset_Operation,IF(E$2>Years_Until_New_Asset_Operation,Solar_Plant_Balance-SUM($C$53:D$53),1),0))) -> 0 | F52: =MAX(0,IF(F$2<=Years_Until_New_Asset_Operation,0,IF(F$2<=Clean_Asset_Life+Years_Until_New_Asset_Operation,IF(F$2>Years_Until_New_Asset_Operation,Solar_Plant_Balance-SUM($C$53:E$53),1),0))) -> 0 | G52: =MAX(0,IF(G$2<=Years_Until_New_Asset_Operation,0,IF(G$2<=Clean_Asset_Life+Years_Until_New_Asset_Operation,IF(G$2>Years_Until_New_Asset_Operation,Solar_Plant_Balance-SUM($C$53:F$53),1),0))) -> 1169162178 | H52: =MAX(0,IF(H$2<=Years_Until_New_Asset_Operation,0,IF(H$2<=Clean_Asset_Life+Years_Until_New_Asset_Operation,IF(H$2>Years_Until_New_Asset_Operation,Solar_Plant_Balance-SUM($C$53:G$53),1),0))) -> 1130190106 | I52: =MAX(0,IF(I$2<=Years_Until_New_Asset_Operation,0,IF(I$2<=Clean_Asset_Life+Years_Until_New_Asset_Operation,IF(I$2>Years_Until_New_Asset_Operation,Solar_Plant_Balance-SUM($C$53:H$53),1),0))) -> 1091218033 | J52: =MAX(0,IF(J$2<=Years_Until_New_Asset_Operation,0,IF(J$2<=Clean_Asset_Life+Years_Until_New_Asset_Operation,IF(J$2>Years_Until_New_Asset_Operation,Solar_Plant_Balance-SUM($C$53:I$53),1),0))) -> 1052245961 | K52: =MAX(0,IF(K$2<=Years_Until_New_Asset_Operation,0,IF(K$2<=Clean_Asset_Life+Years_Until_New_Asset_Operation,IF(K$2>Years_Until_New_Asset_Operation,Solar_Plant_Balance-SUM($C$53:J$53),1),0))) -> 1013273888 | L52: =MAX(0,IF(L$2<=Years_Until_New_Asset_Operation,0,IF(L$2<=Clean_Asset_Life+Years_Until_New_Asset_Operation,IF(L$2>Years_Until_New_Asset_Operation,Solar_Plant_Balance-SUM($C$53:K$53),1),0))) -> 974301815.3 | M52: =MAX(0,IF(M$2<=Years_Until_New_Asset_Operation,0,IF(M$2<=Clean_Asset_Life+Years_Until_New_Asset_Operation,IF(M$2>Years_Until_New_Asset_Operation,Solar_Plant_Balance-SUM($C$53:L$53),1),0))) -> 935329742.7 | N52: =MAX(0,IF(N$2<=Years_Until_New_Asset_Operation,0,IF(N$2<=Clean_Asset_Life+Years_Until_New_Asset_Operation,IF(N$2>Years_Until_New_Asset_Operation,Solar_Plant_Balance-SUM($C$53:M$53),1),0))) -> 896357670.1 | O52: =MAX(0,IF(O$2<=Years_Until_New_Asset_Operation,0,IF(O$2<=Clean_Asset_Life+Years_Until_New_Asset_Operation,IF(O$2>Years_Until_New_Asset_Operation,Solar_Plant_Balance-SUM($C$53:N$53),1),0))) -> 857385597.5 | P52: =MAX(0,IF(P$2<=Years_Until_New_Asset_Operation,0,IF(P$2<=Clean_Asset_Life+Years_Until_New_Asset_Operation,IF(P$2>Years_Until_New_Asset_Operation,Solar_Plant_Balance-SUM($C$53:O$53),1),0))) -> 818413524.9 | Q52: =MAX(0,IF(Q$2<=Years_Until_New_Asset_Operation,0,IF(Q$2<=Clean_Asset_Life+Years_Until_New_Asset_Operation,IF(Q$2>Years_Until_New_Asset_Operation,Solar_Plant_Balance-SUM($C$53:P$53),1),0))) -> 779441452.2 | R52: =MAX(0,IF(R$2<=Years_Until_New_Asset_Operation,0,IF(R$2<=Clean_Asset_Life+Years_Until_New_Asset_Operation,IF(R$2>Years_Until_New_Asset_Operation,Solar_Plant_Balance-SUM($C$53:Q$53),1),0))) -> 740469379.6 | S52: =MAX(0,IF(S$2<=Years_Until_New_Asset_Operation,0,IF(S$2<=Clean_Asset_Life+Years_Until_New_Asset_Operation,IF(S$2>Years_Until_New_Asset_Operation,Solar_Plant_Balance-SUM($C$53:R$53),1),0))) -> 701497307 | T52: =MAX(0,IF(T$2<=Years_Until_New_Asset_Operation,0,IF(T$2<=Clean_Asset_Life+Years_Until_New_Asset_Operation,IF(T$2>Years_Until_New_Asset_Operation,Solar_Plant_Balance-SUM($C$53:S$53),1),0))) -> 662525234.4 | U52: =MAX(0,IF(U$2<=Years_Until_New_Asset_Operation,0,IF(U$2<=Clean_Asset_Life+Years_Until_New_Asset_Operation,IF(U$2>Years_Until_New_Asset_Operation,Solar_Plant_Balance-SUM($C$53:T$53),1),0))) -> 623553161.8 | V52: =MAX(0,IF(V$2<=Years_Until_New_Asset_Operation,0,IF(V$2<=Clean_Asset_Life+Years_Until_New_Asset_Operation,IF(V$2>Years_Until_New_Asset_Operation,Solar_Plant_Balance-SUM($C$53:U$53),1),0))) -> 584581089.2 | W52: =MAX(0,IF(W$2<=Years_Until_New_Asset_Operation,0,IF(W$2<=Clean_Asset_Life+Years_Until_New_Asset_Operation,IF(W$2>Years_Until_New_Asset_Operation,Solar_Plant_Balance-SUM($C$53:V$53),1),0))) -> 545609016.6 | X52: =MAX(0,IF(X$2<=Years_Until_New_Asset_Operation,0,IF(X$2<=Clean_Asset_Life+Years_Until_New_Asset_Operation,IF(X$2>Years_Until_New_Asset_Operation,Solar_Plant_Balance-SUM($C$53:W$53),1),0))) -> 506636944 | Y52: =MAX(0,IF(Y$2<=Years_Until_New_Asset_Operation,0,IF(Y$2<=Clean_Asset_Life+Years_Until_New_Asset_Operation,IF(Y$2>Years_Until_New_Asset_Operation,Solar_Plant_Balance-SUM($C$53:X$53),1),0))) -> 467664871.3 | Z52: =MAX(0,IF(Z$2<=Years_Until_New_Asset_Operation,0,IF(Z$2<=Clean_Asset_Life+Years_Until_New_Asset_Operation,IF(Z$2>Years_Until_New_Asset_Operation,Solar_Plant_Balance-SUM($C$53:Y$53),1),0))) -> 428692798.7 | AA52: =MAX(0,IF(AA$2<=Years_Until_New_Asset_Operation,0,IF(AA$2<=Clean_Asset_Life+Years_Until_New_Asset_Operation,IF(AA$2>Years_Until_New_Asset_Operation,Solar_Plant_Balance-SUM($C$53:Z$53),1),0))) -> 389720726.1 | AB52: =MAX(0,IF(AB$2<=Years_Until_New_Asset_Operation,0,IF(AB$2<=Clean_Asset_Life+Years_Until_New_Asset_Operation,IF(AB$2>Years_Until_New_Asset_Operation,Solar_Plant_Balance-SUM($C$53:AA$53),1),0))) -> 350748653.5 | AC52: =MAX(0,IF(AC$2<=Years_Until_New_Asset_Operation,0,IF(AC$2<=Clean_Asset_Life+Years_Until_New_Asset_Operation,IF(AC$2>Years_Until_New_Asset_Operation,Solar_Plant_Balance-SUM($C$53:AB$53),1),0))) -> 311776580.9 | AD52: =MAX(0,IF(AD$2<=Years_Until_New_Asset_Operation,0,IF(AD$2<=Clean_Asset_Life+Years_Until_New_Asset_Operation,IF(AD$2>Years_Until_New_Asset_Operation,Solar_Plant_Balance-SUM($C$53:AC$53),1),0))) -> 272804508.3 | AE52: =MAX(0,IF(AE$2<=Years_Until_New_Asset_Operation,0,IF(AE$2<=Clean_Asset_Life+Years_Until_New_Asset_Operation,IF(AE$2>Years_Until_New_Asset_Operation,Solar_Plant_Balance-SUM($C$53:AD$53),1),0))) -> 233832435.7 | AF52: =MAX(0,IF(AF$2<=Years_Until_New_Asset_Operation,0,IF(AF$2<=Clean_Asset_Life+Years_Until_New_Asset_Operation,IF(AF$2>Years_Until_New_Asset_Operation,Solar_Plant_Balance-SUM($C$53:AE$53),1),0))) -> 194860363.1 | AG52: =MAX(0,IF(AG$2<=Years_Until_New_Asset_Operation,0,IF(AG$2<=Clean_Asset_Life+Years_Until_New_Asset_Operation,IF(AG$2>Years_Until_New_Asset_Operation,Solar_Plant_Balance-SUM($C$53:AF$53),1),0))) -> 155888290.4 | AH52: =MAX(0,IF(AH$2<=Years_Until_New_Asset_Operation,0,IF(AH$2<=Clean_Asset_Life+Years_Until_New_Asset_Operation,IF(AH$2>Years_Until_New_Asset_Operation,Solar_Plant_Balance-SUM($C$53:AG$53),1),0))) -> 116916217.8 | AI52: =MAX(0,IF(AI$2<=Years_Until_New_Asset_Operation,0,IF(AI$2<=Clean_Asset_Life+Years_Until_New_Asset_Operation,IF(AI$2>Years_Until_New_Asset_Operation,Solar_Plant_Balance-SUM($C$53:AH$53),1),0))) -> 77944145.22 | AJ52: =MAX(0,IF(AJ$2<=Years_Until_New_Asset_Operation,0,IF(AJ$2<=Clean_Asset_Life+Years_Until_New_Asset_Operation,IF(AJ$2>Years_Until_New_Asset_Operation,Solar_Plant_Balance-SUM($C$53:AI$53),1),0))) -> 38972072.61 | AK52: =MAX(0,IF(AK$2<=Years_Until_New_Asset_Operation,0,IF(AK$2<=Clean_Asset_Life+Years_Until_New_Asset_Operation,IF(AK$2>Years_Until_New_Asset_Operation,Solar_Plant_Balance-SUM($C$53:AJ$53),1),0))) -> 0 | AL52: =MAX(0,IF(AL$2<=Years_Until_New_Asset_Operation,0,IF(AL$2<=Clean_Asset_Life+Years_Until_New_Asset_Operation,IF(AL$2>Years_Until_New_Asset_Operation,Solar_Plant_Balance-SUM($C$53:AK$53),1),0))) -> 0 | AM52: =MAX(0,IF(AM$2<=Years_Until_New_Asset_Operation,0,IF(AM$2<=Clean_Asset_Life+Years_Until_New_Asset_Operation,IF(AM$2>Years_Until_New_Asset_Operation,Solar_Plant_Balance-SUM($C$53:AL$53),1),0))) -> 0 | AN52: =MAX(0,IF(AN$2<=Years_Until_New_Asset_Operation,0,IF(AN$2<=Clean_Asset_Life+Years_Until_New_Asset_Operation,IF(AN$2>Years_Until_New_Asset_Operation,Solar_Plant_Balance-SUM($C$53:AM$53),1),0))) -> 0 | AO52: =MAX(0,IF(AO$2<=Years_Until_New_Asset_Operation,0,IF(AO$2<=Clean_Asset_Life+Years_Until_New_Asset_Operation,IF(AO$2>Years_Until_New_Asset_Operation,Solar_Plant_Balance-SUM($C$53:AN$53),1),0))) -> 0 | AP52: =MAX(0,IF(AP$2<=Years_Until_New_Asset_Operation,0,IF(AP$2<=Clean_Asset_Life+Years_Until_New_Asset_Operation,IF(AP$2>Years_Until_New_Asset_Operation,Solar_Plant_Balance-SUM($C$53:AO$53),1),0))) -> 0 | AQ52: =MAX(0,IF(AQ$2<=Years_Until_New_Asset_Operation,0,IF(AQ$2<=Clean_Asset_Life+Years_Until_New_Asset_Operation,IF(AQ$2>Years_Until_New_Asset_Operation,Solar_Plant_Balance-SUM($C$53:AP$53),1),0))) -> 0
C53: Solar Depreciation | D53: =IF(D$2<=Years_Until_New_Asset_Operation,0,IF(D$2<=Clean_Asset_Life+Years_Until_New_Asset_Operation, Solar_Plant_Balance/Clean_Asset_Life, 0))*(1) -> 0 | E53: 0 | F53: 0 | G53: 38972072.61 | H53: 38972072.61 | I53: 38972072.61 | J53: 38972072.61 | K53: 38972072.61 | L53: 38972072.61 | M53: 38972072.61 | N53: 38972072.61 | O53: 38972072.61 | P53: 38972072.61 | Q53: 38972072.61 | R53: 38972072.61 | S53: 38972072.61 | T53: 38972072.61 | U53: 38972072.61 | V53: 38972072.61 | W53: 38972072.61 | X53: 38972072.61 | Y53: 38972072.61 | Z53: 38972072.61 | AA53: 38972072.61 | AB53: 38972072.61 | AC53: 38972072.61 | AD53: 38972072.61 | AE53: 38972072.61 | AF53: 38972072.61 | AG53: 38972072.61 | AH53: 38972072.61 | AI53: 38972072.61 | AJ53: 38972072.61 | AK53: 0 | AL53: 0 | AM53: 0 | AN53: 0 | AO53: 0 | AP53: 0 | AQ53: 0
C54: Net Impact on Rate Base | D54: =D52 -> 0 | E54: =E52 -> 0 | F54: 0 | G54: 1169162178 | H54: 1130190106 | I54: 1091218033 | J54: 1052245961 | K54: 1013273888 | L54: 974301815.3 | M54: 935329742.7 | N54: 896357670.1 | O54: 857385597.5 | P54: 818413524.9 | Q54: 779441452.2 | R54: 740469379.6 | S54: 701497307 | T54: 662525234.4 | U54: 623553161.8 | V54: 584581089.2 | W54: 545609016.6 | X54: 506636944 | Y54: 467664871.3 | Z54: 428692798.7 | AA54: 389720726.1 | AB54: 350748653.5 | AC54: 311776580.9 | AD54: 272804508.3 | AE54: 233832435.7 | AF54: 194860363.1 | AG54: 155888290.4 | AH54: 116916217.8 | AI54: 77944145.22 | AJ54: 38972072.61 | AK54: 0 | AL54: 0 | AM54: 0 | AN54: 0 | AO54: 0 | AP54: 0 | AQ54: 0
C55: Solar Return | D55: =D54*ROR/(1-Tax_Rate) -> 0 | E55: 0 | F55: 0 | G55: 44744397.54 | H55: 43252917.63 | I55: 41761437.71 | J55: 40269957.79 | K55: 38778477.87 | L55: 37286997.95 | M55: 35795518.03 | N55: 34304038.12 | O55: 32812558.2 | P55: 31321078.28 | Q55: 29829598.36 | R55: 28338118.44 | S55: 26846638.53 | T55: 25355158.61 | U55: 23863678.69 | V55: 22372198.77 | W55: 20880718.85 | X55: 19389238.94 | Y55: 17897759.02 | Z55: 16406279.1 | AA55: 14914799.18 | AB55: 13423319.26 | AC55: 11931839.34 | AD55: 10440359.43 | AE55: 8948879.509 | AF55: 7457399.591 | AG55: 5965919.672 | AH55: 4474439.754 | AI55: 2982959.836 | AJ55: 1491479.918 | AK55: 0 | AL55: 0 | AM55: 0 | AN55: 0 | AO55: 0 | AP55: 0 | AQ55: 0
C56: Solar Fixed O&M | D56: =IF(D$2<=Years_Until_New_Asset_Operation,0,IF(D$2<=Years_Until_New_Asset_Operation+Clean_Asset_Life,Solar_Capacity*Solar_Fixed_OM*1000*IF(Solar_OM_Escalation_Input="No",D$1,(1+Solar_OM_Escalation)^(D$2-Years_Until_New_Asset_Operation-1)),0)) -> 0 | E56: 0 | F56: 0 | G56: 19827444.08 | H56: 20293528.11 | I56: 20783004.54 | J56: 21292188.15 | K56: 21813846.76 | L56: 22348286 | M56: 22895111.43 | N56: 23392131.44 | O56: 23859974.07 | P56: 24337173.55 | Q56: 24823917.02 | R56: 25320395.36 | S56: 25826803.27 | T56: 26343339.33 | U56: 26870206.12 | V56: 27407610.24 | W56: 27955762.45 | X56: 28514877.7 | Y56: 29085175.25 | Z56: 29666878.75 | AA56: 30260216.33 | AB56: 30865420.66 | AC56: 31482729.07 | AD56: 32112383.65 | AE56: 32754631.32 | AF56: 33409723.95 | AG56: 34077918.43 | AH56: 34759476.8 | AI56: 35454666.33 | AJ56: 36163759.66 | AK56: 0 | AL56: 0 | AM56: 0 | AN56: 0 | AO56: 0 | AP56: 0 | AQ56: 0
C57: Solar Variable O&M | D57: =IF(D$2<=Years_Until_New_Asset_Operation,0,IF(D$2<=Years_Until_New_Asset_Operation+Clean_Asset_Life,Solar_Variable_O_M*D58*IF(Solar_OM_Escalation_Input="No",D$1,(1+Solar_OM_Escalation)^(D$2-Years_Until_New_Asset_Operation-1)),0)) -> 0 | E57: 0 | F57: 0 | G57: 0 | H57: 0 | I57: 0 | J57: 0 | K57: 0 | L57: 0 | M57: 0 | N57: 0 | O57: 0 | P57: 0 | Q57: 0 | R57: 0 | S57: 0 | T57: 0 | U57: 0 | V57: 0 | W57: 0 | X57: 0 | Y57: 0 | Z57: 0 | AA57: 0 | AB57: 0 | AC57: 0 | AD57: 0 | AE57: 0 | AF57: 0 | AG57: 0 | AH57: 0 | AI57: 0 | AJ57: 0 | AK57: 0 | AL57: 0 | AM57: 0 | AN57: 0 | AO57: 0 | AP57: 0 | AQ57: 0
C58: Solar MWh | D58: =IF(D$2<=Years_Until_New_Asset_Operation,0,IF(D$2<=Years_Until_New_Asset_Operation+Clean_Asset_Life,Solar_Capacity*Solar_Capacity_Factor*8760*(1-Solar_Degradation)^(D$2-1-Years_Until_New_Asset_Operation),0)) -> 0 | E58: 0 | F58: 0 | G58: 2349088.941 | H58: 2337343.497 | I58: 2325656.779 | J58: 2314028.495 | K58: 2302458.353 | L58: 2290946.061 | M58: 2279491.331 | N58: 2268093.874 | O58: 2256753.405 | P58: 2245469.638 | Q58: 2234242.29 | R58: 2223071.078 | S58: 2211955.723 | T58: 2200895.944 | U58: 2189891.464 | V58: 2178942.007 | W58: 2168047.297 | X58: 2157207.061 | Y58: 2146421.025 | Z58: 2135688.92 | AA58: 2125010.475 | AB58: 2114385.423 | AC58: 2103813.496 | AD58: 2093294.429 | AE58: 2082827.956 | AF58: 2072413.817 | AG58: 2062051.748 | AH58: 2051741.489 | AI58: 2041482.781 | AJ58: 2031275.367 | AK58: 0 | AL58: 0 | AM58: 0 | AN58: 0 | AO58: 0 | AP58: 0 | AQ58: 0
C59: Accumulated Deferred Solar ITC | D59: =IF(D$2>Years_Until_New_Asset_Operation,SUM(D60:$AQ60),0) -> 0 | E59: =IF(E$2>Years_Until_New_Asset_Operation,SUM(E60:$AQ60),0) -> 0 | F59: =IF(F$2>Years_Until_New_Asset_Operation,SUM(F60:$AQ60),0) -> 0 | G59: =IF(G$2>Years_Until_New_Asset_Operation,SUM(G60:$AQ60),0) -> -263365472.3 | H59: =IF(H$2>Years_Until_New_Asset_Operation,SUM(H60:$AQ60),0) -> -254586623.2 | I59: =IF(I$2>Years_Until_New_Asset_Operation,SUM(I60:$AQ60),0) -> -245807774.1 | J59: =IF(J$2>Years_Until_New_Asset_Operation,SUM(J60:$AQ60),0) -> -237028925.1 | K59: =IF(K$2>Years_Until_New_Asset_Operation,SUM(K60:$AQ60),0) -> -228250076 | L59: =IF(L$2>Years_Until_New_Asset_Operation,SUM(L60:$AQ60),0) -> -219471226.9 | M59: =IF(M$2>Years_Until_New_Asset_Operation,SUM(M60:$AQ60),0) -> -210692377.8 | N59: =IF(N$2>Years_Until_New_Asset_Operation,SUM(N60:$AQ60),0) -> -201913528.8 | O59: =IF(O$2>Years_Until_New_Asset_Operation,SUM(O60:$AQ60),0) -> -193134679.7 | P59: =IF(P$2>Years_Until_New_Asset_Operation,SUM(P60:$AQ60),0) -> -184355830.6 | Q59: =IF(Q$2>Years_Until_New_Asset_Operation,SUM(Q60:$AQ60),0) -> -175576981.5 | R59: =IF(R$2>Years_Until_New_Asset_Operation,SUM(R60:$AQ60),0) -> -166798132.5 | S59: =IF(S$2>Years_Until_New_Asset_Operation,SUM(S60:$AQ60),0) -> -158019283.4 | T59: =IF(T$2>Years_Until_New_Asset_Operation,SUM(T60:$AQ60),0) -> -149240434.3 | U59: =IF(U$2>Years_Until_New_Asset_Operation,SUM(U60:$AQ60),0) -> -140461585.2 | V59: =IF(V$2>Years_Until_New_Asset_Operation,SUM(V60:$AQ60),0) -> -131682736.2 | W59: =IF(W$2>Years_Until_New_Asset_Operation,SUM(W60:$AQ60),0) -> -122903887.1 | X59: =IF(X$2>Years_Until_New_Asset_Operation,SUM(X60:$AQ60),0) -> -114125038 | Y59: =IF(Y$2>Years_Until_New_Asset_Operation,SUM(Y60:$AQ60),0) -> -105346188.9 | Z59: =IF(Z$2>Years_Until_New_Asset_Operation,SUM(Z60:$AQ60),0) -> -96567339.84 | AA59: =IF(AA$2>Years_Until_New_Asset_Operation,SUM(AA60:$AQ60),0) -> -87788490.77 | AB59: =IF(AB$2>Years_Until_New_Asset_Operation,SUM(AB60:$AQ60),0) -> -79009641.69 | AC59: =IF(AC$2>Years_Until_New_Asset_Operation,SUM(AC60:$AQ60),0) -> -70230792.61 | AD59: =IF(AD$2>Years_Until_New_Asset_Operation,SUM(AD60:$AQ60),0) -> -61451943.54 | AE59: =IF(AE$2>Years_Until_New_Asset_Operation,SUM(AE60:$AQ60),0) -> -52673094.46 | AF59: =IF(AF$2>Years_Until_New_Asset_Operation,SUM(AF60:$AQ60),0) -> -43894245.38 | AG59: =IF(AG$2>Years_Until_New_Asset_Operation,SUM(AG60:$AQ60),0) -> -35115396.31 | AH59: =IF(AH$2>Years_Until_New_Asset_Operation,SUM(AH60:$AQ60),0) -> -26336547.23 | AI59: =IF(AI$2>Years_Until_New_Asset_Operation,SUM(AI60:$AQ60),0) -> -17557698.15 | AJ59: =IF(AJ$2>Years_Until_New_Asset_Operation,SUM(AJ60:$AQ60),0) -> -8778849.077 | AK59: =IF(AK$2>Years_Until_New_Asset_Operation,SUM(AK60:$AQ60),0) -> 0 | AL59: =IF(AL$2>Years_Until_New_Asset_Operation,SUM(AL60:$AQ60),0) -> 0 | AM59: =IF(AM$2>Years_Until_New_Asset_Operation,SUM(AM60:$AQ60),0) -> 0 | AN59: =IF(AN$2>Years_Until_New_Asset_Operation,SUM(AN60:$AQ60),0) -> 0 | AO59: =IF(AO$2>Years_Until_New_Asset_Operation,SUM(AO60:$AQ60),0) -> 0 | AP59: =IF(AP$2>Years_Until_New_Asset_Operation,SUM(AP60:$AQ60),0) -> 0 | AQ59: =IF(AQ$2>Years_Until_New_Asset_Operation,SUM(AQ60:$AQ60),0) -> 0
C60: Normalized Rate Impact of Solar ITC | D60: =IF(AND(D$2>Years_Until_New_Asset_Operation,D$2<=Years_Until_New_Asset_Operation+IF(Voluntary_Normalization="Yes",Voluntary_Normalization_Period,Clean_Asset_Life)),(1-Solar_PTC_Frac)*(Solar_Plant_Balance*-Final_Solar_ITC/(1-Tax_Rate))/IF(Voluntary_Normalization="Yes",Voluntary_Normalization_Period,Clean_Asset_Life),0) -> 0 | E60: 0 | F60: 0 | G60: -8778849.077 | H60: -8778849.077 | I60: -8778849.077 | J60: -8778849.077 | K60: -8778849.077 | L60: -8778849.077 | M60: -8778849.077 | N60: -8778849.077 | O60: -8778849.077 | P60: -8778849.077 | Q60: -8778849.077 | R60: -8778849.077 | S60: -8778849.077 | T60: -8778849.077 | U60: -8778849.077 | V60: -8778849.077 | W60: -8778849.077 | X60: -8778849.077 | Y60: -8778849.077 | Z60: -8778849.077 | AA60: -8778849.077 | AB60: -8778849.077 | AC60: -8778849.077 | AD60: -8778849.077 | AE60: -8778849.077 | AF60: -8778849.077 | AG60: -8778849.077 | AH60: -8778849.077 | AI60: -8778849.077 | AJ60: -8778849.077 | AK60: 0 | AL60: 0 | AM60: 0 | AN60: 0 | AO60: 0 | AP60: 0 | AQ60: 0
C61: Normalized Return Impact of Deferred Solar ITC | D61: =D59 * ROR / (1- Tax_Rate) -> 0 | E61: 0 | F61: 0 | G61: -10079122.99 | H61: -9743152.224 | I61: -9407181.458 | J61: -9071210.692 | K61: -8735239.925 | L61: -8399269.159 | M61: -8063298.393 | N61: -7727327.626 | O61: -7391356.86 | P61: -7055386.093 | Q61: -6719415.327 | R61: -6383444.561 | S61: -6047473.794 | T61: -5711503.028 | U61: -5375532.262 | V61: -5039561.495 | W61: -4703590.729 | X61: -4367619.963 | Y61: -4031649.196 | Z61: -3695678.43 | AA61: -3359707.664 | AB61: -3023736.897 | AC61: -2687766.131 | AD61: -2351795.364 | AE61: -2015824.598 | AF61: -1679853.832 | AG61: -1343883.065 | AH61: -1007912.299 | AI61: -671941.5327 | AJ61: -335970.7664 | AK61: 0 | AL61: 0 | AM61: 0 | AN61: 0 | AO61: 0 | AP61: 0 | AQ61: 0
C62: Solar PTC | D62: =IF(D$2<=Years_Until_New_Asset_Operation,0,IF(D$2<=10+Years_Until_New_Asset_Operation,Solar_PTC_Frac*D58*(-ROUND(Final_Solar_PTC*IF(Solar_OM_Escalation_Input="No",D$1,(1+Solar_OM_Escalation)^(D$2-Years_Until_New_Asset_Operation-1))*2,0)/2)/(1-Tax_Rate),0)) -> 0 | E62: 0 | F62: 0 | G62: -34377683.39 | H62: -34716329.22 | I62: -35558710.74 | J62: -35886358.86 | K62: -36712756 | L62: -37529992 | M62: -38338137.83 | N62: -38641855.55 | O62: -39434508.99 | P62: -40218269.86 | Q62: 0 | R62: 0 | S62: 0 | T62: 0 | U62: 0 | V62: 0 | W62: 0 | X62: 0 | Y62: 0 | Z62: 0 | AA62: 0 | AB62: 0 | AC62: 0 | AD62: 0 | AE62: 0 | AF62: 0 | AG62: 0 | AH62: 0 | AI62: 0 | AJ62: 0 | AK62: 0 | AL62: 0 | AM62: 0 | AN62: 0 | AO62: 0 | AP62: 0 | AQ62: 0
B63: New Battery | C63: Battery NPB | D63: =MAX(0,IF(D$2<=Years_Until_New_Asset_Operation,0,IF(D$2<=Clean_Asset_Life+Years_Until_New_Asset_Operation,IF(D$2>Years_Until_New_Asset_Operation,Battery_Plant_Balance*1-SUM($C$64:C$64),1),0))) -> 0 | E63: =MAX(0,IF(E$2<=Years_Until_New_Asset_Operation,0,IF(E$2<=Clean_Asset_Life+Years_Until_New_Asset_Operation,IF(E$2>Years_Until_New_Asset_Operation,Battery_Plant_Balance*1-SUM($C$64:D$64),1),0))) -> 0 | F63: =MAX(0,IF(F$2<=Years_Until_New_Asset_Operation,0,IF(F$2<=Clean_Asset_Life+Years_Until_New_Asset_Operation,IF(F$2>Years_Until_New_Asset_Operation,Battery_Plant_Balance*1-SUM($C$64:E$64),1),0))) -> 0 | G63: =MAX(0,IF(G$2<=Years_Until_New_Asset_Operation,0,IF(G$2<=Clean_Asset_Life+Years_Until_New_Asset_Operation,IF(G$2>Years_Until_New_Asset_Operation,Battery_Plant_Balance*1-SUM($C$64:F$64),1),0))) -> 1179039474 | H63: =MAX(0,IF(H$2<=Years_Until_New_Asset_Operation,0,IF(H$2<=Clean_Asset_Life+Years_Until_New_Asset_Operation,IF(H$2>Years_Until_New_Asset_Operation,Battery_Plant_Balance*1-SUM($C$64:G$64),1),0))) -> 1139738158 | I63: =MAX(0,IF(I$2<=Years_Until_New_Asset_Operation,0,IF(I$2<=Clean_Asset_Life+Years_Until_New_Asset_Operation,IF(I$2>Years_Until_New_Asset_Operation,Battery_Plant_Balance*1-SUM($C$64:H$64),1),0))) -> 1100436842 | J63: =MAX(0,IF(J$2<=Years_Until_New_Asset_Operation,0,IF(J$2<=Clean_Asset_Life+Years_Until_New_Asset_Operation,IF(J$2>Years_Until_New_Asset_Operation,Battery_Plant_Balance*1-SUM($C$64:I$64),1),0))) -> 1061135526 | K63: =MAX(0,IF(K$2<=Years_Until_New_Asset_Operation,0,IF(K$2<=Clean_Asset_Life+Years_Until_New_Asset_Operation,IF(K$2>Years_Until_New_Asset_Operation,Battery_Plant_Balance*1-SUM($C$64:J$64),1),0))) -> 1021834210 | L63: =MAX(0,IF(L$2<=Years_Until_New_Asset_Operation,0,IF(L$2<=Clean_Asset_Life+Years_Until_New_Asset_Operation,IF(L$2>Years_Until_New_Asset_Operation,Battery_Plant_Balance*1-SUM($C$64:K$64),1),0))) -> 982532894.6 | M63: =MAX(0,IF(M$2<=Years_Until_New_Asset_Operation,0,IF(M$2<=Clean_Asset_Life+Years_Until_New_Asset_Operation,IF(M$2>Years_Until_New_Asset_Operation,Battery_Plant_Balance*1-SUM($C$64:L$64),1),0))) -> 943231578.8 | N63: =MAX(0,IF(N$2<=Years_Until_New_Asset_Operation,0,IF(N$2<=Clean_Asset_Life+Years_Until_New_Asset_Operation,IF(N$2>Years_Until_New_Asset_Operation,Battery_Plant_Balance*1-SUM($C$64:M$64),1),0))) -> 903930263 | O63: =MAX(0,IF(O$2<=Years_Until_New_Asset_Operation,0,IF(O$2<=Clean_Asset_Life+Years_Until_New_Asset_Operation,IF(O$2>Years_Until_New_Asset_Operation,Battery_Plant_Balance*1-SUM($C$64:N$64),1),0))) -> 864628947.3 | P63: =MAX(0,IF(P$2<=Years_Until_New_Asset_Operation,0,IF(P$2<=Clean_Asset_Life+Years_Until_New_Asset_Operation,IF(P$2>Years_Until_New_Asset_Operation,Battery_Plant_Balance*1-SUM($C$64:O$64),1),0))) -> 825327631.5 | Q63: =MAX(0,IF(Q$2<=Years_Until_New_Asset_Operation,0,IF(Q$2<=Clean_Asset_Life+Years_Until_New_Asset_Operation,IF(Q$2>Years_Until_New_Asset_Operation,Battery_Plant_Balance*1-SUM($C$64:P$64),1),0))) -> 786026315.7 | R63: =MAX(0,IF(R$2<=Years_Until_New_Asset_Operation,0,IF(R$2<=Clean_Asset_Life+Years_Until_New_Asset_Operation,IF(R$2>Years_Until_New_Asset_Operation,Battery_Plant_Balance*1-SUM($C$64:Q$64),1),0))) -> 746724999.9 | S63: =MAX(0,IF(S$2<=Years_Until_New_Asset_Operation,0,IF(S$2<=Clean_Asset_Life+Years_Until_New_Asset_Operation,IF(S$2>Years_Until_New_Asset_Operation,Battery_Plant_Balance*1-SUM($C$64:R$64),1),0))) -> 707423684.1 | T63: =MAX(0,IF(T$2<=Years_Until_New_Asset_Operation,0,IF(T$2<=Clean_Asset_Life+Years_Until_New_Asset_Operation,IF(T$2>Years_Until_New_Asset_Operation,Battery_Plant_Balance*1-SUM($C$64:S$64),1),0))) -> 668122368.3 | U63: =MAX(0,IF(U$2<=Years_Until_New_Asset_Operation,0,IF(U$2<=Clean_Asset_Life+Years_Until_New_Asset_Operation,IF(U$2>Years_Until_New_Asset_Operation,Battery_Plant_Balance*1-SUM($C$64:T$64),1),0))) -> 628821052.6 | V63: =MAX(0,IF(V$2<=Years_Until_New_Asset_Operation,0,IF(V$2<=Clean_Asset_Life+Years_Until_New_Asset_Operation,IF(V$2>Years_Until_New_Asset_Operation,Battery_Plant_Balance*1-SUM($C$64:U$64),1),0))) -> 589519736.8 | W63: =MAX(0,IF(W$2<=Years_Until_New_Asset_Operation,0,IF(W$2<=Clean_Asset_Life+Years_Until_New_Asset_Operation,IF(W$2>Years_Until_New_Asset_Operation,Battery_Plant_Balance*1-SUM($C$64:V$64),1),0))) -> 550218421 | X63: =MAX(0,IF(X$2<=Years_Until_New_Asset_Operation,0,IF(X$2<=Clean_Asset_Life+Years_Until_New_Asset_Operation,IF(X$2>Years_Until_New_Asset_Operation,Battery_Plant_Balance*1-SUM($C$64:W$64),1),0))) -> 510917105.2 | Y63: =MAX(0,IF(Y$2<=Years_Until_New_Asset_Operation,0,IF(Y$2<=Clean_Asset_Life+Years_Until_New_Asset_Operation,IF(Y$2>Years_Until_New_Asset_Operation,Battery_Plant_Balance*1-SUM($C$64:X$64),1),0))) -> 471615789.4 | Z63: =MAX(0,IF(Z$2<=Years_Until_New_Asset_Operation,0,IF(Z$2<=Clean_Asset_Life+Years_Until_New_Asset_Operation,IF(Z$2>Years_Until_New_Asset_Operation,Battery_Plant_Balance*1-SUM($C$64:Y$64),1),0))) -> 432314473.6 | AA63: =MAX(0,IF(AA$2<=Years_Until_New_Asset_Operation,0,IF(AA$2<=Clean_Asset_Life+Years_Until_New_Asset_Operation,IF(AA$2>Years_Until_New_Asset_Operation,Battery_Plant_Balance*1-SUM($C$64:Z$64),1),0))) -> 393013157.8 | AB63: =MAX(0,IF(AB$2<=Years_Until_New_Asset_Operation,0,IF(AB$2<=Clean_Asset_Life+Years_Until_New_Asset_Operation,IF(AB$2>Years_Until_New_Asset_Operation,Battery_Plant_Balance*1-SUM($C$64:AA$64),1),0))) -> 353711842.1 | AC63: =MAX(0,IF(AC$2<=Years_Until_New_Asset_Operation,0,IF(AC$2<=Clean_Asset_Life+Years_Until_New_Asset_Operation,IF(AC$2>Years_Until_New_Asset_Operation,Battery_Plant_Balance*1-SUM($C$64:AB$64),1),0))) -> 314410526.3 | AD63: =MAX(0,IF(AD$2<=Years_Until_New_Asset_Operation,0,IF(AD$2<=Clean_Asset_Life+Years_Until_New_Asset_Operation,IF(AD$2>Years_Until_New_Asset_Operation,Battery_Plant_Balance*1-SUM($C$64:AC$64),1),0))) -> 275109210.5 | AE63: =MAX(0,IF(AE$2<=Years_Until_New_Asset_Operation,0,IF(AE$2<=Clean_Asset_Life+Years_Until_New_Asset_Operation,IF(AE$2>Years_Until_New_Asset_Operation,Battery_Plant_Balance*1-SUM($C$64:AD$64),1),0))) -> 235807894.7 | AF63: =MAX(0,IF(AF$2<=Years_Until_New_Asset_Operation,0,IF(AF$2<=Clean_Asset_Life+Years_Until_New_Asset_Operation,IF(AF$2>Years_Until_New_Asset_Operation,Battery_Plant_Balance*1-SUM($C$64:AE$64),1),0))) -> 196506578.9 | AG63: =MAX(0,IF(AG$2<=Years_Until_New_Asset_Operation,0,IF(AG$2<=Clean_Asset_Life+Years_Until_New_Asset_Operation,IF(AG$2>Years_Until_New_Asset_Operation,Battery_Plant_Balance*1-SUM($C$64:AF$64),1),0))) -> 157205263.1 | AH63: =MAX(0,IF(AH$2<=Years_Until_New_Asset_Operation,0,IF(AH$2<=Clean_Asset_Life+Years_Until_New_Asset_Operation,IF(AH$2>Years_Until_New_Asset_Operation,Battery_Plant_Balance*1-SUM($C$64:AG$64),1),0))) -> 117903947.4 | AI63: =MAX(0,IF(AI$2<=Years_Until_New_Asset_Operation,0,IF(AI$2<=Clean_Asset_Life+Years_Until_New_Asset_Operation,IF(AI$2>Years_Until_New_Asset_Operation,Battery_Plant_Balance*1-SUM($C$64:AH$64),1),0))) -> 78602631.57 | AJ63: =MAX(0,IF(AJ$2<=Years_Until_New_Asset_Operation,0,IF(AJ$2<=Clean_Asset_Life+Years_Until_New_Asset_Operation,IF(AJ$2>Years_Until_New_Asset_Operation,Battery_Plant_Balance*1-SUM($C$64:AI$64),1),0))) -> 39301315.78 | AK63: =MAX(0,IF(AK$2<=Years_Until_New_Asset_Operation,0,IF(AK$2<=Clean_Asset_Life+Years_Until_New_Asset_Operation,IF(AK$2>Years_Until_New_Asset_Operation,Battery_Plant_Balance*1-SUM($C$64:AJ$64),1),0))) -> 0 | AL63: =MAX(0,IF(AL$2<=Years_Until_New_Asset_Operation,0,IF(AL$2<=Clean_Asset_Life+Years_Until_New_Asset_Operation,IF(AL$2>Years_Until_New_Asset_Operation,Battery_Plant_Balance*1-SUM($C$64:AK$64),1),0))) -> 0 | AM63: =MAX(0,IF(AM$2<=Years_Until_New_Asset_Operation,0,IF(AM$2<=Clean_Asset_Life+Years_Until_New_Asset_Operation,IF(AM$2>Years_Until_New_Asset_Operation,Battery_Plant_Balance*1-SUM($C$64:AL$64),1),0))) -> 0 | AN63: =MAX(0,IF(AN$2<=Years_Until_New_Asset_Operation,0,IF(AN$2<=Clean_Asset_Life+Years_Until_New_Asset_Operation,IF(AN$2>Years_Until_New_Asset_Operation,Battery_Plant_Balance*1-SUM($C$64:AM$64),1),0))) -> 0 | AO63: =MAX(0,IF(AO$2<=Years_Until_New_Asset_Operation,0,IF(AO$2<=Clean_Asset_Life+Years_Until_New_Asset_Operation,IF(AO$2>Years_Until_New_Asset_Operation,Battery_Plant_Balance*1-SUM($C$64:AN$64),1),0))) -> 0 | AP63: =MAX(0,IF(AP$2<=Years_Until_New_Asset_Operation,0,IF(AP$2<=Clean_Asset_Life+Years_Until_New_Asset_Operation,IF(AP$2>Years_Until_New_Asset_Operation,Battery_Plant_Balance*1-SUM($C$64:AO$64),1),0))) -> 0 | AQ63: =MAX(0,IF(AQ$2<=Years_Until_New_Asset_Operation,0,IF(AQ$2<=Clean_Asset_Life+Years_Until_New_Asset_Operation,IF(AQ$2>Years_Until_New_Asset_Operation,Battery_Plant_Balance*1-SUM($C$64:AP$64),1),0))) -> 0
C64: Battery Depreciation | D64: =IF(D$2<=Years_Until_New_Asset_Operation,0,IF(D$2<=Clean_Asset_Life+Years_Until_New_Asset_Operation, Battery_Plant_Balance/Clean_Asset_Life, 0))*(1) -> 0 | E64: 0 | F64: 0 | G64: 39301315.78 | H64: 39301315.78 | I64: 39301315.78 | J64: 39301315.78 | K64: 39301315.78 | L64: 39301315.78 | M64: 39301315.78 | N64: 39301315.78 | O64: 39301315.78 | P64: 39301315.78 | Q64: 39301315.78 | R64: 39301315.78 | S64: 39301315.78 | T64: 39301315.78 | U64: 39301315.78 | V64: 39301315.78 | W64: 39301315.78 | X64: 39301315.78 | Y64: 39301315.78 | Z64: 39301315.78 | AA64: 39301315.78 | AB64: 39301315.78 | AC64: 39301315.78 | AD64: 39301315.78 | AE64: 39301315.78 | AF64: 39301315.78 | AG64: 39301315.78 | AH64: 39301315.78 | AI64: 39301315.78 | AJ64: 39301315.78 | AK64: 0 | AL64: 0 | AM64: 0 | AN64: 0 | AO64: 0 | AP64: 0 | AQ64: 0
C65: Net Impact on Rate Base | D65: =D63 -> 0 | E65: =E63 -> 0 | F65: 0 | G65: 1179039474 | H65: 1139738158 | I65: 1100436842 | J65: 1061135526 | K65: 1021834210 | L65: 982532894.6 | M65: 943231578.8 | N65: 903930263 | O65: 864628947.3 | P65: 825327631.5 | Q65: 786026315.7 | R65: 746724999.9 | S65: 707423684.1 | T65: 668122368.3 | U65: 628821052.6 | V65: 589519736.8 | W65: 550218421 | X65: 510917105.2 | Y65: 471615789.4 | Z65: 432314473.6 | AA65: 393013157.8 | AB65: 353711842.1 | AC65: 314410526.3 | AD65: 275109210.5 | AE65: 235807894.7 | AF65: 196506578.9 | AG65: 157205263.1 | AH65: 117903947.4 | AI65: 78602631.57 | AJ65: 39301315.78 | AK65: 0 | AL65: 0 | AM65: 0 | AN65: 0 | AO65: 0 | AP65: 0 | AQ65: 0
C66: Battery Return | D66: =D65*ROR/(1-Tax_Rate) -> 0 | E66: =E65*ROR/(1-Tax_Rate) -> 0 | F66: 0 | G66: 45122406.37 | H66: 43618326.16 | I66: 42114245.94 | J66: 40610165.73 | K66: 39106085.52 | L66: 37602005.31 | M66: 36097925.1 | N66: 34593844.88 | O66: 33089764.67 | P66: 31585684.46 | Q66: 30081604.25 | R66: 28577524.03 | S66: 27073443.82 | T66: 25569363.61 | U66: 24065283.4 | V66: 22561203.18 | W66: 21057122.97 | X66: 19553042.76 | Y66: 18048962.55 | Z66: 16544882.34 | AA66: 15040802.12 | AB66: 13536721.91 | AC66: 12032641.7 | AD66: 10528561.49 | AE66: 9024481.274 | AF66: 7520401.061 | AG66: 6016320.849 | AH66: 4512240.637 | AI66: 3008160.425 | AJ66: 1504080.212 | AK66: 0 | AL66: 0 | AM66: 0 | AN66: 0 | AO66: 0 | AP66: 0 | AQ66: 0
C67: Battery Fixed O&M | D67: =IF(D$2<=Years_Until_New_Asset_Operation,0,IF(D$2<=Years_Until_New_Asset_Operation+Clean_Asset_Life,Battery_Capacity*Battery_Fixed_OM*1000*IF(Battery_OM_Escalation_Input="No",D$1,(1+Battery_OM_Escalation)^(D$2-Years_Until_New_Asset_Operation-1)),0)) -> 0 | E67: 0 | F67: 0 | G67: 30168672.53 | H67: 30877847.98 | I67: 31622616.38 | J67: 32397370.49 | K67: 33191106.06 | L67: 34004288.16 | M67: 34836316.59 | N67: 35592563.03 | O67: 36304414.29 | P67: 37030502.58 | Q67: 37771112.63 | R67: 38526534.88 | S67: 39297065.58 | T67: 40083006.89 | U67: 40884667.03 | V67: 41702360.37 | W67: 42536407.58 | X67: 43387135.73 | Y67: 44254878.44 | Z67: 45139976.01 | AA67: 46042775.53 | AB67: 46963631.04 | AC67: 47902903.66 | AD67: 48860961.74 | AE67: 49838180.97 | AF67: 50834944.59 | AG67: 51851643.48 | AH67: 52888676.35 | AI67: 53946449.88 | AJ67: 55025378.88 | AK67: 0 | AL67: 0 | AM67: 0 | AN67: 0 | AO67: 0 | AP67: 0 | AQ67: 0
C68: Battery Variable O&M | D68: =IF(D$2<=Years_Until_New_Asset_Operation,0,IF(D$2<=Years_Until_New_Asset_Operation+Clean_Asset_Life,0,0)) -> 0 | E68: 0 | F68: 0 | G68: 0 | H68: 0 | I68: 0 | J68: 0 | K68: 0 | L68: 0 | M68: 0 | N68: 0 | O68: 0 | P68: 0 | Q68: 0 | R68: 0 | S68: 0 | T68: 0 | U68: 0 | V68: 0 | W68: 0 | X68: 0 | Y68: 0 | Z68: 0 | AA68: 0 | AB68: 0 | AC68: 0 | AD68: 0 | AE68: 0 | AF68: 0 | AG68: 0 | AH68: 0 | AI68: 0 | AJ68: 0 | AK68: 0 | AL68: 0 | AM68: 0 | AN68: 0 | AO68: 0 | AP68: 0 | AQ68: 0
C69: Accumulated Deferred Battery ITC | D69: =IF(D$2>Years_Until_New_Asset_Operation,SUM(D70:$AQ70),0) -> 0 | E69: =IF(E$2>Years_Until_New_Asset_Operation,SUM(E70:$AQ70),0) -> 0 | F69: =IF(F$2>Years_Until_New_Asset_Operation,SUM(F70:$AQ70),0) -> 0 | G69: =IF(G$2>Years_Until_New_Asset_Operation,SUM(G70:$AQ70),0) -> -471615789.4 | H69: =IF(H$2>Years_Until_New_Asset_Operation,SUM(H70:$AQ70),0) -> -455895263.1 | I69: =IF(I$2>Years_Until_New_Asset_Operation,SUM(I70:$AQ70),0) -> -440174736.8 | J69: =IF(J$2>Years_Until_New_Asset_Operation,SUM(J70:$AQ70),0) -> -424454210.5 | K69: =IF(K$2>Years_Until_New_Asset_Operation,SUM(K70:$AQ70),0) -> -408733684.2 | L69: =IF(L$2>Years_Until_New_Asset_Operation,SUM(L70:$AQ70),0) -> -393013157.8 | M69: =IF(M$2>Years_Until_New_Asset_Operation,SUM(M70:$AQ70),0) -> -377292631.5 | N69: =IF(N$2>Years_Until_New_Asset_Operation,SUM(N70:$AQ70),0) -> -361572105.2 | O69: =IF(O$2>Years_Until_New_Asset_Operation,SUM(O70:$AQ70),0) -> -345851578.9 | P69: =IF(P$2>Years_Until_New_Asset_Operation,SUM(P70:$AQ70),0) -> -330131052.6 | Q69: =IF(Q$2>Years_Until_New_Asset_Operation,SUM(Q70:$AQ70),0) -> -314410526.3 | R69: =IF(R$2>Years_Until_New_Asset_Operation,SUM(R70:$AQ70),0) -> -298690000 | S69: =IF(S$2>Years_Until_New_Asset_Operation,SUM(S70:$AQ70),0) -> -282969473.6 | T69: =IF(T$2>Years_Until_New_Asset_Operation,SUM(T70:$AQ70),0) -> -267248947.3 | U69: =IF(U$2>Years_Until_New_Asset_Operation,SUM(U70:$AQ70),0) -> -251528421 | V69: =IF(V$2>Years_Until_New_Asset_Operation,SUM(V70:$AQ70),0) -> -235807894.7 | W69: =IF(W$2>Years_Until_New_Asset_Operation,SUM(W70:$AQ70),0) -> -220087368.4 | X69: =IF(X$2>Years_Until_New_Asset_Operation,SUM(X70:$AQ70),0) -> -204366842.1 | Y69: =IF(Y$2>Years_Until_New_Asset_Operation,SUM(Y70:$AQ70),0) -> -188646315.8 | Z69: =IF(Z$2>Years_Until_New_Asset_Operation,SUM(Z70:$AQ70),0) -> -172925789.5 | AA69: =IF(AA$2>Years_Until_New_Asset_Operation,SUM(AA70:$AQ70),0) -> -157205263.1 | AB69: =IF(AB$2>Years_Until_New_Asset_Operation,SUM(AB70:$AQ70),0) -> -141484736.8 | AC69: =IF(AC$2>Years_Until_New_Asset_Operation,SUM(AC70:$AQ70),0) -> -125764210.5 | AD69: =IF(AD$2>Years_Until_New_Asset_Operation,SUM(AD70:$AQ70),0) -> -110043684.2 | AE69: =IF(AE$2>Years_Until_New_Asset_Operation,SUM(AE70:$AQ70),0) -> -94323157.88 | AF69: =IF(AF$2>Years_Until_New_Asset_Operation,SUM(AF70:$AQ70),0) -> -78602631.57 | AG69: =IF(AG$2>Years_Until_New_Asset_Operation,SUM(AG70:$AQ70),0) -> -62882105.26 | AH69: =IF(AH$2>Years_Until_New_Asset_Operation,SUM(AH70:$AQ70),0) -> -47161578.94 | AI69: =IF(AI$2>Years_Until_New_Asset_Operation,SUM(AI70:$AQ70),0) -> -31441052.63 | AJ69: =IF(AJ$2>Years_Until_New_Asset_Operation,SUM(AJ70:$AQ70),0) -> -15720526.31 | AK69: =IF(AK$2>Years_Until_New_Asset_Operation,SUM(AK70:$AQ70),0) -> 0 | AL69: =IF(AL$2>Years_Until_New_Asset_Operation,SUM(AL70:$AQ70),0) -> 0 | AM69: =IF(AM$2>Years_Until_New_Asset_Operation,SUM(AM70:$AQ70),0) -> 0 | AN69: =IF(AN$2>Years_Until_New_Asset_Operation,SUM(AN70:$AQ70),0) -> 0 | AO69: =IF(AO$2>Years_Until_New_Asset_Operation,SUM(AO70:$AQ70),0) -> 0 | AP69: =IF(AP$2>Years_Until_New_Asset_Operation,SUM(AP70:$AQ70),0) -> 0 | AQ69: =IF(AQ$2>Years_Until_New_Asset_Operation,SUM(AQ70:$AQ70),0) -> 0
C70: Normalized Rate Impact of Battery ITC | D70: =IF(AND(D$2>Years_Until_New_Asset_Operation,D$2<=Years_Until_New_Asset_Operation+IF(Voluntary_Normalization="Yes",Voluntary_Normalization_Period,Clean_Asset_Life)),(Battery_Plant_Balance*-Final_Battery_ITC/(1-Tax_Rate))/IF(Voluntary_Normalization="Yes",Voluntary_Normalization_Period,Clean_Asset_Life),0) -> 0 | E70: 0 | F70: 0 | G70: -15720526.31 | H70: -15720526.31 | I70: -15720526.31 | J70: -15720526.31 | K70: -15720526.31 | L70: -15720526.31 | M70: -15720526.31 | N70: -15720526.31 | O70: -15720526.31 | P70: -15720526.31 | Q70: -15720526.31 | R70: -15720526.31 | S70: -15720526.31 | T70: -15720526.31 | U70: -15720526.31 | V70: -15720526.31 | W70: -15720526.31 | X70: -15720526.31 | Y70: -15720526.31 | Z70: -15720526.31 | AA70: -15720526.31 | AB70: -15720526.31 | AC70: -15720526.31 | AD70: -15720526.31 | AE70: -15720526.31 | AF70: -15720526.31 | AG70: -15720526.31 | AH70: -15720526.31 | AI70: -15720526.31 | AJ70: -15720526.31 | AK70: 0 | AL70: 0 | AM70: 0 | AN70: 0 | AO70: 0 | AP70: 0 | AQ70: 0
C71: Normalized Return Impact of Deferred Battery ITC | D71: =D69* ROR / (1- Tax_Rate) -> 0 | E71: 0 | F71: 0 | G71: -18048962.55 | H71: -17447330.46 | I71: -16845698.38 | J71: -16244066.29 | K71: -15642434.21 | L71: -15040802.12 | M71: -14439170.04 | N71: -13837537.95 | O71: -13235905.87 | P71: -12634273.78 | Q71: -12032641.7 | R71: -11431009.61 | S71: -10829377.53 | T71: -10227745.44 | U71: -9626113.359 | V71: -9024481.274 | W71: -8422849.189 | X71: -7821217.104 | Y71: -7219585.019 | Z71: -6617952.934 | AA71: -6016320.849 | AB71: -5414688.764 | AC71: -4813056.679 | AD71: -4211424.594 | AE71: -3609792.51 | AF71: -3008160.425 | AG71: -2406528.34 | AH71: -1804896.255 | AI71: -1203264.17 | AJ71: -601632.0849 | AK71: 0 | AL71: 0 | AM71: 0 | AN71: 0 | AO71: 0 | AP71: 0 | AQ71: 0
B72: New Transmission | C72: Transmission NPB | D72: =MAX(0,IF(D$2<=(Transmission_Build_Year+1)-(Base_Year),0,IF(D$2<=Transmission_Asset_Life+(Transmission_Build_Year+1)-(Base_Year),IF(D$2>(Transmission_Build_Year+1)-(Base_Year),Transmission_CAPEX-SUM($C$73:C$73),1),0))) -> 0 | E72: =MAX(0,IF(E$2<=(Transmission_Build_Year+1)-(Base_Year),0,IF(E$2<=Transmission_Asset_Life+(Transmission_Build_Year+1)-(Base_Year),IF(E$2>(Transmission_Build_Year+1)-(Base_Year),Transmission_CAPEX-SUM($C$73:D$73),1),0))) -> 0 | F72: =MAX(0,IF(F$2<=(Transmission_Build_Year+1)-(Base_Year),0,IF(F$2<=Transmission_Asset_Life+(Transmission_Build_Year+1)-(Base_Year),IF(F$2>(Transmission_Build_Year+1)-(Base_Year),Transmission_CAPEX-SUM($C$73:E$73),1),0))) -> 0 | G72: =MAX(0,IF(G$2<=(Transmission_Build_Year+1)-(Base_Year),0,IF(G$2<=Transmission_Asset_Life+(Transmission_Build_Year+1)-(Base_Year),IF(G$2>(Transmission_Build_Year+1)-(Base_Year),Transmission_CAPEX-SUM($C$73:F$73),1),0))) -> 150000000 | H72: =MAX(0,IF(H$2<=(Transmission_Build_Year+1)-(Base_Year),0,IF(H$2<=Transmission_Asset_Life+(Transmission_Build_Year+1)-(Base_Year),IF(H$2>(Transmission_Build_Year+1)-(Base_Year),Transmission_CAPEX-SUM($C$73:G$73),1),0))) -> 145000000 | I72: =MAX(0,IF(I$2<=(Transmission_Build_Year+1)-(Base_Year),0,IF(I$2<=Transmission_Asset_Life+(Transmission_Build_Year+1)-(Base_Year),IF(I$2>(Transmission_Build_Year+1)-(Base_Year),Transmission_CAPEX-SUM($C$73:H$73),1),0))) -> 140000000 | J72: =MAX(0,IF(J$2<=(Transmission_Build_Year+1)-(Base_Year),0,IF(J$2<=Transmission_Asset_Life+(Transmission_Build_Year+1)-(Base_Year),IF(J$2>(Transmission_Build_Year+1)-(Base_Year),Transmission_CAPEX-SUM($C$73:I$73),1),0))) -> 135000000 | K72: =MAX(0,IF(K$2<=(Transmission_Build_Year+1)-(Base_Year),0,IF(K$2<=Transmission_Asset_Life+(Transmission_Build_Year+1)-(Base_Year),IF(K$2>(Transmission_Build_Year+1)-(Base_Year),Transmission_CAPEX-SUM($C$73:J$73),1),0))) -> 130000000 | L72: =MAX(0,IF(L$2<=(Transmission_Build_Year+1)-(Base_Year),0,IF(L$2<=Transmission_Asset_Life+(Transmission_Build_Year+1)-(Base_Year),IF(L$2>(Transmission_Build_Year+1)-(Base_Year),Transmission_CAPEX-SUM($C$73:K$73),1),0))) -> 125000000 | M72: =MAX(0,IF(M$2<=(Transmission_Build_Year+1)-(Base_Year),0,IF(M$2<=Transmission_Asset_Life+(Transmission_Build_Year+1)-(Base_Year),IF(M$2>(Transmission_Build_Year+1)-(Base_Year),Transmission_CAPEX-SUM($C$73:L$73),1),0))) -> 120000000 | N72: =MAX(0,IF(N$2<=(Transmission_Build_Year+1)-(Base_Year),0,IF(N$2<=Transmission_Asset_Life+(Transmission_Build_Year+1)-(Base_Year),IF(N$2>(Transmission_Build_Year+1)-(Base_Year),Transmission_CAPEX-SUM($C$73:M$73),1),0))) -> 115000000 | O72: =MAX(0,IF(O$2<=(Transmission_Build_Year+1)-(Base_Year),0,IF(O$2<=Transmission_Asset_Life+(Transmission_Build_Year+1)-(Base_Year),IF(O$2>(Transmission_Build_Year+1)-(Base_Year),Transmission_CAPEX-SUM($C$73:N$73),1),0))) -> 110000000 | P72: =MAX(0,IF(P$2<=(Transmission_Build_Year+1)-(Base_Year),0,IF(P$2<=Transmission_Asset_Life+(Transmission_Build_Year+1)-(Base_Year),IF(P$2>(Transmission_Build_Year+1)-(Base_Year),Transmission_CAPEX-SUM($C$73:O$73),1),0))) -> 105000000 | Q72: =MAX(0,IF(Q$2<=(Transmission_Build_Year+1)-(Base_Year),0,IF(Q$2<=Transmission_Asset_Life+(Transmission_Build_Year+1)-(Base_Year),IF(Q$2>(Transmission_Build_Year+1)-(Base_Year),Transmission_CAPEX-SUM($C$73:P$73),1),0))) -> 100000000 | R72: =MAX(0,IF(R$2<=(Transmission_Build_Year+1)-(Base_Year),0,IF(R$2<=Transmission_Asset_Life+(Transmission_Build_Year+1)-(Base_Year),IF(R$2>(Transmission_Build_Year+1)-(Base_Year),Transmission_CAPEX-SUM($C$73:Q$73),1),0))) -> 95000000 | S72: =MAX(0,IF(S$2<=(Transmission_Build_Year+1)-(Base_Year),0,IF(S$2<=Transmission_Asset_Life+(Transmission_Build_Year+1)-(Base_Year),IF(S$2>(Transmission_Build_Year+1)-(Base_Year),Transmission_CAPEX-SUM($C$73:R$73),1),0))) -> 90000000 | T72: =MAX(0,IF(T$2<=(Transmission_Build_Year+1)-(Base_Year),0,IF(T$2<=Transmission_Asset_Life+(Transmission_Build_Year+1)-(Base_Year),IF(T$2>(Transmission_Build_Year+1)-(Base_Year),Transmission_CAPEX-SUM($C$73:S$73),1),0))) -> 85000000 | U72: =MAX(0,IF(U$2<=(Transmission_Build_Year+1)-(Base_Year),0,IF(U$2<=Transmission_Asset_Life+(Transmission_Build_Year+1)-(Base_Year),IF(U$2>(Transmission_Build_Year+1)-(Base_Year),Transmission_CAPEX-SUM($C$73:T$73),1),0))) -> 80000000 | V72: =MAX(0,IF(V$2<=(Transmission_Build_Year+1)-(Base_Year),0,IF(V$2<=Transmission_Asset_Life+(Transmission_Build_Year+1)-(Base_Year),IF(V$2>(Transmission_Build_Year+1)-(Base_Year),Transmission_CAPEX-SUM($C$73:U$73),1),0))) -> 75000000 | W72: =MAX(0,IF(W$2<=(Transmission_Build_Year+1)-(Base_Year),0,IF(W$2<=Transmission_Asset_Life+(Transmission_Build_Year+1)-(Base_Year),IF(W$2>(Transmission_Build_Year+1)-(Base_Year),Transmission_CAPEX-SUM($C$73:V$73),1),0))) -> 70000000 | X72: =MAX(0,IF(X$2<=(Transmission_Build_Year+1)-(Base_Year),0,IF(X$2<=Transmission_Asset_Life+(Transmission_Build_Year+1)-(Base_Year),IF(X$2>(Transmission_Build_Year+1)-(Base_Year),Transmission_CAPEX-SUM($C$73:W$73),1),0))) -> 65000000 | Y72: =MAX(0,IF(Y$2<=(Transmission_Build_Year+1)-(Base_Year),0,IF(Y$2<=Transmission_Asset_Life+(Transmission_Build_Year+1)-(Base_Year),IF(Y$2>(Transmission_Build_Year+1)-(Base_Year),Transmission_CAPEX-SUM($C$73:X$73),1),0))) -> 60000000 | Z72: =MAX(0,IF(Z$2<=(Transmission_Build_Year+1)-(Base_Year),0,IF(Z$2<=Transmission_Asset_Life+(Transmission_Build_Year+1)-(Base_Year),IF(Z$2>(Transmission_Build_Year+1)-(Base_Year),Transmission_CAPEX-SUM($C$73:Y$73),1),0))) -> 55000000 | AA72: =MAX(0,IF(AA$2<=(Transmission_Build_Year+1)-(Base_Year),0,IF(AA$2<=Transmission_Asset_Life+(Transmission_Build_Year+1)-(Base_Year),IF(AA$2>(Transmission_Build_Year+1)-(Base_Year),Transmission_CAPEX-SUM($C$73:Z$73),1),0))) -> 50000000 | AB72: =MAX(0,IF(AB$2<=(Transmission_Build_Year+1)-(Base_Year),0,IF(AB$2<=Transmission_Asset_Life+(Transmission_Build_Year+1)-(Base_Year),IF(AB$2>(Transmission_Build_Year+1)-(Base_Year),Transmission_CAPEX-SUM($C$73:AA$73),1),0))) -> 45000000 | AC72: =MAX(0,IF(AC$2<=(Transmission_Build_Year+1)-(Base_Year),0,IF(AC$2<=Transmission_Asset_Life+(Transmission_Build_Year+1)-(Base_Year),IF(AC$2>(Transmission_Build_Year+1)-(Base_Year),Transmission_CAPEX-SUM($C$73:AB$73),1),0))) -> 40000000 | AD72: =MAX(0,IF(AD$2<=(Transmission_Build_Year+1)-(Base_Year),0,IF(AD$2<=Transmission_Asset_Life+(Transmission_Build_Year+1)-(Base_Year),IF(AD$2>(Transmission_Build_Year+1)-(Base_Year),Transmission_CAPEX-SUM($C$73:AC$73),1),0))) -> 35000000 | AE72: =MAX(0,IF(AE$2<=(Transmission_Build_Year+1)-(Base_Year),0,IF(AE$2<=Transmission_Asset_Life+(Transmission_Build_Year+1)-(Base_Year),IF(AE$2>(Transmission_Build_Year+1)-(Base_Year),Transmission_CAPEX-SUM($C$73:AD$73),1),0))) -> 30000000 | AF72: =MAX(0,IF(AF$2<=(Transmission_Build_Year+1)-(Base_Year),0,IF(AF$2<=Transmission_Asset_Life+(Transmission_Build_Year+1)-(Base_Year),IF(AF$2>(Transmission_Build_Year+1)-(Base_Year),Transmission_CAPEX-SUM($C$73:AE$73),1),0))) -> 25000000 | AG72: =MAX(0,IF(AG$2<=(Transmission_Build_Year+1)-(Base_Year),0,IF(AG$2<=Transmission_Asset_Life+(Transmission_Build_Year+1)-(Base_Year),IF(AG$2>(Transmission_Build_Year+1)-(Base_Year),Transmission_CAPEX-SUM($C$73:AF$73),1),0))) -> 20000000 | AH72: =MAX(0,IF(AH$2<=(Transmission_Build_Year+1)-(Base_Year),0,IF(AH$2<=Transmission_Asset_Life+(Transmission_Build_Year+1)-(Base_Year),IF(AH$2>(Transmission_Build_Year+1)-(Base_Year),Transmission_CAPEX-SUM($C$73:AG$73),1),0))) -> 15000000 | AI72: =MAX(0,IF(AI$2<=(Transmission_Build_Year+1)-(Base_Year),0,IF(AI$2<=Transmission_Asset_Life+(Transmission_Build_Year+1)-(Base_Year),IF(AI$2>(Transmission_Build_Year+1)-(Base_Year),Transmission_CAPEX-SUM($C$73:AH$73),1),0))) -> 10000000 | AJ72: =MAX(0,IF(AJ$2<=(Transmission_Build_Year+1)-(Base_Year),0,IF(AJ$2<=Transmission_Asset_Life+(Transmission_Build_Year+1)-(Base_Year),IF(AJ$2>(Transmission_Build_Year+1)-(Base_Year),Transmission_CAPEX-SUM($C$73:AI$73),1),0))) -> 5000000 | AK72: =MAX(0,IF(AK$2<=(Transmission_Build_Year+1)-(Base_Year),0,IF(AK$2<=Transmission_Asset_Life+(Transmission_Build_Year+1)-(Base_Year),IF(AK$2>(Transmission_Build_Year+1)-(Base_Year),Transmission_CAPEX-SUM($C$73:AJ$73),1),0))) -> 0 | AL72: =MAX(0,IF(AL$2<=(Transmission_Build_Year+1)-(Base_Year),0,IF(AL$2<=Transmission_Asset_Life+(Transmission_Build_Year+1)-(Base_Year),IF(AL$2>(Transmission_Build_Year+1)-(Base_Year),Transmission_CAPEX-SUM($C$73:AK$73),1),0))) -> 0 | AM72: =MAX(0,IF(AM$2<=(Transmission_Build_Year+1)-(Base_Year),0,IF(AM$2<=Transmission_Asset_Life+(Transmission_Build_Year+1)-(Base_Year),IF(AM$2>(Transmission_Build_Year+1)-(Base_Year),Transmission_CAPEX-SUM($C$73:AL$73),1),0))) -> 0 | AN72: =MAX(0,IF(AN$2<=(Transmission_Build_Year+1)-(Base_Year),0,IF(AN$2<=Transmission_Asset_Life+(Transmission_Build_Year+1)-(Base_Year),IF(AN$2>(Transmission_Build_Year+1)-(Base_Year),Transmission_CAPEX-SUM($C$73:AM$73),1),0))) -> 0 | AO72: =MAX(0,IF(AO$2<=(Transmission_Build_Year+1)-(Base_Year),0,IF(AO$2<=Transmission_Asset_Life+(Transmission_Build_Year+1)-(Base_Year),IF(AO$2>(Transmission_Build_Year+1)-(Base_Year),Transmission_CAPEX-SUM($C$73:AN$73),1),0))) -> 0 | AP72: =MAX(0,IF(AP$2<=(Transmission_Build_Year+1)-(Base_Year),0,IF(AP$2<=Transmission_Asset_Life+(Transmission_Build_Year+1)-(Base_Year),IF(AP$2>(Transmission_Build_Year+1)-(Base_Year),Transmission_CAPEX-SUM($C$73:AO$73),1),0))) -> 0 | AQ72: =MAX(0,IF(AQ$2<=(Transmission_Build_Year+1)-(Base_Year),0,IF(AQ$2<=Transmission_Asset_Life+(Transmission_Build_Year+1)-(Base_Year),IF(AQ$2>(Transmission_Build_Year+1)-(Base_Year),Transmission_CAPEX-SUM($C$73:AP$73),1),0))) -> 0
C73: Transmission Depreciation | D73: =IF(D$2<=(Transmission_Build_Year+1)-(Base_Year),0,IF(D$2<=Transmission_Asset_Life+(Transmission_Build_Year+1)-(Base_Year), Transmission_CAPEX/Transmission_Asset_Life, 0)) -> 0 | E73: 0 | F73: 0 | G73: 5000000 | H73: 5000000 | I73: 5000000 | J73: 5000000 | K73: 5000000 | L73: 5000000 | M73: 5000000 | N73: 5000000 | O73: 5000000 | P73: 5000000 | Q73: 5000000 | R73: 5000000 | S73: 5000000 | T73: 5000000 | U73: 5000000 | V73: 5000000 | W73: 5000000 | X73: 5000000 | Y73: 5000000 | Z73: 5000000 | AA73: 5000000 | AB73: 5000000 | AC73: 5000000 | AD73: 5000000 | AE73: 5000000 | AF73: 5000000 | AG73: 5000000 | AH73: 5000000 | AI73: 5000000 | AJ73: 5000000 | AK73: 0 | AL73: 0 | AM73: 0 | AN73: 0 | AO73: 0 | AP73: 0 | AQ73: 0
C74: Net Impact on Rate Base | D74: =D72 -> 0 | E74: =E72 -> 0 | F74: 0 | G74: 150000000 | H74: 145000000 | I74: 140000000 | J74: 135000000 | K74: 130000000 | L74: 125000000 | M74: 120000000 | N74: 115000000 | O74: 110000000 | P74: 105000000 | Q74: 100000000 | R74: 95000000 | S74: 90000000 | T74: 85000000 | U74: 80000000 | V74: 75000000 | W74: 70000000 | X74: 65000000 | Y74: 60000000 | Z74: 55000000 | AA74: 50000000 | AB74: 45000000 | AC74: 40000000 | AD74: 35000000 | AE74: 30000000 | AF74: 25000000 | AG74: 20000000 | AH74: 15000000 | AI74: 10000000 | AJ74: 5000000 | AK74: 0 | AL74: 0 | AM74: 0 | AN74: 0 | AO74: 0 | AP74: 0 | AQ74: 0
C75: Transmission Return | D75: =D74*ROR/(1-Tax_Rate) -> 0 | E75: 0 | F75: 0 | G75: 5740571.972 | H75: 5549219.573 | I75: 5357867.174 | J75: 5166514.775 | K75: 4975162.375 | L75: 4783809.976 | M75: 4592457.577 | N75: 4401105.178 | O75: 4209752.779 | P75: 4018400.38 | Q75: 3827047.981 | R75: 3635695.582 | S75: 3444343.183 | T75: 3252990.784 | U75: 3061638.385 | V75: 2870285.986 | W75: 2678933.587 | X75: 2487581.188 | Y75: 2296228.789 | Z75: 2104876.39 | AA75: 1913523.991 | AB75: 1722171.592 | AC75: 1530819.192 | AD75: 1339466.793 | AE75: 1148114.394 | AF75: 956761.9953 | AG75: 765409.5962 | AH75: 574057.1972 | AI75: 382704.7981 | AJ75: 191352.3991 | AK75: 0 | AL75: 0 | AM75: 0 | AN75: 0 | AO75: 0 | AP75: 0 | AQ75: 0
C76: Transmission Fixed O&M | D76: =IF(D$2<=(Transmission_Build_Year+1)-(Base_Year),0,IF(D$2<=(Transmission_Build_Year+1)-(Base_Year)+Transmission_Asset_Life,Transmission_Fixed_OM*IF(Transmission_OM_Escalation_Input="No",D$1,(1+Transmission_OM_Escalation)^(D$3-Transmission_Build_Year-1))/INDEX($D$1:$AQ$1,_xlfn.XMATCH(Transmission_Build_Year,$D$3:$AQ$3)),0)) -> 0 | E76: =IF(E$2<=(Transmission_Build_Year+1)-(Base_Year),0,IF(E$2<=(Transmission_Build_Year+1)-(Base_Year)+Transmission_Asset_Life,Transmission_Fixed_OM*IF(Transmission_OM_Escalation_Input="No",E$1,(1+Transmission_OM_Escalation)^(E$3-Transmission_Build_Year-1))/INDEX($D$1:$AQ$1,_xlfn.XMATCH(Transmission_Build_Year,$D$3:$AQ$3)),0)) -> 0 | F76: =IF(F$2<=(Transmission_Build_Year+1)-(Base_Year),0,IF(F$2<=(Transmission_Build_Year+1)-(Base_Year)+Transmission_Asset_Life,Transmission_Fixed_OM*IF(Transmission_OM_Escalation_Input="No",F$1,(1+Transmission_OM_Escalation)^(F$3-Transmission_Build_Year-1))/INDEX($D$1:$AQ$1,_xlfn.XMATCH(Transmission_Build_Year,$D$3:$AQ$3)),0)) -> 0 | G76: =IF(G$2<=(Transmission_Build_Year+1)-(Base_Year),0,IF(G$2<=(Transmission_Build_Year+1)-(Base_Year)+Transmission_Asset_Life,Transmission_Fixed_OM*IF(Transmission_OM_Escalation_Input="No",G$1,(1+Transmission_OM_Escalation)^(G$3-Transmission_Build_Year-1))/INDEX($D$1:$AQ$1,_xlfn.XMATCH(Transmission_Build_Year,$D$3:$AQ$3)),0)) -> 10235000 | H76: =IF(H$2<=(Transmission_Build_Year+1)-(Base_Year),0,IF(H$2<=(Transmission_Build_Year+1)-(Base_Year)+Transmission_Asset_Life,Transmission_Fixed_OM*IF(Transmission_OM_Escalation_Input="No",H$1,(1+Transmission_OM_Escalation)^(H$3-Transmission_Build_Year-1))/INDEX($D$1:$AQ$1,_xlfn.XMATCH(Transmission_Build_Year,$D$3:$AQ$3)),0)) -> 10475594.3 | I76: =IF(I$2<=(Transmission_Build_Year+1)-(Base_Year),0,IF(I$2<=(Transmission_Build_Year+1)-(Base_Year)+Transmission_Asset_Life,Transmission_Fixed_OM*IF(Transmission_OM_Escalation_Input="No",I$1,(1+Transmission_OM_Escalation)^(I$3-Transmission_Build_Year-1))/INDEX($D$1:$AQ$1,_xlfn.XMATCH(Transmission_Build_Year,$D$3:$AQ$3)),0)) -> 10728263.84 | J76: =IF(J$2<=(Transmission_Build_Year+1)-(Base_Year),0,IF(J$2<=(Transmission_Build_Year+1)-(Base_Year)+Transmission_Asset_Life,Transmission_Fixed_OM*IF(Transmission_OM_Escalation_Input="No",J$1,(1+Transmission_OM_Escalation)^(J$3-Transmission_Build_Year-1))/INDEX($D$1:$AQ$1,_xlfn.XMATCH(Transmission_Build_Year,$D$3:$AQ$3)),0)) -> 10991106.31 | K76: =IF(K$2<=(Transmission_Build_Year+1)-(Base_Year),0,IF(K$2<=(Transmission_Build_Year+1)-(Base_Year)+Transmission_Asset_Life,Transmission_Fixed_OM*IF(Transmission_OM_Escalation_Input="No",K$1,(1+Transmission_OM_Escalation)^(K$3-Transmission_Build_Year-1))/INDEX($D$1:$AQ$1,_xlfn.XMATCH(Transmission_Build_Year,$D$3:$AQ$3)),0)) -> 11260388.41 | L76: =IF(L$2<=(Transmission_Build_Year+1)-(Base_Year),0,IF(L$2<=(Transmission_Build_Year+1)-(Base_Year)+Transmission_Asset_Life,Transmission_Fixed_OM*IF(Transmission_OM_Escalation_Input="No",L$1,(1+Transmission_OM_Escalation)^(L$3-Transmission_Build_Year-1))/INDEX($D$1:$AQ$1,_xlfn.XMATCH(Transmission_Build_Year,$D$3:$AQ$3)),0)) -> 11536267.93 | M76: =IF(M$2<=(Transmission_Build_Year+1)-(Base_Year),0,IF(M$2<=(Transmission_Build_Year+1)-(Base_Year)+Transmission_Asset_Life,Transmission_Fixed_OM*IF(Transmission_OM_Escalation_Input="No",M$1,(1+Transmission_OM_Escalation)^(M$3-Transmission_Build_Year-1))/INDEX($D$1:$AQ$1,_xlfn.XMATCH(Transmission_Build_Year,$D$3:$AQ$3)),0)) -> 11818541.24 | N76: =IF(N$2<=(Transmission_Build_Year+1)-(Base_Year),0,IF(N$2<=(Transmission_Build_Year+1)-(Base_Year)+Transmission_Asset_Life,Transmission_Fixed_OM*IF(Transmission_OM_Escalation_Input="No",N$1,(1+Transmission_OM_Escalation)^(N$3-Transmission_Build_Year-1))/INDEX($D$1:$AQ$1,_xlfn.XMATCH(Transmission_Build_Year,$D$3:$AQ$3)),0)) -> 12075104.81 | O76: =IF(O$2<=(Transmission_Build_Year+1)-(Base_Year),0,IF(O$2<=(Transmission_Build_Year+1)-(Base_Year)+Transmission_Asset_Life,Transmission_Fixed_OM*IF(Transmission_OM_Escalation_Input="No",O$1,(1+Transmission_OM_Escalation)^(O$3-Transmission_Build_Year-1))/INDEX($D$1:$AQ$1,_xlfn.XMATCH(Transmission_Build_Year,$D$3:$AQ$3)),0)) -> 12316606.9 | P76: =IF(P$2<=(Transmission_Build_Year+1)-(Base_Year),0,IF(P$2<=(Transmission_Build_Year+1)-(Base_Year)+Transmission_Asset_Life,Transmission_Fixed_OM*IF(Transmission_OM_Escalation_Input="No",P$1,(1+Transmission_OM_Escalation)^(P$3-Transmission_Build_Year-1))/INDEX($D$1:$AQ$1,_xlfn.XMATCH(Transmission_Build_Year,$D$3:$AQ$3)),0)) -> 12562939.04 | Q76: =IF(Q$2<=(Transmission_Build_Year+1)-(Base_Year),0,IF(Q$2<=(Transmission_Build_Year+1)-(Base_Year)+Transmission_Asset_Life,Transmission_Fixed_OM*IF(Transmission_OM_Escalation_Input="No",Q$1,(1+Transmission_OM_Escalation)^(Q$3-Transmission_Build_Year-1))/INDEX($D$1:$AQ$1,_xlfn.XMATCH(Transmission_Build_Year,$D$3:$AQ$3)),0)) -> 12814197.82 | R76: =IF(R$2<=(Transmission_Build_Year+1)-(Base_Year),0,IF(R$2<=(Transmission_Build_Year+1)-(Base_Year)+Transmission_Asset_Life,Transmission_Fixed_OM*IF(Transmission_OM_Escalation_Input="No",R$1,(1+Transmission_OM_Escalation)^(R$3-Transmission_Build_Year-1))/INDEX($D$1:$AQ$1,_xlfn.XMATCH(Transmission_Build_Year,$D$3:$AQ$3)),0)) -> 13070481.78 | S76: =IF(S$2<=(Transmission_Build_Year+1)-(Base_Year),0,IF(S$2<=(Transmission_Build_Year+1)-(Base_Year)+Transmission_Asset_Life,Transmission_Fixed_OM*IF(Transmission_OM_Escalation_Input="No",S$1,(1+Transmission_OM_Escalation)^(S$3-Transmission_Build_Year-1))/INDEX($D$1:$AQ$1,_xlfn.XMATCH(Transmission_Build_Year,$D$3:$AQ$3)),0)) -> 13331891.41 | T76: =IF(T$2<=(Transmission_Build_Year+1)-(Base_Year),0,IF(T$2<=(Transmission_Build_Year+1)-(Base_Year)+Transmission_Asset_Life,Transmission_Fixed_OM*IF(Transmission_OM_Escalation_Input="No",T$1,(1+Transmission_OM_Escalation)^(T$3-Transmission_Build_Year-1))/INDEX($D$1:$AQ$1,_xlfn.XMATCH(Transmission_Build_Year,$D$3:$AQ$3)),0)) -> 13598529.24 | U76: =IF(U$2<=(Transmission_Build_Year+1)-(Base_Year),0,IF(U$2<=(Transmission_Build_Year+1)-(Base_Year)+Transmission_Asset_Life,Transmission_Fixed_OM*IF(Transmission_OM_Escalation_Input="No",U$1,(1+Transmission_OM_Escalation)^(U$3-Transmission_Build_Year-1))/INDEX($D$1:$AQ$1,_xlfn.XMATCH(Transmission_Build_Year,$D$3:$AQ$3)),0)) -> 13870499.83 | V76: =IF(V$2<=(Transmission_Build_Year+1)-(Base_Year),0,IF(V$2<=(Transmission_Build_Year+1)-(Base_Year)+Transmission_Asset_Life,Transmission_Fixed_OM*IF(Transmission_OM_Escalation_Input="No",V$1,(1+Transmission_OM_Escalation)^(V$3-Transmission_Build_Year-1))/INDEX($D$1:$AQ$1,_xlfn.XMATCH(Transmission_Build_Year,$D$3:$AQ$3)),0)) -> 14147909.82 | W76: =IF(W$2<=(Transmission_Build_Year+1)-(Base_Year),0,IF(W$2<=(Transmission_Build_Year+1)-(Base_Year)+Transmission_Asset_Life,Transmission_Fixed_OM*IF(Transmission_OM_Escalation_Input="No",W$1,(1+Transmission_OM_Escalation)^(W$3-Transmission_Build_Year-1))/INDEX($D$1:$AQ$1,_xlfn.XMATCH(Transmission_Build_Year,$D$3:$AQ$3)),0)) -> 14430868.02 | X76: =IF(X$2<=(Transmission_Build_Year+1)-(Base_Year),0,IF(X$2<=(Transmission_Build_Year+1)-(Base_Year)+Transmission_Asset_Life,Transmission_Fixed_OM*IF(Transmission_OM_Escalation_Input="No",X$1,(1+Transmission_OM_Escalation)^(X$3-Transmission_Build_Year-1))/INDEX($D$1:$AQ$1,_xlfn.XMATCH(Transmission_Build_Year,$D$3:$AQ$3)),0)) -> 14719485.38 | Y76: =IF(Y$2<=(Transmission_Build_Year+1)-(Base_Year),0,IF(Y$2<=(Transmission_Build_Year+1)-(Base_Year)+Transmission_Asset_Life,Transmission_Fixed_OM*IF(Transmission_OM_Escalation_Input="No",Y$1,(1+Transmission_OM_Escalation)^(Y$3-Transmission_Build_Year-1))/INDEX($D$1:$AQ$1,_xlfn.XMATCH(Transmission_Build_Year,$D$3:$AQ$3)),0)) -> 15013875.09 | Z76: =IF(Z$2<=(Transmission_Build_Year+1)-(Base_Year),0,IF(Z$2<=(Transmission_Build_Year+1)-(Base_Year)+Transmission_Asset_Life,Transmission_Fixed_OM*IF(Transmission_OM_Escalation_Input="No",Z$1,(1+Transmission_OM_Escalation)^(Z$3-Transmission_Build_Year-1))/INDEX($D$1:$AQ$1,_xlfn.XMATCH(Transmission_Build_Year,$D$3:$AQ$3)),0)) -> 15314152.59 | AA76: =IF(AA$2<=(Transmission_Build_Year+1)-(Base_Year),0,IF(AA$2<=(Transmission_Build_Year+1)-(Base_Year)+Transmission_Asset_Life,Transmission_Fixed_OM*IF(Transmission_OM_Escalation_Input="No",AA$1,(1+Transmission_OM_Escalation)^(AA$3-Transmission_Build_Year-1))/INDEX($D$1:$AQ$1,_xlfn.XMATCH(Transmission_Build_Year,$D$3:$AQ$3)),0)) -> 15620435.64 | AB76: =IF(AB$2<=(Transmission_Build_Year+1)-(Base_Year),0,IF(AB$2<=(Transmission_Build_Year+1)-(Base_Year)+Transmission_Asset_Life,Transmission_Fixed_OM*IF(Transmission_OM_Escalation_Input="No",AB$1,(1+Transmission_OM_Escalation)^(AB$3-Transmission_Build_Year-1))/INDEX($D$1:$AQ$1,_xlfn.XMATCH(Transmission_Build_Year,$D$3:$AQ$3)),0)) -> 15932844.35 | AC76: =IF(AC$2<=(Transmission_Build_Year+1)-(Base_Year),0,IF(AC$2<=(Transmission_Build_Year+1)-(Base_Year)+Transmission_Asset_Life,Transmission_Fixed_OM*IF(Transmission_OM_Escalation_Input="No",AC$1,(1+Transmission_OM_Escalation)^(AC$3-Transmission_Build_Year-1))/INDEX($D$1:$AQ$1,_xlfn.XMATCH(Transmission_Build_Year,$D$3:$AQ$3)),0)) -> 16251501.24 | AD76: =IF(AD$2<=(Transmission_Build_Year+1)-(Base_Year),0,IF(AD$2<=(Transmission_Build_Year+1)-(Base_Year)+Transmission_Asset_Life,Transmission_Fixed_OM*IF(Transmission_OM_Escalation_Input="No",AD$1,(1+Transmission_OM_Escalation)^(AD$3-Transmission_Build_Year-1))/INDEX($D$1:$AQ$1,_xlfn.XMATCH(Transmission_Build_Year,$D$3:$AQ$3)),0)) -> 16576531.26 | AE76: =IF(AE$2<=(Transmission_Build_Year+1)-(Base_Year),0,IF(AE$2<=(Transmission_Build_Year+1)-(Base_Year)+Transmission_Asset_Life,Transmission_Fixed_OM*IF(Transmission_OM_Escalation_Input="No",AE$1,(1+Transmission_OM_Escalation)^(AE$3-Transmission_Build_Year-1))/INDEX($D$1:$AQ$1,_xlfn.XMATCH(Transmission_Build_Year,$D$3:$AQ$3)),0)) -> 16908061.89 | AF76: =IF(AF$2<=(Transmission_Build_Year+1)-(Base_Year),0,IF(AF$2<=(Transmission_Build_Year+1)-(Base_Year)+Transmission_Asset_Life,Transmission_Fixed_OM*IF(Transmission_OM_Escalation_Input="No",AF$1,(1+Transmission_OM_Escalation)^(AF$3-Transmission_Build_Year-1))/INDEX($D$1:$AQ$1,_xlfn.XMATCH(Transmission_Build_Year,$D$3:$AQ$3)),0)) -> 17246223.13 | AG76: =IF(AG$2<=(Transmission_Build_Year+1)-(Base_Year),0,IF(AG$2<=(Transmission_Build_Year+1)-(Base_Year)+Transmission_Asset_Life,Transmission_Fixed_OM*IF(Transmission_OM_Escalation_Input="No",AG$1,(1+Transmission_OM_Escalation)^(AG$3-Transmission_Build_Year-1))/INDEX($D$1:$AQ$1,_xlfn.XMATCH(Transmission_Build_Year,$D$3:$AQ$3)),0)) -> 17591147.59 | AH76: =IF(AH$2<=(Transmission_Build_Year+1)-(Base_Year),0,IF(AH$2<=(Transmission_Build_Year+1)-(Base_Year)+Transmission_Asset_Life,Transmission_Fixed_OM*IF(Transmission_OM_Escalation_Input="No",AH$1,(1+Transmission_OM_Escalation)^(AH$3-Transmission_Build_Year-1))/INDEX($D$1:$AQ$1,_xlfn.XMATCH(Transmission_Build_Year,$D$3:$AQ$3)),0)) -> 17942970.54 | AI76: =IF(AI$2<=(Transmission_Build_Year+1)-(Base_Year),0,IF(AI$2<=(Transmission_Build_Year+1)-(Base_Year)+Transmission_Asset_Life,Transmission_Fixed_OM*IF(Transmission_OM_Escalation_Input="No",AI$1,(1+Transmission_OM_Escalation)^(AI$3-Transmission_Build_Year-1))/INDEX($D$1:$AQ$1,_xlfn.XMATCH(Transmission_Build_Year,$D$3:$AQ$3)),0)) -> 18301829.95 | AJ76: =IF(AJ$2<=(Transmission_Build_Year+1)-(Base_Year),0,IF(AJ$2<=(Transmission_Build_Year+1)-(Base_Year)+Transmission_Asset_Life,Transmission_Fixed_OM*IF(Transmission_OM_Escalation_Input="No",AJ$1,(1+Transmission_OM_Escalation)^(AJ$3-Transmission_Build_Year-1))/INDEX($D$1:$AQ$1,_xlfn.XMATCH(Transmission_Build_Year,$D$3:$AQ$3)),0)) -> 18667866.55 | AK76: =IF(AK$2<=(Transmission_Build_Year+1)-(Base_Year),0,IF(AK$2<=(Transmission_Build_Year+1)-(Base_Year)+Transmission_Asset_Life,Transmission_Fixed_OM*IF(Transmission_OM_Escalation_Input="No",AK$1,(1+Transmission_OM_Escalation)^(AK$3-Transmission_Build_Year-1))/INDEX($D$1:$AQ$1,_xlfn.XMATCH(Transmission_Build_Year,$D$3:$AQ$3)),0)) -> 0 | AL76: =IF(AL$2<=(Transmission_Build_Year+1)-(Base_Year),0,IF(AL$2<=(Transmission_Build_Year+1)-(Base_Year)+Transmission_Asset_Life,Transmission_Fixed_OM*IF(Transmission_OM_Escalation_Input="No",AL$1,(1+Transmission_OM_Escalation)^(AL$3-Transmission_Build_Year-1))/INDEX($D$1:$AQ$1,_xlfn.XMATCH(Transmission_Build_Year,$D$3:$AQ$3)),0)) -> 0 | AM76: =IF(AM$2<=(Transmission_Build_Year+1)-(Base_Year),0,IF(AM$2<=(Transmission_Build_Year+1)-(Base_Year)+Transmission_Asset_Life,Transmission_Fixed_OM*IF(Transmission_OM_Escalation_Input="No",AM$1,(1+Transmission_OM_Escalation)^(AM$3-Transmission_Build_Year-1))/INDEX($D$1:$AQ$1,_xlfn.XMATCH(Transmission_Build_Year,$D$3:$AQ$3)),0)) -> 0 | AN76: =IF(AN$2<=(Transmission_Build_Year+1)-(Base_Year),0,IF(AN$2<=(Transmission_Build_Year+1)-(Base_Year)+Transmission_Asset_Life,Transmission_Fixed_OM*IF(Transmission_OM_Escalation_Input="No",AN$1,(1+Transmission_OM_Escalation)^(AN$3-Transmission_Build_Year-1))/INDEX($D$1:$AQ$1,_xlfn.XMATCH(Transmission_Build_Year,$D$3:$AQ$3)),0)) -> 0 | AO76: =IF(AO$2<=(Transmission_Build_Year+1)-(Base_Year),0,IF(AO$2<=(Transmission_Build_Year+1)-(Base_Year)+Transmission_Asset_Life,Transmission_Fixed_OM*IF(Transmission_OM_Escalation_Input="No",AO$1,(1+Transmission_OM_Escalation)^(AO$3-Transmission_Build_Year-1))/INDEX($D$1:$AQ$1,_xlfn.XMATCH(Transmission_Build_Year,$D$3:$AQ$3)),0)) -> 0 | AP76: =IF(AP$2<=(Transmission_Build_Year+1)-(Base_Year),0,IF(AP$2<=(Transmission_Build_Year+1)-(Base_Year)+Transmission_Asset_Life,Transmission_Fixed_OM*IF(Transmission_OM_Escalation_Input="No",AP$1,(1+Transmission_OM_Escalation)^(AP$3-Transmission_Build_Year-1))/INDEX($D$1:$AQ$1,_xlfn.XMATCH(Transmission_Build_Year,$D$3:$AQ$3)),0)) -> 0 | AQ76: =IF(AQ$2<=(Transmission_Build_Year+1)-(Base_Year),0,IF(AQ$2<=(Transmission_Build_Year+1)-(Base_Year)+Transmission_Asset_Life,Transmission_Fixed_OM*IF(Transmission_OM_Escalation_Input="No",AQ$1,(1+Transmission_OM_Escalation)^(AQ$3-Transmission_Build_Year-1))/INDEX($D$1:$AQ$1,_xlfn.XMATCH(Transmission_Build_Year,$D$3:$AQ$3)),0)) -> 0
C77: Transmission Service Charge | D77: =IF(D$2<=(Transmission_Build_Year+1)-(Base_Year),0,IF(D$2<=(Transmission_Build_Year+1)-(Base_Year)+Transmission_Asset_Life,(D$58+D$84)*Transmission_Service_Charge*(1+Transmission_Service_Charge_Inflator)^(D$3-(Transmission_Build_Year+1)),0)) -> 0 | E77: 0 | F77: 0 | G77: 0 | H77: 0 | I77: 0 | J77: 0 | K77: 0 | L77: 0 | M77: 0 | N77: 0 | O77: 0 | P77: 0 | Q77: 0 | R77: 0 | S77: 0 | T77: 0 | U77: 0 | V77: 0 | W77: 0 | X77: 0 | Y77: 0 | Z77: 0 | AA77: 0 | AB77: 0 | AC77: 0 | AD77: 0 | AE77: 0 | AF77: 0 | AG77: 0 | AH77: 0 | AI77: 0 | AJ77: 0 | AK77: 0 | AL77: 0 | AM77: 0 | AN77: 0 | AO77: 0 | AP77: 0 | AQ77: 0
B78: New Wind | C78: Wind NPB | D78: =MAX(0,IF(D$2<=Years_Until_New_Asset_Operation,0,IF(D$2<=Clean_Asset_Life+Years_Until_New_Asset_Operation,IF(D$2>Years_Until_New_Asset_Operation,Wind_Plant_Balance*1-SUM($C$79:C$79),1),0))) -> 0 | E78: =MAX(0,IF(E$2<=Years_Until_New_Asset_Operation,0,IF(E$2<=Clean_Asset_Life+Years_Until_New_Asset_Operation,IF(E$2>Years_Until_New_Asset_Operation,Wind_Plant_Balance*1-SUM($C$79:D$79),1),0))) -> 0 | F78: =MAX(0,IF(F$2<=Years_Until_New_Asset_Operation,0,IF(F$2<=Clean_Asset_Life+Years_Until_New_Asset_Operation,IF(F$2>Years_Until_New_Asset_Operation,Wind_Plant_Balance*1-SUM($C$79:E$79),1),0))) -> 0 | G78: =MAX(0,IF(G$2<=Years_Until_New_Asset_Operation,0,IF(G$2<=Clean_Asset_Life+Years_Until_New_Asset_Operation,IF(G$2>Years_Until_New_Asset_Operation,Wind_Plant_Balance*1-SUM($C$79:F$79),1),0))) -> 301707801.1 | H78: =MAX(0,IF(H$2<=Years_Until_New_Asset_Operation,0,IF(H$2<=Clean_Asset_Life+Years_Until_New_Asset_Operation,IF(H$2>Years_Until_New_Asset_Operation,Wind_Plant_Balance*1-SUM($C$79:G$79),1),0))) -> 291650874.4 | I78: =MAX(0,IF(I$2<=Years_Until_New_Asset_Operation,0,IF(I$2<=Clean_Asset_Life+Years_Until_New_Asset_Operation,IF(I$2>Years_Until_New_Asset_Operation,Wind_Plant_Balance*1-SUM($C$79:H$79),1),0))) -> 281593947.7 | J78: =MAX(0,IF(J$2<=Years_Until_New_Asset_Operation,0,IF(J$2<=Clean_Asset_Life+Years_Until_New_Asset_Operation,IF(J$2>Years_Until_New_Asset_Operation,Wind_Plant_Balance*1-SUM($C$79:I$79),1),0))) -> 271537021 | K78: =MAX(0,IF(K$2<=Years_Until_New_Asset_Operation,0,IF(K$2<=Clean_Asset_Life+Years_Until_New_Asset_Operation,IF(K$2>Years_Until_New_Asset_Operation,Wind_Plant_Balance*1-SUM($C$79:J$79),1),0))) -> 261480094.3 | L78: =MAX(0,IF(L$2<=Years_Until_New_Asset_Operation,0,IF(L$2<=Clean_Asset_Life+Years_Until_New_Asset_Operation,IF(L$2>Years_Until_New_Asset_Operation,Wind_Plant_Balance*1-SUM($C$79:K$79),1),0))) -> 251423167.6 | M78: =MAX(0,IF(M$2<=Years_Until_New_Asset_Operation,0,IF(M$2<=Clean_Asset_Life+Years_Until_New_Asset_Operation,IF(M$2>Years_Until_New_Asset_Operation,Wind_Plant_Balance*1-SUM($C$79:L$79),1),0))) -> 241366240.9 | N78: =MAX(0,IF(N$2<=Years_Until_New_Asset_Operation,0,IF(N$2<=Clean_Asset_Life+Years_Until_New_Asset_Operation,IF(N$2>Years_Until_New_Asset_Operation,Wind_Plant_Balance*1-SUM($C$79:M$79),1),0))) -> 231309314.2 | O78: =MAX(0,IF(O$2<=Years_Until_New_Asset_Operation,0,IF(O$2<=Clean_Asset_Life+Years_Until_New_Asset_Operation,IF(O$2>Years_Until_New_Asset_Operation,Wind_Plant_Balance*1-SUM($C$79:N$79),1),0))) -> 221252387.5 | P78: =MAX(0,IF(P$2<=Years_Until_New_Asset_Operation,0,IF(P$2<=Clean_Asset_Life+Years_Until_New_Asset_Operation,IF(P$2>Years_Until_New_Asset_Operation,Wind_Plant_Balance*1-SUM($C$79:O$79),1),0))) -> 211195460.8 | Q78: =MAX(0,IF(Q$2<=Years_Until_New_Asset_Operation,0,IF(Q$2<=Clean_Asset_Life+Years_Until_New_Asset_Operation,IF(Q$2>Years_Until_New_Asset_Operation,Wind_Plant_Balance*1-SUM($C$79:P$79),1),0))) -> 201138534.1 | R78: =MAX(0,IF(R$2<=Years_Until_New_Asset_Operation,0,IF(R$2<=Clean_Asset_Life+Years_Until_New_Asset_Operation,IF(R$2>Years_Until_New_Asset_Operation,Wind_Plant_Balance*1-SUM($C$79:Q$79),1),0))) -> 191081607.3 | S78: =MAX(0,IF(S$2<=Years_Until_New_Asset_Operation,0,IF(S$2<=Clean_Asset_Life+Years_Until_New_Asset_Operation,IF(S$2>Years_Until_New_Asset_Operation,Wind_Plant_Balance*1-SUM($C$79:R$79),1),0))) -> 181024680.6 | T78: =MAX(0,IF(T$2<=Years_Until_New_Asset_Operation,0,IF(T$2<=Clean_Asset_Life+Years_Until_New_Asset_Operation,IF(T$2>Years_Until_New_Asset_Operation,Wind_Plant_Balance*1-SUM($C$79:S$79),1),0))) -> 170967753.9 | U78: =MAX(0,IF(U$2<=Years_Until_New_Asset_Operation,0,IF(U$2<=Clean_Asset_Life+Years_Until_New_Asset_Operation,IF(U$2>Years_Until_New_Asset_Operation,Wind_Plant_Balance*1-SUM($C$79:T$79),1),0))) -> 160910827.2 | V78: =MAX(0,IF(V$2<=Years_Until_New_Asset_Operation,0,IF(V$2<=Clean_Asset_Life+Years_Until_New_Asset_Operation,IF(V$2>Years_Until_New_Asset_Operation,Wind_Plant_Balance*1-SUM($C$79:U$79),1),0))) -> 150853900.5 | W78: =MAX(0,IF(W$2<=Years_Until_New_Asset_Operation,0,IF(W$2<=Clean_Asset_Life+Years_Until_New_Asset_Operation,IF(W$2>Years_Until_New_Asset_Operation,Wind_Plant_Balance*1-SUM($C$79:V$79),1),0))) -> 140796973.8 | X78: =MAX(0,IF(X$2<=Years_Until_New_Asset_Operation,0,IF(X$2<=Clean_Asset_Life+Years_Until_New_Asset_Operation,IF(X$2>Years_Until_New_Asset_Operation,Wind_Plant_Balance*1-SUM($C$79:W$79),1),0))) -> 130740047.1 | Y78: =MAX(0,IF(Y$2<=Years_Until_New_Asset_Operation,0,IF(Y$2<=Clean_Asset_Life+Years_Until_New_Asset_Operation,IF(Y$2>Years_Until_New_Asset_Operation,Wind_Plant_Balance*1-SUM($C$79:X$79),1),0))) -> 120683120.4 | Z78: =MAX(0,IF(Z$2<=Years_Until_New_Asset_Operation,0,IF(Z$2<=Clean_Asset_Life+Years_Until_New_Asset_Operation,IF(Z$2>Years_Until_New_Asset_Operation,Wind_Plant_Balance*1-SUM($C$79:Y$79),1),0))) -> 110626193.7 | AA78: =MAX(0,IF(AA$2<=Years_Until_New_Asset_Operation,0,IF(AA$2<=Clean_Asset_Life+Years_Until_New_Asset_Operation,IF(AA$2>Years_Until_New_Asset_Operation,Wind_Plant_Balance*1-SUM($C$79:Z$79),1),0))) -> 100569267 | AB78: =MAX(0,IF(AB$2<=Years_Until_New_Asset_Operation,0,IF(AB$2<=Clean_Asset_Life+Years_Until_New_Asset_Operation,IF(AB$2>Years_Until_New_Asset_Operation,Wind_Plant_Balance*1-SUM($C$79:AA$79),1),0))) -> 90512340.32 | AC78: =MAX(0,IF(AC$2<=Years_Until_New_Asset_Operation,0,IF(AC$2<=Clean_Asset_Life+Years_Until_New_Asset_Operation,IF(AC$2>Years_Until_New_Asset_Operation,Wind_Plant_Balance*1-SUM($C$79:AB$79),1),0))) -> 80455413.62 | AD78: =MAX(0,IF(AD$2<=Years_Until_New_Asset_Operation,0,IF(AD$2<=Clean_Asset_Life+Years_Until_New_Asset_Operation,IF(AD$2>Years_Until_New_Asset_Operation,Wind_Plant_Balance*1-SUM($C$79:AC$79),1),0))) -> 70398486.92 | AE78: =MAX(0,IF(AE$2<=Years_Until_New_Asset_Operation,0,IF(AE$2<=Clean_Asset_Life+Years_Until_New_Asset_Operation,IF(AE$2>Years_Until_New_Asset_Operation,Wind_Plant_Balance*1-SUM($C$79:AD$79),1),0))) -> 60341560.22 | AF78: =MAX(0,IF(AF$2<=Years_Until_New_Asset_Operation,0,IF(AF$2<=Clean_Asset_Life+Years_Until_New_Asset_Operation,IF(AF$2>Years_Until_New_Asset_Operation,Wind_Plant_Balance*1-SUM($C$79:AE$79),1),0))) -> 50284633.51 | AG78: =MAX(0,IF(AG$2<=Years_Until_New_Asset_Operation,0,IF(AG$2<=Clean_Asset_Life+Years_Until_New_Asset_Operation,IF(AG$2>Years_Until_New_Asset_Operation,Wind_Plant_Balance*1-SUM($C$79:AF$79),1),0))) -> 40227706.81 | AH78: =MAX(0,IF(AH$2<=Years_Until_New_Asset_Operation,0,IF(AH$2<=Clean_Asset_Life+Years_Until_New_Asset_Operation,IF(AH$2>Years_Until_New_Asset_Operation,Wind_Plant_Balance*1-SUM($C$79:AG$79),1),0))) -> 30170780.11 | AI78: =MAX(0,IF(AI$2<=Years_Until_New_Asset_Operation,0,IF(AI$2<=Clean_Asset_Life+Years_Until_New_Asset_Operation,IF(AI$2>Years_Until_New_Asset_Operation,Wind_Plant_Balance*1-SUM($C$79:AH$79),1),0))) -> 20113853.41 | AJ78: =MAX(0,IF(AJ$2<=Years_Until_New_Asset_Operation,0,IF(AJ$2<=Clean_Asset_Life+Years_Until_New_Asset_Operation,IF(AJ$2>Years_Until_New_Asset_Operation,Wind_Plant_Balance*1-SUM($C$79:AI$79),1),0))) -> 10056926.7 | AK78: =MAX(0,IF(AK$2<=Years_Until_New_Asset_Operation,0,IF(AK$2<=Clean_Asset_Life+Years_Until_New_Asset_Operation,IF(AK$2>Years_Until_New_Asset_Operation,Wind_Plant_Balance*1-SUM($C$79:AJ$79),1),0))) -> 0 | AL78: =MAX(0,IF(AL$2<=Years_Until_New_Asset_Operation,0,IF(AL$2<=Clean_Asset_Life+Years_Until_New_Asset_Operation,IF(AL$2>Years_Until_New_Asset_Operation,Wind_Plant_Balance*1-SUM($C$79:AK$79),1),0))) -> 0 | AM78: =MAX(0,IF(AM$2<=Years_Until_New_Asset_Operation,0,IF(AM$2<=Clean_Asset_Life+Years_Until_New_Asset_Operation,IF(AM$2>Years_Until_New_Asset_Operation,Wind_Plant_Balance*1-SUM($C$79:AL$79),1),0))) -> 0 | AN78: =MAX(0,IF(AN$2<=Years_Until_New_Asset_Operation,0,IF(AN$2<=Clean_Asset_Life+Years_Until_New_Asset_Operation,IF(AN$2>Years_Until_New_Asset_Operation,Wind_Plant_Balance*1-SUM($C$79:AM$79),1),0))) -> 0 | AO78: =MAX(0,IF(AO$2<=Years_Until_New_Asset_Operation,0,IF(AO$2<=Clean_Asset_Life+Years_Until_New_Asset_Operation,IF(AO$2>Years_Until_New_Asset_Operation,Wind_Plant_Balance*1-SUM($C$79:AN$79),1),0))) -> 0 | AP78: =MAX(0,IF(AP$2<=Years_Until_New_Asset_Operation,0,IF(AP$2<=Clean_Asset_Life+Years_Until_New_Asset_Operation,IF(AP$2>Years_Until_New_Asset_Operation,Wind_Plant_Balance*1-SUM($C$79:AO$79),1),0))) -> 0 | AQ78: =MAX(0,IF(AQ$2<=Years_Until_New_Asset_Operation,0,IF(AQ$2<=Clean_Asset_Life+Years_Until_New_Asset_Operation,IF(AQ$2>Years_Until_New_Asset_Operation,Wind_Plant_Balance*1-SUM($C$79:AP$79),1),0))) -> 0
C79: Wind Depreciation | D79: =IF(D$2<=Years_Until_New_Asset_Operation,0,IF(D$2<=Clean_Asset_Life+Years_Until_New_Asset_Operation, Wind_Plant_Balance/Clean_Asset_Life, 0))*(1) -> 0 | E79: 0 | F79: 0 | G79: 10056926.7 | H79: 10056926.7 | I79: 10056926.7 | J79: 10056926.7 | K79: 10056926.7 | L79: 10056926.7 | M79: 10056926.7 | N79: 10056926.7 | O79: 10056926.7 | P79: 10056926.7 | Q79: 10056926.7 | R79: 10056926.7 | S79: 10056926.7 | T79: 10056926.7 | U79: 10056926.7 | V79: 10056926.7 | W79: 10056926.7 | X79: 10056926.7 | Y79: 10056926.7 | Z79: 10056926.7 | AA79: 10056926.7 | AB79: 10056926.7 | AC79: 10056926.7 | AD79: 10056926.7 | AE79: 10056926.7 | AF79: 10056926.7 | AG79: 10056926.7 | AH79: 10056926.7 | AI79: 10056926.7 | AJ79: 10056926.7 | AK79: 0 | AL79: 0 | AM79: 0 | AN79: 0 | AO79: 0 | AP79: 0 | AQ79: 0
C80: Net Impact on Rate Base | D80: =D78 -> 0 | E80: =E78 -> 0 | F80: 0 | G80: 301707801.1 | H80: 291650874.4 | I80: 281593947.7 | J80: 271537021 | K80: 261480094.3 | L80: 251423167.6 | M80: 241366240.9 | N80: 231309314.2 | O80: 221252387.5 | P80: 211195460.8 | Q80: 201138534.1 | R80: 191081607.3 | S80: 181024680.6 | T80: 170967753.9 | U80: 160910827.2 | V80: 150853900.5 | W80: 140796973.8 | X80: 130740047.1 | Y80: 120683120.4 | Z80: 110626193.7 | AA80: 100569267 | AB80: 90512340.32 | AC80: 80455413.62 | AD80: 70398486.92 | AE80: 60341560.22 | AF80: 50284633.51 | AG80: 40227706.81 | AH80: 30170780.11 | AI80: 20113853.41 | AJ80: 10056926.7 | AK80: 0 | AL80: 0 | AM80: 0 | AN80: 0 | AO80: 0 | AP80: 0 | AQ80: 0
C81: Wind Return | D81: =D80*ROR/(1-Tax_Rate) -> 0 | E81: =E80*ROR/(1-Tax_Rate) -> 0 | F81: 0 | G81: 11546502.31 | H81: 11161618.9 | I81: 10776735.49 | J81: 10391852.08 | K81: 10006968.67 | L81: 9622085.258 | M81: 9237201.848 | N81: 8852318.438 | O81: 8467435.027 | P81: 8082551.617 | Q81: 7697668.207 | R81: 7312784.796 | S81: 6927901.386 | T81: 6543017.976 | U81: 6158134.565 | V81: 5773251.155 | W81: 5388367.745 | X81: 5003484.334 | Y81: 4618600.924 | Z81: 4233717.514 | AA81: 3848834.103 | AB81: 3463950.693 | AC81: 3079067.283 | AD81: 2694183.872 | AE81: 2309300.462 | AF81: 1924417.052 | AG81: 1539533.641 | AH81: 1154650.231 | AI81: 769766.8207 | AJ81: 384883.4103 | AK81: 0 | AL81: 0 | AM81: 0 | AN81: 0 | AO81: 0 | AP81: 0 | AQ81: 0
C82: Wind Fixed O&M | D82: =IF(D$2<=Years_Until_New_Asset_Operation,0,IF(D$2<=Years_Until_New_Asset_Operation+Clean_Asset_Life,Wind_Capacity*Wind_Fixed_OM*1000*IF(Wind_OM_Escalation_Input="No",D$1,(1+Wind_OM_Escalation)^(D$2-Years_Until_New_Asset_Operation-1)),0)) -> 0 | E82: 0 | F82: 0 | G82: 7062491.59 | H82: 7228509.689 | I82: 7402860.105 | J82: 7584230.177 | K82: 7770043.817 | L82: 7960409.89 | M82: 8155187.893 | N82: 8332225.319 | O82: 8498869.825 | P82: 8668847.222 | Q82: 8842224.166 | R82: 9019068.65 | S82: 9199450.023 | T82: 9383439.023 | U82: 9571107.803 | V82: 9762529.96 | W82: 9957780.559 | X82: 10156936.17 | Y82: 10360074.89 | Z82: 10567276.39 | AA82: 10778621.92 | AB82: 10994194.36 | AC82: 11214078.24 | AD82: 11438359.81 | AE82: 11667127.01 | AF82: 11900469.55 | AG82: 12138478.94 | AH82: 12381248.52 | AI82: 12628873.49 | AJ82: 12881450.96 | AK82: 0 | AL82: 0 | AM82: 0 | AN82: 0 | AO82: 0 | AP82: 0 | AQ82: 0
C83: Wind Variable O&M | D83: =IF(D$2<=Years_Until_New_Asset_Operation,0,IF(D$2<=Years_Until_New_Asset_Operation+Clean_Asset_Life,Wind_Variable_O_M*D84*IF(Wind_OM_Escalation_Input="No",D$1,(1+Wind_OM_Escalation)^(D$2-Years_Until_New_Asset_Operation-1)),0)) -> 0 | E83: 0 | F83: 0 | G83: 0 | H83: 0 | I83: 0 | J83: 0 | K83: 0 | L83: 0 | M83: 0 | N83: 0 | O83: 0 | P83: 0 | Q83: 0 | R83: 0 | S83: 0 | T83: 0 | U83: 0 | V83: 0 | W83: 0 | X83: 0 | Y83: 0 | Z83: 0 | AA83: 0 | AB83: 0 | AC83: 0 | AD83: 0 | AE83: 0 | AF83: 0 | AG83: 0 | AH83: 0 | AI83: 0 | AJ83: 0 | AK83: 0 | AL83: 0 | AM83: 0 | AN83: 0 | AO83: 0 | AP83: 0 | AQ83: 0
C84: Wind MWh | D84: =IF(D$2<=Years_Until_New_Asset_Operation,0,IF(D$2<=Years_Until_New_Asset_Operation+Clean_Asset_Life,Wind_Capacity*Wind_Capacity_Factor*8760*(1-Wind_Degradation)^(D$2-1-Years_Until_New_Asset_Operation),0)) -> 0 | E84: 0 | F84: 0 | G84: 809021.04 | H84: 809021.04 | I84: 809021.04 | J84: 809021.04 | K84: 809021.04 | L84: 809021.04 | M84: 809021.04 | N84: 809021.04 | O84: 809021.04 | P84: 809021.04 | Q84: 809021.04 | R84: 809021.04 | S84: 809021.04 | T84: 809021.04 | U84: 809021.04 | V84: 809021.04 | W84: 809021.04 | X84: 809021.04 | Y84: 809021.04 | Z84: 809021.04 | AA84: 809021.04 | AB84: 809021.04 | AC84: 809021.04 | AD84: 809021.04 | AE84: 809021.04 | AF84: 809021.04 | AG84: 809021.04 | AH84: 809021.04 | AI84: 809021.04 | AJ84: 809021.04 | AK84: 0 | AL84: 0 | AM84: 0 | AN84: 0 | AO84: 0 | AP84: 0 | AQ84: 0
C85: Accumulated Deferred Wind ITC | D85: =IF(D$2>Years_Until_New_Asset_Operation,SUM(D86:$AQ86),0) -> 0 | E85: =IF(E$2>Years_Until_New_Asset_Operation,SUM(E86:$AQ86),0) -> 0 | F85: =IF(F$2>Years_Until_New_Asset_Operation,SUM(F86:$AQ86),0) -> 0 | G85: =IF(G$2>Years_Until_New_Asset_Operation,SUM(G86:$AQ86),0) -> 0 | H85: =IF(H$2>Years_Until_New_Asset_Operation,SUM(H86:$AQ86),0) -> 0 | I85: =IF(I$2>Years_Until_New_Asset_Operation,SUM(I86:$AQ86),0) -> 0 | J85: =IF(J$2>Years_Until_New_Asset_Operation,SUM(J86:$AQ86),0) -> 0 | K85: =IF(K$2>Years_Until_New_Asset_Operation,SUM(K86:$AQ86),0) -> 0 | L85: =IF(L$2>Years_Until_New_Asset_Operation,SUM(L86:$AQ86),0) -> 0 | M85: =IF(M$2>Years_Until_New_Asset_Operation,SUM(M86:$AQ86),0) -> 0 | N85: =IF(N$2>Years_Until_New_Asset_Operation,SUM(N86:$AQ86),0) -> 0 | O85: =IF(O$2>Years_Until_New_Asset_Operation,SUM(O86:$AQ86),0) -> 0 | P85: =IF(P$2>Years_Until_New_Asset_Operation,SUM(P86:$AQ86),0) -> 0 | Q85: =IF(Q$2>Years_Until_New_Asset_Operation,SUM(Q86:$AQ86),0) -> 0 | R85: =IF(R$2>Years_Until_New_Asset_Operation,SUM(R86:$AQ86),0) -> 0 | S85: =IF(S$2>Years_Until_New_Asset_Operation,SUM(S86:$AQ86),0) -> 0 | T85: =IF(T$2>Years_Until_New_Asset_Operation,SUM(T86:$AQ86),0) -> 0 | U85: =IF(U$2>Years_Until_New_Asset_Operation,SUM(U86:$AQ86),0) -> 0 | V85: =IF(V$2>Years_Until_New_Asset_Operation,SUM(V86:$AQ86),0) -> 0 | W85: =IF(W$2>Years_Until_New_Asset_Operation,SUM(W86:$AQ86),0) -> 0 | X85: =IF(X$2>Years_Until_New_Asset_Operation,SUM(X86:$AQ86),0) -> 0 | Y85: =IF(Y$2>Years_Until_New_Asset_Operation,SUM(Y86:$AQ86),0) -> 0 | Z85: =IF(Z$2>Years_Until_New_Asset_Operation,SUM(Z86:$AQ86),0) -> 0 | AA85: =IF(AA$2>Years_Until_New_Asset_Operation,SUM(AA86:$AQ86),0) -> 0 | AB85: =IF(AB$2>Years_Until_New_Asset_Operation,SUM(AB86:$AQ86),0) -> 0 | AC85: =IF(AC$2>Years_Until_New_Asset_Operation,SUM(AC86:$AQ86),0) -> 0 | AD85: =IF(AD$2>Years_Until_New_Asset_Operation,SUM(AD86:$AQ86),0) -> 0 | AE85: =IF(AE$2>Years_Until_New_Asset_Operation,SUM(AE86:$AQ86),0) -> 0 | AF85: =IF(AF$2>Years_Until_New_Asset_Operation,SUM(AF86:$AQ86),0) -> 0 | AG85: =IF(AG$2>Years_Until_New_Asset_Operation,SUM(AG86:$AQ86),0) -> 0 | AH85: =IF(AH$2>Years_Until_New_Asset_Operation,SUM(AH86:$AQ86),0) -> 0 | AI85: =IF(AI$2>Years_Until_New_Asset_Operation,SUM(AI86:$AQ86),0) -> 0 | AJ85: =IF(AJ$2>Years_Until_New_Asset_Operation,SUM(AJ86:$AQ86),0) -> 0 | AK85: =IF(AK$2>Years_Until_New_Asset_Operation,SUM(AK86:$AQ86),0) -> 0 | AL85: =IF(AL$2>Years_Until_New_Asset_Operation,SUM(AL86:$AQ86),0) -> 0 | AM85: =IF(AM$2>Years_Until_New_Asset_Operation,SUM(AM86:$AQ86),0) -> 0 | AN85: =IF(AN$2>Years_Until_New_Asset_Operation,SUM(AN86:$AQ86),0) -> 0 | AO85: =IF(AO$2>Years_Until_New_Asset_Operation,SUM(AO86:$AQ86),0) -> 0 | AP85: =IF(AP$2>Years_Until_New_Asset_Operation,SUM(AP86:$AQ86),0) -> 0 | AQ85: =IF(AQ$2>Years_Until_New_Asset_Operation,SUM(AQ86:$AQ86),0) -> 0
C86: Normalized Rate Impact of Wind ITC | D86: =IF(AND(D$2>Years_Until_New_Asset_Operation,D$2<=Years_Until_New_Asset_Operation+IF(Voluntary_Normalization="Yes",Voluntary_Normalization_Period,Clean_Asset_Life)),(1-Wind_PTC_Frac)*(Wind_Plant_Balance*-Final_Wind_ITC/(1-Tax_Rate))/IF(Voluntary_Normalization="Yes",Voluntary_Normalization_Period,Clean_Asset_Life),0) -> 0 | E86: 0 | F86: 0 | G86: 0 | H86: 0 | I86: 0 | J86: 0 | K86: 0 | L86: 0 | M86: 0 | N86: 0 | O86: 0 | P86: 0 | Q86: 0 | R86: 0 | S86: 0 | T86: 0 | U86: 0 | V86: 0 | W86: 0 | X86: 0 | Y86: 0 | Z86: 0 | AA86: 0 | AB86: 0 | AC86: 0 | AD86: 0 | AE86: 0 | AF86: 0 | AG86: 0 | AH86: 0 | AI86: 0 | AJ86: 0 | AK86: 0 | AL86: 0 | AM86: 0 | AN86: 0 | AO86: 0 | AP86: 0 | AQ86: 0
C87: Normalized Return Impact of Deferred Wind ITC | D87: =D85* ROR / (1- Tax_Rate) -> 0 | E87: 0 | F87: 0 | G87: 0 | H87: 0 | I87: 0 | J87: 0 | K87: 0 | L87: 0 | M87: 0 | N87: 0 | O87: 0 | P87: 0 | Q87: 0 | R87: 0 | S87: 0 | T87: 0 | U87: 0 | V87: 0 | W87: 0 | X87: 0 | Y87: 0 | Z87: 0 | AA87: 0 | AB87: 0 | AC87: 0 | AD87: 0 | AE87: 0 | AF87: 0 | AG87: 0 | AH87: 0 | AI87: 0 | AJ87: 0 | AK87: 0 | AL87: 0 | AM87: 0 | AN87: 0 | AO87: 0 | AP87: 0 | AQ87: 0
C88: Wind PTC | D88: =IF(D$2<=Years_Until_New_Asset_Operation,0,IF(D$2<=10+Years_Until_New_Asset_Operation,Wind_PTC_Frac*D84*(-ROUND(Final_Wind_PTC*D$1*2,0)/2)/(1-Tax_Rate),0)) -> 0 | E88: 0 | F88: 0 | G88: -27102204.84 | H88: -27506715.36 | I88: -28315736.4 | J88: -28720246.92 | K88: -29529267.96 | L88: -30338289 | M88: -31147310.04 | N88: -31551820.56 | O88: -32360841.6 | P88: -33169862.64 | Q88: 0 | R88: 0 | S88: 0 | T88: 0 | U88: 0 | V88: 0 | W88: 0 | X88: 0 | Y88: 0 | Z88: 0 | AA88: 0 | AB88: 0 | AC88: 0 | AD88: 0 | AE88: 0 | AF88: 0 | AG88: 0 | AH88: 0 | AI88: 0 | AJ88: 0 | AK88: 0 | AL88: 0 | AM88: 0 | AN88: 0 | AO88: 0 | AP88: 0 | AQ88: 0
B89: Additional Revenues and Equity Requirements | C89: Impact of Additional Portfolio Revenues | D89: =-SUMIFS('Inputs and Outputs'!$C$203:$C$242,'Inputs and Outputs'!$B$203:$B$242,D3-Build_Year) -> 0 | E89: =-SUMIFS('Inputs and Outputs'!$C$203:$C$242,'Inputs and Outputs'!$B$203:$B$242,E3-Build_Year) -> 0 | F89: =-SUMIFS('Inputs and Outputs'!$C$203:$C$242,'Inputs and Outputs'!$B$203:$B$242,F3-Build_Year) -> 0 | G89: =-SUMIFS('Inputs and Outputs'!$C$203:$C$242,'Inputs and Outputs'!$B$203:$B$242,G3-Build_Year) -> 0 | H89: =-SUMIFS('Inputs and Outputs'!$C$203:$C$242,'Inputs and Outputs'!$B$203:$B$242,H3-Build_Year) -> 0 | I89: =-SUMIFS('Inputs and Outputs'!$C$203:$C$242,'Inputs and Outputs'!$B$203:$B$242,I3-Build_Year) -> 0 | J89: =-SUMIFS('Inputs and Outputs'!$C$203:$C$242,'Inputs and Outputs'!$B$203:$B$242,J3-Build_Year) -> 0 | K89: =-SUMIFS('Inputs and Outputs'!$C$203:$C$242,'Inputs and Outputs'!$B$203:$B$242,K3-Build_Year) -> 0 | L89: =-SUMIFS('Inputs and Outputs'!$C$203:$C$242,'Inputs and Outputs'!$B$203:$B$242,L3-Build_Year) -> 0 | M89: =-SUMIFS('Inputs and Outputs'!$C$203:$C$242,'Inputs and Outputs'!$B$203:$B$242,M3-Build_Year) -> 0 | N89: =-SUMIFS('Inputs and Outputs'!$C$203:$C$242,'Inputs and Outputs'!$B$203:$B$242,N3-Build_Year) -> 0 | O89: =-SUMIFS('Inputs and Outputs'!$C$203:$C$242,'Inputs and Outputs'!$B$203:$B$242,O3-Build_Year) -> 0 | P89: =-SUMIFS('Inputs and Outputs'!$C$203:$C$242,'Inputs and Outputs'!$B$203:$B$242,P3-Build_Year) -> 0 | Q89: =-SUMIFS('Inputs and Outputs'!$C$203:$C$242,'Inputs and Outputs'!$B$203:$B$242,Q3-Build_Year) -> 0 | R89: =-SUMIFS('Inputs and Outputs'!$C$203:$C$242,'Inputs and Outputs'!$B$203:$B$242,R3-Build_Year) -> 0 | S89: =-SUMIFS('Inputs and Outputs'!$C$203:$C$242,'Inputs and Outputs'!$B$203:$B$242,S3-Build_Year) -> 0 | T89: =-SUMIFS('Inputs and Outputs'!$C$203:$C$242,'Inputs and Outputs'!$B$203:$B$242,T3-Build_Year) -> 0 | U89: =-SUMIFS('Inputs and Outputs'!$C$203:$C$242,'Inputs and Outputs'!$B$203:$B$242,U3-Build_Year) -> 0 | V89: =-SUMIFS('Inputs and Outputs'!$C$203:$C$242,'Inputs and Outputs'!$B$203:$B$242,V3-Build_Year) -> 0 | W89: =-SUMIFS('Inputs and Outputs'!$C$203:$C$242,'Inputs and Outputs'!$B$203:$B$242,W3-Build_Year) -> 0 | X89: =-SUMIFS('Inputs and Outputs'!$C$203:$C$242,'Inputs and Outputs'!$B$203:$B$242,X3-Build_Year) -> 0 | Y89: =-SUMIFS('Inputs and Outputs'!$C$203:$C$242,'Inputs and Outputs'!$B$203:$B$242,Y3-Build_Year) -> 0 | Z89: =-SUMIFS('Inputs and Outputs'!$C$203:$C$242,'Inputs and Outputs'!$B$203:$B$242,Z3-Build_Year) -> 0 | AA89: =-SUMIFS('Inputs and Outputs'!$C$203:$C$242,'Inputs and Outputs'!$B$203:$B$242,AA3-Build_Year) -> 0 | AB89: =-SUMIFS('Inputs and Outputs'!$C$203:$C$242,'Inputs and Outputs'!$B$203:$B$242,AB3-Build_Year) -> 0 | AC89: =-SUMIFS('Inputs and Outputs'!$C$203:$C$242,'Inputs and Outputs'!$B$203:$B$242,AC3-Build_Year) -> 0 | AD89: =-SUMIFS('Inputs and Outputs'!$C$203:$C$242,'Inputs and Outputs'!$B$203:$B$242,AD3-Build_Year) -> 0 | AE89: =-SUMIFS('Inputs and Outputs'!$C$203:$C$242,'Inputs and Outputs'!$B$203:$B$242,AE3-Build_Year) -> 0 | AF89: =-SUMIFS('Inputs and Outputs'!$C$203:$C$242,'Inputs and Outputs'!$B$203:$B$242,AF3-Build_Year) -> 0 | AG89: =-SUMIFS('Inputs and Outputs'!$C$203:$C$242,'Inputs and Outputs'!$B$203:$B$242,AG3-Build_Year) -> 0 | AH89: =-SUMIFS('Inputs and Outputs'!$C$203:$C$242,'Inputs and Outputs'!$B$203:$B$242,AH3-Build_Year) -> 0 | AI89: =-SUMIFS('Inputs and Outputs'!$C$203:$C$242,'Inputs and Outputs'!$B$203:$B$242,AI3-Build_Year) -> 0 | AJ89: =-SUMIFS('Inputs and Outputs'!$C$203:$C$242,'Inputs and Outputs'!$B$203:$B$242,AJ3-Build_Year) -> 0 | AK89: =-SUMIFS('Inputs and Outputs'!$C$203:$C$242,'Inputs and Outputs'!$B$203:$B$242,AK3-Build_Year) -> 0 | AL89: =-SUMIFS('Inputs and Outputs'!$C$203:$C$242,'Inputs and Outputs'!$B$203:$B$242,AL3-Build_Year) -> 0 | AM89: =-SUMIFS('Inputs and Outputs'!$C$203:$C$242,'Inputs and Outputs'!$B$203:$B$242,AM3-Build_Year) -> 0 | AN89: =-SUMIFS('Inputs and Outputs'!$C$203:$C$242,'Inputs and Outputs'!$B$203:$B$242,AN3-Build_Year) -> 0 | AO89: =-SUMIFS('Inputs and Outputs'!$C$203:$C$242,'Inputs and Outputs'!$B$203:$B$242,AO3-Build_Year) -> 0 | AP89: =-SUMIFS('Inputs and Outputs'!$C$203:$C$242,'Inputs and Outputs'!$B$203:$B$242,AP3-Build_Year) -> 0 | AQ89: =-SUMIFS('Inputs and Outputs'!$C$203:$C$242,'Inputs and Outputs'!$B$203:$B$242,AQ3-Build_Year) -> 0
C90: Additional equity contribution from members required to finance portfolio | D90: =IF(D$3=Build_Year+1,Additional_Member_Equity_Required,0) -> 0 | E90: 0 | F90: 0 | G90: 0 | H90: 0 | I90: 0 | J90: 0 | K90: 0 | L90: 0 | M90: 0 | N90: 0 | O90: 0 | P90: 0 | Q90: 0 | R90: 0 | S90: 0 | T90: 0 | U90: 0 | V90: 0 | W90: 0 | X90: 0 | Y90: 0 | Z90: 0 | AA90: 0 | AB90: 0 | AC90: 0 | AD90: 0 | AE90: 0 | AF90: 0 | AG90: 0 | AH90: 0 | AI90: 0 | AJ90: 0 | AK90: 0 | AL90: 0 | AM90: 0 | AN90: 0 | AO90: 0 | AP90: 0 | AQ90: 0
C91: Additional margin required to meet debt covenants | D91: =IFERROR(MAX(0,((Target_Equity_Ratio/(1-Target_Equity_Ratio))/(D129/(1-D129)) - 1)*D136- SUM($C91:C91),(USDA_Target_MDSC-D130)*(D41+D42),(Target_MFI-D131)*(D42)),0) -> 0 | E91: =IFERROR(MAX(0,((Target_Equity_Ratio/(1-Target_Equity_Ratio))/(E129/(1-E129)) - 1)*E136- SUM($C91:D91),(USDA_Target_MDSC-E130)*(E41+E42),(Target_MFI-E131)*(E42)),0) -> 0 | F91: =IFERROR(MAX(0,((Target_Equity_Ratio/(1-Target_Equity_Ratio))/(F129/(1-F129)) - 1)*F136- SUM($C91:E91),(USDA_Target_MDSC-F130)*(F41+F42),(Target_MFI-F131)*(F42)),0) -> 0 | G91: =IFERROR(MAX(0,((Target_Equity_Ratio/(1-Target_Equity_Ratio))/(G129/(1-G129)) - 1)*G136- SUM($C91:F91),(USDA_Target_MDSC-G130)*(G41+G42),(Target_MFI-G131)*(G42)),0) -> 1403232.117 | H91: =IFERROR(MAX(0,((Target_Equity_Ratio/(1-Target_Equity_Ratio))/(H129/(1-H129)) - 1)*H136- SUM($C91:G91),(USDA_Target_MDSC-H130)*(H41+H42),(Target_MFI-H131)*(H42)),0) -> 1512008.238 | I91: =IFERROR(MAX(0,((Target_Equity_Ratio/(1-Target_Equity_Ratio))/(I129/(1-I129)) - 1)*I136- SUM($C91:H91),(USDA_Target_MDSC-I130)*(I41+I42),(Target_MFI-I131)*(I42)),0) -> 1620784.36 | J91: =IFERROR(MAX(0,((Target_Equity_Ratio/(1-Target_Equity_Ratio))/(J129/(1-J129)) - 1)*J136- SUM($C91:I91),(USDA_Target_MDSC-J130)*(J41+J42),(Target_MFI-J131)*(J42)),0) -> 1729560.481 | K91: =IFERROR(MAX(0,((Target_Equity_Ratio/(1-Target_Equity_Ratio))/(K129/(1-K129)) - 1)*K136- SUM($C91:J91),(USDA_Target_MDSC-K130)*(K41+K42),(Target_MFI-K131)*(K42)),0) -> 1838336.602 | L91: =IFERROR(MAX(0,((Target_Equity_Ratio/(1-Target_Equity_Ratio))/(L129/(1-L129)) - 1)*L136- SUM($C91:K91),(USDA_Target_MDSC-L130)*(L41+L42),(Target_MFI-L131)*(L42)),0) -> 1947112.723 | M91: =IFERROR(MAX(0,((Target_Equity_Ratio/(1-Target_Equity_Ratio))/(M129/(1-M129)) - 1)*M136- SUM($C91:L91),(USDA_Target_MDSC-M130)*(M41+M42),(Target_MFI-M131)*(M42)),0) -> 2055888.845 | N91: =IFERROR(MAX(0,((Target_Equity_Ratio/(1-Target_Equity_Ratio))/(N129/(1-N129)) - 1)*N136- SUM($C91:M91),(USDA_Target_MDSC-N130)*(N41+N42),(Target_MFI-N131)*(N42)),0) -> 2164664.966 | O91: =IFERROR(MAX(0,((Target_Equity_Ratio/(1-Target_Equity_Ratio))/(O129/(1-O129)) - 1)*O136- SUM($C91:N91),(USDA_Target_MDSC-O130)*(O41+O42),(Target_MFI-O131)*(O42)),0) -> 2273441.087 | P91: =IFERROR(MAX(0,((Target_Equity_Ratio/(1-Target_Equity_Ratio))/(P129/(1-P129)) - 1)*P136- SUM($C91:O91),(USDA_Target_MDSC-P130)*(P41+P42),(Target_MFI-P131)*(P42)),0) -> 2382217.208 | Q91: =IFERROR(MAX(0,((Target_Equity_Ratio/(1-Target_Equity_Ratio))/(Q129/(1-Q129)) - 1)*Q136- SUM($C91:P91),(USDA_Target_MDSC-Q130)*(Q41+Q42),(Target_MFI-Q131)*(Q42)),0) -> 2490993.33 | R91: =IFERROR(MAX(0,((Target_Equity_Ratio/(1-Target_Equity_Ratio))/(R129/(1-R129)) - 1)*R136- SUM($C91:Q91),(USDA_Target_MDSC-R130)*(R41+R42),(Target_MFI-R131)*(R42)),0) -> 2599769.451 | S91: =IFERROR(MAX(0,((Target_Equity_Ratio/(1-Target_Equity_Ratio))/(S129/(1-S129)) - 1)*S136- SUM($C91:R91),(USDA_Target_MDSC-S130)*(S41+S42),(Target_MFI-S131)*(S42)),0) -> 2708545.572 | T91: =IFERROR(MAX(0,((Target_Equity_Ratio/(1-Target_Equity_Ratio))/(T129/(1-T129)) - 1)*T136- SUM($C91:S91),(USDA_Target_MDSC-T130)*(T41+T42),(Target_MFI-T131)*(T42)),0) -> 2817321.694 | U91: =IFERROR(MAX(0,((Target_Equity_Ratio/(1-Target_Equity_Ratio))/(U129/(1-U129)) - 1)*U136- SUM($C91:T91),(USDA_Target_MDSC-U130)*(U41+U42),(Target_MFI-U131)*(U42)),0) -> 2926097.815 | V91: =IFERROR(MAX(0,((Target_Equity_Ratio/(1-Target_Equity_Ratio))/(V129/(1-V129)) - 1)*V136- SUM($C91:U91),(USDA_Target_MDSC-V130)*(V41+V42),(Target_MFI-V131)*(V42)),0) -> 3034873.936 | W91: =IFERROR(MAX(0,((Target_Equity_Ratio/(1-Target_Equity_Ratio))/(W129/(1-W129)) - 1)*W136- SUM($C91:V91),(USDA_Target_MDSC-W130)*(W41+W42),(Target_MFI-W131)*(W42)),0) -> 3143650.057 | X91: =IFERROR(MAX(0,((Target_Equity_Ratio/(1-Target_Equity_Ratio))/(X129/(1-X129)) - 1)*X136- SUM($C91:W91),(USDA_Target_MDSC-X130)*(X41+X42),(Target_MFI-X131)*(X42)),0) -> 3252426.179 | Y91: =IFERROR(MAX(0,((Target_Equity_Ratio/(1-Target_Equity_Ratio))/(Y129/(1-Y129)) - 1)*Y136- SUM($C91:X91),(USDA_Target_MDSC-Y130)*(Y41+Y42),(Target_MFI-Y131)*(Y42)),0) -> 3361202.3 | Z91: =IFERROR(MAX(0,((Target_Equity_Ratio/(1-Target_Equity_Ratio))/(Z129/(1-Z129)) - 1)*Z136- SUM($C91:Y91),(USDA_Target_MDSC-Z130)*(Z41+Z42),(Target_MFI-Z131)*(Z42)),0) -> 3469978.421 | AA91: =IFERROR(MAX(0,((Target_Equity_Ratio/(1-Target_Equity_Ratio))/(AA129/(1-AA129)) - 1)*AA136- SUM($C91:Z91),(USDA_Target_MDSC-AA130)*(AA41+AA42),(Target_MFI-AA131)*(AA42)),0) -> 3578754.542 | AB91: =IFERROR(MAX(0,((Target_Equity_Ratio/(1-Target_Equity_Ratio))/(AB129/(1-AB129)) - 1)*AB136- SUM($C91:AA91),(USDA_Target_MDSC-AB130)*(AB41+AB42),(Target_MFI-AB131)*(AB42)),0) -> 3687530.664 | AC91: =IFERROR(MAX(0,((Target_Equity_Ratio/(1-Target_Equity_Ratio))/(AC129/(1-AC129)) - 1)*AC136- SUM($C91:AB91),(USDA_Target_MDSC-AC130)*(AC41+AC42),(Target_MFI-AC131)*(AC42)),0) -> 3796306.785 | AD91: =IFERROR(MAX(0,((Target_Equity_Ratio/(1-Target_Equity_Ratio))/(AD129/(1-AD129)) - 1)*AD136- SUM($C91:AC91),(USDA_Target_MDSC-AD130)*(AD41+AD42),(Target_MFI-AD131)*(AD42)),0) -> 3905082.906 | AE91: =IFERROR(MAX(0,((Target_Equity_Ratio/(1-Target_Equity_Ratio))/(AE129/(1-AE129)) - 1)*AE136- SUM($C91:AD91),(USDA_Target_MDSC-AE130)*(AE41+AE42),(Target_MFI-AE131)*(AE42)),0) -> 4013859.027 | AF91: =IFERROR(MAX(0,((Target_Equity_Ratio/(1-Target_Equity_Ratio))/(AF129/(1-AF129)) - 1)*AF136- SUM($C91:AE91),(USDA_Target_MDSC-AF130)*(AF41+AF42),(Target_MFI-AF131)*(AF42)),0) -> 4122635.149 | AG91: =IFERROR(MAX(0,((Target_Equity_Ratio/(1-Target_Equity_Ratio))/(AG129/(1-AG129)) - 1)*AG136- SUM($C91:AF91),(USDA_Target_MDSC-AG130)*(AG41+AG42),(Target_MFI-AG131)*(AG42)),0) -> 4231411.27 | AH91: =IFERROR(MAX(0,((Target_Equity_Ratio/(1-Target_Equity_Ratio))/(AH129/(1-AH129)) - 1)*AH136- SUM($C91:AG91),(USDA_Target_MDSC-AH130)*(AH41+AH42),(Target_MFI-AH131)*(AH42)),0) -> 4340187.391 | AI91: =IFERROR(MAX(0,((Target_Equity_Ratio/(1-Target_Equity_Ratio))/(AI129/(1-AI129)) - 1)*AI136- SUM($C91:AH91),(USDA_Target_MDSC-AI130)*(AI41+AI42),(Target_MFI-AI131)*(AI42)),0) -> 4448963.512 | AJ91: =IFERROR(MAX(0,((Target_Equity_Ratio/(1-Target_Equity_Ratio))/(AJ129/(1-AJ129)) - 1)*AJ136- SUM($C91:AI91),(USDA_Target_MDSC-AJ130)*(AJ41+AJ42),(Target_MFI-AJ131)*(AJ42)),0) -> 4557739.634 | AK91: =IFERROR(MAX(0,((Target_Equity_Ratio/(1-Target_Equity_Ratio))/(AK129/(1-AK129)) - 1)*AK136- SUM($C91:AJ91),(USDA_Target_MDSC-AK130)*(AK41+AK42),(Target_MFI-AK131)*(AK42)),0) -> 0 | AL91: =IFERROR(MAX(0,((Target_Equity_Ratio/(1-Target_Equity_Ratio))/(AL129/(1-AL129)) - 1)*AL136- SUM($C91:AK91),(USDA_Target_MDSC-AL130)*(AL41+AL42),(Target_MFI-AL131)*(AL42)),0) -> 0 | AM91: =IFERROR(MAX(0,((Target_Equity_Ratio/(1-Target_Equity_Ratio))/(AM129/(1-AM129)) - 1)*AM136- SUM($C91:AL91),(USDA_Target_MDSC-AM130)*(AM41+AM42),(Target_MFI-AM131)*(AM42)),0) -> 0 | AN91: =IFERROR(MAX(0,((Target_Equity_Ratio/(1-Target_Equity_Ratio))/(AN129/(1-AN129)) - 1)*AN136- SUM($C91:AM91),(USDA_Target_MDSC-AN130)*(AN41+AN42),(Target_MFI-AN131)*(AN42)),0) -> 0 | AO91: =IFERROR(MAX(0,((Target_Equity_Ratio/(1-Target_Equity_Ratio))/(AO129/(1-AO129)) - 1)*AO136- SUM($C91:AN91),(USDA_Target_MDSC-AO130)*(AO41+AO42),(Target_MFI-AO131)*(AO42)),0) -> 0 | AP91: =IFERROR(MAX(0,((Target_Equity_Ratio/(1-Target_Equity_Ratio))/(AP129/(1-AP129)) - 1)*AP136- SUM($C91:AO91),(USDA_Target_MDSC-AP130)*(AP41+AP42),(Target_MFI-AP131)*(AP42)),0) -> 0 | AQ91: =IFERROR(MAX(0,((Target_Equity_Ratio/(1-Target_Equity_Ratio))/(AQ129/(1-AQ129)) - 1)*AQ136- SUM($C91:AP91),(USDA_Target_MDSC-AQ130)*(AQ41+AQ42),(Target_MFI-AQ131)*(AQ42)),0) -> 0
B92: Total Owned (excluding member distributions) | C92: Total Change in Ratepayer Costs for Portfolio (excluding member distributions) | D92: =D19+D55+D56+D57+(D60+D61)+D62+D66+D67+D68+D70+D71+D73+D75+D76+D77+D53+D64+D79+D81+D82+D83+(D86+D87)+D88+D44-D7+D45+D89+D91+D90 -> 0 | E92: 0 | F92: 0 | G92: 155073684.5 | H92: 153386983 | I92: 150871428.3 | J92: 149342002.9 | K92: 146951657.7 | L92: 144613850.6 | M92: 142327172 | N92: 140780394.2 | O92: 138241143.2 | P92: 135742541.7 | Q92: 208257246.4 | R92: 207416858.5 | S92: 206610171.2 | T92: 205837858.4 | U92: 205100607.7 | V92: 204399120.4 | W92: 203734111.6 | X92: 203106311 | Y92: 202516462.7 | Z92: 201965325.8 | AA92: 201453674.6 | AB92: 200982298.6 | AC92: 200552003.4 | AD92: 200163610.7 | AE92: 199817958.5 | AF92: 199515901.5 | AG92: 199258311.8 | AH92: 199046078.6 | AI92: 198880109 | AJ92: 198761328.5 | AK92: 0 | AL92: 0 | AM92: 0 | AN92: 0 | AO92: 0 | AP92: 0 | AQ92: 0
C94: Distribution to members of excess margins not needed to maintain initial equity ratio | D94: =-Distribute_Margins*D126 -> 0 | E94: 0 | F94: 0 | G94: -1122585.694 | H94: -1209606.591 | I94: -1296627.488 | J94: -1383648.385 | K94: -1470669.282 | L94: -1557690.179 | M94: -1644711.076 | N94: -1731731.973 | O94: -1818752.87 | P94: -1905773.767 | Q94: -1992794.664 | R94: -2079815.561 | S94: -2166836.458 | T94: -2253857.355 | U94: -2340878.252 | V94: -2427899.149 | W94: -2514920.046 | X94: -2601940.943 | Y94: -2688961.84 | Z94: -2775982.737 | AA94: -2863003.634 | AB94: -2950024.531 | AC94: -3037045.428 | AD94: -3124066.325 | AE94: -3211087.222 | AF94: -3298108.119 | AG94: -3385129.016 | AH94: -3472149.913 | AI94: -3559170.81 | AJ94: -3646191.707 | AK94: 0 | AL94: 0 | AM94: 0 | AN94: 0 | AO94: 0 | AP94: 0 | AQ94: 0
B96: Total Owned | C96: Total Change in Ratepayer Costs for Portfolio (net of member distributions) | D96: =D19+D55+D56+D57+(D60+D61)+D62+D66+D67+D68+D70+D71+D73+D75+D76+D77+D53+D64+D79+D81+D82+D83+(D86+D87)+D88+D44-D7+D45+D89+D91+D90+D94 -> 0 | E96: 0 | F96: 0 | G96: 153951098.8 | H96: 152177376.4 | I96: 149574800.8 | J96: 147958354.5 | K96: 145480988.4 | L96: 143056160.4 | M96: 140682460.9 | N96: 139048662.2 | O96: 136422390.4 | P96: 133836767.9 | Q96: 206264451.8 | R96: 205337042.9 | S96: 204443334.7 | T96: 203584001 | U96: 202759729.5 | V96: 201971221.2 | W96: 201219191.6 | X96: 200504370.1 | Y96: 199827500.9 | Z96: 199189343.1 | AA96: 198590670.9 | AB96: 198032274 | AC96: 197514958 | AD96: 197039544.4 | AE96: 196606871.2 | AF96: 196217793.4 | AG96: 195873182.8 | AH96: 195573928.7 | AI96: 195320938.2 | AJ96: 195115136.8 | AK96: 0 | AL96: 0 | AM96: 0 | AN96: 0 | AO96: 0 | AP96: 0 | AQ96: 0
C98: Total Impact on Net Plant Balance | D98: =(D78+D72+D63+D52) -> 0 | E98: 0 | F98: 0 | G98: 2799909453 | H98: 2706579138 | I98: 2613248823 | J98: 2519918508 | K98: 2426588193 | L98: 2333257877 | M98: 2239927562 | N98: 2146597247 | O98: 2053266932 | P98: 1959936617 | Q98: 1866606302 | R98: 1773275987 | S98: 1679945672 | T98: 1586615357 | U98: 1493285042 | V98: 1399954726 | W98: 1306624411 | X98: 1213294096 | Y98: 1119963781 | Z98: 1026633466 | AA98: 933303151 | AB98: 839972835.9 | AC98: 746642520.8 | AD98: 653312205.7 | AE98: 559981890.6 | AF98: 466651575.5 | AG98: 373321260.4 | AH98: 279990945.3 | AI98: 186660630.2 | AJ98: 93330315.1 | AK98: 0 | AL98: 0 | AM98: 0 | AN98: 0 | AO98: 0 | AP98: 0 | AQ98: 0
C99: Total Impact on Net Ratebase | D99: =(D59+D85+D80+D74+D69+D65+D54+D43) -> 0 | E99: 0 | F99: 0 | G99: 2064928191 | H99: 1996097252 | I99: 1927266312 | J99: 1858435372 | K99: 1789604432 | L99: 1720773493 | M99: 1651942553 | N99: 1583111613 | O99: 1514280674 | P99: 1445449734 | Q99: 1376618794 | R99: 1307787854 | S99: 1238956915 | T99: 1170125975 | U99: 1101295035 | V99: 1032464096 | W99: 963633155.9 | X99: 894802216.2 | Y99: 825971276.5 | Z99: 757140336.8 | AA99: 688309397.1 | AB99: 619478457.4 | AC99: 550647517.7 | AD99: 481816578 | AE99: 412985638.3 | AF99: 344154698.5 | AG99: 275323758.8 | AH99: 206492819.1 | AI99: 137661879.4 | AJ99: 68830939.71 | AK99: 0 | AL99: 0 | AM99: 0 | AN99: 0 | AO99: 0 | AP99: 0 | AQ99: 0
C101: Realized ROR on Ratebase | D101: =IFERROR(D120/D99,"") ->  | G101: 0.03895003473 | H101: 0.03902796206 | I101: 0.03911145563 | J101: 0.0392011339 | K101: 0.0392977105 | L101: 0.03940201324 | M101: 0.03951500786 | N101: 0.03963782811 | O101: 0.03977181383 | P101: 0.0399185601 | Q101: 0.04007998099 | R101: 0.04025839356 | S101: 0.04045662974 | T101: 0.04067818783 | U101: 0.04092744068 | V101: 0.04120992724 | W101: 0.04153276903 | X101: 0.04190527879 | Y101: 0.0423398735 | Z101: 0.04285348543 | AA101: 0.04346981976 | AB101: 0.04422311726 | AC101: 0.04516473914 | AD101: 0.04637539584 | AE101: 0.04798960478 | AF101: 0.05024949729 | AG101: 0.05363933605 | AH101: 0.05928906733 | AI101: 0.07058852989 | AJ101: 0.1044869175
C102: Realized ROR on Net Plant Balance | D102: =IFERROR(D120/(D78+D72+D63+D52),"") ->  | G102: 0.02872558064 | H102: 0.0287830519 | I102: 0.02884462826 | J102: 0.02891076582 | K102: 0.0289819909 | L102: 0.02905891397 | M102: 0.02914224731 | N102: 0.02923282702 | O102: 0.02933164124 | P102: 0.02943986635 | Q102: 0.02955891397 | R102: 0.02969049292 | S102: 0.02983669175 | T102: 0.03000009044 | U102: 0.03018391397 | V102: 0.03039224731 | W102: 0.03063034254 | X102: 0.03090506782 | Y102: 0.03122558064 | Z102: 0.03160436852 | AA102: 0.03205891397 | AB102: 0.03261446953 | AC102: 0.03330891397 | AD102: 0.03420177111 | AE102: 0.03539224731 | AF102: 0.03705891397 | AG102: 0.03955891397 | AH102: 0.04372558064 | AI102: 0.05205891397 | AJ102: 0.07705891397
C104: Calculated PPA Price | D104: =IF(OR(D$3<PPA_Start_Year,D$3>=PPA_Start_Year+PPA_Term_Manual),0,IFERROR(('TE Battery'!$C$35+'TE Wind'!$C$35+'TE Solar'!$C$35),0)) -> 0 | E104: =IF(OR(E$3<PPA_Start_Year,E$3>=PPA_Start_Year+PPA_Term_Manual),0,IFERROR(('TE Battery'!$C$35+'TE Wind'!$C$35+'TE Solar'!$C$35),0)) -> 0 | F104: =IF(OR(F$3<PPA_Start_Year,F$3>=PPA_Start_Year+PPA_Term_Manual),0,IFERROR(('TE Battery'!$C$35+'TE Wind'!$C$35+'TE Solar'!$C$35),0)) -> 0 | G104: =IF(OR(G$3<PPA_Start_Year,G$3>=PPA_Start_Year+PPA_Term_Manual),0,IFERROR(('TE Battery'!$C$35+'TE Wind'!$C$35+'TE Solar'!$C$35),0)) -> 59.13398653 | H104: =IF(OR(H$3<PPA_Start_Year,H$3>=PPA_Start_Year+PPA_Term_Manual),0,IFERROR(('TE Battery'!$C$35+'TE Wind'!$C$35+'TE Solar'!$C$35),0)) -> 59.13398653 | I104: =IF(OR(I$3<PPA_Start_Year,I$3>=PPA_Start_Year+PPA_Term_Manual),0,IFERROR(('TE Battery'!$C$35+'TE Wind'!$C$35+'TE Solar'!$C$35),0)) -> 59.13398653 | J104: =IF(OR(J$3<PPA_Start_Year,J$3>=PPA_Start_Year+PPA_Term_Manual),0,IFERROR(('TE Battery'!$C$35+'TE Wind'!$C$35+'TE Solar'!$C$35),0)) -> 59.13398653 | K104: =IF(OR(K$3<PPA_Start_Year,K$3>=PPA_Start_Year+PPA_Term_Manual),0,IFERROR(('TE Battery'!$C$35+'TE Wind'!$C$35+'TE Solar'!$C$35),0)) -> 59.13398653 | L104: =IF(OR(L$3<PPA_Start_Year,L$3>=PPA_Start_Year+PPA_Term_Manual),0,IFERROR(('TE Battery'!$C$35+'TE Wind'!$C$35+'TE Solar'!$C$35),0)) -> 59.13398653 | M104: =IF(OR(M$3<PPA_Start_Year,M$3>=PPA_Start_Year+PPA_Term_Manual),0,IFERROR(('TE Battery'!$C$35+'TE Wind'!$C$35+'TE Solar'!$C$35),0)) -> 59.13398653 | N104: =IF(OR(N$3<PPA_Start_Year,N$3>=PPA_Start_Year+PPA_Term_Manual),0,IFERROR(('TE Battery'!$C$35+'TE Wind'!$C$35+'TE Solar'!$C$35),0)) -> 59.13398653 | O104: =IF(OR(O$3<PPA_Start_Year,O$3>=PPA_Start_Year+PPA_Term_Manual),0,IFERROR(('TE Battery'!$C$35+'TE Wind'!$C$35+'TE Solar'!$C$35),0)) -> 59.13398653 | P104: =IF(OR(P$3<PPA_Start_Year,P$3>=PPA_Start_Year+PPA_Term_Manual),0,IFERROR(('TE Battery'!$C$35+'TE Wind'!$C$35+'TE Solar'!$C$35),0)) -> 59.13398653 | Q104: =IF(OR(Q$3<PPA_Start_Year,Q$3>=PPA_Start_Year+PPA_Term_Manual),0,IFERROR(('TE Battery'!$C$35+'TE Wind'!$C$35+'TE Solar'!$C$35),0)) -> 59.13398653 | R104: =IF(OR(R$3<PPA_Start_Year,R$3>=PPA_Start_Year+PPA_Term_Manual),0,IFERROR(('TE Battery'!$C$35+'TE Wind'!$C$35+'TE Solar'!$C$35),0)) -> 59.13398653 | S104: =IF(OR(S$3<PPA_Start_Year,S$3>=PPA_Start_Year+PPA_Term_Manual),0,IFERROR(('TE Battery'!$C$35+'TE Wind'!$C$35+'TE Solar'!$C$35),0)) -> 59.13398653 | T104: =IF(OR(T$3<PPA_Start_Year,T$3>=PPA_Start_Year+PPA_Term_Manual),0,IFERROR(('TE Battery'!$C$35+'TE Wind'!$C$35+'TE Solar'!$C$35),0)) -> 59.13398653 | U104: =IF(OR(U$3<PPA_Start_Year,U$3>=PPA_Start_Year+PPA_Term_Manual),0,IFERROR(('TE Battery'!$C$35+'TE Wind'!$C$35+'TE Solar'!$C$35),0)) -> 59.13398653 | V104: =IF(OR(V$3<PPA_Start_Year,V$3>=PPA_Start_Year+PPA_Term_Manual),0,IFERROR(('TE Battery'!$C$35+'TE Wind'!$C$35+'TE Solar'!$C$35),0)) -> 59.13398653 | W104: =IF(OR(W$3<PPA_Start_Year,W$3>=PPA_Start_Year+PPA_Term_Manual),0,IFERROR(('TE Battery'!$C$35+'TE Wind'!$C$35+'TE Solar'!$C$35),0)) -> 59.13398653 | X104: =IF(OR(X$3<PPA_Start_Year,X$3>=PPA_Start_Year+PPA_Term_Manual),0,IFERROR(('TE Battery'!$C$35+'TE Wind'!$C$35+'TE Solar'!$C$35),0)) -> 59.13398653 | Y104: =IF(OR(Y$3<PPA_Start_Year,Y$3>=PPA_Start_Year+PPA_Term_Manual),0,IFERROR(('TE Battery'!$C$35+'TE Wind'!$C$35+'TE Solar'!$C$35),0)) -> 59.13398653 | Z104: =IF(OR(Z$3<PPA_Start_Year,Z$3>=PPA_Start_Year+PPA_Term_Manual),0,IFERROR(('TE Battery'!$C$35+'TE Wind'!$C$35+'TE Solar'!$C$35),0)) -> 59.13398653 | AA104: =IF(OR(AA$3<PPA_Start_Year,AA$3>=PPA_Start_Year+PPA_Term_Manual),0,IFERROR(('TE Battery'!$C$35+'TE Wind'!$C$35+'TE Solar'!$C$35),0)) -> 59.13398653 | AB104: =IF(OR(AB$3<PPA_Start_Year,AB$3>=PPA_Start_Year+PPA_Term_Manual),0,IFERROR(('TE Battery'!$C$35+'TE Wind'!$C$35+'TE Solar'!$C$35),0)) -> 59.13398653 | AC104: =IF(OR(AC$3<PPA_Start_Year,AC$3>=PPA_Start_Year+PPA_Term_Manual),0,IFERROR(('TE Battery'!$C$35+'TE Wind'!$C$35+'TE Solar'!$C$35),0)) -> 59.13398653 | AD104: =IF(OR(AD$3<PPA_Start_Year,AD$3>=PPA_Start_Year+PPA_Term_Manual),0,IFERROR(('TE Battery'!$C$35+'TE Wind'!$C$35+'TE Solar'!$C$35),0)) -> 59.13398653 | AE104: =IF(OR(AE$3<PPA_Start_Year,AE$3>=PPA_Start_Year+PPA_Term_Manual),0,IFERROR(('TE Battery'!$C$35+'TE Wind'!$C$35+'TE Solar'!$C$35),0)) -> 59.13398653 | AF104: =IF(OR(AF$3<PPA_Start_Year,AF$3>=PPA_Start_Year+PPA_Term_Manual),0,IFERROR(('TE Battery'!$C$35+'TE Wind'!$C$35+'TE Solar'!$C$35),0)) -> 59.13398653 | AG104: =IF(OR(AG$3<PPA_Start_Year,AG$3>=PPA_Start_Year+PPA_Term_Manual),0,IFERROR(('TE Battery'!$C$35+'TE Wind'!$C$35+'TE Solar'!$C$35),0)) -> 59.13398653 | AH104: =IF(OR(AH$3<PPA_Start_Year,AH$3>=PPA_Start_Year+PPA_Term_Manual),0,IFERROR(('TE Battery'!$C$35+'TE Wind'!$C$35+'TE Solar'!$C$35),0)) -> 59.13398653 | AI104: =IF(OR(AI$3<PPA_Start_Year,AI$3>=PPA_Start_Year+PPA_Term_Manual),0,IFERROR(('TE Battery'!$C$35+'TE Wind'!$C$35+'TE Solar'!$C$35),0)) -> 59.13398653 | AJ104: =IF(OR(AJ$3<PPA_Start_Year,AJ$3>=PPA_Start_Year+PPA_Term_Manual),0,IFERROR(('TE Battery'!$C$35+'TE Wind'!$C$35+'TE Solar'!$C$35),0)) -> 59.13398653 | AK104: =IF(OR(AK$3<PPA_Start_Year,AK$3>=PPA_Start_Year+PPA_Term_Manual),0,IFERROR(('TE Battery'!$C$35+'TE Wind'!$C$35+'TE Solar'!$C$35),0)) -> 0 | AL104: =IF(OR(AL$3<PPA_Start_Year,AL$3>=PPA_Start_Year+PPA_Term_Manual),0,IFERROR(('TE Battery'!$C$35+'TE Wind'!$C$35+'TE Solar'!$C$35),0)) -> 0 | AM104: =IF(OR(AM$3<PPA_Start_Year,AM$3>=PPA_Start_Year+PPA_Term_Manual),0,IFERROR(('TE Battery'!$C$35+'TE Wind'!$C$35+'TE Solar'!$C$35),0)) -> 0 | AN104: =IF(OR(AN$3<PPA_Start_Year,AN$3>=PPA_Start_Year+PPA_Term_Manual),0,IFERROR(('TE Battery'!$C$35+'TE Wind'!$C$35+'TE Solar'!$C$35),0)) -> 0 | AO104: =IF(OR(AO$3<PPA_Start_Year,AO$3>=PPA_Start_Year+PPA_Term_Manual),0,IFERROR(('TE Battery'!$C$35+'TE Wind'!$C$35+'TE Solar'!$C$35),0)) -> 0 | AP104: =IF(OR(AP$3<PPA_Start_Year,AP$3>=PPA_Start_Year+PPA_Term_Manual),0,IFERROR(('TE Battery'!$C$35+'TE Wind'!$C$35+'TE Solar'!$C$35),0)) -> 0 | AQ104: =IF(OR(AQ$3<PPA_Start_Year,AQ$3>=PPA_Start_Year+PPA_Term_Manual),0,IFERROR(('TE Battery'!$C$35+'TE Wind'!$C$35+'TE Solar'!$C$35),0)) -> 0
C105: Calculated PPA MWh | D105: =IF(OR(D$3<PPA_Start_Year,D$3>=PPA_Start_Year+PPA_Term_Manual),0,IF(PPA_Uses_Solar_Wind_Resource="Yes",D84+D58,((PPA_Volume_Manual)*(1-PPA_Volume_Degradation)^(D$3-PPA_Start_Year)))) -> 0 | E105: 0 | F105: 0 | G105: 3158109.981 | H105: 3146364.537 | I105: 3134677.819 | J105: 3123049.535 | K105: 3111479.393 | L105: 3099967.101 | M105: 3088512.371 | N105: 3077114.914 | O105: 3065774.445 | P105: 3054490.678 | Q105: 3043263.33 | R105: 3032092.118 | S105: 3020976.763 | T105: 3009916.984 | U105: 2998912.504 | V105: 2987963.047 | W105: 2977068.337 | X105: 2966228.101 | Y105: 2955442.065 | Z105: 2944709.96 | AA105: 2934031.515 | AB105: 2923406.463 | AC105: 2912834.536 | AD105: 2902315.469 | AE105: 2891848.996 | AF105: 2881434.857 | AG105: 2871072.788 | AH105: 2860762.529 | AI105: 2850503.821 | AJ105: 2840296.407 | AK105: 0 | AL105: 0 | AM105: 0 | AN105: 0 | AO105: 0 | AP105: 0 | AQ105: 0
C106: Calculated PPA Cost (Excluding New ERA) | D106: =IF(OR(D$3<PPA_Start_Year,D$3>=PPA_Start_Year+PPA_Term_Manual),0,IF(D105>0,D104*D105,'TE Battery'!$C$37+'TE Wind'!$C$37+'TE Solar'!$C$37)) -> 0 | E106: =IF(OR(E$3<PPA_Start_Year,E$3>=PPA_Start_Year+PPA_Term_Manual),0,IF(E105>0,E104*E105,'TE Battery'!$C$37+'TE Wind'!$C$37+'TE Solar'!$C$37)) -> 0 | F106: =IF(OR(F$3<PPA_Start_Year,F$3>=PPA_Start_Year+PPA_Term_Manual),0,IF(F105>0,F104*F105,'TE Battery'!$C$37+'TE Wind'!$C$37+'TE Solar'!$C$37)) -> 0 | G106: =IF(OR(G$3<PPA_Start_Year,G$3>=PPA_Start_Year+PPA_Term_Manual),0,IF(G105>0,G104*G105,'TE Battery'!$C$37+'TE Wind'!$C$37+'TE Solar'!$C$37)) -> 186751633.1 | H106: =IF(OR(H$3<PPA_Start_Year,H$3>=PPA_Start_Year+PPA_Term_Manual),0,IF(H105>0,H104*H105,'TE Battery'!$C$37+'TE Wind'!$C$37+'TE Solar'!$C$37)) -> 186057078.1 | I106: =IF(OR(I$3<PPA_Start_Year,I$3>=PPA_Start_Year+PPA_Term_Manual),0,IF(I105>0,I104*I105,'TE Battery'!$C$37+'TE Wind'!$C$37+'TE Solar'!$C$37)) -> 185365995.9 | J106: =IF(OR(J$3<PPA_Start_Year,J$3>=PPA_Start_Year+PPA_Term_Manual),0,IF(J105>0,J104*J105,'TE Battery'!$C$37+'TE Wind'!$C$37+'TE Solar'!$C$37)) -> 184678369.2 | K106: =IF(OR(K$3<PPA_Start_Year,K$3>=PPA_Start_Year+PPA_Term_Manual),0,IF(K105>0,K104*K105,'TE Battery'!$C$37+'TE Wind'!$C$37+'TE Solar'!$C$37)) -> 183994180.5 | L106: =IF(OR(L$3<PPA_Start_Year,L$3>=PPA_Start_Year+PPA_Term_Manual),0,IF(L105>0,L104*L105,'TE Battery'!$C$37+'TE Wind'!$C$37+'TE Solar'!$C$37)) -> 183313412.8 | M106: =IF(OR(M$3<PPA_Start_Year,M$3>=PPA_Start_Year+PPA_Term_Manual),0,IF(M105>0,M104*M105,'TE Battery'!$C$37+'TE Wind'!$C$37+'TE Solar'!$C$37)) -> 182636048.9 | N106: =IF(OR(N$3<PPA_Start_Year,N$3>=PPA_Start_Year+PPA_Term_Manual),0,IF(N105>0,N104*N105,'TE Battery'!$C$37+'TE Wind'!$C$37+'TE Solar'!$C$37)) -> 181962071.9 | O106: =IF(OR(O$3<PPA_Start_Year,O$3>=PPA_Start_Year+PPA_Term_Manual),0,IF(O105>0,O104*O105,'TE Battery'!$C$37+'TE Wind'!$C$37+'TE Solar'!$C$37)) -> 181291464.7 | P106: =IF(OR(P$3<PPA_Start_Year,P$3>=PPA_Start_Year+PPA_Term_Manual),0,IF(P105>0,P104*P105,'TE Battery'!$C$37+'TE Wind'!$C$37+'TE Solar'!$C$37)) -> 180624210.6 | Q106: =IF(OR(Q$3<PPA_Start_Year,Q$3>=PPA_Start_Year+PPA_Term_Manual),0,IF(Q105>0,Q104*Q105,'TE Battery'!$C$37+'TE Wind'!$C$37+'TE Solar'!$C$37)) -> 179960292.7 | R106: =IF(OR(R$3<PPA_Start_Year,R$3>=PPA_Start_Year+PPA_Term_Manual),0,IF(R105>0,R104*R105,'TE Battery'!$C$37+'TE Wind'!$C$37+'TE Solar'!$C$37)) -> 179299694.5 | S106: =IF(OR(S$3<PPA_Start_Year,S$3>=PPA_Start_Year+PPA_Term_Manual),0,IF(S105>0,S104*S105,'TE Battery'!$C$37+'TE Wind'!$C$37+'TE Solar'!$C$37)) -> 178642399.2 | T106: =IF(OR(T$3<PPA_Start_Year,T$3>=PPA_Start_Year+PPA_Term_Manual),0,IF(T105>0,T104*T105,'TE Battery'!$C$37+'TE Wind'!$C$37+'TE Solar'!$C$37)) -> 177988390.4 | U106: =IF(OR(U$3<PPA_Start_Year,U$3>=PPA_Start_Year+PPA_Term_Manual),0,IF(U105>0,U104*U105,'TE Battery'!$C$37+'TE Wind'!$C$37+'TE Solar'!$C$37)) -> 177337651.6 | V106: =IF(OR(V$3<PPA_Start_Year,V$3>=PPA_Start_Year+PPA_Term_Manual),0,IF(V105>0,V104*V105,'TE Battery'!$C$37+'TE Wind'!$C$37+'TE Solar'!$C$37)) -> 176690166.6 | W106: =IF(OR(W$3<PPA_Start_Year,W$3>=PPA_Start_Year+PPA_Term_Manual),0,IF(W105>0,W104*W105,'TE Battery'!$C$37+'TE Wind'!$C$37+'TE Solar'!$C$37)) -> 176045918.9 | X106: =IF(OR(X$3<PPA_Start_Year,X$3>=PPA_Start_Year+PPA_Term_Manual),0,IF(X105>0,X104*X105,'TE Battery'!$C$37+'TE Wind'!$C$37+'TE Solar'!$C$37)) -> 175404892.5 | Y106: =IF(OR(Y$3<PPA_Start_Year,Y$3>=PPA_Start_Year+PPA_Term_Manual),0,IF(Y105>0,Y104*Y105,'TE Battery'!$C$37+'TE Wind'!$C$37+'TE Solar'!$C$37)) -> 174767071.3 | Z106: =IF(OR(Z$3<PPA_Start_Year,Z$3>=PPA_Start_Year+PPA_Term_Manual),0,IF(Z105>0,Z104*Z105,'TE Battery'!$C$37+'TE Wind'!$C$37+'TE Solar'!$C$37)) -> 174132439.1 | AA106: =IF(OR(AA$3<PPA_Start_Year,AA$3>=PPA_Start_Year+PPA_Term_Manual),0,IF(AA105>0,AA104*AA105,'TE Battery'!$C$37+'TE Wind'!$C$37+'TE Solar'!$C$37)) -> 173500980.1 | AB106: =IF(OR(AB$3<PPA_Start_Year,AB$3>=PPA_Start_Year+PPA_Term_Manual),0,IF(AB105>0,AB104*AB105,'TE Battery'!$C$37+'TE Wind'!$C$37+'TE Solar'!$C$37)) -> 172872678.4 | AC106: =IF(OR(AC$3<PPA_Start_Year,AC$3>=PPA_Start_Year+PPA_Term_Manual),0,IF(AC105>0,AC104*AC105,'TE Battery'!$C$37+'TE Wind'!$C$37+'TE Solar'!$C$37)) -> 172247518.2 | AD106: =IF(OR(AD$3<PPA_Start_Year,AD$3>=PPA_Start_Year+PPA_Term_Manual),0,IF(AD105>0,AD104*AD105,'TE Battery'!$C$37+'TE Wind'!$C$37+'TE Solar'!$C$37)) -> 171625483.8 | AE106: =IF(OR(AE$3<PPA_Start_Year,AE$3>=PPA_Start_Year+PPA_Term_Manual),0,IF(AE105>0,AE104*AE105,'TE Battery'!$C$37+'TE Wind'!$C$37+'TE Solar'!$C$37)) -> 171006559.6 | AF106: =IF(OR(AF$3<PPA_Start_Year,AF$3>=PPA_Start_Year+PPA_Term_Manual),0,IF(AF105>0,AF104*AF105,'TE Battery'!$C$37+'TE Wind'!$C$37+'TE Solar'!$C$37)) -> 170390730 | AG106: =IF(OR(AG$3<PPA_Start_Year,AG$3>=PPA_Start_Year+PPA_Term_Manual),0,IF(AG105>0,AG104*AG105,'TE Battery'!$C$37+'TE Wind'!$C$37+'TE Solar'!$C$37)) -> 169777979.5 | AH106: =IF(OR(AH$3<PPA_Start_Year,AH$3>=PPA_Start_Year+PPA_Term_Manual),0,IF(AH105>0,AH104*AH105,'TE Battery'!$C$37+'TE Wind'!$C$37+'TE Solar'!$C$37)) -> 169168292.8 | AI106: =IF(OR(AI$3<PPA_Start_Year,AI$3>=PPA_Start_Year+PPA_Term_Manual),0,IF(AI105>0,AI104*AI105,'TE Battery'!$C$37+'TE Wind'!$C$37+'TE Solar'!$C$37)) -> 168561654.6 | AJ106: =IF(OR(AJ$3<PPA_Start_Year,AJ$3>=PPA_Start_Year+PPA_Term_Manual),0,IF(AJ105>0,AJ104*AJ105,'TE Battery'!$C$37+'TE Wind'!$C$37+'TE Solar'!$C$37)) -> 167958049.5 | AK106: =IF(OR(AK$3<PPA_Start_Year,AK$3>=PPA_Start_Year+PPA_Term_Manual),0,IF(AK105>0,AK104*AK105,'TE Battery'!$C$37+'TE Wind'!$C$37+'TE Solar'!$C$37)) -> 0 | AL106: =IF(OR(AL$3<PPA_Start_Year,AL$3>=PPA_Start_Year+PPA_Term_Manual),0,IF(AL105>0,AL104*AL105,'TE Battery'!$C$37+'TE Wind'!$C$37+'TE Solar'!$C$37)) -> 0 | AM106: =IF(OR(AM$3<PPA_Start_Year,AM$3>=PPA_Start_Year+PPA_Term_Manual),0,IF(AM105>0,AM104*AM105,'TE Battery'!$C$37+'TE Wind'!$C$37+'TE Solar'!$C$37)) -> 0 | AN106: =IF(OR(AN$3<PPA_Start_Year,AN$3>=PPA_Start_Year+PPA_Term_Manual),0,IF(AN105>0,AN104*AN105,'TE Battery'!$C$37+'TE Wind'!$C$37+'TE Solar'!$C$37)) -> 0 | AO106: =IF(OR(AO$3<PPA_Start_Year,AO$3>=PPA_Start_Year+PPA_Term_Manual),0,IF(AO105>0,AO104*AO105,'TE Battery'!$C$37+'TE Wind'!$C$37+'TE Solar'!$C$37)) -> 0 | AP106: =IF(OR(AP$3<PPA_Start_Year,AP$3>=PPA_Start_Year+PPA_Term_Manual),0,IF(AP105>0,AP104*AP105,'TE Battery'!$C$37+'TE Wind'!$C$37+'TE Solar'!$C$37)) -> 0 | AQ106: =IF(OR(AQ$3<PPA_Start_Year,AQ$3>=PPA_Start_Year+PPA_Term_Manual),0,IF(AQ105>0,AQ104*AQ105,'TE Battery'!$C$37+'TE Wind'!$C$37+'TE Solar'!$C$37)) -> 0
C107: Normalized Rate Impact of New ERA Grant, Transmission Financing, and Old Asset Refinancing for Calculated PPA | D107: =D47+D48+D73+D75+D76+D77*IFERROR(D111/(D58+D84),0)+D19-D7+D89 -> 0 | E107: 0 | F107: 0 | G107: 12630147.55 | H107: 12828070.27 | I107: 13038068.22 | J107: 13258239.1 | K107: 13484849.62 | L107: 13718057.55 | M107: 13957659.28 | N107: 14171551.26 | O107: 14370381.77 | P107: 14574042.32 | Q107: 14782629.52 | R107: 14996241.89 | S107: 15214979.94 | T107: 15438946.19 | U107: 15668245.19 | V107: 15902983.6 | W107: 16143270.21 | X107: 16389215.98 | Y107: 16640934.11 | Z107: 16898540.02 | AA107: 17162151.49 | AB107: 17431888.62 | AC107: 17707873.92 | AD107: 17990232.36 | AE107: 18279091.4 | AF107: 18574581.05 | AG107: 18876833.93 | AH107: 19185985.3 | AI107: 19502173.12 | AJ107: 19825538.14 | AK107: 0 | AL107: 0 | AM107: 0 | AN107: 0 | AO107: 0 | AP107: 0 | AQ107: 0
B108: Total Calculated PPA Cost | C108: Calculated PPA Cost including Transmission, New ERA, Battery, and Refinancing | D108: =D106+D107 -> 0 | E108: =E106+E107 -> 0 | F108: 0 | G108: 199381780.7 | H108: 198885148.4 | I108: 198404064.2 | J108: 197936608.3 | K108: 197479030.1 | L108: 197031470.4 | M108: 196593708.2 | N108: 196133623.1 | O108: 195661846.5 | P108: 195198252.9 | Q108: 194742922.3 | R108: 194295936.4 | S108: 193857379.1 | T108: 193427336.6 | U108: 193005896.8 | V108: 192593150.2 | W108: 192189189.1 | X108: 191794108.5 | Y108: 191408005.4 | Z108: 191030979.1 | AA108: 190663131.6 | AB108: 190304567 | AC108: 189955392.1 | AD108: 189615716.2 | AE108: 189285651 | AF108: 188965311.1 | AG108: 188654813.5 | AH108: 188354278.1 | AI108: 188063827.7 | AJ108: 187783587.6 | AK108: 0 | AL108: 0 | AM108: 0 | AN108: 0 | AO108: 0 | AP108: 0 | AQ108: 0
C110: Quote PPA Price | D110: =IF(OR(D$3<PPA_Start_Year,D$3>=PPA_Start_Year+PPA_Term_Manual),0,((PPA_Price_Manual)*(1+PPA_Price_Inflator)^(D$3-PPA_Start_Year))) -> 0 | E110: 0 | F110: 0 | G110: 55 | H110: 55 | I110: 55 | J110: 55 | K110: 55 | L110: 55 | M110: 55 | N110: 55 | O110: 55 | P110: 55 | Q110: 55 | R110: 55 | S110: 55 | T110: 55 | U110: 55 | V110: 55 | W110: 55 | X110: 55 | Y110: 55 | Z110: 55 | AA110: 55 | AB110: 55 | AC110: 55 | AD110: 55 | AE110: 55 | AF110: 55 | AG110: 55 | AH110: 55 | AI110: 55 | AJ110: 55 | AK110: 0 | AL110: 0 | AM110: 0 | AN110: 0 | AO110: 0 | AP110: 0 | AQ110: 0
C111: Quote PPA MWh | D111: =IF(OR(D$3<PPA_Start_Year,D$3>=PPA_Start_Year+PPA_Term_Manual),0,IF(PPA_Uses_Solar_Wind_Resource="Yes",D84+D58,((PPA_Volume_Manual)*(1-PPA_Volume_Degradation)^(D$3-PPA_Start_Year)))) -> 0 | E111: 0 | F111: 0 | G111: 3158109.981 | H111: 3146364.537 | I111: 3134677.819 | J111: 3123049.535 | K111: 3111479.393 | L111: 3099967.101 | M111: 3088512.371 | N111: 3077114.914 | O111: 3065774.445 | P111: 3054490.678 | Q111: 3043263.33 | R111: 3032092.118 | S111: 3020976.763 | T111: 3009916.984 | U111: 2998912.504 | V111: 2987963.047 | W111: 2977068.337 | X111: 2966228.101 | Y111: 2955442.065 | Z111: 2944709.96 | AA111: 2934031.515 | AB111: 2923406.463 | AC111: 2912834.536 | AD111: 2902315.469 | AE111: 2891848.996 | AF111: 2881434.857 | AG111: 2871072.788 | AH111: 2860762.529 | AI111: 2850503.821 | AJ111: 2840296.407 | AK111: 0 | AL111: 0 | AM111: 0 | AN111: 0 | AO111: 0 | AP111: 0 | AQ111: 0
C112: Quote PPA Cost (Excluding New ERA) | D112: =D110*D111 -> 0 | E112: =E110*E111 -> 0 | F112: 0 | G112: 173696049 | H112: 173050049.5 | I112: 172407280.1 | J112: 171767724.4 | K112: 171131366.6 | L112: 170498190.6 | M112: 169868180.4 | N112: 169241320.3 | O112: 168617594.5 | P112: 167996987.3 | Q112: 167379483.1 | R112: 166765066.5 | S112: 166153721.9 | T112: 165545434.1 | U112: 164940187.7 | V112: 164337967.6 | W112: 163738758.5 | X112: 163142545.5 | Y112: 162549313.6 | Z112: 161959047.8 | AA112: 161371733.4 | AB112: 160787355.5 | AC112: 160205899.5 | AD112: 159627350.8 | AE112: 159051694.8 | AF112: 158478917.1 | AG112: 157909003.3 | AH112: 157341939.1 | AI112: 156777710.2 | AJ112: 156216302.4 | AK112: 0 | AL112: 0 | AM112: 0 | AN112: 0 | AO112: 0 | AP112: 0 | AQ112: 0
C113: Normalized Rate Impact of New ERA Grant, Transmission Financing, Batteries, and Old Asset Refinancing for Quote PPA | D113: =IF(Transmission_Included_in_PPA="Yes",0,(D73+D75+D76+D77*IFERROR(D111/(D58+D84),0)))+IF(Battery_included_in_PPA="Yes",0,D70+D71+D68+D67+D66+D64) + D50+D51+D19-D7+D89 -> 0 | E113: 0 | F113: 0 | G113: 12630147.55 | H113: 12828070.27 | I113: 13038068.22 | J113: 13258239.1 | K113: 13484849.62 | L113: 13718057.55 | M113: 13957659.28 | N113: 14171551.26 | O113: 14370381.77 | P113: 14574042.32 | Q113: 14782629.52 | R113: 14996241.89 | S113: 15214979.94 | T113: 15438946.19 | U113: 15668245.19 | V113: 15902983.6 | W113: 16143270.21 | X113: 16389215.98 | Y113: 16640934.11 | Z113: 16898540.02 | AA113: 17162151.49 | AB113: 17431888.62 | AC113: 17707873.92 | AD113: 17990232.36 | AE113: 18279091.4 | AF113: 18574581.05 | AG113: 18876833.93 | AH113: 19185985.3 | AI113: 19502173.12 | AJ113: 19825538.14 | AK113: 0 | AL113: 0 | AM113: 0 | AN113: 0 | AO113: 0 | AP113: 0 | AQ113: 0
B114: Total Quote PPA Cost | C114: Quote PPA Cost including Transmission, New ERA, Battery, and Refinancing | D114: =D112+D113 -> 0 | E114: =E112+E113 -> 0 | F114: 0 | G114: 186326196.5 | H114: 185878119.8 | I114: 185445348.3 | J114: 185025963.5 | K114: 184616216.2 | L114: 184216248.1 | M114: 183825839.7 | N114: 183412871.5 | O114: 182987976.2 | P114: 182571029.6 | Q114: 182162112.6 | R114: 181761308.4 | S114: 181368701.9 | T114: 180984380.3 | U114: 180608432.9 | V114: 180240951.2 | W114: 179882028.7 | X114: 179531761.5 | Y114: 179190247.7 | Z114: 178857587.8 | AA114: 178533884.8 | AB114: 178219244.1 | AC114: 177913773.4 | AD114: 177617583.1 | AE114: 177330786.2 | AF114: 177053498.2 | AG114: 176785837.2 | AH114: 176527924.4 | AI114: 176279883.3 | AJ114: 176041840.5 | AK114: 0 | AL114: 0 | AM114: 0 | AN114: 0 | AO114: 0 | AP114: 0 | AQ114: 0
B116: Credit Metrics | C116: Capitalization Ratio = Equity/(LTD Principal Outstanding+Equity) | D116: =IFERROR(IF(Distribute_Margins="Yes",D127/(D40+D127),D123/(D40+D123)),"") ->  | G116: 0.2614167165 | H116: 0.2636751404 | I116: 0.2660465523 | J116: 0.2685426264 | K116: 0.2711766907 | L116: 0.2739640313 | M116: 0.2769222651 | N116: 0.2800718018 | O116: 0.2834364209 | P116: 0.2870439963 | Q116: 0.2909274175 | R116: 0.2951257715 | S116: 0.2996858737 | T116: 0.3046642788 | U116: 0.3101299511 | V116: 0.3161678667 | W116: 0.3228839472 | X116: 0.330411936 | Y116: 0.3389231762 | Z116: 0.3486408224 | AA116: 0.3598610261 | AB116: 0.3729854421 | AC116: 0.388572804 | AD116: 0.4074240331 | AE116: 0.43072941 | AF116: 0.4603379127 | AG116: 0.4992860286 | AH116: 0.552933458 | AI116: 0.6317104754 | AJ116: 0.7589717814 | AK116: 1 | AL116: 1 | AM116: 1 | AN116: 1 | AO116: 1 | AP116: 1 | AQ116: 1
C117: MDSC = (Depreciation+ Int on LTD+Margins)/(LTD Principal + Interest) | D117: =IFERROR(((D14+D15)+ (D44+D53+D64+D70+D73+D79)+(D81+D71+D75+D66+D55+D45)+(D60+D61)+(D86+D87)+D91)/(D41+D42),"") ->  | G117: 1.05 | H117: 1.05 | I117: 1.05 | J117: 1.05 | K117: 1.05 | L117: 1.05 | M117: 1.05 | N117: 1.05 | O117: 1.05 | P117: 1.05 | Q117: 1.05 | R117: 1.05 | S117: 1.05 | T117: 1.05 | U117: 1.05 | V117: 1.05 | W117: 1.05 | X117: 1.05 | Y117: 1.05 | Z117: 1.05 | AA117: 1.05 | AB117: 1.05 | AC117: 1.05 | AD117: 1.05 | AE117: 1.05 | AF117: 1.05 | AG117: 1.05 | AH117: 1.05 | AI117: 1.05 | AJ117: 1.05
C118: MFI = (Int on LTD+Margins)/(Int on LTD) | D118: =IFERROR(((D15)+(D81+D71+D75+D66+D55+D45)+D61+D87+D91)/(D42),"") ->  | G118: 1.114673697 | H118: 1.116903824 | I118: 1.119293247 | J118: 1.121859663 | K118: 1.124623496 | L118: 1.127608436 | M118: 1.130842121 | N118: 1.134356996 | O118: 1.138191405 | P118: 1.142390996 | Q118: 1.147010545 | R118: 1.152116363 | S118: 1.157789495 | T118: 1.164130053 | U118: 1.171263182 | V118: 1.179347394 | W118: 1.188586493 | X118: 1.199246993 | Y118: 1.211684242 | Z118: 1.22638281 | AA118: 1.244021091 | AB118: 1.26557899 | AC118: 1.292526363 | AD118: 1.327172987 | AE118: 1.373368484 | AF118: 1.438042181 | AG118: 1.535052727 | AH118: 1.696736969 | AI118: 2.020105453 | AJ118: 2.990210906
C119: Depreciation+ Int on LTD+Margins | D119: =((D44+D53+D64+D70+D73+D79)+(D81+D71+D75+D66+D55+D45)+(D60+D61)+(D86+D87))+D91+(D14+D18+D22+D24) -> 0 | E119: 0 | F119: 0 | G119: 149259964.5 | H119: 146734547.5 | I119: 144209130.5 | J119: 141683713.6 | K119: 139158296.6 | L119: 136632879.6 | M119: 134107462.7 | N119: 131582045.7 | O119: 129056628.7 | P119: 126531211.8 | Q119: 124005794.8 | R119: 121480377.8 | S119: 118954960.9 | T119: 116429543.9 | U119: 113904126.9 | V119: 111378710 | W119: 108853293 | X119: 106327876 | Y119: 103802459.1 | Z119: 101277042.1 | AA119: 98751625.14 | AB119: 96226208.17 | AC119: 93700791.2 | AD119: 91175374.24 | AE119: 88649957.27 | AF119: 86124540.3 | AG119: 83599123.33 | AH119: 81073706.37 | AI119: 78548289.4 | AJ119: 76022872.43 | AK119: 0 | AL119: 0 | AM119: 0 | AN119: 0 | AO119: 0 | AP119: 0 | AQ119: 0
C120: Int on LTD+Margins | D120: =((D81+D71+D75+D66+D55+D45)+D61+D87)+D91+D18+D22+D24 -> 0 | E120: 0 | F120: 0 | G120: 80429024.77 | H120: 77903607.81 | I120: 75378190.84 | J120: 72852773.87 | K120: 70327356.9 | L120: 67801939.94 | M120: 65276522.97 | N120: 62751106 | O120: 60225689.03 | P120: 57700272.07 | Q120: 55174855.1 | R120: 52649438.13 | S120: 50124021.17 | T120: 47598604.2 | U120: 45073187.23 | V120: 42547770.26 | W120: 40022353.3 | X120: 37496936.33 | Y120: 34971519.36 | Z120: 32446102.39 | AA120: 29920685.43 | AB120: 27395268.46 | AC120: 24869851.49 | AD120: 22344434.53 | AE120: 19819017.56 | AF120: 17293600.59 | AG120: 14768183.62 | AH120: 12242766.66 | AI120: 9717349.69 | AJ120: 7191932.722 | AK120: 0 | AL120: 0 | AM120: 0 | AN120: 0 | AO120: 0 | AP120: 0 | AQ120: 0
C121: Margins | D121: =D120-D42 -> 0 | E121: 0 | F121: 0 | G121: 8274254.28 | H121: 8153996.329 | I121: 8033738.378 | J121: 7913480.427 | K121: 7793222.476 | L121: 7672964.526 | M121: 7552706.575 | N121: 7432448.624 | O121: 7312190.673 | P121: 7191932.722 | Q121: 7071674.771 | R121: 6951416.821 | S121: 6831158.87 | T121: 6710900.919 | U121: 6590642.968 | V121: 6470385.017 | W121: 6350127.066 | X121: 6229869.116 | Y121: 6109611.165 | Z121: 5989353.214 | AA121: 5869095.263 | AB121: 5748837.312 | AC121: 5628579.362 | AD121: 5508321.411 | AE121: 5388063.46 | AF121: 5267805.509 | AG121: 5147547.558 | AH121: 5027289.607 | AI121: 4907031.657 | AJ121: 4786773.706 | AK121: 0 | AL121: 0 | AM121: 0 | AN121: 0 | AO121: 0 | AP121: 0 | AQ121: 0
C122: Accumulated Margins | D122: =SUM($D120:D120)-SUM($D42:D42) -> 0 | E122: =SUM($D120:E120)-SUM($D42:E42) -> 0 | F122: =SUM($D120:F120)-SUM($D42:F42) -> 0 | G122: =SUM($D120:G120)-SUM($D42:G42) -> 8274254.28 | H122: =SUM($D120:H120)-SUM($D42:H42) -> 16428250.61 | I122: =SUM($D120:I120)-SUM($D42:I42) -> 24461988.99 | J122: =SUM($D120:J120)-SUM($D42:J42) -> 32375469.41 | K122: =SUM($D120:K120)-SUM($D42:K42) -> 40168691.89 | L122: =SUM($D120:L120)-SUM($D42:L42) -> 47841656.42 | M122: =SUM($D120:M120)-SUM($D42:M42) -> 55394362.99 | N122: =SUM($D120:N120)-SUM($D42:N42) -> 62826811.61 | O122: =SUM($D120:O120)-SUM($D42:O42) -> 70139002.29 | P122: =SUM($D120:P120)-SUM($D42:P42) -> 77330935.01 | Q122: =SUM($D120:Q120)-SUM($D42:Q42) -> 84402609.78 | R122: =SUM($D120:R120)-SUM($D42:R42) -> 91354026.6 | S122: =SUM($D120:S120)-SUM($D42:S42) -> 98185185.47 | T122: =SUM($D120:T120)-SUM($D42:T42) -> 104896086.4 | U122: =SUM($D120:U120)-SUM($D42:U42) -> 111486729.4 | V122: =SUM($D120:V120)-SUM($D42:V42) -> 117957114.4 | W122: =SUM($D120:W120)-SUM($D42:W42) -> 124307241.4 | X122: =SUM($D120:X120)-SUM($D42:X42) -> 130537110.6 | Y122: =SUM($D120:Y120)-SUM($D42:Y42) -> 136646721.7 | Z122: =SUM($D120:Z120)-SUM($D42:Z42) -> 142636074.9 | AA122: =SUM($D120:AA120)-SUM($D42:AA42) -> 148505170.2 | AB122: =SUM($D120:AB120)-SUM($D42:AB42) -> 154254007.5 | AC122: =SUM($D120:AC120)-SUM($D42:AC42) -> 159882586.9 | AD122: =SUM($D120:AD120)-SUM($D42:AD42) -> 165390908.3 | AE122: =SUM($D120:AE120)-SUM($D42:AE42) -> 170778971.7 | AF122: =SUM($D120:AF120)-SUM($D42:AF42) -> 176046777.3 | AG122: =SUM($D120:AG120)-SUM($D42:AG42) -> 181194324.8 | AH122: =SUM($D120:AH120)-SUM($D42:AH42) -> 186221614.4 | AI122: =SUM($D120:AI120)-SUM($D42:AI42) -> 191128646.1 | AJ122: =SUM($D120:AJ120)-SUM($D42:AJ42) -> 195915419.8 | AK122: =SUM($D120:AK120)-SUM($D42:AK42) -> 195915419.8 | AL122: =SUM($D120:AL120)-SUM($D42:AL42) -> 195915419.8 | AM122: =SUM($D120:AM120)-SUM($D42:AM42) -> 195915419.8 | AN122: =SUM($D120:AN120)-SUM($D42:AN42) -> 195915419.8 | AO122: =SUM($D120:AO120)-SUM($D42:AO42) -> 195915419.8 | AP122: =SUM($D120:AP120)-SUM($D42:AP42) -> 195915419.8 | AQ122: =SUM($D120:AQ120)-SUM($D42:AQ42) -> 195915419.8
C123: Equity (excluding distributions) | D123: =-(D43+D59+D85+D69-SUM($D120:D120)+SUM($D42:D42))+D23+D90 -> 0 | E123: =-(E43+E59+E85+E69-SUM($D120:E120)+SUM($D42:E42))+E23+E90 -> 0 | F123: =-(F43+F59+F85+F69-SUM($D120:F120)+SUM($D42:F42))+F23+F90 -> 0 | G123: =-(G43+G59+G85+G69-SUM($D120:G120)+SUM($D42:G42))+G23+G90 -> 743255516 | H123: =-(H43+H59+H85+H69-SUM($D120:H120)+SUM($D42:H42))+H23+H90 -> 726910136.9 | I123: =-(I43+I59+I85+I69-SUM($D120:I120)+SUM($D42:I42))+I23+I90 -> 710444499.9 | J123: =-(J43+J59+J85+J69-SUM($D120:J120)+SUM($D42:J42))+J23+J90 -> 693858605 | K123: =-(K43+K59+K85+K69-SUM($D120:K120)+SUM($D42:K42))+K23+K90 -> 677152452 | L123: =-(L43+L59+L85+L69-SUM($D120:L120)+SUM($D42:L42))+L23+L90 -> 660326041.2 | M123: =-(M43+M59+M85+M69-SUM($D120:M120)+SUM($D42:M42))+M23+M90 -> 643379372.4 | N123: =-(N43+N59+N85+N69-SUM($D120:N120)+SUM($D42:N42))+N23+N90 -> 626312445.6 | O123: =-(O43+O59+O85+O69-SUM($D120:O120)+SUM($D42:O42))+O23+O90 -> 609125260.9 | P123: =-(P43+P59+P85+P69-SUM($D120:P120)+SUM($D42:P42))+P23+P90 -> 591817818.2 | Q123: =-(Q43+Q59+Q85+Q69-SUM($D120:Q120)+SUM($D42:Q42))+Q23+Q90 -> 574390117.6 | R123: =-(R43+R59+R85+R69-SUM($D120:R120)+SUM($D42:R42))+R23+R90 -> 556842159 | S123: =-(S43+S59+S85+S69-SUM($D120:S120)+SUM($D42:S42))+S23+S90 -> 539173942.5 | T123: =-(T43+T59+T85+T69-SUM($D120:T120)+SUM($D42:T42))+T23+T90 -> 521385468 | U123: =-(U43+U59+U85+U69-SUM($D120:U120)+SUM($D42:U42))+U23+U90 -> 503476735.6 | V123: =-(V43+V59+V85+V69-SUM($D120:V120)+SUM($D42:V42))+V23+V90 -> 485447745.2 | W123: =-(W43+W59+W85+W69-SUM($D120:W120)+SUM($D42:W42))+W23+W90 -> 467298496.9 | X123: =-(X43+X59+X85+X69-SUM($D120:X120)+SUM($D42:X42))+X23+X90 -> 449028990.6 | Y123: =-(Y43+Y59+Y85+Y69-SUM($D120:Y120)+SUM($D42:Y42))+Y23+Y90 -> 430639226.4 | Z123: =-(Z43+Z59+Z85+Z69-SUM($D120:Z120)+SUM($D42:Z42))+Z23+Z90 -> 412129204.2 | AA123: =-(AA43+AA59+AA85+AA69-SUM($D120:AA120)+SUM($D42:AA42))+AA23+AA90 -> 393498924.1 | AB123: =-(AB43+AB59+AB85+AB69-SUM($D120:AB120)+SUM($D42:AB42))+AB23+AB90 -> 374748386 | AC123: =-(AC43+AC59+AC85+AC69-SUM($D120:AC120)+SUM($D42:AC42))+AC23+AC90 -> 355877590 | AD123: =-(AD43+AD59+AD85+AD69-SUM($D120:AD120)+SUM($D42:AD42))+AD23+AD90 -> 336886536 | AE123: =-(AE43+AE59+AE85+AE69-SUM($D120:AE120)+SUM($D42:AE42))+AE23+AE90 -> 317775224.1 | AF123: =-(AF43+AF59+AF85+AF69-SUM($D120:AF120)+SUM($D42:AF42))+AF23+AF90 -> 298543654.2 | AG123: =-(AG43+AG59+AG85+AG69-SUM($D120:AG120)+SUM($D42:AG42))+AG23+AG90 -> 279191826.4 | AH123: =-(AH43+AH59+AH85+AH69-SUM($D120:AH120)+SUM($D42:AH42))+AH23+AH90 -> 259719740.6 | AI123: =-(AI43+AI59+AI85+AI69-SUM($D120:AI120)+SUM($D42:AI42))+AI23+AI90 -> 240127396.9 | AJ123: =-(AJ43+AJ59+AJ85+AJ69-SUM($D120:AJ120)+SUM($D42:AJ42))+AJ23+AJ90 -> 220414795.2 | AK123: =-(AK43+AK59+AK85+AK69-SUM($D120:AK120)+SUM($D42:AK42))+AK23+AK90 -> 195915419.8 | AL123: =-(AL43+AL59+AL85+AL69-SUM($D120:AL120)+SUM($D42:AL42))+AL23+AL90 -> 195915419.8 | AM123: =-(AM43+AM59+AM85+AM69-SUM($D120:AM120)+SUM($D42:AM42))+AM23+AM90 -> 195915419.8 | AN123: =-(AN43+AN59+AN85+AN69-SUM($D120:AN120)+SUM($D42:AN42))+AN23+AN90 -> 195915419.8 | AO123: =-(AO43+AO59+AO85+AO69-SUM($D120:AO120)+SUM($D42:AO42))+AO23+AO90 -> 195915419.8 | AP123: =-(AP43+AP59+AP85+AP69-SUM($D120:AP120)+SUM($D42:AP42))+AP23+AP90 -> 195915419.8 | AQ123: =-(AQ43+AQ59+AQ85+AQ69-SUM($D120:AQ120)+SUM($D42:AQ42))+AQ23+AQ90 -> 195915419.8
C124: Equity required to meet target | D124: =IFERROR(D40/(1/Target_Equity_Ratio - 1),"") -> 0 | E124: 0 | F124: 0 | G124: 699975766.3 | H124: 676643240.8 | I124: 653310715.2 | J124: 629978189.7 | K124: 606645664.1 | L124: 583313138.6 | M124: 559980613.1 | N124: 536648087.5 | O124: 513315562 | P124: 489983036.4 | Q124: 466650510.9 | R124: 443317985.3 | S124: 419985459.8 | T124: 396652934.3 | U124: 373320408.7 | V124: 349987883.2 | W124: 326655357.6 | X124: 303322832.1 | Y124: 279990306.5 | Z124: 256657781 | AA124: 233325255.4 | AB124: 209992729.9 | AC124: 186660204.4 | AD124: 163327678.8 | AE124: 139995153.3 | AF124: 116662627.7 | AG124: 93330102.18 | AH124: 69997576.63 | AI124: 46665051.09 | AJ124: 23332525.54 | AK124: 0 | AL124: 0 | AM124: 0 | AN124: 0 | AO124: 0 | AP124: 0 | AQ124: 0
C125: Excess Equity | D125: =D123-D124 -> 0 | E125: =E123-E124 -> 0 | F125: 0 | G125: 43279749.67 | H125: 50266896.15 | I125: 57133784.68 | J125: 63880415.27 | K125: 70506787.9 | L125: 77012902.57 | M125: 83398759.3 | N125: 89664358.08 | O125: 95809698.91 | P125: 101834781.8 | Q125: 107739606.7 | R125: 113524173.7 | S125: 119188482.7 | T125: 124732533.8 | U125: 130156326.9 | V125: 135459862.1 | W125: 140643139.3 | X125: 145706158.6 | Y125: 150648919.9 | Z125: 155471423.2 | AA125: 160173668.7 | AB125: 164755656.1 | AC125: 169217385.6 | AD125: 173558857.2 | AE125: 177780070.8 | AF125: 181881026.5 | AG125: 185861724.2 | AH125: 189722164 | AI125: 193462345.8 | AJ125: 197082269.6 | AK125: 195915419.8 | AL125: 195915419.8 | AM125: 195915419.8 | AN125: 195915419.8 | AO125: 195915419.8 | AP125: 195915419.8 | AQ125: 195915419.8
C126: Excess Equity available for distribution | D126: =MIN(D91,MIN(D125:$AQ125)-SUM($C126:C126)) -> 0 | E126: =MIN(E91,MIN(E125:$AQ125)-SUM($C126:D126)) -> 0 | F126: =MIN(F91,MIN(F125:$AQ125)-SUM($C126:E126)) -> 0 | G126: =MIN(G91,MIN(G125:$AQ125)-SUM($C126:F126)) -> 1403232.117 | H126: =MIN(H91,MIN(H125:$AQ125)-SUM($C126:G126)) -> 1512008.238 | I126: =MIN(I91,MIN(I125:$AQ125)-SUM($C126:H126)) -> 1620784.36 | J126: =MIN(J91,MIN(J125:$AQ125)-SUM($C126:I126)) -> 1729560.481 | K126: =MIN(K91,MIN(K125:$AQ125)-SUM($C126:J126)) -> 1838336.602 | L126: =MIN(L91,MIN(L125:$AQ125)-SUM($C126:K126)) -> 1947112.723 | M126: =MIN(M91,MIN(M125:$AQ125)-SUM($C126:L126)) -> 2055888.845 | N126: =MIN(N91,MIN(N125:$AQ125)-SUM($C126:M126)) -> 2164664.966 | O126: =MIN(O91,MIN(O125:$AQ125)-SUM($C126:N126)) -> 2273441.087 | P126: =MIN(P91,MIN(P125:$AQ125)-SUM($C126:O126)) -> 2382217.208 | Q126: =MIN(Q91,MIN(Q125:$AQ125)-SUM($C126:P126)) -> 2490993.33 | R126: =MIN(R91,MIN(R125:$AQ125)-SUM($C126:Q126)) -> 2599769.451 | S126: =MIN(S91,MIN(S125:$AQ125)-SUM($C126:R126)) -> 2708545.572 | T126: =MIN(T91,MIN(T125:$AQ125)-SUM($C126:S126)) -> 2817321.694 | U126: =MIN(U91,MIN(U125:$AQ125)-SUM($C126:T126)) -> 2926097.815 | V126: =MIN(V91,MIN(V125:$AQ125)-SUM($C126:U126)) -> 3034873.936 | W126: =MIN(W91,MIN(W125:$AQ125)-SUM($C126:V126)) -> 3143650.057 | X126: =MIN(X91,MIN(X125:$AQ125)-SUM($C126:W126)) -> 3252426.179 | Y126: =MIN(Y91,MIN(Y125:$AQ125)-SUM($C126:X126)) -> 3361202.3 | Z126: =MIN(Z91,MIN(Z125:$AQ125)-SUM($C126:Y126)) -> 3469978.421 | AA126: =MIN(AA91,MIN(AA125:$AQ125)-SUM($C126:Z126)) -> 3578754.542 | AB126: =MIN(AB91,MIN(AB125:$AQ125)-SUM($C126:AA126)) -> 3687530.664 | AC126: =MIN(AC91,MIN(AC125:$AQ125)-SUM($C126:AB126)) -> 3796306.785 | AD126: =MIN(AD91,MIN(AD125:$AQ125)-SUM($C126:AC126)) -> 3905082.906 | AE126: =MIN(AE91,MIN(AE125:$AQ125)-SUM($C126:AD126)) -> 4013859.027 | AF126: =MIN(AF91,MIN(AF125:$AQ125)-SUM($C126:AE126)) -> 4122635.149 | AG126: =MIN(AG91,MIN(AG125:$AQ125)-SUM($C126:AF126)) -> 4231411.27 | AH126: =MIN(AH91,MIN(AH125:$AQ125)-SUM($C126:AG126)) -> 4340187.391 | AI126: =MIN(AI91,MIN(AI125:$AQ125)-SUM($C126:AH126)) -> 4448963.512 | AJ126: =MIN(AJ91,MIN(AJ125:$AQ125)-SUM($C126:AI126)) -> 4557739.634 | AK126: =MIN(AK91,MIN(AK125:$AQ125)-SUM($C126:AJ126)) -> 0 | AL126: =MIN(AL91,MIN(AL125:$AQ125)-SUM($C126:AK126)) -> 0 | AM126: =MIN(AM91,MIN(AM125:$AQ125)-SUM($C126:AL126)) -> 0 | AN126: =MIN(AN91,MIN(AN125:$AQ125)-SUM($C126:AM126)) -> 0 | AO126: =MIN(AO91,MIN(AO125:$AQ125)-SUM($C126:AN126)) -> 0 | AP126: =MIN(AP91,MIN(AP125:$AQ125)-SUM($C126:AO126)) -> 0 | AQ126: =MIN(AQ91,MIN(AQ125:$AQ125)-SUM($C126:AP126)) -> 0
C127: Equity (net of distributions) | D127: =D123-SUM($D126:D126) -> 0 | E127: =E123-SUM($D126:E126) -> 0 | F127: =F123-SUM($D126:F126) -> 0 | G127: =G123-SUM($D126:G126) -> 741852283.9 | H127: =H123-SUM($D126:H126) -> 723994896.6 | I127: =I123-SUM($D126:I126) -> 705908475.2 | J127: =J123-SUM($D126:J126) -> 687593019.8 | K127: =K123-SUM($D126:K126) -> 669048530.2 | L127: =L123-SUM($D126:L126) -> 650275006.7 | M127: =M123-SUM($D126:M126) -> 631272449 | N127: =N123-SUM($D126:N126) -> 612040857.3 | O127: =O123-SUM($D126:O126) -> 592580231.5 | P127: =P123-SUM($D126:P126) -> 572890571.6 | Q127: =Q123-SUM($D126:Q126) -> 552971877.6 | R127: =R123-SUM($D126:R126) -> 532824149.6 | S127: =S123-SUM($D126:S126) -> 512447387.5 | T127: =T123-SUM($D126:T126) -> 491841591.4 | U127: =U123-SUM($D126:U126) -> 471006761.1 | V127: =V123-SUM($D126:V126) -> 449942896.8 | W127: =W123-SUM($D126:W126) -> 428649998.4 | X127: =X123-SUM($D126:X126) -> 407128066 | Y127: =Y123-SUM($D126:Y126) -> 385377099.4 | Z127: =Z123-SUM($D126:Z126) -> 363397098.9 | AA127: =AA123-SUM($D126:AA126) -> 341188064.2 | AB127: =AB123-SUM($D126:AB126) -> 318749995.4 | AC127: =AC123-SUM($D126:AC126) -> 296082892.6 | AD127: =AD123-SUM($D126:AD126) -> 273186755.7 | AE127: =AE123-SUM($D126:AE126) -> 250061584.8 | AF127: =AF123-SUM($D126:AF126) -> 226707379.8 | AG127: =AG123-SUM($D126:AG126) -> 203124140.6 | AH127: =AH123-SUM($D126:AH126) -> 179311867.5 | AI127: =AI123-SUM($D126:AI126) -> 155270560.2 | AJ127: =AJ123-SUM($D126:AJ126) -> 131000218.9 | AK127: =AK123-SUM($D126:AK126) -> 106500843.5 | AL127: =AL123-SUM($D126:AL126) -> 106500843.5 | AM127: =AM123-SUM($D126:AM126) -> 106500843.5 | AN127: =AN123-SUM($D126:AN126) -> 106500843.5 | AO127: =AO123-SUM($D126:AO126) -> 106500843.5 | AP127: =AP123-SUM($D126:AP126) -> 106500843.5 | AQ127: =AQ123-SUM($D126:AQ126) -> 106500843.5
C129: Margin Adjustment Capitalization Ratio = Equity/(LTD Principal Outstanding) | D129: =IFERROR(D136/(D40+D136),"") ->  | G129: 0.2610520142 | H129: 0.2628956841 | I129: 0.2647977038 | J129: 0.2667645626 | K129: 0.268803705 | L129: 0.2709237144 | M129: 0.2731345389 | N129: 0.275447775 | O129: 0.2778770231 | P129: 0.2804383413 | Q129: 0.2831508265 | R129: 0.2860373697 | S129: 0.2891256479 | T129: 0.2924494447 | U129: 0.2960504328 | V129: 0.2999806207 | W129: 0.3043057702 | X129: 0.3091102639 | Y129: 0.3145042008 | Z129: 0.3206340005 | AA129: 0.3276987292 | AB129: 0.3359760998 | AC129: 0.3458655703 | AD129: 0.3579632718 | AE129: 0.3732000414 | AF129: 0.3931146904 | AG129: 0.4204472498 | AH129: 0.4605952991 | AI129: 0.5258672211 | AJ129: 0.6517495307 | AK129: 1 | AL129: 1 | AM129: 1 | AN129: 1 | AO129: 1 | AP129: 1 | AQ129: 1
C130: Margin Adjustment MDSC = (Depreciation+ Int on LTD+Margins)/(LTD Principal + Interest) | D130: =IFERROR(((D44+D53+D64+D70+D73+D79)+D14+D15+(D81+D71+D75+D66+D55+D45)+(D60+D61)+(D86+D87))/(D41+D42),"") ->  | G130: 1.040128674 | H130: 1.039180403 | I130: 1.038198919 | J130: 1.037182447 | K130: 1.036129081 | L130: 1.035036776 | M130: 1.033903332 | N130: 1.03272638 | O130: 1.031503367 | P130: 1.030231533 | Q130: 1.028907897 | R130: 1.027529228 | S130: 1.02609202 | T130: 1.024592464 | U130: 1.023026415 | V130: 1.021389347 | W130: 1.019676319 | X130: 1.017881918 | Y130: 1.016000204 | Z130: 1.014024647 | AA130: 1.011948046 | AB130: 1.009762447 | AC130: 1.007459035 | AD130: 1.005028021 | AE130: 1.0024585 | AF130: 0.9997382872 | AG130: 0.996853727 | AH130: 0.9937894607 | AI130: 0.9905281551 | AJ130: 0.9870501737
C131: Margin Adjustment MFI = (Int on LTD+Margins)/(Int on LTD) | D131: =IFERROR(((D81+D71+D75+D66+D55+D45)+D15+D61+D87)/D42,"") ->  | G131: 1.095226166 | H131: 1.095226166 | I131: 1.095226166 | J131: 1.095226166 | K131: 1.095226166 | L131: 1.095226166 | M131: 1.095226166 | N131: 1.095226166 | O131: 1.095226166 | P131: 1.095226166 | Q131: 1.095226166 | R131: 1.095226166 | S131: 1.095226166 | T131: 1.095226166 | U131: 1.095226166 | V131: 1.095226166 | W131: 1.095226166 | X131: 1.095226166 | Y131: 1.095226166 | Z131: 1.095226166 | AA131: 1.095226166 | AB131: 1.095226166 | AC131: 1.095226166 | AD131: 1.095226166 | AE131: 1.095226166 | AF131: 1.095226166 | AG131: 1.095226166 | AH131: 1.095226166 | AI131: 1.095226166 | AJ131: 1.095226166
C132: Test Depreciation+ Int on LTD+Margins | D132: =((D44+D53+D64+D70+D73+D79)+(D81+D71+D75+D66+D55+D45)+(D60+D61)+(D86+D87))+(D14+D18+D22+D24) -> 0 | E132: 0 | F132: 0 | G132: 147856732.4 | H132: 145222539.3 | I132: 142588346.2 | J132: 139954153.1 | K132: 137319960 | L132: 134685766.9 | M132: 132051573.8 | N132: 129417380.7 | O132: 126783187.7 | P132: 124148994.6 | Q132: 121514801.5 | R132: 118880608.4 | S132: 116246415.3 | T132: 113612222.2 | U132: 110978029.1 | V132: 108343836 | W132: 105709642.9 | X132: 103075449.9 | Y132: 100441256.8 | Z132: 97807063.68 | AA132: 95172870.59 | AB132: 92538677.51 | AC132: 89904484.42 | AD132: 87270291.33 | AE132: 84636098.24 | AF132: 82001905.15 | AG132: 79367712.06 | AH132: 76733518.97 | AI132: 74099325.89 | AJ132: 71465132.8 | AK132: 0 | AL132: 0 | AM132: 0 | AN132: 0 | AO132: 0 | AP132: 0 | AQ132: 0
C133: Test Int on LTD+Margins | D133: =((D81+D71+D75+D66+D55+D45)+D61+D87)+D18+D22+D24 -> 0 | E133: 0 | F133: 0 | G133: 79025792.66 | H133: 76391599.57 | I133: 73757406.48 | J133: 71123213.39 | K133: 68489020.3 | L133: 65854827.21 | M133: 63220634.12 | N133: 60586441.04 | O133: 57952247.95 | P133: 55318054.86 | Q133: 52683861.77 | R133: 50049668.68 | S133: 47415475.59 | T133: 44781282.51 | U133: 42147089.42 | V133: 39512896.33 | W133: 36878703.24 | X133: 34244510.15 | Y133: 31610317.06 | Z133: 28976123.97 | AA133: 26341930.89 | AB133: 23707737.8 | AC133: 21073544.71 | AD133: 18439351.62 | AE133: 15805158.53 | AF133: 13170965.44 | AG133: 10536772.35 | AH133: 7902579.266 | AI133: 5268386.177 | AJ133: 2634193.089 | AK133: 0 | AL133: 0 | AM133: 0 | AN133: 0 | AO133: 0 | AP133: 0 | AQ133: 0
C134: Test Margins | D134: =D133-D42 -> 0 | E134: 0 | F134: 0 | G134: 6871022.163 | H134: 6641988.09 | I134: 6412954.018 | J134: 6183919.946 | K134: 5954885.874 | L134: 5725851.802 | M134: 5496817.73 | N134: 5267783.658 | O134: 5038749.586 | P134: 4809715.514 | Q134: 4580681.442 | R134: 4351647.37 | S134: 4122613.298 | T134: 3893579.225 | U134: 3664545.153 | V134: 3435511.081 | W134: 3206477.009 | X134: 2977442.937 | Y134: 2748408.865 | Z134: 2519374.793 | AA134: 2290340.721 | AB134: 2061306.649 | AC134: 1832272.577 | AD134: 1603238.505 | AE134: 1374204.433 | AF134: 1145170.36 | AG134: 916136.2883 | AH134: 687102.2163 | AI134: 458068.1442 | AJ134: 229034.0721 | AK134: 0 | AL134: 0 | AM134: 0 | AN134: 0 | AO134: 0 | AP134: 0 | AQ134: 0
C135: Test Accumulated Margins | D135: =SUM($D133:D133)-SUM($D42:D42) -> 0 | E135: =SUM($D133:E133)-SUM($D42:E42) -> 0 | F135: =SUM($D133:F133)-SUM($D42:F42) -> 0 | G135: =SUM($D133:G133)-SUM($D42:G42) -> 6871022.163 | H135: =SUM($D133:H133)-SUM($D42:H42) -> 13513010.25 | I135: =SUM($D133:I133)-SUM($D42:I42) -> 19925964.27 | J135: =SUM($D133:J133)-SUM($D42:J42) -> 26109884.22 | K135: =SUM($D133:K133)-SUM($D42:K42) -> 32064770.09 | L135: =SUM($D133:L133)-SUM($D42:L42) -> 37790621.89 | M135: =SUM($D133:M133)-SUM($D42:M42) -> 43287439.62 | N135: =SUM($D133:N133)-SUM($D42:N42) -> 48555223.28 | O135: =SUM($D133:O133)-SUM($D42:O42) -> 53593972.87 | P135: =SUM($D133:P133)-SUM($D42:P42) -> 58403688.38 | Q135: =SUM($D133:Q133)-SUM($D42:Q42) -> 62984369.82 | R135: =SUM($D133:R133)-SUM($D42:R42) -> 67336017.19 | S135: =SUM($D133:S133)-SUM($D42:S42) -> 71458630.49 | T135: =SUM($D133:T133)-SUM($D42:T42) -> 75352209.72 | U135: =SUM($D133:U133)-SUM($D42:U42) -> 79016754.87 | V135: =SUM($D133:V133)-SUM($D42:V42) -> 82452265.95 | W135: =SUM($D133:W133)-SUM($D42:W42) -> 85658742.96 | X135: =SUM($D133:X133)-SUM($D42:X42) -> 88636185.9 | Y135: =SUM($D133:Y133)-SUM($D42:Y42) -> 91384594.76 | Z135: =SUM($D133:Z133)-SUM($D42:Z42) -> 93903969.55 | AA135: =SUM($D133:AA133)-SUM($D42:AA42) -> 96194310.28 | AB135: =SUM($D133:AB133)-SUM($D42:AB42) -> 98255616.92 | AC135: =SUM($D133:AC133)-SUM($D42:AC42) -> 100087889.5 | AD135: =SUM($D133:AD133)-SUM($D42:AD42) -> 101691128 | AE135: =SUM($D133:AE133)-SUM($D42:AE42) -> 103065332.4 | AF135: =SUM($D133:AF133)-SUM($D42:AF42) -> 104210502.8 | AG135: =SUM($D133:AG133)-SUM($D42:AG42) -> 105126639.1 | AH135: =SUM($D133:AH133)-SUM($D42:AH42) -> 105813741.3 | AI135: =SUM($D133:AI133)-SUM($D42:AI42) -> 106271809.4 | AJ135: =SUM($D133:AJ133)-SUM($D42:AJ42) -> 106500843.5 | AK135: =SUM($D133:AK133)-SUM($D42:AK42) -> 106500843.5 | AL135: =SUM($D133:AL133)-SUM($D42:AL42) -> 106500843.5 | AM135: =SUM($D133:AM133)-SUM($D42:AM42) -> 106500843.5 | AN135: =SUM($D133:AN133)-SUM($D42:AN42) -> 106500843.5 | AO135: =SUM($D133:AO133)-SUM($D42:AO42) -> 106500843.5 | AP135: =SUM($D133:AP133)-SUM($D42:AP42) -> 106500843.5 | AQ135: =SUM($D133:AQ133)-SUM($D42:AQ42) -> 106500843.5
C136: Test Equity | D136: =D135-(D43+D59+D85+D69)+D23+D90 -> 0 | E136: 0 | F136: 0 | G136: 741852283.9 | H136: 723994896.6 | I136: 705908475.2 | J136: 687593019.8 | K136: 669048530.2 | L136: 650275006.7 | M136: 631272449 | N136: 612040857.3 | O136: 592580231.5 | P136: 572890571.6 | Q136: 552971877.6 | R136: 532824149.6 | S136: 512447387.5 | T136: 491841591.4 | U136: 471006761.1 | V136: 449942896.8 | W136: 428649998.4 | X136: 407128066 | Y136: 385377099.4 | Z136: 363397098.9 | AA136: 341188064.2 | AB136: 318749995.4 | AC136: 296082892.6 | AD136: 273186755.7 | AE136: 250061584.8 | AF136: 226707379.8 | AG136: 203124140.6 | AH136: 179311867.5 | AI136: 155270560.2 | AJ136: 131000218.9 | AK136: 106500843.5 | AL136: 106500843.5 | AM136: 106500843.5 | AN136: 106500843.5 | AO136: 106500843.5 | AP136: 106500843.5 | AQ136: 106500843.5
